Workbook

Sheet Age profile chart

Sheet Forecast Ch1

Sheet Age profile summary
A1: Asset calcs | R1: Remaining life | W1: RC ($ millions) | AB1: RC (%)
R2: Very old | S2: Old | T2: moderate | U2: young | V2: new | W2: =R2 -> Very old | X2: =S2 -> Old | Y2: moderate | Z2: young | AA2: new | AB2: Very old | AC2: Old | AD2: moderate | AE2: young | AF2: new
M3: WARL | O3: WAL | Q3: WAA | R3: > | S3: > | T3: > | U3: > | V3: <=0.2 | W3: =R3 -> > | X3: > | Y3: > | Z3: > | AA3: <=0.2 | AB3: > | AC3: > | AD3: > | AE3: > | AF3: <=0.2
F4: Quantity | G4: Unit | H4: RC | I4: prop total | J4: Rank | K4: prop cat | L4: RC / unit | M4: (Rep life) | O4: Rep life | Q4: % Rep life | R4: =W4 -> 0.9 | S4: =X4 -> 0.8 | T4: =Y4 -> 0.4 | U4: =Z4 -> 0.2 | W4: 0.9 | X4: 0.8 | Y4: 0.4 | Z4: 0.2 | AA4: 0 | AB4: 0.9 | AC4: 0.8 | AD4: 0.4 | AE4: 0.2 | AF4: 0 | AG4: Std life | AH4: Std life | AI4: rep life
G5: Cost | H5: $ millions | I5: % | J5: total | K5: % | L5: $ ('000) | AG5: max | AH5: min
A6: 1 | D6: =VLOOKUP(A6,IDtable,2) -> POLES | F6: =SUMIF($A$21:$A$205,$A6,F$21:F$205) -> 49203 | H6: =SUMIF($A$21:$A$205,$A6,H$21:H$205)/1000 -> 467.6693097 | I6: =H6/($H$18) -> 0.1169434692 | J6: =RANK(I6,I$6:I$17) -> 4 | L6: =H6*1000/(F6+0.001) -> 9.504894014 | M6: =SUMIF($A$21:$A$205,$A6,N$21:N$205)/(H6*1000+0.000001) -> 29.70647282 | O6: =SUMIF($A$21:$A$205,$A6,P$21:P$205)/(H6*1000+0.000001) -> 58.09301741 | Q6: =(O6-M6)/(O6+0.000001) -> 0.4886395193 | R6: =$O6-R$4*$O6 -> 5.809301741 | S6: =$O6-S$4*$O6 -> 11.61860348 | T6: =$O6-T$4*$O6 -> 34.85581044 | U6: =$O6-U$4*$O6 -> 46.47441393 | V6: =$O6-V$4*$O6 -> 58.09301741 | W6: =SUMIF($A$21:$A$205,$A6,W$21:W$205)/1000 -> 18.85239296 | X6: 10.00647691 | Y6: 253.5723326 | Z6: 102.6107535 | AA6: 82.62735374 | AB6: =IF($H6=0,0,W6/$H6) -> 0.04031137508 | AC6: =IF($H6=0,0,X6/$H6) -> 0.02139647974 | AD6: =IF($H6=0,0,Y6/$H6) -> 0.5422043468 | AE6: =IF($H6=0,0,Z6/$H6) -> 0.2194087817 | AF6: =IF($H6=0,0,AA6/$H6) -> 0.1766790166 | AG6: =MAX(IF($A$21:$A$205=$A6,$O$21:$O$205)) -> 90.02875702 | AH6: =MIN(IF($A$21:$A$205=$A6,$O$21:$O$205)) -> 33.1697284 | AI6: =IF(H6=0,0,SUMIF($A$21:$A$205,$A6,$AJ$21:$AJ$205)/(H6*1000)) -> 58.09301741
A7: 2 | D7: OVERHEAD CONDUCTORS | F7: =SUMIF($A$21:$A$205,$A7,F$21:F$205) -> 2552.9 | H7: =SUMIF($A$21:$A$205,$A7,H$21:H$205)/1000 -> 180.6570994 | I7: =H7/($H$18) -> 0.0451743732 | J7: 6 | L7: 70.76541525 | M7: 43.8252541 | O7: 83.03586354 | Q7: 0.4722129366 | R7: =$O7-R$4*$O7 -> 8.303586354 | S7: 16.60717271 | T7: 49.82151812 | U7: 66.42869083 | V7: 83.03586354 | W7: 9.637135417 | X7: 5.266097313 | Y7: 99.5681274 | Z7: 44.50948864 | AA7: 21.6762506 | AB7: =IF($H7=0,0,W7/$H7) -> 0.05334490286 | AC7: =IF($H7=0,0,X7/$H7) -> 0.02914968375 | AD7: =IF($H7=0,0,Y7/$H7) -> 0.5511442824 | AE7: =IF($H7=0,0,Z7/$H7) -> 0.2463755302 | AF7: =IF($H7=0,0,AA7/$H7) -> 0.1199856007 | AG7: =MAX(IF($A$21:$A$205=$A7,$O$21:$O$205)) -> 83.56043196 | AH7: =MIN(IF($A$21:$A$205=$A7,$O$21:$O$205)) -> 53.0383789 | AI7: =IF(H7=0,0,SUMIF($A$21:$A$205,$A7,$AJ$21:$AJ$205)/(H7*1000)) -> 83.03586354
A8: 3 | D8: UNDERGROUND CABLES | F8: 2604.77 | H8: 1622.711749 | I8: 0.4057686434 | J8: 1 | L8: 622.976741 | M8: 47.7471357 | O8: 89.68163873 | Q8: 0.4675929561 | R8: 8.968163873 | S8: 17.93632775 | T8: 53.80898324 | U8: 71.74531098 | V8: 89.68163873 | W8: 57.30338638 | X8: 112.4343397 | Y8: 866.3120227 | Z8: 411.0569362 | AA8: 175.6050636 | AB8: 0.03531334905 | AC8: 0.06928793103 | AD8: 0.533866858 | AE8: 0.2533148211 | AF8: 0.1082170408 | AG8: =MAX(IF($A$21:$A$205=$A8,$O$21:$O$205)) -> 103.5161731 | AH8: =MIN(IF($A$21:$A$205=$A8,$O$21:$O$205)) -> 78.29632993 | AI8: 89.68163873
A9: 4 | D9: SERVICE LINES | F9: 2326.339 | H9: 187.5312318 | I9: 0.04689329057 | J9: 5 | L9: 80.61213401 | M9: 20.59391641 | O9: 58.62924546 | Q9: 0.6487432698 | R9: 5.862924546 | S9: 11.72584909 | T9: 35.17754728 | U9: 46.90339637 | V9: 58.62924546 | W9: 32.01709778 | X9: 30.00164846 | Y9: 88.15583928 | Z9: 13.728736 | AA9: 23.62791031 | AB9: 0.1707294165 | AC9: 0.1599821436 | AD9: 0.470086174 | AE9: 0.07320773112 | AF9: 0.1259945348 | AG9: =MAX(IF($A$21:$A$205=$A9,$O$21:$O$205)) -> 58.62924546 | AH9: =MIN(IF($A$21:$A$205=$A9,$O$21:$O$205)) -> 58.62924546 | AI9: 58.62924546
A10: 5 | D10: TRANSFORMERS | F10: 4762 | H10: 777.0618359 | I10: 0.1943088951 | J10: 2 | L10: 163.1796877 | M10: 35.76306441 | O10: 63.44049468 | Q10: 0.4362738654 | R10: 6.344049468 | S10: 12.68809894 | T10: 38.06429681 | U10: 50.75239574 | V10: 63.44049468 | W10: 15.9386328 | X10: 50.37793678 | Y10: 349.4912841 | Z10: 109.6552597 | AA10: 251.5987225 | AB10: 0.02051140857 | AC10: 0.06483131002 | AD10: 0.4497599393 | AE10: 0.14111523 | AF10: 0.3237821121 | AG10: =MAX(IF($A$21:$A$205=$A10,$O$21:$O$205)) -> 68.06348434 | AH10: =MIN(IF($A$21:$A$205=$A10,$O$21:$O$205)) -> 54.04368058 | AI10: 63.44049468
A11: 6 | D11: SWITCHGEAR | F11: 27347 | H11: 763.4746074 | I11: 0.1909113285 | J11: 3 | L11: 27.91803779 | M11: 47.4650443 | O11: 84.48391026 | Q11: 0.4381765168 | R11: 8.448391026 | S11: 16.89678205 | T11: 50.69034616 | U11: 67.58712821 | V11: 84.48391026 | W11: 22.72873432 | X11: 29.82496765 | Y11: 443.5667971 | Z11: 79.22447632 | AA11: 188.1296321 | AB11: 0.02977012477 | AC11: 0.0390647801 | AD11: 0.5809843481 | AE11: 0.1037683186 | AF11: 0.2464124284 | AG11: =MAX(IF($A$21:$A$205=$A11,$O$21:$O$205)) -> 90.45668295 | AH11: =MIN(IF($A$21:$A$205=$A11,$O$21:$O$205)) -> 50.10620912 | AI11: 84.48391026
A12: 7 | D12: PUBLIC LIGHTING | F12: 0 | H12: 0 | I12: 0 | J12: 7 | L12: 0 | M12: 0 | O12: 0 | Q12: 0 | R12: 0 | S12: 0 | T12: 0 | U12: 0 | V12: 0 | W12: 0 | X12: 0 | Y12: 0 | Z12: 0 | AA12: 0 | AB12: 0 | AC12: 0 | AD12: 0 | AE12: 0 | AF12: 0 | AG12: =MAX(IF($A$21:$A$205=$A12,$O$21:$O$205)) -> 0 | AH12: =MIN(IF($A$21:$A$205=$A12,$O$21:$O$205)) -> 0 | AI12: 0
A13: 8 | D13: SCADA, NETWORK CONTROL AND PROTECTION | F13: 0 | H13: 0 | I13: 0 | J13: 7 | L13: 0 | M13: 0 | O13: 0 | Q13: 0 | R13: 0 | S13: 0 | T13: 0 | U13: 0 | V13: 0 | W13: 0 | X13: 0 | Y13: 0 | Z13: 0 | AA13: 0 | AB13: 0 | AC13: 0 | AD13: 0 | AE13: 0 | AF13: 0 | AG13: =MAX(IF($A$21:$A$205=$A13,$O$21:$O$205)) -> 0 | AH13: =MIN(IF($A$21:$A$205=$A13,$O$21:$O$205)) -> 0 | AI13: 0
A14: 9 | D14: =VLOOKUP(A14,IDtable,2) -> OTHER | F14: =SUMIF($A$21:$A$205,$A14,F$21:F$205) -> 0 | H14: =SUMIF($A$21:$A$205,$A14,H$21:H$205)/1000 -> 0 | I14: =H14/($H$18) -> 0 | J14: 7 | L14: 0 | M14: 0 | O14: 0 | Q14: 0 | R14: =$O14-R$4*$O14 -> 0 | S14: 0 | T14: 0 | U14: 0 | V14: 0 | W14: 0 | X14: 0 | Y14: 0 | Z14: 0 | AA14: 0 | AB14: 0 | AC14: 0 | AD14: 0 | AE14: 0 | AF14: 0 | AG14: =MAX(IF($A$21:$A$205=$A14,$O$21:$O$205)) -> 0 | AH14: =MIN(IF($A$21:$A$205=$A14,$O$21:$O$205)) -> 0 | AI14: 0
A15: 10 | D15: =VLOOKUP(A15,IDtable,2) -> unused | F15: =SUMIF($A$21:$A$205,$A15,F$21:F$205) -> 0 | H15: =SUMIF($A$21:$A$205,$A15,H$21:H$205)/1000 -> 0 | I15: =H15/($H$18) -> 0 | J15: 7 | L15: 0 | M15: 0 | O15: 0 | Q15: 0 | R15: 0 | S15: 0 | T15: 0 | U15: 0 | V15: 0 | W15: 0 | X15: 0 | Y15: 0 | Z15: 0 | AA15: 0 | AB15: 0 | AC15: 0 | AD15: 0 | AE15: 0 | AF15: 0 | AG15: =MAX(IF($A$21:$A$205=$A15,$O$21:$O$205)) -> 0 | AH15: =MIN(IF($A$21:$A$205=$A15,$O$21:$O$205)) -> 0 | AI15: 0
A16: 11 | D16: =VLOOKUP(A16,IDtable,2) -> unused | F16: =SUMIF($A$21:$A$205,$A16,F$21:F$205) -> 0 | H16: =SUMIF($A$21:$A$205,$A16,H$21:H$205)/1000 -> 0 | I16: =H16/($H$18) -> 0 | J16: 7 | L16: 0 | M16: 0 | O16: 0 | Q16: 0 | R16: 0 | S16: 0 | T16: 0 | U16: 0 | V16: 0 | W16: 0 | X16: 0 | Y16: 0 | Z16: 0 | AA16: 0 | AB16: 0 | AC16: 0 | AD16: 0 | AE16: 0 | AF16: 0 | AG16: =MAX(IF($A$21:$A$205=$A16,$O$21:$O$205)) -> 0 | AH16: =MIN(IF($A$21:$A$205=$A16,$O$21:$O$205)) -> 0 | AI16: 0
A17: 12 | D17: =VLOOKUP(A17,IDtable,2) -> unused | F17: =SUMIF($A$21:$A$205,$A17,F$21:F$205) -> 0 | H17: =SUMIF($A$21:$A$205,$A17,H$21:H$205)/1000 -> 0 | I17: =H17/($H$18) -> 0 | J17: =RANK(I17,I$6:I$17) -> 7 | L17: =H17*1000/(F17+0.001) -> 0 | M17: =SUMIF($A$21:$A$205,$A17,N$21:N$205)/(H17*1000+0.000001) -> 0 | O17: =SUMIF($A$21:$A$205,$A17,P$21:P$205)/(H17*1000+0.000001) -> 0 | Q17: =(O17-M17)/(O17+0.000001) -> 0 | R17: 0 | S17: 0 | T17: 0 | U17: 0 | V17: 0 | W17: 0 | X17: 0 | Y17: 0 | Z17: 0 | AA17: 0 | AB17: 0 | AC17: 0 | AD17: 0 | AE17: 0 | AF17: 0 | AG17: =MAX(IF($A$21:$A$205=$A17,$O$21:$O$205)) -> 0 | AH17: =MIN(IF($A$21:$A$205=$A17,$O$21:$O$205)) -> 0 | AI17: 0
D18: Total | H18: =SUM(H6:H17) -> 3999.105833 | M18: =SUMPRODUCT(M6:M17,$H6:$H17)/$H18 -> 41.80445955 | O18: =SUMPRODUCT(O6:O17,$H6:$H17)/$H18 -> 78.13999518 | Q18: =SUMPRODUCT(Q6:Q17,$H6:$H17)/$H18 -> 0.4670561438 | W18: =SUM(W6:W17) -> 156.4773797 | X18: =SUM(X6:X17) -> 237.9114668 | Y18: =SUM(Y6:Y17) -> 2100.666403 | Z18: =SUM(Z6:Z17) -> 760.7856503 | AA18: =SUM(AA6:AA17) -> 743.2649327 | AB18: =W18/$H18 -> 0.03912809168 | AC18: =X18/$H18 -> 0.05949116547 | AD18: =Y18/$H18 -> 0.5252840237 | AE18: =Z18/$H18 -> 0.1902389389 | AF18: =AA18/$H18 -> 0.1858577802
D20: EDB categories
A21: ='Asset data'!A21 -> 1 | B21: ='Asset data'!B21 -> 0 | C21: ='Asset data'!C21 -> 0 | D21: ='Asset data'!E21 -> Staking of a wooden pole | E21: =IF(A21>0,VLOOKUP(A21,IDtable,2),0) -> POLES | F21: =IF(A21>0,SUM('Asset data'!J21:CV21),0) -> 5292 | G21: =IF(A21>0,'Asset data'!F21,0) -> 20.92657696 | H21: =IF(A21>0,SUM('Asset data'!CX21:GJ21),0) -> 110743.4453 | I21: =H21/$H$18/1000 -> 0.02769205166 | J21: =IF(RANK(0,I$21:I$205)=RANK(I21,I$21:I$205),0,RANK(I21,I$21:I$205)) -> 9 | K21: =IF(A21>0,H21/(VLOOKUP(A21,$A$6:$H$17,8)*1000),0) -> 0.236798616 | L21: =IF($A21>0,H21/F21,0) -> 20.92657696 | M21: =IF($A21>0,SUMPRODUCT('Age profile (years)'!$CT21:$GF21,'Asset data'!$CX21:$GJ21)/H21-0.5,0) -> 23.40117158 | N21: =IF($A21>0,M21*H21,0) -> 2591526.365 | O21: =IF($A21>0,'Asset data'!G21,0) -> 33.1697284 | P21: =IF($A21>0,H21*O21,0) -> 3673330.003 | Q21: =IF($A21>0,(O21-M21)/O21,0) -> 0.2945021649 | R21: =IF($A21>0,$O21-R$4*$O21,0) -> 3.31697284 | S21: 6.633945681 | T21: 19.90183704 | U21: 26.53578272 | W21: =IF($A21>0,SUMIF('Age profile (years)'!$CT21:$GF21,"<" & R21+0.5,'Asset data'!$CX21:$GJ21),0) -> 899.8428094 | X21: =IF($A21>0,SUMIF('Age profile (years)'!$CT21:$GF21,"<" & S21+0.5,'Asset data'!$CX21:$GJ21)-W21,0) -> 4394.581162 | Y21: =IF($A21>0,SUMIF('Age profile (years)'!$CT21:$GF21,"<" & T21+0.5,'Asset data'!$CX21:$GJ21)-X21-W21,0) -> 27581.22844 | Z21: =IF($A21>0,SUMIF('Age profile (years)'!$CT21:$GF21,"<" & U21+0.5,'Asset data'!$CX21:$GJ21)-Y21-X21-W21,0) -> 28585.70413 | AA21: =IF($A21>0,H21-Z21-Y21-X21-W21,0) -> 49282.08875 | AB21: =IF($A21>0,W21/$H21,0) -> 0.008125472411 | AC21: 0.03968253968 | AD21: 0.2490551776 | AE21: 0.2581254724 | AF21: 0.4450113379 | AI21: =IF($A21>0,'RRR hist-forc'!K21,0) -> 33.1697284 | AJ21: =IF($A21>0,AI21*H21,0) -> 3673330.003
A22: ='Asset data'!A22 -> 1 | B22: ='Asset data'!B22 -> 0 | C22: ='Asset data'!C22 -> 0 | D22: ='Asset data'!E22 -> ˂ = 1 kV; Wood | E22: POLES | F22: =IF(A22>0,SUM('Asset data'!J22:CV22),0) -> 22379 | G22: =IF(A22>0,'Asset data'!F22,0) -> 4.472066254 | H22: =IF(A22>0,SUM('Asset data'!CX22:GJ22),0) -> 100080.3707 | I22: 0.02502568696 | J22: 11 | K22: =IF(A22>0,H22/(VLOOKUP(A22,$A$6:$H$17,8)*1000),0) -> 0.2139981577 | L22: =IF($A22>0,H22/F22,0) -> 4.472066254 | M22: =IF($A22>0,SUMPRODUCT('Age profile (years)'!$CT22:$GF22,'Asset data'!$CX22:$GJ22)/H22-0.5,0) -> 30.44141829 | N22: =IF($A22>0,M22*H22,0) -> 3046588.427 | O22: =IF($A22>0,'Asset data'!G22,0) -> 74.53391 | P22: =IF($A22>0,H22*O22,0) -> 7459381.341 | Q22: =IF($A22>0,(O22-M22)/O22,0) -> 0.5915762598 | R22: 7.453391 | S22: 14.906782 | T22: 44.720346 | U22: 59.627128 | W22: =IF($A22>0,SUMIF('Age profile (years)'!$CT22:$GF22,"<" & R22+0.5,'Asset data'!$CX22:$GJ22),0) -> 12888.49494 | X22: =IF($A22>0,SUMIF('Age profile (years)'!$CT22:$GF22,"<" & S22+0.5,'Asset data'!$CX22:$GJ22)-W22,0) -> 1914.044357 | Y22: =IF($A22>0,SUMIF('Age profile (years)'!$CT22:$GF22,"<" & T22+0.5,'Asset data'!$CX22:$GJ22)-X22-W22,0) -> 67921.74226 | Z22: =IF($A22>0,SUMIF('Age profile (years)'!$CT22:$GF22,"<" & U22+0.5,'Asset data'!$CX22:$GJ22)-Y22-X22-W22,0) -> 10285.75238 | AA22: =IF($A22>0,H22-Z22-Y22-X22-W22,0) -> 7070.336747 | AB22: 0.1287814469 | AC22: 0.01912507261 | AD22: 0.6786719693 | AE22: 0.1027749229 | AF22: 0.07064658832 | AI22: =IF($A22>0,'RRR hist-forc'!K22,0) -> 74.53391 | AJ22: =IF($A22>0,AI22*H22,0) -> 7459381.341
A23: ='Asset data'!A23 -> 1 | B23: ='Asset data'!B23 -> 0 | C23: ='Asset data'!C23 -> 0 | D23: ='Asset data'!E23 -> > 1 kV & < = 11 kV; Wood | E23: =IF(A23>0,VLOOKUP(A23,IDtable,2),0) -> POLES | F23: =IF(A23>0,SUM('Asset data'!J23:CV23),0) -> 10039 | G23: =IF(A23>0,'Asset data'!F23,0) -> 4.624291721 | H23: =IF(A23>0,SUM('Asset data'!CX23:GJ23),0) -> 46423.26458 | I23: =H23/$H$18/1000 -> 0.01160841111 | J23: =IF(RANK(0,I$21:I$205)=RANK(I23,I$21:I$205),0,RANK(I23,I$21:I$205)) -> 15 | K23: =IF(A23>0,H23/(VLOOKUP(A23,$A$6:$H$17,8)*1000),0) -> 0.09926515088 | L23: =IF($A23>0,H23/F23,0) -> 4.624291721 | M23: =IF($A23>0,SUMPRODUCT('Age profile (years)'!$CT23:$GF23,'Asset data'!$CX23:$GJ23)/H23-0.5,0) -> 33.46513597 | N23: =IF($A23>0,M23*H23,0) -> 1553560.861 | O23: =IF($A23>0,'Asset data'!G23,0) -> 72.91031157 | P23: =IF($A23>0,H23*O23,0) -> 3384734.685 | Q23: =IF($A23>0,(O23-M23)/O23,0) -> 0.5410095603 | R23: 7.291031157 | S23: 14.58206231 | T23: 43.74618694 | U23: 58.32824926 | W23: =IF($A23>0,SUMIF('Age profile (years)'!$CT23:$GF23,"<" & R23+0.5,'Asset data'!$CX23:$GJ23),0) -> 3754.924877 | X23: =IF($A23>0,SUMIF('Age profile (years)'!$CT23:$GF23,"<" & S23+0.5,'Asset data'!$CX23:$GJ23)-W23,0) -> 929.4826359 | Y23: =IF($A23>0,SUMIF('Age profile (years)'!$CT23:$GF23,"<" & T23+0.5,'Asset data'!$CX23:$GJ23)-X23-W23,0) -> 30178.12777 | Z23: =IF($A23>0,SUMIF('Age profile (years)'!$CT23:$GF23,"<" & U23+0.5,'Asset data'!$CX23:$GJ23)-Y23-X23-W23,0) -> 6719.09587 | AA23: =IF($A23>0,H23-Z23-Y23-X23-W23,0) -> 4841.633432 | AB23: =IF($A23>0,W23/$H23,0) -> 0.08088455025 | AC23: =IF($A23>0,X23/$H23,0) -> 0.02002191453 | AD23: =IF($A23>0,Y23/$H23,0) -> 0.6500647475 | AE23: =IF($A23>0,Z23/$H23,0) -> 0.1447355314 | AF23: =IF($A23>0,AA23/$H23,0) -> 0.1042932563 | AI23: =IF($A23>0,'RRR hist-forc'!K23,0) -> 72.91031157 | AJ23: =IF($A23>0,AI23*H23,0) -> 3384734.685
A24: ='Asset data'!A24 -> 1 | B24: ='Asset data'!B24 -> 0 | C24: ='Asset data'!C24 -> 0 | D24: ='Asset data'!E24 -> ˃ 11 kV & < = 22 kV; Wood | E24: POLES | F24: =IF(A24>0,SUM('Asset data'!J24:CV24),0) -> 913 | G24: =IF(A24>0,'Asset data'!F24,0) -> 4.805719192 | H24: =IF(A24>0,SUM('Asset data'!CX24:GJ24),0) -> 4387.621622 | I24: 0.001097150665 | J24: 32 | K24: 0.00938188915 | L24: 4.805719192 | M24: =IF($A24>0,SUMPRODUCT('Age profile (years)'!$CT24:$GF24,'Asset data'!$CX24:$GJ24)/H24-0.5,0) -> 42.71796276 | N24: 187430.2571 | O24: =IF($A24>0,'Asset data'!G24,0) -> 81.47446463 | P24: 357479.1227 | Q24: 0.4756889419 | R24: 8.147446463 | S24: 16.29489293 | T24: 48.88467878 | U24: 65.17957171 | W24: =IF($A24>0,SUMIF('Age profile (years)'!$CT24:$GF24,"<" & R24+0.5,'Asset data'!$CX24:$GJ24),0) -> 288.3431515 | X24: =IF($A24>0,SUMIF('Age profile (years)'!$CT24:$GF24,"<" & S24+0.5,'Asset data'!$CX24:$GJ24)-W24,0) -> 134.5601374 | Y24: =IF($A24>0,SUMIF('Age profile (years)'!$CT24:$GF24,"<" & T24+0.5,'Asset data'!$CX24:$GJ24)-X24-W24,0) -> 2191.407952 | Z24: =IF($A24>0,SUMIF('Age profile (years)'!$CT24:$GF24,"<" & U24+0.5,'Asset data'!$CX24:$GJ24)-Y24-X24-W24,0) -> 1138.955449 | AA24: 634.3549334 | AB24: 0.06571741512 | AC24: 0.03066812705 | AD24: 0.4994523549 | AE24: 0.2595837897 | AF24: 0.1445783133 | AI24: =IF($A24>0,'RRR hist-forc'!K24,0) -> 81.47446463 | AJ24: 357479.1227
A25: ='Asset data'!A25 -> 1 | B25: ='Asset data'!B25 -> 0 | C25: ='Asset data'!C25 -> 0 | D25: ='Asset data'!E25 -> > 22 kV & < = 66 kV; Wood | E25: POLES | F25: =IF(A25>0,SUM('Asset data'!J25:CV25),0) -> 2263 | G25: =IF(A25>0,'Asset data'!F25,0) -> 5.172638813 | H25: =IF(A25>0,SUM('Asset data'!CX25:GJ25),0) -> 11705.68163 | I25: 0.002927074732 | J25: 25 | K25: 0.0250298264 | L25: 5.172638813 | M25: =IF($A25>0,SUMPRODUCT('Age profile (years)'!$CT25:$GF25,'Asset data'!$CX25:$GJ25)/H25-0.5,0) -> 26.13146266 | N25: 305886.5825 | O25: =IF($A25>0,'Asset data'!G25,0) -> 64.33954154 | P25: 753138.1897 | Q25: 0.5938506549 | R25: 6.433954154 | S25: 12.86790831 | T25: 38.60372492 | U25: 51.47163323 | W25: =IF($A25>0,SUMIF('Age profile (years)'!$CT25:$GF25,"<" & R25+0.5,'Asset data'!$CX25:$GJ25),0) -> 532.7817977 | X25: =IF($A25>0,SUMIF('Age profile (years)'!$CT25:$GF25,"<" & S25+0.5,'Asset data'!$CX25:$GJ25)-W25,0) -> 682.7883233 | Y25: =IF($A25>0,SUMIF('Age profile (years)'!$CT25:$GF25,"<" & T25+0.5,'Asset data'!$CX25:$GJ25)-X25-W25,0) -> 7619.296971 | Z25: =IF($A25>0,SUMIF('Age profile (years)'!$CT25:$GF25,"<" & U25+0.5,'Asset data'!$CX25:$GJ25)-Y25-X25-W25,0) -> 1903.531083 | AA25: 967.283458 | AB25: 0.04551480336 | AC25: 0.05832965091 | AD25: 0.6509058772 | AE25: 0.1626159965 | AF25: 0.08263367212 | AI25: =IF($A25>0,'RRR hist-forc'!K25,0) -> 64.33954154 | AJ25: 753138.1897
A26: ='Asset data'!A26 -> 0 | B26: ='Asset data'!B26 -> 0 | C26: ='Asset data'!C26 -> 0 | D26: ='Asset data'!E26 -> > 66 kV & < = 132 kV; Wood | E26: 0 | F26: =IF(A26>0,SUM('Asset data'!J26:CV26),0) -> 0 | G26: =IF(A26>0,'Asset data'!F26,0) -> 0 | H26: =IF(A26>0,SUM('Asset data'!CX26:GJ26),0) -> 0 | I26: 0 | J26: 0 | K26: 0 | L26: 0 | M26: =IF($A26>0,SUMPRODUCT('Age profile (years)'!$CT26:$GF26,'Asset data'!$CX26:$GJ26)/H26-0.5,0) -> 0 | N26: 0 | O26: =IF($A26>0,'Asset data'!G26,0) -> 0 | P26: 0 | Q26: 0 | R26: 0 | S26: 0 | T26: 0 | U26: 0 | W26: =IF($A26>0,SUMIF('Age profile (years)'!$CT26:$GF26,"<" & R26+0.5,'Asset data'!$CX26:$GJ26),0) -> 0 | X26: =IF($A26>0,SUMIF('Age profile (years)'!$CT26:$GF26,"<" & S26+0.5,'Asset data'!$CX26:$GJ26)-W26,0) -> 0 | Y26: =IF($A26>0,SUMIF('Age profile (years)'!$CT26:$GF26,"<" & T26+0.5,'Asset data'!$CX26:$GJ26)-X26-W26,0) -> 0 | Z26: =IF($A26>0,SUMIF('Age profile (years)'!$CT26:$GF26,"<" & U26+0.5,'Asset data'!$CX26:$GJ26)-Y26-X26-W26,0) -> 0 | AA26: 0 | AB26: 0 | AC26: 0 | AD26: 0 | AE26: 0 | AF26: 0 | AI26: =IF($A26>0,'RRR hist-forc'!K26,0) -> 0 | AJ26: 0
A27: ='Asset data'!A27 -> 0 | B27: ='Asset data'!B27 -> 0 | C27: ='Asset data'!C27 -> 0 | D27: ='Asset data'!E27 -> > 132 kV; Wood | E27: 0 | F27: =IF(A27>0,SUM('Asset data'!J27:CV27),0) -> 0 | G27: =IF(A27>0,'Asset data'!F27,0) -> 0 | H27: =IF(A27>0,SUM('Asset data'!CX27:GJ27),0) -> 0 | I27: 0 | J27: 0 | K27: 0 | L27: 0 | M27: =IF($A27>0,SUMPRODUCT('Age profile (years)'!$CT27:$GF27,'Asset data'!$CX27:$GJ27)/H27-0.5,0) -> 0 | N27: 0 | O27: =IF($A27>0,'Asset data'!G27,0) -> 0 | P27: 0 | Q27: 0 | R27: 0 | S27: 0 | T27: 0 | U27: 0 | W27: =IF($A27>0,SUMIF('Age profile (years)'!$CT27:$GF27,"<" & R27+0.5,'Asset data'!$CX27:$GJ27),0) -> 0 | X27: =IF($A27>0,SUMIF('Age profile (years)'!$CT27:$GF27,"<" & S27+0.5,'Asset data'!$CX27:$GJ27)-W27,0) -> 0 | Y27: =IF($A27>0,SUMIF('Age profile (years)'!$CT27:$GF27,"<" & T27+0.5,'Asset data'!$CX27:$GJ27)-X27-W27,0) -> 0 | Z27: =IF($A27>0,SUMIF('Age profile (years)'!$CT27:$GF27,"<" & U27+0.5,'Asset data'!$CX27:$GJ27)-Y27-X27-W27,0) -> 0 | AA27: 0 | AB27: 0 | AC27: 0 | AD27: 0 | AE27: 0 | AF27: 0 | AI27: =IF($A27>0,'RRR hist-forc'!K27,0) -> 0 | AJ27: 0
A28: ='Asset data'!A28 -> 1 | B28: ='Asset data'!B28 -> 0 | C28: ='Asset data'!C28 -> 0 | D28: ='Asset data'!E28 -> ˂ = 1 kV; Concrete | E28: POLES | F28: =IF(A28>0,SUM('Asset data'!J28:CV28),0) -> 3231 | G28: =IF(A28>0,'Asset data'!F28,0) -> 27.79051231 | H28: =IF(A28>0,SUM('Asset data'!CX28:GJ28),0) -> 89791.14527 | I28: 0.02245280546 | J28: 13 | K28: 0.1919970873 | L28: 27.79051231 | M28: =IF($A28>0,SUMPRODUCT('Age profile (years)'!$CT28:$GF28,'Asset data'!$CX28:$GJ28)/H28-0.5,0) -> 30.33101207 | N28: 2723456.311 | O28: =IF($A28>0,'Asset data'!G28,0) -> 54.78642483 | P28: 4919335.83 | Q28: 0.4463772337 | R28: 5.478642483 | S28: 10.95728497 | T28: 32.8718549 | U28: 43.82913986 | W28: =IF($A28>0,SUMIF('Age profile (years)'!$CT28:$GF28,"<" & R28+0.5,'Asset data'!$CX28:$GJ28),0) -> 0 | X28: =IF($A28>0,SUMIF('Age profile (years)'!$CT28:$GF28,"<" & S28+0.5,'Asset data'!$CX28:$GJ28)-W28,0) -> 0 | Y28: =IF($A28>0,SUMIF('Age profile (years)'!$CT28:$GF28,"<" & T28+0.5,'Asset data'!$CX28:$GJ28)-X28-W28,0) -> 56025.67281 | Z28: =IF($A28>0,SUMIF('Age profile (years)'!$CT28:$GF28,"<" & U28+0.5,'Asset data'!$CX28:$GJ28)-Y28-X28-W28,0) -> 30541.77303 | AA28: 3223.699428 | AB28: 0 | AC28: 0 | AD28: 0.6239554318 | AE28: 0.3401423708 | AF28: 0.03590219746 | AI28: =IF($A28>0,'RRR hist-forc'!K28,0) -> 54.78642483 | AJ28: 4919335.83
A29: ='Asset data'!A29 -> 1 | B29: ='Asset data'!B29 -> 0 | C29: ='Asset data'!C29 -> 0 | D29: ='Asset data'!E29 -> > 1 kV & < = 11 kV; Concrete | E29: POLES | F29: =IF(A29>0,SUM('Asset data'!J29:CV29),0) -> 795 | G29: =IF(A29>0,'Asset data'!F29,0) -> 22.53453919 | H29: =IF(A29>0,SUM('Asset data'!CX29:GJ29),0) -> 17914.95866 | I29: 0.004479741074 | J29: 21 | K29: 0.03830689397 | L29: 22.53453919 | M29: =IF($A29>0,SUMPRODUCT('Age profile (years)'!$CT29:$GF29,'Asset data'!$CX29:$GJ29)/H29-0.5,0) -> 27.80691824 | N29: 498159.7907 | O29: =IF($A29>0,'Asset data'!G29,0) -> 49.95992166 | P29: 895029.9313 | Q29: 0.4434154956 | R29: 4.995992166 | S29: 9.991984333 | T29: 29.975953 | U29: 39.96793733 | W29: =IF($A29>0,SUMIF('Age profile (years)'!$CT29:$GF29,"<" & R29+0.5,'Asset data'!$CX29:$GJ29),0) -> 90.13815678 | X29: =IF($A29>0,SUMIF('Age profile (years)'!$CT29:$GF29,"<" & S29+0.5,'Asset data'!$CX29:$GJ29)-W29,0) -> 112.672696 | Y29: =IF($A29>0,SUMIF('Age profile (years)'!$CT29:$GF29,"<" & T29+0.5,'Asset data'!$CX29:$GJ29)-X29-W29,0) -> 12281.32386 | Z29: =IF($A29>0,SUMIF('Age profile (years)'!$CT29:$GF29,"<" & U29+0.5,'Asset data'!$CX29:$GJ29)-Y29-X29-W29,0) -> 2118.246684 | AA29: 3312.577262 | AB29: 0.005031446541 | AC29: 0.006289308176 | AD29: 0.6855345912 | AE29: 0.1182389937 | AF29: 0.1849056604 | AI29: =IF($A29>0,'RRR hist-forc'!K29,0) -> 49.95992166 | AJ29: 895029.9313
A30: ='Asset data'!A30 -> 1 | B30: ='Asset data'!B30 -> 0 | C30: ='Asset data'!C30 -> 0 | D30: ='Asset data'!E30 -> ˃ 11 kV & < = 22 kV; Concrete | E30: POLES | F30: =IF(A30>0,SUM('Asset data'!J30:CV30),0) -> 11 | G30: =IF(A30>0,'Asset data'!F30,0) -> 15.36887348 | H30: =IF(A30>0,SUM('Asset data'!CX30:GJ30),0) -> 169.0576083 | I30: 4.227385205e-05 | J30: 41 | K30: 0.0003614896356 | L30: 15.36887348 | M30: =IF($A30>0,SUMPRODUCT('Age profile (years)'!$CT30:$GF30,'Asset data'!$CX30:$GJ30)/H30-0.5,0) -> 43.77272727 | N30: 7400.112582 | O30: =IF($A30>0,'Asset data'!G30,0) -> 65.82597029 | P30: 11128.3811 | Q30: 0.3350234401 | R30: 6.582597029 | S30: 13.16519406 | T30: 39.49558217 | U30: 52.66077623 | W30: =IF($A30>0,SUMIF('Age profile (years)'!$CT30:$GF30,"<" & R30+0.5,'Asset data'!$CX30:$GJ30),0) -> 0 | X30: =IF($A30>0,SUMIF('Age profile (years)'!$CT30:$GF30,"<" & S30+0.5,'Asset data'!$CX30:$GJ30)-W30,0) -> 0 | Y30: =IF($A30>0,SUMIF('Age profile (years)'!$CT30:$GF30,"<" & T30+0.5,'Asset data'!$CX30:$GJ30)-X30-W30,0) -> 46.10662045 | Z30: =IF($A30>0,SUMIF('Age profile (years)'!$CT30:$GF30,"<" & U30+0.5,'Asset data'!$CX30:$GJ30)-Y30-X30-W30,0) -> 122.9509879 | AA30: 0 | AB30: 0 | AC30: 0 | AD30: 0.2727272727 | AE30: 0.7272727273 | AF30: 0 | AI30: =IF($A30>0,'RRR hist-forc'!K30,0) -> 65.82597029 | AJ30: 11128.3811
A31: ='Asset data'!A31 -> 1 | B31: ='Asset data'!B31 -> 0 | C31: ='Asset data'!C31 -> 0 | D31: ='Asset data'!E31 -> > 22 kV & < = 66 kV; Concrete | E31: POLES | F31: =IF(A31>0,SUM('Asset data'!J31:CV31),0) -> 92 | G31: =IF(A31>0,'Asset data'!F31,0) -> 18.49680874 | H31: =IF(A31>0,SUM('Asset data'!CX31:GJ31),0) -> 1701.706405 | I31: 0.000425521723 | J31: 33 | K31: 0.00363869591 | L31: 18.49680874 | M31: =IF($A31>0,SUMPRODUCT('Age profile (years)'!$CT31:$GF31,'Asset data'!$CX31:$GJ31)/H31-0.5,0) -> 42.30434783 | N31: 71989.57964 | O31: =IF($A31>0,'Asset data'!G31,0) -> 65.82597029 | P31: 112016.4752 | Q31: 0.357330433 | R31: 6.582597029 | S31: 13.16519406 | T31: 39.49558217 | U31: 52.66077623 | W31: =IF($A31>0,SUMIF('Age profile (years)'!$CT31:$GF31,"<" & R31+0.5,'Asset data'!$CX31:$GJ31),0) -> 0 | X31: =IF($A31>0,SUMIF('Age profile (years)'!$CT31:$GF31,"<" & S31+0.5,'Asset data'!$CX31:$GJ31)-W31,0) -> 0 | Y31: =IF($A31>0,SUMIF('Age profile (years)'!$CT31:$GF31,"<" & T31+0.5,'Asset data'!$CX31:$GJ31)-X31-W31,0) -> 906.3436285 | Z31: =IF($A31>0,SUMIF('Age profile (years)'!$CT31:$GF31,"<" & U31+0.5,'Asset data'!$CX31:$GJ31)-Y31-X31-W31,0) -> 443.9234099 | AA31: 351.4393662 | AB31: 0 | AC31: 0 | AD31: 0.5326086957 | AE31: 0.2608695652 | AF31: 0.2065217391 | AI31: =IF($A31>0,'RRR hist-forc'!K31,0) -> 65.82597029 | AJ31: 112016.4752
A32: ='Asset data'!A32 -> 0 | B32: ='Asset data'!B32 -> 0 | C32: ='Asset data'!C32 -> 0 | D32: ='Asset data'!E32 -> > 66 kV & < = 132 kV; Concrete | E32: 0 | F32: =IF(A32>0,SUM('Asset data'!J32:CV32),0) -> 0 | G32: =IF(A32>0,'Asset data'!F32,0) -> 0 | H32: =IF(A32>0,SUM('Asset data'!CX32:GJ32),0) -> 0 | I32: 0 | J32: 0 | K32: 0 | L32: 0 | M32: =IF($A32>0,SUMPRODUCT('Age profile (years)'!$CT32:$GF32,'Asset data'!$CX32:$GJ32)/H32-0.5,0) -> 0 | N32: 0 | O32: =IF($A32>0,'Asset data'!G32,0) -> 0 | P32: 0 | Q32: 0 | R32: 0 | S32: 0 | T32: 0 | U32: 0 | W32: =IF($A32>0,SUMIF('Age profile (years)'!$CT32:$GF32,"<" & R32+0.5,'Asset data'!$CX32:$GJ32),0) -> 0 | X32: =IF($A32>0,SUMIF('Age profile (years)'!$CT32:$GF32,"<" & S32+0.5,'Asset data'!$CX32:$GJ32)-W32,0) -> 0 | Y32: =IF($A32>0,SUMIF('Age profile (years)'!$CT32:$GF32,"<" & T32+0.5,'Asset data'!$CX32:$GJ32)-X32-W32,0) -> 0 | Z32: =IF($A32>0,SUMIF('Age profile (years)'!$CT32:$GF32,"<" & U32+0.5,'Asset data'!$CX32:$GJ32)-Y32-X32-W32,0) -> 0 | AA32: 0 | AB32: 0 | AC32: 0 | AD32: 0 | AE32: 0 | AF32: 0 | AI32: =IF($A32>0,'RRR hist-forc'!K32,0) -> 0 | AJ32: 0
A33: ='Asset data'!A33 -> 0 | B33: ='Asset data'!B33 -> 0 | C33: ='Asset data'!C33 -> 0 | D33: ='Asset data'!E33 -> > 132 kV; Concrete | E33: 0 | F33: =IF(A33>0,SUM('Asset data'!J33:CV33),0) -> 0 | G33: =IF(A33>0,'Asset data'!F33,0) -> 0 | H33: =IF(A33>0,SUM('Asset data'!CX33:GJ33),0) -> 0 | I33: 0 | J33: 0 | K33: 0 | L33: 0 | M33: =IF($A33>0,SUMPRODUCT('Age profile (years)'!$CT33:$GF33,'Asset data'!$CX33:$GJ33)/H33-0.5,0) -> 0 | N33: 0 | O33: =IF($A33>0,'Asset data'!G33,0) -> 0 | P33: 0 | Q33: 0 | R33: 0 | S33: 0 | T33: 0 | U33: 0 | W33: =IF($A33>0,SUMIF('Age profile (years)'!$CT33:$GF33,"<" & R33+0.5,'Asset data'!$CX33:$GJ33),0) -> 0 | X33: =IF($A33>0,SUMIF('Age profile (years)'!$CT33:$GF33,"<" & S33+0.5,'Asset data'!$CX33:$GJ33)-W33,0) -> 0 | Y33: =IF($A33>0,SUMIF('Age profile (years)'!$CT33:$GF33,"<" & T33+0.5,'Asset data'!$CX33:$GJ33)-X33-W33,0) -> 0 | Z33: =IF($A33>0,SUMIF('Age profile (years)'!$CT33:$GF33,"<" & U33+0.5,'Asset data'!$CX33:$GJ33)-Y33-X33-W33,0) -> 0 | AA33: 0 | AB33: 0 | AC33: 0 | AD33: 0 | AE33: 0 | AF33: 0 | AI33: =IF($A33>0,'RRR hist-forc'!K33,0) -> 0 | AJ33: 0
A34: ='Asset data'!A34 -> 1 | B34: ='Asset data'!B34 -> 0 | C34: ='Asset data'!C34 -> 0 | D34: ='Asset data'!E34 -> ˂ = 1 kV; Steel | E34: POLES | F34: =IF(A34>0,SUM('Asset data'!J34:CV34),0) -> 4011 | G34: =IF(A34>0,'Asset data'!F34,0) -> 20.33643611 | H34: =IF(A34>0,SUM('Asset data'!CX34:GJ34),0) -> 81569.44523 | I34: 0.02039692087 | J34: 14 | K34: 0.17441693 | L34: 20.33643611 | M34: =IF($A34>0,SUMPRODUCT('Age profile (years)'!$CT34:$GF34,'Asset data'!$CX34:$GJ34)/H34-0.5,0) -> 33.71765146 | N34: 2750330.124 | O34: =IF($A34>0,'Asset data'!G34,0) -> 65.7212115 | P34: 5360842.762 | Q34: 0.4869593745 | R34: 6.57212115 | S34: 13.1442423 | T34: 39.4327269 | U34: 52.5769692 | W34: =IF($A34>0,SUMIF('Age profile (years)'!$CT34:$GF34,"<" & R34+0.5,'Asset data'!$CX34:$GJ34),0) -> 345.7194138 | X34: =IF($A34>0,SUMIF('Age profile (years)'!$CT34:$GF34,"<" & S34+0.5,'Asset data'!$CX34:$GJ34)-W34,0) -> 1484.559836 | Y34: =IF($A34>0,SUMIF('Age profile (years)'!$CT34:$GF34,"<" & T34+0.5,'Asset data'!$CX34:$GJ34)-X34-W34,0) -> 48380.3815 | Z34: =IF($A34>0,SUMIF('Age profile (years)'!$CT34:$GF34,"<" & U34+0.5,'Asset data'!$CX34:$GJ34)-Y34-X34-W34,0) -> 19034.9042 | AA34: 12323.88028 | AB34: 0.004238344552 | AC34: 0.01819995014 | AD34: 0.593118923 | AE34: 0.2333582648 | AF34: 0.1510845176 | AI34: =IF($A34>0,'RRR hist-forc'!K34,0) -> 65.7212115 | AJ34: 5360842.762
A35: ='Asset data'!A35 -> 1 | B35: ='Asset data'!B35 -> 0 | C35: ='Asset data'!C35 -> 0 | D35: ='Asset data'!E35 -> > 1 kV & < = 11 kV; Steel | E35: POLES | F35: =IF(A35>0,SUM('Asset data'!J35:CV35),0) -> 18 | G35: =IF(A35>0,'Asset data'!F35,0) -> 17.38260225 | H35: =IF(A35>0,SUM('Asset data'!CX35:GJ35),0) -> 312.8868406 | I35: 7.823919988e-05 | J35: 40 | K35: 0.000669034367 | L35: 17.38260225 | M35: =IF($A35>0,SUMPRODUCT('Age profile (years)'!$CT35:$GF35,'Asset data'!$CX35:$GJ35)/H35-0.5,0) -> 26.27777778 | N35: 8221.970866 | O35: =IF($A35>0,'Asset data'!G35,0) -> 45.59584983 | P35: 14266.3414 | Q35: 0.4236804912 | R35: 4.559584983 | S35: 9.119169966 | T35: 27.3575099 | U35: 36.47667986 | W35: =IF($A35>0,SUMIF('Age profile (years)'!$CT35:$GF35,"<" & R35+0.5,'Asset data'!$CX35:$GJ35),0) -> 52.14780676 | X35: =IF($A35>0,SUMIF('Age profile (years)'!$CT35:$GF35,"<" & S35+0.5,'Asset data'!$CX35:$GJ35)-W35,0) -> 0 | Y35: =IF($A35>0,SUMIF('Age profile (years)'!$CT35:$GF35,"<" & T35+0.5,'Asset data'!$CX35:$GJ35)-X35-W35,0) -> 86.91301127 | Z35: =IF($A35>0,SUMIF('Age profile (years)'!$CT35:$GF35,"<" & U35+0.5,'Asset data'!$CX35:$GJ35)-Y35-X35-W35,0) -> 121.6782158 | AA35: 52.14780676 | AB35: 0.1666666667 | AC35: 0 | AD35: 0.2777777778 | AE35: 0.3888888889 | AF35: 0.1666666667 | AI35: =IF($A35>0,'RRR hist-forc'!K35,0) -> 45.59584983 | AJ35: 14266.3414
A36: ='Asset data'!A36 -> 1 | B36: ='Asset data'!B36 -> 0 | C36: ='Asset data'!C36 -> 0 | D36: ='Asset data'!E36 -> ˃ 11 kV & < = 22 kV; Steel | E36: POLES | F36: =IF(A36>0,SUM('Asset data'!J36:CV36),0) -> 6 | G36: =IF(A36>0,'Asset data'!F36,0) -> 10.15017952 | H36: =IF(A36>0,SUM('Asset data'!CX36:GJ36),0) -> 60.90107713 | I36: 1.522867353e-05 | J36: 42 | K36: 0.0001302225223 | L36: 10.15017952 | M36: =IF($A36>0,SUMPRODUCT('Age profile (years)'!$CT36:$GF36,'Asset data'!$CX36:$GJ36)/H36-0.5,0) -> 49.5 | N36: 3014.603318 | O36: =IF($A36>0,'Asset data'!G36,0) -> 65.82597029 | P36: 4008.872494 | Q36: 0.2480171613 | R36: 6.582597029 | S36: 13.16519406 | T36: 39.49558217 | U36: 52.66077623 | W36: =IF($A36>0,SUMIF('Age profile (years)'!$CT36:$GF36,"<" & R36+0.5,'Asset data'!$CX36:$GJ36),0) -> 0 | X36: =IF($A36>0,SUMIF('Age profile (years)'!$CT36:$GF36,"<" & S36+0.5,'Asset data'!$CX36:$GJ36)-W36,0) -> 0 | Y36: =IF($A36>0,SUMIF('Age profile (years)'!$CT36:$GF36,"<" & T36+0.5,'Asset data'!$CX36:$GJ36)-X36-W36,0) -> 0 | Z36: =IF($A36>0,SUMIF('Age profile (years)'!$CT36:$GF36,"<" & U36+0.5,'Asset data'!$CX36:$GJ36)-Y36-X36-W36,0) -> 60.90107713 | AA36: 0 | AB36: 0 | AC36: 0 | AD36: 0 | AE36: 1 | AF36: 0 | AI36: =IF($A36>0,'RRR hist-forc'!K36,0) -> 65.82597029 | AJ36: 4008.872494
A37: ='Asset data'!A37 -> 1 | B37: ='Asset data'!B37 -> 0 | C37: ='Asset data'!C37 -> 0 | D37: ='Asset data'!E37 -> > 22 kV & < = 66 kV; Steel | E37: POLES | F37: =IF(A37>0,SUM('Asset data'!J37:CV37),0) -> 58 | G37: =IF(A37>0,'Asset data'!F37,0) -> 20.83372953 | H37: =IF(A37>0,SUM('Asset data'!CX37:GJ37),0) -> 1208.356313 | I37: 0.0003021566229 | J37: 36 | K37: 0.002583783644 | L37: 20.83372953 | M37: =IF($A37>0,SUMPRODUCT('Age profile (years)'!$CT37:$GF37,'Asset data'!$CX37:$GJ37)/H37-0.5,0) -> 48.86206897 | N37: 59042.7895 | O37: =IF($A37>0,'Asset data'!G37,0) -> 65.82597029 | P37: 79541.22676 | Q37: 0.2577083368 | R37: =IF($A37>0,$O37-R$4*$O37,0) -> 6.582597029 | S37: 13.16519406 | T37: 39.49558217 | U37: 52.66077623 | W37: =IF($A37>0,SUMIF('Age profile (years)'!$CT37:$GF37,"<" & R37+0.5,'Asset data'!$CX37:$GJ37),0) -> 0 | X37: =IF($A37>0,SUMIF('Age profile (years)'!$CT37:$GF37,"<" & S37+0.5,'Asset data'!$CX37:$GJ37)-W37,0) -> 0 | Y37: =IF($A37>0,SUMIF('Age profile (years)'!$CT37:$GF37,"<" & T37+0.5,'Asset data'!$CX37:$GJ37)-X37-W37,0) -> 0 | Z37: =IF($A37>0,SUMIF('Age profile (years)'!$CT37:$GF37,"<" & U37+0.5,'Asset data'!$CX37:$GJ37)-Y37-X37-W37,0) -> 1145.855124 | AA37: 62.5011886 | AB37: 0 | AC37: 0 | AD37: 0 | AE37: 0.9482758621 | AF37: 0.05172413793 | AI37: =IF($A37>0,'RRR hist-forc'!K37,0) -> 65.82597029 | AJ37: 79541.22676
A38: ='Asset data'!A38 -> 0 | B38: ='Asset data'!B38 -> 0 | C38: ='Asset data'!C38 -> 0 | D38: ='Asset data'!E38 -> > 66 kV & < = 132 kV; Steel | E38: 0 | F38: =IF(A38>0,SUM('Asset data'!J38:CV38),0) -> 0 | G38: =IF(A38>0,'Asset data'!F38,0) -> 0 | H38: =IF(A38>0,SUM('Asset data'!CX38:GJ38),0) -> 0 | I38: 0 | J38: 0 | K38: 0 | L38: 0 | M38: =IF($A38>0,SUMPRODUCT('Age profile (years)'!$CT38:$GF38,'Asset data'!$CX38:$GJ38)/H38-0.5,0) -> 0 | N38: 0 | O38: =IF($A38>0,'Asset data'!G38,0) -> 0 | P38: 0 | Q38: 0 | R38: 0 | S38: 0 | T38: 0 | U38: 0 | W38: =IF($A38>0,SUMIF('Age profile (years)'!$CT38:$GF38,"<" & R38+0.5,'Asset data'!$CX38:$GJ38),0) -> 0 | X38: =IF($A38>0,SUMIF('Age profile (years)'!$CT38:$GF38,"<" & S38+0.5,'Asset data'!$CX38:$GJ38)-W38,0) -> 0 | Y38: =IF($A38>0,SUMIF('Age profile (years)'!$CT38:$GF38,"<" & T38+0.5,'Asset data'!$CX38:$GJ38)-X38-W38,0) -> 0 | Z38: =IF($A38>0,SUMIF('Age profile (years)'!$CT38:$GF38,"<" & U38+0.5,'Asset data'!$CX38:$GJ38)-Y38-X38-W38,0) -> 0 | AA38: 0 | AB38: 0 | AC38: 0 | AD38: 0 | AE38: 0 | AF38: 0 | AI38: =IF($A38>0,'RRR hist-forc'!K38,0) -> 0 | AJ38: 0
A39: ='Asset data'!A39 -> 0 | B39: ='Asset data'!B39 -> 0 | C39: ='Asset data'!C39 -> 0 | D39: ='Asset data'!E39 -> > 132 kV; Steel | E39: 0 | F39: =IF(A39>0,SUM('Asset data'!J39:CV39),0) -> 0 | G39: =IF(A39>0,'Asset data'!F39,0) -> 0 | H39: =IF(A39>0,SUM('Asset data'!CX39:GJ39),0) -> 0 | I39: 0 | J39: 0 | K39: 0 | L39: 0 | M39: =IF($A39>0,SUMPRODUCT('Age profile (years)'!$CT39:$GF39,'Asset data'!$CX39:$GJ39)/H39-0.5,0) -> 0 | N39: 0 | O39: =IF($A39>0,'Asset data'!G39,0) -> 0 | P39: 0 | Q39: 0 | R39: 0 | S39: 0 | T39: 0 | U39: 0 | W39: =IF($A39>0,SUMIF('Age profile (years)'!$CT39:$GF39,"<" & R39+0.5,'Asset data'!$CX39:$GJ39),0) -> 0 | X39: =IF($A39>0,SUMIF('Age profile (years)'!$CT39:$GF39,"<" & S39+0.5,'Asset data'!$CX39:$GJ39)-W39,0) -> 0 | Y39: =IF($A39>0,SUMIF('Age profile (years)'!$CT39:$GF39,"<" & T39+0.5,'Asset data'!$CX39:$GJ39)-X39-W39,0) -> 0 | Z39: =IF($A39>0,SUMIF('Age profile (years)'!$CT39:$GF39,"<" & U39+0.5,'Asset data'!$CX39:$GJ39)-Y39-X39-W39,0) -> 0 | AA39: 0 | AB39: 0 | AC39: 0 | AD39: 0 | AE39: 0 | AF39: 0 | AI39: =IF($A39>0,'RRR hist-forc'!K39,0) -> 0 | AJ39: 0
A40: ='Asset data'!A40 -> 1 | B40: ='Asset data'!B40 -> 0 | C40: ='Asset data'!C40 -> 0 | D40: ='Asset data'!E40 -> Other | E40: POLES | F40: =IF(A40>0,SUM('Asset data'!J40:CV40),0) -> 95 | G40: =IF(A40>0,'Asset data'!F40,0) -> 16.84703631 | H40: =IF(A40>0,SUM('Asset data'!CX40:GJ40),0) -> 1600.468449 | I40: 0.0004002065752 | J40: 34 | K40: 0.003422222532 | L40: 16.84703631 | M40: =IF($A40>0,SUMPRODUCT('Age profile (years)'!$CT40:$GF40,'Asset data'!$CX40:$GJ40)/H40-0.5,0) -> 53.85789474 | N40: 86197.86127 | O40: =IF($A40>0,'Asset data'!G40,0) -> 90.02875702 | P40: 144088.1851 | Q40: 0.4017700953 | R40: 9.002875702 | S40: 18.0057514 | T40: 54.01725421 | U40: 72.02300562 | W40: =IF($A40>0,SUMIF('Age profile (years)'!$CT40:$GF40,"<" & R40+0.5,'Asset data'!$CX40:$GJ40),0) -> 0 | X40: =IF($A40>0,SUMIF('Age profile (years)'!$CT40:$GF40,"<" & S40+0.5,'Asset data'!$CX40:$GJ40)-W40,0) -> 353.7877625 | Y40: =IF($A40>0,SUMIF('Age profile (years)'!$CT40:$GF40,"<" & T40+0.5,'Asset data'!$CX40:$GJ40)-X40-W40,0) -> 353.7877625 | Z40: =IF($A40>0,SUMIF('Age profile (years)'!$CT40:$GF40,"<" & U40+0.5,'Asset data'!$CX40:$GJ40)-Y40-X40-W40,0) -> 387.4818351 | AA40: 505.4110892 | AB40: 0 | AC40: 0.2210526316 | AD40: 0.2210526316 | AE40: 0.2421052632 | AF40: 0.3157894737 | AI40: =IF($A40>0,'RRR hist-forc'!K40,0) -> 90.02875702 | AJ40: 144088.1851
A41: ='Asset data'!A41 -> 2 | B41: ='Asset data'!B41 -> 0 | C41: ='Asset data'!C41 -> 0 | D41: ='Asset data'!E41 -> ˂ = 1 kV | E41: OVERHEAD CONDUCTORS | F41: =IF(A41>0,SUM('Asset data'!J41:CV41),0) -> 1633 | G41: =IF(A41>0,'Asset data'!F41,0) -> 72.21688977 | H41: =IF(A41>0,SUM('Asset data'!CX41:GJ41),0) -> 117930.181 | I41: 0.0294891373 | J41: 7 | K41: 0.6527846478 | L41: 72.21688977 | M41: =IF($A41>0,SUMPRODUCT('Age profile (years)'!$CT41:$GF41,'Asset data'!$CX41:$GJ41)/H41-0.5,0) -> 43.68511941 | N41: 5151794.039 | O41: =IF($A41>0,'Asset data'!G41,0) -> 83.56043196 | P41: 9854296.865 | Q41: 0.4772032841 | R41: 8.356043196 | S41: 16.71208639 | T41: 50.13625918 | U41: 66.84834557 | W41: =IF($A41>0,SUMIF('Age profile (years)'!$CT41:$GF41,"<" & R41+0.5,'Asset data'!$CX41:$GJ41),0) -> 6889.491284 | X41: =IF($A41>0,SUMIF('Age profile (years)'!$CT41:$GF41,"<" & S41+0.5,'Asset data'!$CX41:$GJ41)-W41,0) -> 4520.777299 | Y41: =IF($A41>0,SUMIF('Age profile (years)'!$CT41:$GF41,"<" & T41+0.5,'Asset data'!$CX41:$GJ41)-X41-W41,0) -> 64713.55492 | Z41: =IF($A41>0,SUMIF('Age profile (years)'!$CT41:$GF41,"<" & U41+0.5,'Asset data'!$CX41:$GJ41)-Y41-X41-W41,0) -> 27984.04478 | AA41: 13822.3127 | AB41: 0.05842008573 | AC41: 0.03833435395 | AD41: 0.5487446418 | AE41: 0.2372933252 | AF41: 0.1172075934 | AI41: =IF($A41>0,'RRR hist-forc'!K41,0) -> 83.56043196 | AJ41: 9854296.865
A42: ='Asset data'!A42 -> 2 | B42: ='Asset data'!B42 -> 0 | C42: ='Asset data'!C42 -> 0 | D42: ='Asset data'!E42 -> > 1 kV & < = 11 kV | E42: OVERHEAD CONDUCTORS | F42: =IF(A42>0,SUM('Asset data'!J42:CV42),0) -> 472 | G42: =IF(A42>0,'Asset data'!F42,0) -> 57.49025806 | H42: =IF(A42>0,SUM('Asset data'!CX42:GJ42),0) -> 27135.40181 | I42: 0.006785367265 | J42: 20 | K42: 0.1502039051 | L42: 57.49025806 | M42: =IF($A42>0,SUMPRODUCT('Age profile (years)'!$CT42:$GF42,'Asset data'!$CX42:$GJ42)/H42-0.5,0) -> 43.77033898 | N42: 1187725.736 | O42: =IF($A42>0,'Asset data'!G42,0) -> 81.10976639 | P42: 2200946.101 | Q42: 0.4603567371 | R42: 8.110976639 | S42: 16.22195328 | T42: 48.66585983 | U42: 64.88781311 | W42: =IF($A42>0,SUMIF('Age profile (years)'!$CT42:$GF42,"<" & R42+0.5,'Asset data'!$CX42:$GJ42),0) -> 1661.468458 | X42: =IF($A42>0,SUMIF('Age profile (years)'!$CT42:$GF42,"<" & S42+0.5,'Asset data'!$CX42:$GJ42)-W42,0) -> 206.964929 | Y42: =IF($A42>0,SUMIF('Age profile (years)'!$CT42:$GF42,"<" & T42+0.5,'Asset data'!$CX42:$GJ42)-X42-W42,0) -> 14579.52945 | Z42: =IF($A42>0,SUMIF('Age profile (years)'!$CT42:$GF42,"<" & U42+0.5,'Asset data'!$CX42:$GJ42)-Y42-X42-W42,0) -> 6392.916697 | AA42: 4294.522277 | AB42: 0.06122881356 | AC42: 0.007627118644 | AD42: 0.5372881356 | AE42: 0.2355932203 | AF42: 0.1582627119 | AI42: =IF($A42>0,'RRR hist-forc'!K42,0) -> 81.10976639 | AJ42: 2200946.101
A43: ='Asset data'!A43 -> 0 | B43: ='Asset data'!B43 -> 0 | C43: ='Asset data'!C43 -> 0 | D43: ='Asset data'!E43 -> ˃ 11 kV & < = 22 kV ; SWER | E43: 0 | F43: =IF(A43>0,SUM('Asset data'!J43:CV43),0) -> 0 | G43: =IF(A43>0,'Asset data'!F43,0) -> 0 | H43: =IF(A43>0,SUM('Asset data'!CX43:GJ43),0) -> 0 | I43: 0 | J43: 0 | K43: 0 | L43: 0 | M43: =IF($A43>0,SUMPRODUCT('Age profile (years)'!$CT43:$GF43,'Asset data'!$CX43:$GJ43)/H43-0.5,0) -> 0 | N43: 0 | O43: =IF($A43>0,'Asset data'!G43,0) -> 0 | P43: 0 | Q43: 0 | R43: 0 | S43: 0 | T43: 0 | U43: 0 | W43: =IF($A43>0,SUMIF('Age profile (years)'!$CT43:$GF43,"<" & R43+0.5,'Asset data'!$CX43:$GJ43),0) -> 0 | X43: =IF($A43>0,SUMIF('Age profile (years)'!$CT43:$GF43,"<" & S43+0.5,'Asset data'!$CX43:$GJ43)-W43,0) -> 0 | Y43: =IF($A43>0,SUMIF('Age profile (years)'!$CT43:$GF43,"<" & T43+0.5,'Asset data'!$CX43:$GJ43)-X43-W43,0) -> 0 | Z43: =IF($A43>0,SUMIF('Age profile (years)'!$CT43:$GF43,"<" & U43+0.5,'Asset data'!$CX43:$GJ43)-Y43-X43-W43,0) -> 0 | AA43: 0 | AB43: 0 | AC43: 0 | AD43: 0 | AE43: 0 | AF43: 0 | AI43: =IF($A43>0,'RRR hist-forc'!K43,0) -> 0 | AJ43: 0
A44: ='Asset data'!A44 -> 0 | B44: ='Asset data'!B44 -> 0 | C44: ='Asset data'!C44 -> 0 | D44: ='Asset data'!E44 -> ˃ 11 kV & < = 22 kV ; Single-Phase | E44: 0 | F44: =IF(A44>0,SUM('Asset data'!J44:CV44),0) -> 0 | G44: =IF(A44>0,'Asset data'!F44,0) -> 0 | H44: =IF(A44>0,SUM('Asset data'!CX44:GJ44),0) -> 0 | I44: 0 | J44: 0 | K44: 0 | L44: 0 | M44: =IF($A44>0,SUMPRODUCT('Age profile (years)'!$CT44:$GF44,'Asset data'!$CX44:$GJ44)/H44-0.5,0) -> 0 | N44: 0 | O44: =IF($A44>0,'Asset data'!G44,0) -> 0 | P44: 0 | Q44: 0 | R44: 0 | S44: 0 | T44: 0 | U44: 0 | W44: =IF($A44>0,SUMIF('Age profile (years)'!$CT44:$GF44,"<" & R44+0.5,'Asset data'!$CX44:$GJ44),0) -> 0 | X44: =IF($A44>0,SUMIF('Age profile (years)'!$CT44:$GF44,"<" & S44+0.5,'Asset data'!$CX44:$GJ44)-W44,0) -> 0 | Y44: =IF($A44>0,SUMIF('Age profile (years)'!$CT44:$GF44,"<" & T44+0.5,'Asset data'!$CX44:$GJ44)-X44-W44,0) -> 0 | Z44: =IF($A44>0,SUMIF('Age profile (years)'!$CT44:$GF44,"<" & U44+0.5,'Asset data'!$CX44:$GJ44)-Y44-X44-W44,0) -> 0 | AA44: 0 | AB44: 0 | AC44: 0 | AD44: 0 | AE44: 0 | AF44: 0 | AI44: =IF($A44>0,'RRR hist-forc'!K44,0) -> 0 | AJ44: 0
A45: ='Asset data'!A45 -> 2 | B45: ='Asset data'!B45 -> 0 | C45: ='Asset data'!C45 -> 0 | D45: ='Asset data'!E45 -> ˃ 11 kV & < = 22 kV ; Multiple-Phase | E45: OVERHEAD CONDUCTORS | F45: =IF(A45>0,SUM('Asset data'!J45:CV45),0) -> 6.8 | G45: =IF(A45>0,'Asset data'!F45,0) -> 47.04820567 | H45: =IF(A45>0,SUM('Asset data'!CX45:GJ45),0) -> 319.9277986 | I45: 7.999983295e-05 | J45: 39 | K45: 0.001770911853 | L45: 47.04820567 | M45: =IF($A45>0,SUMPRODUCT('Age profile (years)'!$CT45:$GF45,'Asset data'!$CX45:$GJ45)/H45-0.5,0) -> 17.20588235 | N45: 5504.640064 | O45: =IF($A45>0,'Asset data'!G45,0) -> 53.0383789 | P45: 16968.4518 | Q45: 0.6755956213 | R45: 5.30383789 | S45: 10.60767578 | T45: 31.82302734 | U45: 42.43070312 | W45: =IF($A45>0,SUMIF('Age profile (years)'!$CT45:$GF45,"<" & R45+0.5,'Asset data'!$CX45:$GJ45),0) -> 70.57230851 | X45: =IF($A45>0,SUMIF('Age profile (years)'!$CT45:$GF45,"<" & S45+0.5,'Asset data'!$CX45:$GJ45)-W45,0) -> 47.04820567 | Y45: =IF($A45>0,SUMIF('Age profile (years)'!$CT45:$GF45,"<" & T45+0.5,'Asset data'!$CX45:$GJ45)-X45-W45,0) -> 131.7349759 | Z45: =IF($A45>0,SUMIF('Age profile (years)'!$CT45:$GF45,"<" & U45+0.5,'Asset data'!$CX45:$GJ45)-Y45-X45-W45,0) -> 37.63856454 | AA45: 32.93374397 | AB45: 0.2205882353 | AC45: 0.1470588235 | AD45: 0.4117647059 | AE45: 0.1176470588 | AF45: 0.1029411765 | AI45: =IF($A45>0,'RRR hist-forc'!K45,0) -> 53.0383789 | AJ45: 16968.4518
A46: ='Asset data'!A46 -> 2 | B46: ='Asset data'!B46 -> 0 | C46: ='Asset data'!C46 -> 0 | D46: ='Asset data'!E46 -> > 22 kV & < = 66 kV | E46: OVERHEAD CONDUCTORS | F46: =IF(A46>0,SUM('Asset data'!J46:CV46),0) -> 144 | G46: =IF(A46>0,'Asset data'!F46,0) -> 199.3565058 | H46: =IF(A46>0,SUM('Asset data'!CX46:GJ46),0) -> 28707.33683 | I46: 0.007178438889 | J46: 19 | K46: 0.1589051132 | L46: 199.3565058 | M46: =IF($A46>0,SUMPRODUCT('Age profile (years)'!$CT46:$GF46,'Asset data'!$CX46:$GJ46)/H46-0.5,0) -> 44.86458333 | N46: 1287942.706 | O46: =IF($A46>0,'Asset data'!G46,0) -> 83.03586354 | P46: 2383738.504 | Q46: 0.4596963117 | R46: 8.303586354 | S46: 16.60717271 | T46: 49.82151812 | U46: 66.42869083 | W46: =IF($A46>0,SUMIF('Age profile (years)'!$CT46:$GF46,"<" & R46+0.5,'Asset data'!$CX46:$GJ46),0) -> 578.1338668 | X46: =IF($A46>0,SUMIF('Age profile (years)'!$CT46:$GF46,"<" & S46+0.5,'Asset data'!$CX46:$GJ46)-W46,0) -> 318.9704092 | Y46: =IF($A46>0,SUMIF('Age profile (years)'!$CT46:$GF46,"<" & T46+0.5,'Asset data'!$CX46:$GJ46)-X46-W46,0) -> 16446.91173 | Z46: =IF($A46>0,SUMIF('Age profile (years)'!$CT46:$GF46,"<" & U46+0.5,'Asset data'!$CX46:$GJ46)-Y46-X46-W46,0) -> 8672.008001 | AA46: 2691.312828 | AB46: 0.02013888889 | AC46: 0.01111111111 | AD46: 0.5729166667 | AE46: 0.3020833333 | AF46: 0.09375 | AI46: =IF($A46>0,'RRR hist-forc'!K46,0) -> 83.03586354 | AJ46: 2383738.504
A47: ='Asset data'!A47 -> 0 | B47: ='Asset data'!B47 -> 0 | C47: ='Asset data'!C47 -> 0 | D47: ='Asset data'!E47 -> > 66 kV & < = 132 kV | E47: 0 | F47: =IF(A47>0,SUM('Asset data'!J47:CV47),0) -> 0 | G47: =IF(A47>0,'Asset data'!F47,0) -> 0 | H47: =IF(A47>0,SUM('Asset data'!CX47:GJ47),0) -> 0 | I47: 0 | J47: 0 | K47: 0 | L47: 0 | M47: =IF($A47>0,SUMPRODUCT('Age profile (years)'!$CT47:$GF47,'Asset data'!$CX47:$GJ47)/H47-0.5,0) -> 0 | N47: 0 | O47: =IF($A47>0,'Asset data'!G47,0) -> 0 | P47: 0 | Q47: 0 | R47: 0 | S47: 0 | T47: 0 | U47: 0 | W47: =IF($A47>0,SUMIF('Age profile (years)'!$CT47:$GF47,"<" & R47+0.5,'Asset data'!$CX47:$GJ47),0) -> 0 | X47: =IF($A47>0,SUMIF('Age profile (years)'!$CT47:$GF47,"<" & S47+0.5,'Asset data'!$CX47:$GJ47)-W47,0) -> 0 | Y47: =IF($A47>0,SUMIF('Age profile (years)'!$CT47:$GF47,"<" & T47+0.5,'Asset data'!$CX47:$GJ47)-X47-W47,0) -> 0 | Z47: =IF($A47>0,SUMIF('Age profile (years)'!$CT47:$GF47,"<" & U47+0.5,'Asset data'!$CX47:$GJ47)-Y47-X47-W47,0) -> 0 | AA47: 0 | AB47: 0 | AC47: 0 | AD47: 0 | AE47: 0 | AF47: 0 | AI47: =IF($A47>0,'RRR hist-forc'!K47,0) -> 0 | AJ47: 0
A48: ='Asset data'!A48 -> 0 | B48: ='Asset data'!B48 -> 0 | C48: ='Asset data'!C48 -> 0 | D48: ='Asset data'!E48 -> > 132 kV | E48: 0 | F48: =IF(A48>0,SUM('Asset data'!J48:CV48),0) -> 0 | G48: =IF(A48>0,'Asset data'!F48,0) -> 0 | H48: =IF(A48>0,SUM('Asset data'!CX48:GJ48),0) -> 0 | I48: 0 | J48: 0 | K48: 0 | L48: 0 | M48: =IF($A48>0,SUMPRODUCT('Age profile (years)'!$CT48:$GF48,'Asset data'!$CX48:$GJ48)/H48-0.5,0) -> 0 | N48: 0 | O48: =IF($A48>0,'Asset data'!G48,0) -> 0 | P48: 0 | Q48: 0 | R48: 0 | S48: 0 | T48: 0 | U48: 0 | W48: =IF($A48>0,SUMIF('Age profile (years)'!$CT48:$GF48,"<" & R48+0.5,'Asset data'!$CX48:$GJ48),0) -> 0 | X48: =IF($A48>0,SUMIF('Age profile (years)'!$CT48:$GF48,"<" & S48+0.5,'Asset data'!$CX48:$GJ48)-W48,0) -> 0 | Y48: =IF($A48>0,SUMIF('Age profile (years)'!$CT48:$GF48,"<" & T48+0.5,'Asset data'!$CX48:$GJ48)-X48-W48,0) -> 0 | Z48: =IF($A48>0,SUMIF('Age profile (years)'!$CT48:$GF48,"<" & U48+0.5,'Asset data'!$CX48:$GJ48)-Y48-X48-W48,0) -> 0 | AA48: 0 | AB48: 0 | AC48: 0 | AD48: 0 | AE48: 0 | AF48: 0 | AI48: =IF($A48>0,'RRR hist-forc'!K48,0) -> 0 | AJ48: 0
A49: ='Asset data'!A49 -> 2 | B49: ='Asset data'!B49 -> 0 | C49: ='Asset data'!C49 -> 0 | D49: ='Asset data'!E49 -> Other | E49: OVERHEAD CONDUCTORS | F49: =IF(A49>0,SUM('Asset data'!J49:CV49),0) -> 297.1 | G49: =IF(A49>0,'Asset data'!F49,0) -> 22.09441919 | H49: =IF(A49>0,SUM('Asset data'!CX49:GJ49),0) -> 6564.251941 | I49: 0.001641429913 | J49: 30 | K49: 0.03633542199 | L49: 22.09441919 | M49: =IF($A49>0,SUMPRODUCT('Age profile (years)'!$CT49:$GF49,'Asset data'!$CX49:$GJ49)/H49-0.5,0) -> 43.32194547 | N49: 284376.1646 | O49: =IF($A49>0,'Asset data'!G49,0) -> 83.03586354 | P49: 545068.3284 | Q49: 0.4782742826 | R49: 8.303586354 | S49: 16.60717271 | T49: 49.82151812 | U49: 66.42869083 | W49: =IF($A49>0,SUMIF('Age profile (years)'!$CT49:$GF49,"<" & R49+0.5,'Asset data'!$CX49:$GJ49),0) -> 437.4694999 | X49: =IF($A49>0,SUMIF('Age profile (years)'!$CT49:$GF49,"<" & S49+0.5,'Asset data'!$CX49:$GJ49)-W49,0) -> 172.3364697 | Y49: =IF($A49>0,SUMIF('Age profile (years)'!$CT49:$GF49,"<" & T49+0.5,'Asset data'!$CX49:$GJ49)-X49-W49,0) -> 3696.39633 | Z49: =IF($A49>0,SUMIF('Age profile (years)'!$CT49:$GF49,"<" & U49+0.5,'Asset data'!$CX49:$GJ49)-Y49-X49-W49,0) -> 1422.880596 | AA49: 835.1690453 | AB49: 0.06664422753 | AC49: 0.0262537866 | AD49: 0.563110064 | AE49: 0.216762033 | AF49: 0.1272298889 | AI49: =IF($A49>0,'RRR hist-forc'!K49,0) -> 83.03586354 | AJ49: 545068.3284
A50: ='Asset data'!A50 -> 3 | B50: ='Asset data'!B50 -> 0 | C50: ='Asset data'!C50 -> 0 | D50: ='Asset data'!E50 -> ˂ = 1 kV | E50: UNDERGROUND CABLES | F50: =IF(A50>0,SUM('Asset data'!J50:CV50),0) -> 639.299 | G50: =IF(A50>0,'Asset data'!F50,0) -> 245.6298985 | H50: =IF(A50>0,SUM('Asset data'!CX50:GJ50),0) -> 157030.9485 | I50: 0.03926651483 | J50: 6 | K50: 0.09677069795 | L50: 245.6298985 | M50: =IF($A50>0,SUMPRODUCT('Age profile (years)'!$CT50:$GF50,'Asset data'!$CX50:$GJ50)/H50-0.5,0) -> 36.25590139 | N50: 5693298.583 | O50: =IF($A50>0,'Asset data'!G50,0) -> 78.29632993 | P50: 12294946.95 | Q50: 0.5369399636 | R50: 7.829632993 | S50: 15.65926599 | T50: 46.97779796 | U50: 62.63706395 | W50: =IF($A50>0,SUMIF('Age profile (years)'!$CT50:$GF50,"<" & R50+0.5,'Asset data'!$CX50:$GJ50),0) -> 15539.03864 | X50: =IF($A50>0,SUMIF('Age profile (years)'!$CT50:$GF50,"<" & S50+0.5,'Asset data'!$CX50:$GJ50)-W50,0) -> 2088.591027 | Y50: =IF($A50>0,SUMIF('Age profile (years)'!$CT50:$GF50,"<" & T50+0.5,'Asset data'!$CX50:$GJ50)-X50-W50,0) -> 99303.25537 | Z50: =IF($A50>0,SUMIF('Age profile (years)'!$CT50:$GF50,"<" & U50+0.5,'Asset data'!$CX50:$GJ50)-Y50-X50-W50,0) -> 24465.22915 | AA50: 15634.8343 | AB50: 0.09895526194 | AC50: 0.01330050571 | AD50: 0.6323801539 | AE50: 0.1557987733 | AF50: 0.09956530512 | AI50: =IF($A50>0,'RRR hist-forc'!K50,0) -> 78.29632993 | AJ50: 12294946.95
A51: ='Asset data'!A51 -> 3 | B51: ='Asset data'!B51 -> 0 | C51: ='Asset data'!C51 -> 0 | D51: ='Asset data'!E51 -> > 1 kV & < = 11 kV | E51: UNDERGROUND CABLES | F51: =IF(A51>0,SUM('Asset data'!J51:CV51),0) -> 1352.134 | G51: =IF(A51>0,'Asset data'!F51,0) -> 1044.765515 | H51: =IF(A51>0,SUM('Asset data'!CX51:GJ51),0) -> 1412662.975 | I51: 0.3532447087 | J51: 1 | K51: 0.8705569403 | L51: 1044.765515 | M51: =IF($A51>0,SUMPRODUCT('Age profile (years)'!$CT51:$GF51,'Asset data'!$CX51:$GJ51)/H51-0.5,0) -> 48.96792108 | N51: 69175169.06 | O51: =IF($A51>0,'Asset data'!G51,0) -> 90.97116707 | P51: 128511599.5 | Q51: 0.4617204257 | R51: 9.097116707 | S51: 18.19423341 | T51: 54.58270024 | U51: 72.77693365 | W51: =IF($A51>0,SUMIF('Age profile (years)'!$CT51:$GF51,"<" & R51+0.5,'Asset data'!$CX51:$GJ51),0) -> 35606.65352 | X51: =IF($A51>0,SUMIF('Age profile (years)'!$CT51:$GF51,"<" & S51+0.5,'Asset data'!$CX51:$GJ51)-W51,0) -> 101839.5633 | Y51: =IF($A51>0,SUMIF('Age profile (years)'!$CT51:$GF51,"<" & T51+0.5,'Asset data'!$CX51:$GJ51)-X51-W51,0) -> 751952.2184 | Z51: =IF($A51>0,SUMIF('Age profile (years)'!$CT51:$GF51,"<" & U51+0.5,'Asset data'!$CX51:$GJ51)-Y51-X51-W51,0) -> 379437.9397 | AA51: 143826.5999 | AB51: 0.02520534207 | AC51: 0.07209048807 | AD51: 0.5322941365 | AE51: 0.268597639 | AF51: 0.1018123943 | AI51: =IF($A51>0,'RRR hist-forc'!K51,0) -> 90.97116707 | AJ51: 128511599.5
A52: ='Asset data'!A52 -> 3 | B52: ='Asset data'!B52 -> 0 | C52: ='Asset data'!C52 -> 0 | D52: ='Asset data'!E52 -> > 11 kV & < = 22 kV | E52: UNDERGROUND CABLES | F52: =IF(A52>0,SUM('Asset data'!J52:CV52),0) -> 157.396 | G52: =IF(A52>0,'Asset data'!F52,0) -> 192.1517264 | H52: =IF(A52>0,SUM('Asset data'!CX52:GJ52),0) -> 30243.91313 | I52: 0.007562668854 | J52: 18 | K52: 0.01863788387 | L52: 192.1517264 | M52: =IF($A52>0,SUMPRODUCT('Age profile (years)'!$CT52:$GF52,'Asset data'!$CX52:$GJ52)/H52-0.5,0) -> 40.17560167 | N52: 1215067.407 | O52: =IF($A52>0,'Asset data'!G52,0) -> 82.6218896 | P52: 2498809.251 | Q52: 0.5137414326 | R52: 8.26218896 | S52: 16.52437792 | T52: 49.57313376 | U52: 66.09751168 | W52: =IF($A52>0,SUMIF('Age profile (years)'!$CT52:$GF52,"<" & R52+0.5,'Asset data'!$CX52:$GJ52),0) -> 6157.694224 | X52: =IF($A52>0,SUMIF('Age profile (years)'!$CT52:$GF52,"<" & S52+0.5,'Asset data'!$CX52:$GJ52)-W52,0) -> 8318.056084 | Y52: =IF($A52>0,SUMIF('Age profile (years)'!$CT52:$GF52,"<" & T52+0.5,'Asset data'!$CX52:$GJ52)-X52-W52,0) -> 2532.559754 | Z52: =IF($A52>0,SUMIF('Age profile (years)'!$CT52:$GF52,"<" & U52+0.5,'Asset data'!$CX52:$GJ52)-Y52-X52-W52,0) -> 1340.834747 | AA52: 11894.76832 | AB52: 0.203601108 | AC52: 0.2750324023 | AD52: 0.08373783324 | AE52: 0.04433403644 | AF52: 0.3932946199 | AI52: =IF($A52>0,'RRR hist-forc'!K52,0) -> 82.6218896 | AJ52: 2498809.251
A53: ='Asset data'!A53 -> 0 | B53: ='Asset data'!B53 -> 0 | C53: ='Asset data'!C53 -> 0 | D53: ='Asset data'!E53 -> > 22 kV & < = 33 kV | E53: 0 | F53: =IF(A53>0,SUM('Asset data'!J53:CV53),0) -> 0 | G53: =IF(A53>0,'Asset data'!F53,0) -> 0 | H53: =IF(A53>0,SUM('Asset data'!CX53:GJ53),0) -> 0 | I53: 0 | J53: 0 | K53: 0 | L53: 0 | M53: =IF($A53>0,SUMPRODUCT('Age profile (years)'!$CT53:$GF53,'Asset data'!$CX53:$GJ53)/H53-0.5,0) -> 0 | N53: 0 | O53: =IF($A53>0,'Asset data'!G53,0) -> 0 | P53: 0 | Q53: 0 | R53: 0 | S53: 0 | T53: 0 | U53: 0 | W53: =IF($A53>0,SUMIF('Age profile (years)'!$CT53:$GF53,"<" & R53+0.5,'Asset data'!$CX53:$GJ53),0) -> 0 | X53: =IF($A53>0,SUMIF('Age profile (years)'!$CT53:$GF53,"<" & S53+0.5,'Asset data'!$CX53:$GJ53)-W53,0) -> 0 | Y53: =IF($A53>0,SUMIF('Age profile (years)'!$CT53:$GF53,"<" & T53+0.5,'Asset data'!$CX53:$GJ53)-X53-W53,0) -> 0 | Z53: =IF($A53>0,SUMIF('Age profile (years)'!$CT53:$GF53,"<" & U53+0.5,'Asset data'!$CX53:$GJ53)-Y53-X53-W53,0) -> 0 | AA53: 0 | AB53: 0 | AC53: 0 | AD53: 0 | AE53: 0 | AF53: 0 | AI53: =IF($A53>0,'RRR hist-forc'!K53,0) -> 0 | AJ53: 0
A54: ='Asset data'!A54 -> 3 | B54: ='Asset data'!B54 -> 0 | C54: ='Asset data'!C54 -> 0 | D54: ='Asset data'!E54 -> > 33 kV & < = 66 kV | E54: UNDERGROUND CABLES | F54: =IF(A54>0,SUM('Asset data'!J54:CV54),0) -> 62.339 | G54: =IF(A54>0,'Asset data'!F54,0) -> 156.9692204 | H54: =IF(A54>0,SUM('Asset data'!CX54:GJ54),0) -> 9785.304228 | I54: 0.002446873035 | J54: 27 | K54: 0.006030217158 | L54: 156.9692204 | M54: =IF($A54>0,SUMPRODUCT('Age profile (years)'!$CT54:$GF54,'Asset data'!$CX54:$GJ54)/H54-0.5,0) -> 61.68469979 | N54: 603603.5536 | O54: =IF($A54>0,'Asset data'!G54,0) -> 89.68163873 | P54: 877562.1186 | Q54: 0.3121813934 | R54: 8.968163873 | S54: 17.93632775 | T54: 53.80898324 | U54: 71.74531098 | W54: =IF($A54>0,SUMIF('Age profile (years)'!$CT54:$GF54,"<" & R54+0.5,'Asset data'!$CX54:$GJ54),0) -> 0 | X54: =IF($A54>0,SUMIF('Age profile (years)'!$CT54:$GF54,"<" & S54+0.5,'Asset data'!$CX54:$GJ54)-W54,0) -> 0 | Y54: =IF($A54>0,SUMIF('Age profile (years)'!$CT54:$GF54,"<" & T54+0.5,'Asset data'!$CX54:$GJ54)-X54-W54,0) -> 5856.207673 | Z54: =IF($A54>0,SUMIF('Age profile (years)'!$CT54:$GF54,"<" & U54+0.5,'Asset data'!$CX54:$GJ54)-Y54-X54-W54,0) -> 884.6785259 | AA54: 3044.418029 | AB54: 0 | AC54: 0 | AD54: 0.5984696578 | AE54: 0.09040889331 | AF54: 0.3111214489 | AI54: =IF($A54>0,'RRR hist-forc'!K54,0) -> 89.68163873 | AJ54: 877562.1186
A55: ='Asset data'!A55 -> 0 | B55: ='Asset data'!B55 -> 0 | C55: ='Asset data'!C55 -> 0 | D55: ='Asset data'!E55 -> > 66 kV & < = 132 kV | E55: 0 | F55: =IF(A55>0,SUM('Asset data'!J55:CV55),0) -> 0 | G55: =IF(A55>0,'Asset data'!F55,0) -> 0 | H55: =IF(A55>0,SUM('Asset data'!CX55:GJ55),0) -> 0 | I55: 0 | J55: 0 | K55: 0 | L55: 0 | M55: =IF($A55>0,SUMPRODUCT('Age profile (years)'!$CT55:$GF55,'Asset data'!$CX55:$GJ55)/H55-0.5,0) -> 0 | N55: 0 | O55: =IF($A55>0,'Asset data'!G55,0) -> 0 | P55: 0 | Q55: 0 | R55: 0 | S55: 0 | T55: 0 | U55: 0 | W55: =IF($A55>0,SUMIF('Age profile (years)'!$CT55:$GF55,"<" & R55+0.5,'Asset data'!$CX55:$GJ55),0) -> 0 | X55: =IF($A55>0,SUMIF('Age profile (years)'!$CT55:$GF55,"<" & S55+0.5,'Asset data'!$CX55:$GJ55)-W55,0) -> 0 | Y55: =IF($A55>0,SUMIF('Age profile (years)'!$CT55:$GF55,"<" & T55+0.5,'Asset data'!$CX55:$GJ55)-X55-W55,0) -> 0 | Z55: =IF($A55>0,SUMIF('Age profile (years)'!$CT55:$GF55,"<" & U55+0.5,'Asset data'!$CX55:$GJ55)-Y55-X55-W55,0) -> 0 | AA55: 0 | AB55: 0 | AC55: 0 | AD55: 0 | AE55: 0 | AF55: 0 | AI55: =IF($A55>0,'RRR hist-forc'!K55,0) -> 0 | AJ55: 0
A56: ='Asset data'!A56 -> 0 | B56: ='Asset data'!B56 -> 0 | C56: ='Asset data'!C56 -> 0 | D56: ='Asset data'!E56 -> > 132 kV | E56: 0 | F56: =IF(A56>0,SUM('Asset data'!J56:CV56),0) -> 0 | G56: =IF(A56>0,'Asset data'!F56,0) -> 0 | H56: =IF(A56>0,SUM('Asset data'!CX56:GJ56),0) -> 0 | I56: 0 | J56: 0 | K56: 0 | L56: 0 | M56: =IF($A56>0,SUMPRODUCT('Age profile (years)'!$CT56:$GF56,'Asset data'!$CX56:$GJ56)/H56-0.5,0) -> 0 | N56: 0 | O56: =IF($A56>0,'Asset data'!G56,0) -> 0 | P56: 0 | Q56: 0 | R56: 0 | S56: 0 | T56: 0 | U56: 0 | W56: =IF($A56>0,SUMIF('Age profile (years)'!$CT56:$GF56,"<" & R56+0.5,'Asset data'!$CX56:$GJ56),0) -> 0 | X56: =IF($A56>0,SUMIF('Age profile (years)'!$CT56:$GF56,"<" & S56+0.5,'Asset data'!$CX56:$GJ56)-W56,0) -> 0 | Y56: =IF($A56>0,SUMIF('Age profile (years)'!$CT56:$GF56,"<" & T56+0.5,'Asset data'!$CX56:$GJ56)-X56-W56,0) -> 0 | Z56: =IF($A56>0,SUMIF('Age profile (years)'!$CT56:$GF56,"<" & U56+0.5,'Asset data'!$CX56:$GJ56)-Y56-X56-W56,0) -> 0 | AA56: 0 | AB56: 0 | AC56: 0 | AD56: 0 | AE56: 0 | AF56: 0 | AI56: =IF($A56>0,'RRR hist-forc'!K56,0) -> 0 | AJ56: 0
A57: ='Asset data'!A57 -> 3 | B57: ='Asset data'!B57 -> 0 | C57: ='Asset data'!C57 -> 0 | D57: ='Asset data'!E57 -> Other | E57: UNDERGROUND CABLES | F57: =IF(A57>0,SUM('Asset data'!J57:CV57),0) -> 393.602 | G57: =IF(A57>0,'Asset data'!F57,0) -> 32.99934407 | H57: =IF(A57>0,SUM('Asset data'!CX57:GJ57),0) -> 12988.60782 | I57: 0.003247877992 | J57: 22 | K57: 0.008004260668 | L57: 32.99934407 | M57: =IF($A57>0,SUMPRODUCT('Age profile (years)'!$CT57:$GF57,'Asset data'!$CX57:$GJ57)/H57-0.5,0) -> 61.03036316 | N57: 792699.4524 | O57: =IF($A57>0,'Asset data'!G57,0) -> 103.5161731 | P57: 1344530.976 | Q57: 0.4104267832 | R57: 10.35161731 | S57: 20.70323462 | T57: 62.10970386 | U57: 82.81293848 | W57: =IF($A57>0,SUMIF('Age profile (years)'!$CT57:$GF57,"<" & R57+0.5,'Asset data'!$CX57:$GJ57),0) -> 0 | X57: =IF($A57>0,SUMIF('Age profile (years)'!$CT57:$GF57,"<" & S57+0.5,'Asset data'!$CX57:$GJ57)-W57,0) -> 188.1292605 | Y57: =IF($A57>0,SUMIF('Age profile (years)'!$CT57:$GF57,"<" & T57+0.5,'Asset data'!$CX57:$GJ57)-X57-W57,0) -> 6667.781463 | Z57: =IF($A57>0,SUMIF('Age profile (years)'!$CT57:$GF57,"<" & U57+0.5,'Asset data'!$CX57:$GJ57)-Y57-X57-W57,0) -> 4928.25404 | AA57: 1204.443059 | AB57: 0 | AC57: 0.01448417437 | AD57: 0.5133561313 | AE57: 0.3794289663 | AF57: 0.09273072799 | AI57: =IF($A57>0,'RRR hist-forc'!K57,0) -> 103.5161731 | AJ57: 1344530.976
A58: ='Asset data'!A58 -> 4 | B58: ='Asset data'!B58 -> 0 | C58: ='Asset data'!C58 -> 0 | D58: ='Asset data'!E58 -> ˂ = 11 kV ; Residential ; Simple Type | E58: SERVICE LINES | F58: =IF(A58>0,SUM('Asset data'!J58:CV58),0) -> 2326.339 | G58: =IF(A58>0,'Asset data'!F58,0) -> 80.61216866 | H58: =IF(A58>0,SUM('Asset data'!CX58:GJ58),0) -> 187531.2318 | I58: 0.04689329057 | J58: 4 | K58: 1 | L58: 80.61216866 | M58: =IF($A58>0,SUMPRODUCT('Age profile (years)'!$CT58:$GF58,'Asset data'!$CX58:$GJ58)/H58-0.5,0) -> 20.59391641 | N58: 3862002.512 | O58: =IF($A58>0,'Asset data'!G58,0) -> 58.62924546 | P58: 10994814.62 | Q58: 0.6487432809 | R58: 5.862924546 | S58: 11.72584909 | T58: 35.17754728 | U58: 46.90339637 | W58: =IF($A58>0,SUMIF('Age profile (years)'!$CT58:$GF58,"<" & R58+0.5,'Asset data'!$CX58:$GJ58),0) -> 32017.09778 | X58: =IF($A58>0,SUMIF('Age profile (years)'!$CT58:$GF58,"<" & S58+0.5,'Asset data'!$CX58:$GJ58)-W58,0) -> 30001.64846 | Y58: =IF($A58>0,SUMIF('Age profile (years)'!$CT58:$GF58,"<" & T58+0.5,'Asset data'!$CX58:$GJ58)-X58-W58,0) -> 88155.83928 | Z58: =IF($A58>0,SUMIF('Age profile (years)'!$CT58:$GF58,"<" & U58+0.5,'Asset data'!$CX58:$GJ58)-Y58-X58-W58,0) -> 13728.736 | AA58: 23627.91031 | AB58: 0.1707294165 | AC58: 0.1599821436 | AD58: 0.470086174 | AE58: 0.07320773112 | AF58: 0.1259945348 | AI58: =IF($A58>0,'RRR hist-forc'!K58,0) -> 58.62924546 | AJ58: 10994814.62
A59: ='Asset data'!A59 -> 0 | B59: ='Asset data'!B59 -> 0 | C59: ='Asset data'!C59 -> 0 | D59: ='Asset data'!E59 -> ˂ = 11 kV ; Commercial & Industrial ; Simple Type | E59: 0 | F59: =IF(A59>0,SUM('Asset data'!J59:CV59),0) -> 0 | G59: =IF(A59>0,'Asset data'!F59,0) -> 0 | H59: =IF(A59>0,SUM('Asset data'!CX59:GJ59),0) -> 0 | I59: 0 | J59: 0 | K59: 0 | L59: 0 | M59: =IF($A59>0,SUMPRODUCT('Age profile (years)'!$CT59:$GF59,'Asset data'!$CX59:$GJ59)/H59-0.5,0) -> 0 | N59: 0 | O59: =IF($A59>0,'Asset data'!G59,0) -> 0 | P59: 0 | Q59: 0 | R59: 0 | S59: 0 | T59: 0 | U59: 0 | W59: =IF($A59>0,SUMIF('Age profile (years)'!$CT59:$GF59,"<" & R59+0.5,'Asset data'!$CX59:$GJ59),0) -> 0 | X59: =IF($A59>0,SUMIF('Age profile (years)'!$CT59:$GF59,"<" & S59+0.5,'Asset data'!$CX59:$GJ59)-W59,0) -> 0 | Y59: =IF($A59>0,SUMIF('Age profile (years)'!$CT59:$GF59,"<" & T59+0.5,'Asset data'!$CX59:$GJ59)-X59-W59,0) -> 0 | Z59: =IF($A59>0,SUMIF('Age profile (years)'!$CT59:$GF59,"<" & U59+0.5,'Asset data'!$CX59:$GJ59)-Y59-X59-W59,0) -> 0 | AA59: 0 | AB59: 0 | AC59: 0 | AD59: 0 | AE59: 0 | AF59: 0 | AI59: =IF($A59>0,'RRR hist-forc'!K59,0) -> 0 | AJ59: 0
A60: ='Asset data'!A60 -> 0 | B60: ='Asset data'!B60 -> 0 | C60: ='Asset data'!C60 -> 0 | D60: ='Asset data'!E60 -> ˂ = 11 kV ; Residential ; Complex Type | E60: 0 | F60: =IF(A60>0,SUM('Asset data'!J60:CV60),0) -> 0 | G60: =IF(A60>0,'Asset data'!F60,0) -> 0 | H60: =IF(A60>0,SUM('Asset data'!CX60:GJ60),0) -> 0 | I60: 0 | J60: 0 | K60: 0 | L60: 0 | M60: =IF($A60>0,SUMPRODUCT('Age profile (years)'!$CT60:$GF60,'Asset data'!$CX60:$GJ60)/H60-0.5,0) -> 0 | N60: 0 | O60: =IF($A60>0,'Asset data'!G60,0) -> 0 | P60: 0 | Q60: 0 | R60: 0 | S60: 0 | T60: 0 | U60: 0 | W60: =IF($A60>0,SUMIF('Age profile (years)'!$CT60:$GF60,"<" & R60+0.5,'Asset data'!$CX60:$GJ60),0) -> 0 | X60: =IF($A60>0,SUMIF('Age profile (years)'!$CT60:$GF60,"<" & S60+0.5,'Asset data'!$CX60:$GJ60)-W60,0) -> 0 | Y60: =IF($A60>0,SUMIF('Age profile (years)'!$CT60:$GF60,"<" & T60+0.5,'Asset data'!$CX60:$GJ60)-X60-W60,0) -> 0 | Z60: =IF($A60>0,SUMIF('Age profile (years)'!$CT60:$GF60,"<" & U60+0.5,'Asset data'!$CX60:$GJ60)-Y60-X60-W60,0) -> 0 | AA60: 0 | AB60: 0 | AC60: 0 | AD60: 0 | AE60: 0 | AF60: 0 | AI60: =IF($A60>0,'RRR hist-forc'!K60,0) -> 0 | AJ60: 0
A61: ='Asset data'!A61 -> 0 | B61: ='Asset data'!B61 -> 0 | C61: ='Asset data'!C61 -> 0 | D61: ='Asset data'!E61 -> ˂ = 11 kV ; Commercial & Industrial ; Complex Type | E61: 0 | F61: =IF(A61>0,SUM('Asset data'!J61:CV61),0) -> 0 | G61: =IF(A61>0,'Asset data'!F61,0) -> 0 | H61: =IF(A61>0,SUM('Asset data'!CX61:GJ61),0) -> 0 | I61: 0 | J61: 0 | K61: 0 | L61: 0 | M61: =IF($A61>0,SUMPRODUCT('Age profile (years)'!$CT61:$GF61,'Asset data'!$CX61:$GJ61)/H61-0.5,0) -> 0 | N61: 0 | O61: =IF($A61>0,'Asset data'!G61,0) -> 0 | P61: 0 | Q61: 0 | R61: 0 | S61: 0 | T61: 0 | U61: 0 | W61: =IF($A61>0,SUMIF('Age profile (years)'!$CT61:$GF61,"<" & R61+0.5,'Asset data'!$CX61:$GJ61),0) -> 0 | X61: =IF($A61>0,SUMIF('Age profile (years)'!$CT61:$GF61,"<" & S61+0.5,'Asset data'!$CX61:$GJ61)-W61,0) -> 0 | Y61: =IF($A61>0,SUMIF('Age profile (years)'!$CT61:$GF61,"<" & T61+0.5,'Asset data'!$CX61:$GJ61)-X61-W61,0) -> 0 | Z61: =IF($A61>0,SUMIF('Age profile (years)'!$CT61:$GF61,"<" & U61+0.5,'Asset data'!$CX61:$GJ61)-Y61-X61-W61,0) -> 0 | AA61: 0 | AB61: 0 | AC61: 0 | AD61: 0 | AE61: 0 | AF61: 0 | AI61: =IF($A61>0,'RRR hist-forc'!K61,0) -> 0 | AJ61: 0
A62: ='Asset data'!A62 -> 0 | B62: ='Asset data'!B62 -> 0 | C62: ='Asset data'!C62 -> 0 | D62: ='Asset data'!E62 -> ˂ = 11 kV ; Subdivision ; Complex Type | E62: 0 | F62: =IF(A62>0,SUM('Asset data'!J62:CV62),0) -> 0 | G62: =IF(A62>0,'Asset data'!F62,0) -> 0 | H62: =IF(A62>0,SUM('Asset data'!CX62:GJ62),0) -> 0 | I62: 0 | J62: 0 | K62: 0 | L62: 0 | M62: =IF($A62>0,SUMPRODUCT('Age profile (years)'!$CT62:$GF62,'Asset data'!$CX62:$GJ62)/H62-0.5,0) -> 0 | N62: 0 | O62: =IF($A62>0,'Asset data'!G62,0) -> 0 | P62: 0 | Q62: 0 | R62: 0 | S62: 0 | T62: 0 | U62: 0 | W62: =IF($A62>0,SUMIF('Age profile (years)'!$CT62:$GF62,"<" & R62+0.5,'Asset data'!$CX62:$GJ62),0) -> 0 | X62: =IF($A62>0,SUMIF('Age profile (years)'!$CT62:$GF62,"<" & S62+0.5,'Asset data'!$CX62:$GJ62)-W62,0) -> 0 | Y62: =IF($A62>0,SUMIF('Age profile (years)'!$CT62:$GF62,"<" & T62+0.5,'Asset data'!$CX62:$GJ62)-X62-W62,0) -> 0 | Z62: =IF($A62>0,SUMIF('Age profile (years)'!$CT62:$GF62,"<" & U62+0.5,'Asset data'!$CX62:$GJ62)-Y62-X62-W62,0) -> 0 | AA62: 0 | AB62: 0 | AC62: 0 | AD62: 0 | AE62: 0 | AF62: 0 | AI62: =IF($A62>0,'RRR hist-forc'!K62,0) -> 0 | AJ62: 0
A63: ='Asset data'!A63 -> 0 | B63: ='Asset data'!B63 -> 0 | C63: ='Asset data'!C63 -> 0 | D63: ='Asset data'!E63 -> > 11 kV & < = 22 kV ; Commercial & Industrial | E63: 0 | F63: =IF(A63>0,SUM('Asset data'!J63:CV63),0) -> 0 | G63: =IF(A63>0,'Asset data'!F63,0) -> 0 | H63: =IF(A63>0,SUM('Asset data'!CX63:GJ63),0) -> 0 | I63: 0 | J63: 0 | K63: 0 | L63: 0 | M63: =IF($A63>0,SUMPRODUCT('Age profile (years)'!$CT63:$GF63,'Asset data'!$CX63:$GJ63)/H63-0.5,0) -> 0 | N63: 0 | O63: =IF($A63>0,'Asset data'!G63,0) -> 0 | P63: 0 | Q63: 0 | R63: 0 | S63: 0 | T63: 0 | U63: 0 | W63: =IF($A63>0,SUMIF('Age profile (years)'!$CT63:$GF63,"<" & R63+0.5,'Asset data'!$CX63:$GJ63),0) -> 0 | X63: =IF($A63>0,SUMIF('Age profile (years)'!$CT63:$GF63,"<" & S63+0.5,'Asset data'!$CX63:$GJ63)-W63,0) -> 0 | Y63: =IF($A63>0,SUMIF('Age profile (years)'!$CT63:$GF63,"<" & T63+0.5,'Asset data'!$CX63:$GJ63)-X63-W63,0) -> 0 | Z63: =IF($A63>0,SUMIF('Age profile (years)'!$CT63:$GF63,"<" & U63+0.5,'Asset data'!$CX63:$GJ63)-Y63-X63-W63,0) -> 0 | AA63: 0 | AB63: 0 | AC63: 0 | AD63: 0 | AE63: 0 | AF63: 0 | AI63: =IF($A63>0,'RRR hist-forc'!K63,0) -> 0 | AJ63: 0
A64: ='Asset data'!A64 -> 0 | B64: ='Asset data'!B64 -> 0 | C64: ='Asset data'!C64 -> 0 | D64: ='Asset data'!E64 -> > 11 kV & < = 22 kV ; Subdivision | E64: 0 | F64: =IF(A64>0,SUM('Asset data'!J64:CV64),0) -> 0 | G64: =IF(A64>0,'Asset data'!F64,0) -> 0 | H64: =IF(A64>0,SUM('Asset data'!CX64:GJ64),0) -> 0 | I64: 0 | J64: 0 | K64: 0 | L64: 0 | M64: =IF($A64>0,SUMPRODUCT('Age profile (years)'!$CT64:$GF64,'Asset data'!$CX64:$GJ64)/H64-0.5,0) -> 0 | N64: 0 | O64: =IF($A64>0,'Asset data'!G64,0) -> 0 | P64: 0 | Q64: 0 | R64: 0 | S64: 0 | T64: 0 | U64: 0 | W64: =IF($A64>0,SUMIF('Age profile (years)'!$CT64:$GF64,"<" & R64+0.5,'Asset data'!$CX64:$GJ64),0) -> 0 | X64: =IF($A64>0,SUMIF('Age profile (years)'!$CT64:$GF64,"<" & S64+0.5,'Asset data'!$CX64:$GJ64)-W64,0) -> 0 | Y64: =IF($A64>0,SUMIF('Age profile (years)'!$CT64:$GF64,"<" & T64+0.5,'Asset data'!$CX64:$GJ64)-X64-W64,0) -> 0 | Z64: =IF($A64>0,SUMIF('Age profile (years)'!$CT64:$GF64,"<" & U64+0.5,'Asset data'!$CX64:$GJ64)-Y64-X64-W64,0) -> 0 | AA64: 0 | AB64: 0 | AC64: 0 | AD64: 0 | AE64: 0 | AF64: 0 | AI64: =IF($A64>0,'RRR hist-forc'!K64,0) -> 0 | AJ64: 0
A65: ='Asset data'!A65 -> 0 | B65: ='Asset data'!B65 -> 0 | C65: ='Asset data'!C65 -> 0 | D65: ='Asset data'!E65 -> > 22 kV & < = 33 kV ; Commercial & Industrial | E65: 0 | F65: =IF(A65>0,SUM('Asset data'!J65:CV65),0) -> 0 | G65: =IF(A65>0,'Asset data'!F65,0) -> 0 | H65: =IF(A65>0,SUM('Asset data'!CX65:GJ65),0) -> 0 | I65: 0 | J65: 0 | K65: 0 | L65: 0 | M65: =IF($A65>0,SUMPRODUCT('Age profile (years)'!$CT65:$GF65,'Asset data'!$CX65:$GJ65)/H65-0.5,0) -> 0 | N65: 0 | O65: =IF($A65>0,'Asset data'!G65,0) -> 0 | P65: 0 | Q65: 0 | R65: 0 | S65: 0 | T65: 0 | U65: 0 | W65: =IF($A65>0,SUMIF('Age profile (years)'!$CT65:$GF65,"<" & R65+0.5,'Asset data'!$CX65:$GJ65),0) -> 0 | X65: =IF($A65>0,SUMIF('Age profile (years)'!$CT65:$GF65,"<" & S65+0.5,'Asset data'!$CX65:$GJ65)-W65,0) -> 0 | Y65: =IF($A65>0,SUMIF('Age profile (years)'!$CT65:$GF65,"<" & T65+0.5,'Asset data'!$CX65:$GJ65)-X65-W65,0) -> 0 | Z65: =IF($A65>0,SUMIF('Age profile (years)'!$CT65:$GF65,"<" & U65+0.5,'Asset data'!$CX65:$GJ65)-Y65-X65-W65,0) -> 0 | AA65: 0 | AB65: 0 | AC65: 0 | AD65: 0 | AE65: 0 | AF65: 0 | AI65: =IF($A65>0,'RRR hist-forc'!K65,0) -> 0 | AJ65: 0
A66: ='Asset data'!A66 -> 0 | B66: ='Asset data'!B66 -> 0 | C66: ='Asset data'!C66 -> 0 | D66: ='Asset data'!E66 -> > 22 kV & < = 33 kV ; Subdivision | E66: 0 | F66: =IF(A66>0,SUM('Asset data'!J66:CV66),0) -> 0 | G66: =IF(A66>0,'Asset data'!F66,0) -> 0 | H66: =IF(A66>0,SUM('Asset data'!CX66:GJ66),0) -> 0 | I66: 0 | J66: 0 | K66: 0 | L66: 0 | M66: =IF($A66>0,SUMPRODUCT('Age profile (years)'!$CT66:$GF66,'Asset data'!$CX66:$GJ66)/H66-0.5,0) -> 0 | N66: 0 | O66: =IF($A66>0,'Asset data'!G66,0) -> 0 | P66: 0 | Q66: 0 | R66: 0 | S66: 0 | T66: 0 | U66: 0 | W66: =IF($A66>0,SUMIF('Age profile (years)'!$CT66:$GF66,"<" & R66+0.5,'Asset data'!$CX66:$GJ66),0) -> 0 | X66: =IF($A66>0,SUMIF('Age profile (years)'!$CT66:$GF66,"<" & S66+0.5,'Asset data'!$CX66:$GJ66)-W66,0) -> 0 | Y66: =IF($A66>0,SUMIF('Age profile (years)'!$CT66:$GF66,"<" & T66+0.5,'Asset data'!$CX66:$GJ66)-X66-W66,0) -> 0 | Z66: =IF($A66>0,SUMIF('Age profile (years)'!$CT66:$GF66,"<" & U66+0.5,'Asset data'!$CX66:$GJ66)-Y66-X66-W66,0) -> 0 | AA66: 0 | AB66: 0 | AC66: 0 | AD66: 0 | AE66: 0 | AF66: 0 | AI66: =IF($A66>0,'RRR hist-forc'!K66,0) -> 0 | AJ66: 0
A67: ='Asset data'!A67 -> 0 | B67: ='Asset data'!B67 -> 0 | C67: ='Asset data'!C67 -> 0 | D67: ='Asset data'!E67 -> > 33 kV & < = 66 kV ; Commercial & Industrial | E67: 0 | F67: =IF(A67>0,SUM('Asset data'!J67:CV67),0) -> 0 | G67: =IF(A67>0,'Asset data'!F67,0) -> 0 | H67: =IF(A67>0,SUM('Asset data'!CX67:GJ67),0) -> 0 | I67: 0 | J67: 0 | K67: 0 | L67: 0 | M67: =IF($A67>0,SUMPRODUCT('Age profile (years)'!$CT67:$GF67,'Asset data'!$CX67:$GJ67)/H67-0.5,0) -> 0 | N67: 0 | O67: =IF($A67>0,'Asset data'!G67,0) -> 0 | P67: 0 | Q67: 0 | R67: 0 | S67: 0 | T67: 0 | U67: 0 | W67: =IF($A67>0,SUMIF('Age profile (years)'!$CT67:$GF67,"<" & R67+0.5,'Asset data'!$CX67:$GJ67),0) -> 0 | X67: =IF($A67>0,SUMIF('Age profile (years)'!$CT67:$GF67,"<" & S67+0.5,'Asset data'!$CX67:$GJ67)-W67,0) -> 0 | Y67: =IF($A67>0,SUMIF('Age profile (years)'!$CT67:$GF67,"<" & T67+0.5,'Asset data'!$CX67:$GJ67)-X67-W67,0) -> 0 | Z67: =IF($A67>0,SUMIF('Age profile (years)'!$CT67:$GF67,"<" & U67+0.5,'Asset data'!$CX67:$GJ67)-Y67-X67-W67,0) -> 0 | AA67: 0 | AB67: 0 | AC67: 0 | AD67: 0 | AE67: 0 | AF67: 0 | AI67: =IF($A67>0,'RRR hist-forc'!K67,0) -> 0 | AJ67: 0
A68: ='Asset data'!A68 -> 0 | B68: ='Asset data'!B68 -> 0 | C68: ='Asset data'!C68 -> 0 | D68: ='Asset data'!E68 -> > 33 kV & < = 66 kV ; Subdivision | E68: 0 | F68: =IF(A68>0,SUM('Asset data'!J68:CV68),0) -> 0 | G68: =IF(A68>0,'Asset data'!F68,0) -> 0 | H68: =IF(A68>0,SUM('Asset data'!CX68:GJ68),0) -> 0 | I68: 0 | J68: 0 | K68: 0 | L68: 0 | M68: =IF($A68>0,SUMPRODUCT('Age profile (years)'!$CT68:$GF68,'Asset data'!$CX68:$GJ68)/H68-0.5,0) -> 0 | N68: 0 | O68: =IF($A68>0,'Asset data'!G68,0) -> 0 | P68: 0 | Q68: 0 | R68: 0 | S68: 0 | T68: 0 | U68: 0 | W68: =IF($A68>0,SUMIF('Age profile (years)'!$CT68:$GF68,"<" & R68+0.5,'Asset data'!$CX68:$GJ68),0) -> 0 | X68: =IF($A68>0,SUMIF('Age profile (years)'!$CT68:$GF68,"<" & S68+0.5,'Asset data'!$CX68:$GJ68)-W68,0) -> 0 | Y68: =IF($A68>0,SUMIF('Age profile (years)'!$CT68:$GF68,"<" & T68+0.5,'Asset data'!$CX68:$GJ68)-X68-W68,0) -> 0 | Z68: =IF($A68>0,SUMIF('Age profile (years)'!$CT68:$GF68,"<" & U68+0.5,'Asset data'!$CX68:$GJ68)-Y68-X68-W68,0) -> 0 | AA68: 0 | AB68: 0 | AC68: 0 | AD68: 0 | AE68: 0 | AF68: 0 | AI68: =IF($A68>0,'RRR hist-forc'!K68,0) -> 0 | AJ68: 0
A69: ='Asset data'!A69 -> 0 | B69: ='Asset data'!B69 -> 0 | C69: ='Asset data'!C69 -> 0 | D69: ='Asset data'!E69 -> > 66 kV & < = 132 kV ; Commercial & Industrial | E69: 0 | F69: =IF(A69>0,SUM('Asset data'!J69:CV69),0) -> 0 | G69: =IF(A69>0,'Asset data'!F69,0) -> 0 | H69: =IF(A69>0,SUM('Asset data'!CX69:GJ69),0) -> 0 | I69: 0 | J69: 0 | K69: 0 | L69: 0 | M69: =IF($A69>0,SUMPRODUCT('Age profile (years)'!$CT69:$GF69,'Asset data'!$CX69:$GJ69)/H69-0.5,0) -> 0 | N69: 0 | O69: =IF($A69>0,'Asset data'!G69,0) -> 0 | P69: 0 | Q69: 0 | R69: 0 | S69: 0 | T69: 0 | U69: 0 | W69: =IF($A69>0,SUMIF('Age profile (years)'!$CT69:$GF69,"<" & R69+0.5,'Asset data'!$CX69:$GJ69),0) -> 0 | X69: =IF($A69>0,SUMIF('Age profile (years)'!$CT69:$GF69,"<" & S69+0.5,'Asset data'!$CX69:$GJ69)-W69,0) -> 0 | Y69: =IF($A69>0,SUMIF('Age profile (years)'!$CT69:$GF69,"<" & T69+0.5,'Asset data'!$CX69:$GJ69)-X69-W69,0) -> 0 | Z69: =IF($A69>0,SUMIF('Age profile (years)'!$CT69:$GF69,"<" & U69+0.5,'Asset data'!$CX69:$GJ69)-Y69-X69-W69,0) -> 0 | AA69: 0 | AB69: 0 | AC69: 0 | AD69: 0 | AE69: 0 | AF69: 0 | AI69: =IF($A69>0,'RRR hist-forc'!K69,0) -> 0 | AJ69: 0
A70: ='Asset data'!A70 -> 0 | B70: ='Asset data'!B70 -> 0 | C70: ='Asset data'!C70 -> 0 | D70: ='Asset data'!E70 -> > 66 kV & < = 132 kV ; Subdivision | E70: 0 | F70: =IF(A70>0,SUM('Asset data'!J70:CV70),0) -> 0 | G70: =IF(A70>0,'Asset data'!F70,0) -> 0 | H70: =IF(A70>0,SUM('Asset data'!CX70:GJ70),0) -> 0 | I70: 0 | J70: 0 | K70: 0 | L70: 0 | M70: =IF($A70>0,SUMPRODUCT('Age profile (years)'!$CT70:$GF70,'Asset data'!$CX70:$GJ70)/H70-0.5,0) -> 0 | N70: 0 | O70: =IF($A70>0,'Asset data'!G70,0) -> 0 | P70: 0 | Q70: 0 | R70: 0 | S70: 0 | T70: 0 | U70: 0 | W70: =IF($A70>0,SUMIF('Age profile (years)'!$CT70:$GF70,"<" & R70+0.5,'Asset data'!$CX70:$GJ70),0) -> 0 | X70: =IF($A70>0,SUMIF('Age profile (years)'!$CT70:$GF70,"<" & S70+0.5,'Asset data'!$CX70:$GJ70)-W70,0) -> 0 | Y70: =IF($A70>0,SUMIF('Age profile (years)'!$CT70:$GF70,"<" & T70+0.5,'Asset data'!$CX70:$GJ70)-X70-W70,0) -> 0 | Z70: =IF($A70>0,SUMIF('Age profile (years)'!$CT70:$GF70,"<" & U70+0.5,'Asset data'!$CX70:$GJ70)-Y70-X70-W70,0) -> 0 | AA70: 0 | AB70: 0 | AC70: 0 | AD70: 0 | AE70: 0 | AF70: 0 | AI70: =IF($A70>0,'RRR hist-forc'!K70,0) -> 0 | AJ70: 0
A71: ='Asset data'!A71 -> 0 | B71: ='Asset data'!B71 -> 0 | C71: ='Asset data'!C71 -> 0 | D71: ='Asset data'!E71 -> > 132 kV ; Commercial & Industrial | E71: 0 | F71: =IF(A71>0,SUM('Asset data'!J71:CV71),0) -> 0 | G71: =IF(A71>0,'Asset data'!F71,0) -> 0 | H71: =IF(A71>0,SUM('Asset data'!CX71:GJ71),0) -> 0 | I71: 0 | J71: 0 | K71: 0 | L71: 0 | M71: =IF($A71>0,SUMPRODUCT('Age profile (years)'!$CT71:$GF71,'Asset data'!$CX71:$GJ71)/H71-0.5,0) -> 0 | N71: 0 | O71: =IF($A71>0,'Asset data'!G71,0) -> 0 | P71: 0 | Q71: 0 | R71: 0 | S71: 0 | T71: 0 | U71: 0 | W71: =IF($A71>0,SUMIF('Age profile (years)'!$CT71:$GF71,"<" & R71+0.5,'Asset data'!$CX71:$GJ71),0) -> 0 | X71: =IF($A71>0,SUMIF('Age profile (years)'!$CT71:$GF71,"<" & S71+0.5,'Asset data'!$CX71:$GJ71)-W71,0) -> 0 | Y71: =IF($A71>0,SUMIF('Age profile (years)'!$CT71:$GF71,"<" & T71+0.5,'Asset data'!$CX71:$GJ71)-X71-W71,0) -> 0 | Z71: =IF($A71>0,SUMIF('Age profile (years)'!$CT71:$GF71,"<" & U71+0.5,'Asset data'!$CX71:$GJ71)-Y71-X71-W71,0) -> 0 | AA71: 0 | AB71: 0 | AC71: 0 | AD71: 0 | AE71: 0 | AF71: 0 | AI71: =IF($A71>0,'RRR hist-forc'!K71,0) -> 0 | AJ71: 0
A72: ='Asset data'!A72 -> 0 | B72: ='Asset data'!B72 -> 0 | C72: ='Asset data'!C72 -> 0 | D72: ='Asset data'!E72 -> > 132 kV ; Subdivision | E72: 0 | F72: =IF(A72>0,SUM('Asset data'!J72:CV72),0) -> 0 | G72: =IF(A72>0,'Asset data'!F72,0) -> 0 | H72: =IF(A72>0,SUM('Asset data'!CX72:GJ72),0) -> 0 | I72: 0 | J72: 0 | K72: 0 | L72: 0 | M72: =IF($A72>0,SUMPRODUCT('Age profile (years)'!$CT72:$GF72,'Asset data'!$CX72:$GJ72)/H72-0.5,0) -> 0 | N72: 0 | O72: =IF($A72>0,'Asset data'!G72,0) -> 0 | P72: 0 | Q72: 0 | R72: 0 | S72: 0 | T72: 0 | U72: 0 | W72: =IF($A72>0,SUMIF('Age profile (years)'!$CT72:$GF72,"<" & R72+0.5,'Asset data'!$CX72:$GJ72),0) -> 0 | X72: =IF($A72>0,SUMIF('Age profile (years)'!$CT72:$GF72,"<" & S72+0.5,'Asset data'!$CX72:$GJ72)-W72,0) -> 0 | Y72: =IF($A72>0,SUMIF('Age profile (years)'!$CT72:$GF72,"<" & T72+0.5,'Asset data'!$CX72:$GJ72)-X72-W72,0) -> 0 | Z72: =IF($A72>0,SUMIF('Age profile (years)'!$CT72:$GF72,"<" & U72+0.5,'Asset data'!$CX72:$GJ72)-Y72-X72-W72,0) -> 0 | AA72: 0 | AB72: 0 | AC72: 0 | AD72: 0 | AE72: 0 | AF72: 0 | AI72: =IF($A72>0,'RRR hist-forc'!K72,0) -> 0 | AJ72: 0
A73: ='Asset data'!A73 -> 0 | B73: ='Asset data'!B73 -> 0 | C73: ='Asset data'!C73 -> 0 | D73: ='Asset data'!E73 -> Other | E73: 0 | F73: =IF(A73>0,SUM('Asset data'!J73:CV73),0) -> 0 | G73: =IF(A73>0,'Asset data'!F73,0) -> 0 | H73: =IF(A73>0,SUM('Asset data'!CX73:GJ73),0) -> 0 | I73: 0 | J73: 0 | K73: 0 | L73: 0 | M73: =IF($A73>0,SUMPRODUCT('Age profile (years)'!$CT73:$GF73,'Asset data'!$CX73:$GJ73)/H73-0.5,0) -> 0 | N73: 0 | O73: =IF($A73>0,'Asset data'!G73,0) -> 0 | P73: 0 | Q73: 0 | R73: 0 | S73: 0 | T73: 0 | U73: 0 | W73: =IF($A73>0,SUMIF('Age profile (years)'!$CT73:$GF73,"<" & R73+0.5,'Asset data'!$CX73:$GJ73),0) -> 0 | X73: =IF($A73>0,SUMIF('Age profile (years)'!$CT73:$GF73,"<" & S73+0.5,'Asset data'!$CX73:$GJ73)-W73,0) -> 0 | Y73: =IF($A73>0,SUMIF('Age profile (years)'!$CT73:$GF73,"<" & T73+0.5,'Asset data'!$CX73:$GJ73)-X73-W73,0) -> 0 | Z73: =IF($A73>0,SUMIF('Age profile (years)'!$CT73:$GF73,"<" & U73+0.5,'Asset data'!$CX73:$GJ73)-Y73-X73-W73,0) -> 0 | AA73: 0 | AB73: 0 | AC73: 0 | AD73: 0 | AE73: 0 | AF73: 0 | AI73: =IF($A73>0,'RRR hist-forc'!K73,0) -> 0 | AJ73: 0
A74: ='Asset data'!A74 -> 0 | B74: ='Asset data'!B74 -> 0 | C74: ='Asset data'!C74 -> 0 | D74: ='Asset data'!E74 -> Pole Mounted ; < = 22kV ; < = 60 kVA ; Single Phase | E74: 0 | F74: =IF(A74>0,SUM('Asset data'!J74:CV74),0) -> 0 | G74: =IF(A74>0,'Asset data'!F74,0) -> 0 | H74: =IF(A74>0,SUM('Asset data'!CX74:GJ74),0) -> 0 | I74: 0 | J74: 0 | K74: 0 | L74: 0 | M74: =IF($A74>0,SUMPRODUCT('Age profile (years)'!$CT74:$GF74,'Asset data'!$CX74:$GJ74)/H74-0.5,0) -> 0 | N74: 0 | O74: =IF($A74>0,'Asset data'!G74,0) -> 0 | P74: 0 | Q74: 0 | R74: 0 | S74: 0 | T74: 0 | U74: 0 | W74: =IF($A74>0,SUMIF('Age profile (years)'!$CT74:$GF74,"<" & R74+0.5,'Asset data'!$CX74:$GJ74),0) -> 0 | X74: =IF($A74>0,SUMIF('Age profile (years)'!$CT74:$GF74,"<" & S74+0.5,'Asset data'!$CX74:$GJ74)-W74,0) -> 0 | Y74: =IF($A74>0,SUMIF('Age profile (years)'!$CT74:$GF74,"<" & T74+0.5,'Asset data'!$CX74:$GJ74)-X74-W74,0) -> 0 | Z74: =IF($A74>0,SUMIF('Age profile (years)'!$CT74:$GF74,"<" & U74+0.5,'Asset data'!$CX74:$GJ74)-Y74-X74-W74,0) -> 0 | AA74: 0 | AB74: 0 | AC74: 0 | AD74: 0 | AE74: 0 | AF74: 0 | AI74: =IF($A74>0,'RRR hist-forc'!K74,0) -> 0 | AJ74: 0
A75: ='Asset data'!A75 -> 0 | B75: ='Asset data'!B75 -> 0 | C75: ='Asset data'!C75 -> 0 | D75: ='Asset data'!E75 -> Pole Mounted ; < = 22kV ; > 60 kVA and < = 600 kVA ; Single Phase | E75: 0 | F75: =IF(A75>0,SUM('Asset data'!J75:CV75),0) -> 0 | G75: =IF(A75>0,'Asset data'!F75,0) -> 0 | H75: =IF(A75>0,SUM('Asset data'!CX75:GJ75),0) -> 0 | I75: 0 | J75: 0 | K75: 0 | L75: 0 | M75: =IF($A75>0,SUMPRODUCT('Age profile (years)'!$CT75:$GF75,'Asset data'!$CX75:$GJ75)/H75-0.5,0) -> 0 | N75: 0 | O75: =IF($A75>0,'Asset data'!G75,0) -> 0 | P75: 0 | Q75: 0 | R75: 0 | S75: 0 | T75: 0 | U75: 0 | W75: =IF($A75>0,SUMIF('Age profile (years)'!$CT75:$GF75,"<" & R75+0.5,'Asset data'!$CX75:$GJ75),0) -> 0 | X75: =IF($A75>0,SUMIF('Age profile (years)'!$CT75:$GF75,"<" & S75+0.5,'Asset data'!$CX75:$GJ75)-W75,0) -> 0 | Y75: =IF($A75>0,SUMIF('Age profile (years)'!$CT75:$GF75,"<" & T75+0.5,'Asset data'!$CX75:$GJ75)-X75-W75,0) -> 0 | Z75: =IF($A75>0,SUMIF('Age profile (years)'!$CT75:$GF75,"<" & U75+0.5,'Asset data'!$CX75:$GJ75)-Y75-X75-W75,0) -> 0 | AA75: 0 | AB75: 0 | AC75: 0 | AD75: 0 | AE75: 0 | AF75: 0 | AI75: =IF($A75>0,'RRR hist-forc'!K75,0) -> 0 | AJ75: 0
A76: ='Asset data'!A76 -> 0 | B76: ='Asset data'!B76 -> 0 | C76: ='Asset data'!C76 -> 0 | D76: ='Asset data'!E76 -> Pole Mounted ; < = 22kV ; > 600 kVA ; Single Phase | E76: 0 | F76: =IF(A76>0,SUM('Asset data'!J76:CV76),0) -> 0 | G76: =IF(A76>0,'Asset data'!F76,0) -> 0 | H76: =IF(A76>0,SUM('Asset data'!CX76:GJ76),0) -> 0 | I76: 0 | J76: 0 | K76: 0 | L76: 0 | M76: =IF($A76>0,SUMPRODUCT('Age profile (years)'!$CT76:$GF76,'Asset data'!$CX76:$GJ76)/H76-0.5,0) -> 0 | N76: 0 | O76: =IF($A76>0,'Asset data'!G76,0) -> 0 | P76: 0 | Q76: 0 | R76: 0 | S76: 0 | T76: 0 | U76: 0 | W76: =IF($A76>0,SUMIF('Age profile (years)'!$CT76:$GF76,"<" & R76+0.5,'Asset data'!$CX76:$GJ76),0) -> 0 | X76: =IF($A76>0,SUMIF('Age profile (years)'!$CT76:$GF76,"<" & S76+0.5,'Asset data'!$CX76:$GJ76)-W76,0) -> 0 | Y76: =IF($A76>0,SUMIF('Age profile (years)'!$CT76:$GF76,"<" & T76+0.5,'Asset data'!$CX76:$GJ76)-X76-W76,0) -> 0 | Z76: =IF($A76>0,SUMIF('Age profile (years)'!$CT76:$GF76,"<" & U76+0.5,'Asset data'!$CX76:$GJ76)-Y76-X76-W76,0) -> 0 | AA76: 0 | AB76: 0 | AC76: 0 | AD76: 0 | AE76: 0 | AF76: 0 | AI76: =IF($A76>0,'RRR hist-forc'!K76,0) -> 0 | AJ76: 0
A77: ='Asset data'!A77 -> 5 | B77: ='Asset data'!B77 -> 0 | C77: ='Asset data'!C77 -> 0 | D77: ='Asset data'!E77 -> Pole Mounted ; < = 22kV ; < = 60 kVA ; Multiple Phase | E77: TRANSFORMERS | F77: =IF(A77>0,SUM('Asset data'!J77:CV77),0) -> 2 | G77: =IF(A77>0,'Asset data'!F77,0) -> 11.42646683 | H77: =IF(A77>0,SUM('Asset data'!CX77:GJ77),0) -> 22.85293365 | I77: 5.714510845e-06 | J77: 43 | K77: 2.940941454e-05 | L77: 11.42646683 | M77: =IF($A77>0,SUMPRODUCT('Age profile (years)'!$CT77:$GF77,'Asset data'!$CX77:$GJ77)/H77-0.5,0) -> 23.5 | N77: 537.0439408 | O77: =IF($A77>0,'Asset data'!G77,0) -> 63.44049468 | P77: 1449.801416 | Q77: 0.6295741369 | R77: 6.344049468 | S77: 12.68809894 | T77: 38.06429681 | U77: 50.75239574 | W77: =IF($A77>0,SUMIF('Age profile (years)'!$CT77:$GF77,"<" & R77+0.5,'Asset data'!$CX77:$GJ77),0) -> 0 | X77: =IF($A77>0,SUMIF('Age profile (years)'!$CT77:$GF77,"<" & S77+0.5,'Asset data'!$CX77:$GJ77)-W77,0) -> 0 | Y77: =IF($A77>0,SUMIF('Age profile (years)'!$CT77:$GF77,"<" & T77+0.5,'Asset data'!$CX77:$GJ77)-X77-W77,0) -> 22.85293365 | Z77: =IF($A77>0,SUMIF('Age profile (years)'!$CT77:$GF77,"<" & U77+0.5,'Asset data'!$CX77:$GJ77)-Y77-X77-W77,0) -> 0 | AA77: 0 | AB77: 0 | AC77: 0 | AD77: 1 | AE77: 0 | AF77: 0 | AI77: =IF($A77>0,'RRR hist-forc'!K77,0) -> 63.44049468 | AJ77: 1449.801416
A78: ='Asset data'!A78 -> 5 | B78: ='Asset data'!B78 -> 0 | C78: ='Asset data'!C78 -> 0 | D78: ='Asset data'!E78 -> Pole Mounted ; < = 22kV ; > 60 kVA and < = 600 kVA ; Multiple Phase | E78: TRANSFORMERS | F78: =IF(A78>0,SUM('Asset data'!J78:CV78),0) -> 804 | G78: =IF(A78>0,'Asset data'!F78,0) -> 137.8714655 | H78: =IF(A78>0,SUM('Asset data'!CX78:GJ78),0) -> 110848.6582 | I78: 0.02771836077 | J78: 8 | K78: 0.1426510132 | L78: 137.8714655 | M78: =IF($A78>0,SUMPRODUCT('Age profile (years)'!$CT78:$GF78,'Asset data'!$CX78:$GJ78)/H78-0.5,0) -> 29.16666667 | N78: 3233085.865 | O78: =IF($A78>0,'Asset data'!G78,0) -> 54.04368058 | P78: 5990669.477 | Q78: 0.4603130957 | R78: 5.404368058 | S78: 10.80873612 | T78: 32.42620835 | U78: 43.23494446 | W78: =IF($A78>0,SUMIF('Age profile (years)'!$CT78:$GF78,"<" & R78+0.5,'Asset data'!$CX78:$GJ78),0) -> 7720.802065 | X78: =IF($A78>0,SUMIF('Age profile (years)'!$CT78:$GF78,"<" & S78+0.5,'Asset data'!$CX78:$GJ78)-W78,0) -> 18612.64784 | Y78: =IF($A78>0,SUMIF('Age profile (years)'!$CT78:$GF78,"<" & T78+0.5,'Asset data'!$CX78:$GJ78)-X78-W78,0) -> 30331.7224 | Z78: =IF($A78>0,SUMIF('Age profile (years)'!$CT78:$GF78,"<" & U78+0.5,'Asset data'!$CX78:$GJ78)-Y78-X78-W78,0) -> 18336.90491 | AA78: 35846.58102 | AB78: 0.06965174129 | AC78: 0.1679104478 | AD78: 0.2736318408 | AE78: 0.1654228856 | AF78: 0.3233830846 | AI78: =IF($A78>0,'RRR hist-forc'!K78,0) -> 54.04368058 | AJ78: 5990669.477
A79: ='Asset data'!A79 -> 0 | B79: ='Asset data'!B79 -> 0 | C79: ='Asset data'!C79 -> 0 | D79: ='Asset data'!E79 -> Pole Mounted ; < = 22kV ; > 600 kVA ; Multiple Phase | E79: 0 | F79: =IF(A79>0,SUM('Asset data'!J79:CV79),0) -> 0 | G79: =IF(A79>0,'Asset data'!F79,0) -> 0 | H79: =IF(A79>0,SUM('Asset data'!CX79:GJ79),0) -> 0 | I79: 0 | J79: 0 | K79: 0 | L79: 0 | M79: =IF($A79>0,SUMPRODUCT('Age profile (years)'!$CT79:$GF79,'Asset data'!$CX79:$GJ79)/H79-0.5,0) -> 0 | N79: 0 | O79: =IF($A79>0,'Asset data'!G79,0) -> 0 | P79: 0 | Q79: 0 | R79: 0 | S79: 0 | T79: 0 | U79: 0 | W79: =IF($A79>0,SUMIF('Age profile (years)'!$CT79:$GF79,"<" & R79+0.5,'Asset data'!$CX79:$GJ79),0) -> 0 | X79: =IF($A79>0,SUMIF('Age profile (years)'!$CT79:$GF79,"<" & S79+0.5,'Asset data'!$CX79:$GJ79)-W79,0) -> 0 | Y79: =IF($A79>0,SUMIF('Age profile (years)'!$CT79:$GF79,"<" & T79+0.5,'Asset data'!$CX79:$GJ79)-X79-W79,0) -> 0 | Z79: =IF($A79>0,SUMIF('Age profile (years)'!$CT79:$GF79,"<" & U79+0.5,'Asset data'!$CX79:$GJ79)-Y79-X79-W79,0) -> 0 | AA79: 0 | AB79: 0 | AC79: 0 | AD79: 0 | AE79: 0 | AF79: 0 | AI79: =IF($A79>0,'RRR hist-forc'!K79,0) -> 0 | AJ79: 0
A80: ='Asset data'!A80 -> 0 | B80: ='Asset data'!B80 -> 0 | C80: ='Asset data'!C80 -> 0 | D80: ='Asset data'!E80 -> Kiosk Mounted ; < = 22kV ; < = 60 kVA ; Single Phase | E80: 0 | F80: =IF(A80>0,SUM('Asset data'!J80:CV80),0) -> 0 | G80: =IF(A80>0,'Asset data'!F80,0) -> 0 | H80: =IF(A80>0,SUM('Asset data'!CX80:GJ80),0) -> 0 | I80: 0 | J80: 0 | K80: 0 | L80: 0 | M80: =IF($A80>0,SUMPRODUCT('Age profile (years)'!$CT80:$GF80,'Asset data'!$CX80:$GJ80)/H80-0.5,0) -> 0 | N80: 0 | O80: =IF($A80>0,'Asset data'!G80,0) -> 0 | P80: 0 | Q80: 0 | R80: 0 | S80: 0 | T80: 0 | U80: 0 | W80: =IF($A80>0,SUMIF('Age profile (years)'!$CT80:$GF80,"<" & R80+0.5,'Asset data'!$CX80:$GJ80),0) -> 0 | X80: =IF($A80>0,SUMIF('Age profile (years)'!$CT80:$GF80,"<" & S80+0.5,'Asset data'!$CX80:$GJ80)-W80,0) -> 0 | Y80: =IF($A80>0,SUMIF('Age profile (years)'!$CT80:$GF80,"<" & T80+0.5,'Asset data'!$CX80:$GJ80)-X80-W80,0) -> 0 | Z80: =IF($A80>0,SUMIF('Age profile (years)'!$CT80:$GF80,"<" & U80+0.5,'Asset data'!$CX80:$GJ80)-Y80-X80-W80,0) -> 0 | AA80: 0 | AB80: 0 | AC80: 0 | AD80: 0 | AE80: 0 | AF80: 0 | AI80: =IF($A80>0,'RRR hist-forc'!K80,0) -> 0 | AJ80: 0
A81: ='Asset data'!A81 -> 0 | B81: ='Asset data'!B81 -> 0 | C81: ='Asset data'!C81 -> 0 | D81: ='Asset data'!E81 -> Kiosk Mounted ; < = 22kV ; > 60 kVA and < = 600 kVA ; Single Phase | E81: 0 | F81: =IF(A81>0,SUM('Asset data'!J81:CV81),0) -> 0 | G81: =IF(A81>0,'Asset data'!F81,0) -> 0 | H81: =IF(A81>0,SUM('Asset data'!CX81:GJ81),0) -> 0 | I81: 0 | J81: 0 | K81: 0 | L81: 0 | M81: =IF($A81>0,SUMPRODUCT('Age profile (years)'!$CT81:$GF81,'Asset data'!$CX81:$GJ81)/H81-0.5,0) -> 0 | N81: 0 | O81: =IF($A81>0,'Asset data'!G81,0) -> 0 | P81: 0 | Q81: 0 | R81: 0 | S81: 0 | T81: 0 | U81: 0 | W81: =IF($A81>0,SUMIF('Age profile (years)'!$CT81:$GF81,"<" & R81+0.5,'Asset data'!$CX81:$GJ81),0) -> 0 | X81: =IF($A81>0,SUMIF('Age profile (years)'!$CT81:$GF81,"<" & S81+0.5,'Asset data'!$CX81:$GJ81)-W81,0) -> 0 | Y81: =IF($A81>0,SUMIF('Age profile (years)'!$CT81:$GF81,"<" & T81+0.5,'Asset data'!$CX81:$GJ81)-X81-W81,0) -> 0 | Z81: =IF($A81>0,SUMIF('Age profile (years)'!$CT81:$GF81,"<" & U81+0.5,'Asset data'!$CX81:$GJ81)-Y81-X81-W81,0) -> 0 | AA81: 0 | AB81: 0 | AC81: 0 | AD81: 0 | AE81: 0 | AF81: 0 | AI81: =IF($A81>0,'RRR hist-forc'!K81,0) -> 0 | AJ81: 0
A82: ='Asset data'!A82 -> 0 | B82: ='Asset data'!B82 -> 0 | C82: ='Asset data'!C82 -> 0 | D82: ='Asset data'!E82 -> Kiosk Mounted ; < = 22kV ; > 600 kVA ; Single Phase | E82: 0 | F82: =IF(A82>0,SUM('Asset data'!J82:CV82),0) -> 0 | G82: =IF(A82>0,'Asset data'!F82,0) -> 0 | H82: =IF(A82>0,SUM('Asset data'!CX82:GJ82),0) -> 0 | I82: 0 | J82: 0 | K82: 0 | L82: 0 | M82: =IF($A82>0,SUMPRODUCT('Age profile (years)'!$CT82:$GF82,'Asset data'!$CX82:$GJ82)/H82-0.5,0) -> 0 | N82: 0 | O82: =IF($A82>0,'Asset data'!G82,0) -> 0 | P82: 0 | Q82: 0 | R82: 0 | S82: 0 | T82: 0 | U82: 0 | W82: =IF($A82>0,SUMIF('Age profile (years)'!$CT82:$GF82,"<" & R82+0.5,'Asset data'!$CX82:$GJ82),0) -> 0 | X82: =IF($A82>0,SUMIF('Age profile (years)'!$CT82:$GF82,"<" & S82+0.5,'Asset data'!$CX82:$GJ82)-W82,0) -> 0 | Y82: =IF($A82>0,SUMIF('Age profile (years)'!$CT82:$GF82,"<" & T82+0.5,'Asset data'!$CX82:$GJ82)-X82-W82,0) -> 0 | Z82: =IF($A82>0,SUMIF('Age profile (years)'!$CT82:$GF82,"<" & U82+0.5,'Asset data'!$CX82:$GJ82)-Y82-X82-W82,0) -> 0 | AA82: 0 | AB82: 0 | AC82: 0 | AD82: 0 | AE82: 0 | AF82: 0 | AI82: =IF($A82>0,'RRR hist-forc'!K82,0) -> 0 | AJ82: 0
A83: ='Asset data'!A83 -> 0 | B83: ='Asset data'!B83 -> 0 | C83: ='Asset data'!C83 -> 0 | D83: ='Asset data'!E83 -> Kiosk Mounted ; < = 22kV ; < = 60 kVA ; Multiple Phase | E83: 0 | F83: =IF(A83>0,SUM('Asset data'!J83:CV83),0) -> 0 | G83: =IF(A83>0,'Asset data'!F83,0) -> 0 | H83: =IF(A83>0,SUM('Asset data'!CX83:GJ83),0) -> 0 | I83: 0 | J83: 0 | K83: 0 | L83: 0 | M83: =IF($A83>0,SUMPRODUCT('Age profile (years)'!$CT83:$GF83,'Asset data'!$CX83:$GJ83)/H83-0.5,0) -> 0 | N83: 0 | O83: =IF($A83>0,'Asset data'!G83,0) -> 0 | P83: 0 | Q83: 0 | R83: 0 | S83: 0 | T83: 0 | U83: 0 | W83: =IF($A83>0,SUMIF('Age profile (years)'!$CT83:$GF83,"<" & R83+0.5,'Asset data'!$CX83:$GJ83),0) -> 0 | X83: =IF($A83>0,SUMIF('Age profile (years)'!$CT83:$GF83,"<" & S83+0.5,'Asset data'!$CX83:$GJ83)-W83,0) -> 0 | Y83: =IF($A83>0,SUMIF('Age profile (years)'!$CT83:$GF83,"<" & T83+0.5,'Asset data'!$CX83:$GJ83)-X83-W83,0) -> 0 | Z83: =IF($A83>0,SUMIF('Age profile (years)'!$CT83:$GF83,"<" & U83+0.5,'Asset data'!$CX83:$GJ83)-Y83-X83-W83,0) -> 0 | AA83: 0 | AB83: 0 | AC83: 0 | AD83: 0 | AE83: 0 | AF83: 0 | AI83: =IF($A83>0,'RRR hist-forc'!K83,0) -> 0 | AJ83: 0
A84: ='Asset data'!A84 -> 5 | B84: ='Asset data'!B84 -> 0 | C84: ='Asset data'!C84 -> 0 | D84: ='Asset data'!E84 -> Kiosk Mounted ; < = 22kV ; > 60 kVA and < = 600 kVA ; Multiple Phase | E84: TRANSFORMERS | F84: =IF(A84>0,SUM('Asset data'!J84:CV84),0) -> 211 | G84: =IF(A84>0,'Asset data'!F84,0) -> 61.5220472 | H84: =IF(A84>0,SUM('Asset data'!CX84:GJ84),0) -> 12981.15196 | I84: 0.00324601361 | J84: 23 | K84: 0.01670542981 | L84: 61.5220472 | M84: =IF($A84>0,SUMPRODUCT('Age profile (years)'!$CT84:$GF84,'Asset data'!$CX84:$GJ84)/H84-0.5,0) -> 33.26303318 | N84: 431792.4883 | O84: =IF($A84>0,'Asset data'!G84,0) -> 57.54505499 | P84: 747001.1033 | Q84: 0.4219653942 | R84: 5.754505499 | S84: 11.509011 | T84: 34.52703299 | U84: 46.03604399 | W84: =IF($A84>0,SUMIF('Age profile (years)'!$CT84:$GF84,"<" & R84+0.5,'Asset data'!$CX84:$GJ84),0) -> 0 | X84: =IF($A84>0,SUMIF('Age profile (years)'!$CT84:$GF84,"<" & S84+0.5,'Asset data'!$CX84:$GJ84)-W84,0) -> 2153.271652 | Y84: =IF($A84>0,SUMIF('Age profile (years)'!$CT84:$GF84,"<" & T84+0.5,'Asset data'!$CX84:$GJ84)-X84-W84,0) -> 4245.021257 | Z84: =IF($A84>0,SUMIF('Age profile (years)'!$CT84:$GF84,"<" & U84+0.5,'Asset data'!$CX84:$GJ84)-Y84-X84-W84,0) -> 2091.749605 | AA84: 4491.109446 | AB84: 0 | AC84: 0.1658767773 | AD84: 0.327014218 | AE84: 0.1611374408 | AF84: 0.345971564 | AI84: =IF($A84>0,'RRR hist-forc'!K84,0) -> 57.54505499 | AJ84: 747001.1033
A85: ='Asset data'!A85 -> 5 | B85: ='Asset data'!B85 -> 0 | C85: ='Asset data'!C85 -> 0 | D85: ='Asset data'!E85 -> Kiosk Mounted ; < = 22kV ; > 600 kVA ; Multiple Phase | E85: TRANSFORMERS | F85: =IF(A85>0,SUM('Asset data'!J85:CV85),0) -> 179 | G85: =IF(A85>0,'Asset data'!F85,0) -> 251.806719 | H85: =IF(A85>0,SUM('Asset data'!CX85:GJ85),0) -> 45073.40271 | I85: 0.01127087019 | J85: 16 | K85: 0.05800491109 | L85: 251.806719 | M85: =IF($A85>0,SUMPRODUCT('Age profile (years)'!$CT85:$GF85,'Asset data'!$CX85:$GJ85)/H85-0.5,0) -> 38.43854749 | N85: 1732556.13 | O85: =IF($A85>0,'Asset data'!G85,0) -> 62.82565495 | P85: 2831766.046 | Q85: 0.3881711616 | R85: 6.282565495 | S85: 12.56513099 | T85: 37.69539297 | U85: 50.26052396 | W85: =IF($A85>0,SUMIF('Age profile (years)'!$CT85:$GF85,"<" & R85+0.5,'Asset data'!$CX85:$GJ85),0) -> 0 | X85: =IF($A85>0,SUMIF('Age profile (years)'!$CT85:$GF85,"<" & S85+0.5,'Asset data'!$CX85:$GJ85)-W85,0) -> 1259.033595 | Y85: =IF($A85>0,SUMIF('Age profile (years)'!$CT85:$GF85,"<" & T85+0.5,'Asset data'!$CX85:$GJ85)-X85-W85,0) -> 19892.7308 | Z85: =IF($A85>0,SUMIF('Age profile (years)'!$CT85:$GF85,"<" & U85+0.5,'Asset data'!$CX85:$GJ85)-Y85-X85-W85,0) -> 6798.781414 | AA85: 17122.85689 | AB85: 0 | AC85: 0.02793296089 | AD85: 0.4413407821 | AE85: 0.1508379888 | AF85: 0.3798882682 | AI85: =IF($A85>0,'RRR hist-forc'!K85,0) -> 62.82565495 | AJ85: 2831766.046
A86: ='Asset data'!A86 -> 0 | B86: ='Asset data'!B86 -> 0 | C86: ='Asset data'!C86 -> 0 | D86: ='Asset data'!E86 -> Ground Outdoor / Indoor Chamber Mounted; ˂ 22 kV ; < = 60 kVA ; Single Phase | E86: 0 | F86: =IF(A86>0,SUM('Asset data'!J86:CV86),0) -> 0 | G86: =IF(A86>0,'Asset data'!F86,0) -> 0 | H86: =IF(A86>0,SUM('Asset data'!CX86:GJ86),0) -> 0 | I86: 0 | J86: 0 | K86: 0 | L86: 0 | M86: =IF($A86>0,SUMPRODUCT('Age profile (years)'!$CT86:$GF86,'Asset data'!$CX86:$GJ86)/H86-0.5,0) -> 0 | N86: 0 | O86: =IF($A86>0,'Asset data'!G86,0) -> 0 | P86: 0 | Q86: 0 | R86: 0 | S86: 0 | T86: 0 | U86: 0 | W86: =IF($A86>0,SUMIF('Age profile (years)'!$CT86:$GF86,"<" & R86+0.5,'Asset data'!$CX86:$GJ86),0) -> 0 | X86: =IF($A86>0,SUMIF('Age profile (years)'!$CT86:$GF86,"<" & S86+0.5,'Asset data'!$CX86:$GJ86)-W86,0) -> 0 | Y86: =IF($A86>0,SUMIF('Age profile (years)'!$CT86:$GF86,"<" & T86+0.5,'Asset data'!$CX86:$GJ86)-X86-W86,0) -> 0 | Z86: =IF($A86>0,SUMIF('Age profile (years)'!$CT86:$GF86,"<" & U86+0.5,'Asset data'!$CX86:$GJ86)-Y86-X86-W86,0) -> 0 | AA86: 0 | AB86: 0 | AC86: 0 | AD86: 0 | AE86: 0 | AF86: 0 | AI86: =IF($A86>0,'RRR hist-forc'!K86,0) -> 0 | AJ86: 0
A87: ='Asset data'!A87 -> 0 | B87: ='Asset data'!B87 -> 0 | C87: ='Asset data'!C87 -> 0 | D87: ='Asset data'!E87 -> Ground Outdoor / Indoor Chamber Mounted; ˂ 22 kV ; > 60 kVA and < = 600 kVA ; Single Phase | E87: =IF(A87>0,VLOOKUP(A87,IDtable,2),0) -> 0 | F87: =IF(A87>0,SUM('Asset data'!J87:CV87),0) -> 0 | G87: =IF(A87>0,'Asset data'!F87,0) -> 0 | H87: =IF(A87>0,SUM('Asset data'!CX87:GJ87),0) -> 0 | I87: =H87/$H$18/1000 -> 0 | J87: =IF(RANK(0,I$21:I$205)=RANK(I87,I$21:I$205),0,RANK(I87,I$21:I$205)) -> 0 | K87: =IF(A87>0,H87/(VLOOKUP(A87,$A$6:$H$17,8)*1000),0) -> 0 | L87: =IF($A87>0,H87/F87,0) -> 0 | M87: =IF($A87>0,SUMPRODUCT('Age profile (years)'!$CT87:$GF87,'Asset data'!$CX87:$GJ87)/H87-0.5,0) -> 0 | N87: =IF($A87>0,M87*H87,0) -> 0 | O87: =IF($A87>0,'Asset data'!G87,0) -> 0 | P87: =IF($A87>0,H87*O87,0) -> 0 | Q87: =IF($A87>0,(O87-M87)/O87,0) -> 0 | R87: 0 | S87: 0 | T87: 0 | U87: 0 | W87: =IF($A87>0,SUMIF('Age profile (years)'!$CT87:$GF87,"<" & R87+0.5,'Asset data'!$CX87:$GJ87),0) -> 0 | X87: =IF($A87>0,SUMIF('Age profile (years)'!$CT87:$GF87,"<" & S87+0.5,'Asset data'!$CX87:$GJ87)-W87,0) -> 0 | Y87: =IF($A87>0,SUMIF('Age profile (years)'!$CT87:$GF87,"<" & T87+0.5,'Asset data'!$CX87:$GJ87)-X87-W87,0) -> 0 | Z87: =IF($A87>0,SUMIF('Age profile (years)'!$CT87:$GF87,"<" & U87+0.5,'Asset data'!$CX87:$GJ87)-Y87-X87-W87,0) -> 0 | AA87: =IF($A87>0,H87-Z87-Y87-X87-W87,0) -> 0 | AB87: =IF($A87>0,W87/$H87,0) -> 0 | AC87: =IF($A87>0,X87/$H87,0) -> 0 | AD87: =IF($A87>0,Y87/$H87,0) -> 0 | AE87: =IF($A87>0,Z87/$H87,0) -> 0 | AF87: =IF($A87>0,AA87/$H87,0) -> 0 | AI87: =IF($A87>0,'RRR hist-forc'!K87,0) -> 0 | AJ87: =IF($A87>0,AI87*H87,0) -> 0
A88: ='Asset data'!A88 -> 0 | B88: ='Asset data'!B88 -> 0 | C88: ='Asset data'!C88 -> 0 | D88: ='Asset data'!E88 -> Ground Outdoor / Indoor Chamber Mounted; ˂ 22 kV ; > 600 kVA ; Single Phase | E88: 0 | F88: =IF(A88>0,SUM('Asset data'!J88:CV88),0) -> 0 | G88: =IF(A88>0,'Asset data'!F88,0) -> 0 | H88: =IF(A88>0,SUM('Asset data'!CX88:GJ88),0) -> 0 | I88: 0 | J88: 0 | K88: 0 | L88: 0 | M88: =IF($A88>0,SUMPRODUCT('Age profile (years)'!$CT88:$GF88,'Asset data'!$CX88:$GJ88)/H88-0.5,0) -> 0 | N88: 0 | O88: =IF($A88>0,'Asset data'!G88,0) -> 0 | P88: 0 | Q88: 0 | R88: 0 | S88: 0 | T88: 0 | U88: 0 | W88: =IF($A88>0,SUMIF('Age profile (years)'!$CT88:$GF88,"<" & R88+0.5,'Asset data'!$CX88:$GJ88),0) -> 0 | X88: =IF($A88>0,SUMIF('Age profile (years)'!$CT88:$GF88,"<" & S88+0.5,'Asset data'!$CX88:$GJ88)-W88,0) -> 0 | Y88: =IF($A88>0,SUMIF('Age profile (years)'!$CT88:$GF88,"<" & T88+0.5,'Asset data'!$CX88:$GJ88)-X88-W88,0) -> 0 | Z88: =IF($A88>0,SUMIF('Age profile (years)'!$CT88:$GF88,"<" & U88+0.5,'Asset data'!$CX88:$GJ88)-Y88-X88-W88,0) -> 0 | AA88: 0 | AB88: 0 | AC88: 0 | AD88: 0 | AE88: 0 | AF88: 0 | AI88: =IF($A88>0,'RRR hist-forc'!K88,0) -> 0 | AJ88: 0
A89: ='Asset data'!A89 -> 5 | B89: ='Asset data'!B89 -> 0 | C89: ='Asset data'!C89 -> 0 | D89: ='Asset data'!E89 -> Ground Outdoor / Indoor Chamber Mounted; ˂ 22 kV ; < = 60 kVA ; Multiple Phase | E89: TRANSFORMERS | F89: =IF(A89>0,SUM('Asset data'!J89:CV89),0) -> 3 | G89: =IF(A89>0,'Asset data'!F89,0) -> 108.9735123 | H89: =IF(A89>0,SUM('Asset data'!CX89:GJ89),0) -> 326.9205368 | I89: 8.174840839e-05 | J89: 38 | K89: 0.00042071367 | L89: 108.9735123 | M89: =IF($A89>0,SUMPRODUCT('Age profile (years)'!$CT89:$GF89,'Asset data'!$CX89:$GJ89)/H89-0.5,0) -> 36.5 | N89: 11932.59959 | O89: =IF($A89>0,'Asset data'!G89,0) -> 63.44049468 | P89: 20740.00058 | Q89: 0.4246577019 | R89: 6.344049468 | S89: 12.68809894 | T89: 38.06429681 | U89: 50.75239574 | W89: =IF($A89>0,SUMIF('Age profile (years)'!$CT89:$GF89,"<" & R89+0.5,'Asset data'!$CX89:$GJ89),0) -> 0 | X89: =IF($A89>0,SUMIF('Age profile (years)'!$CT89:$GF89,"<" & S89+0.5,'Asset data'!$CX89:$GJ89)-W89,0) -> 0 | Y89: =IF($A89>0,SUMIF('Age profile (years)'!$CT89:$GF89,"<" & T89+0.5,'Asset data'!$CX89:$GJ89)-X89-W89,0) -> 217.9470245 | Z89: =IF($A89>0,SUMIF('Age profile (years)'!$CT89:$GF89,"<" & U89+0.5,'Asset data'!$CX89:$GJ89)-Y89-X89-W89,0) -> 0 | AA89: 108.9735123 | AB89: 0 | AC89: 0 | AD89: 0.6666666667 | AE89: 0 | AF89: 0.3333333333 | AI89: =IF($A89>0,'RRR hist-forc'!K89,0) -> 63.44049468 | AJ89: 20740.00058
A90: ='Asset data'!A90 -> 5 | B90: ='Asset data'!B90 -> 0 | C90: ='Asset data'!C90 -> 0 | D90: ='Asset data'!E90 -> Ground Outdoor / Indoor Chamber Mounted; ˂ 22 kV ; > 60 kVA and < = 600 kVA ; Multiple Phase | E90: TRANSFORMERS | F90: =IF(A90>0,SUM('Asset data'!J90:CV90),0) -> 1277 | G90: =IF(A90>0,'Asset data'!F90,0) -> 123.6433539 | H90: =IF(A90>0,SUM('Asset data'!CX90:GJ90),0) -> 157892.563 | I90: 0.03948196661 | J90: 5 | K90: 0.2031917612 | L90: 123.6433539 | M90: =IF($A90>0,SUMPRODUCT('Age profile (years)'!$CT90:$GF90,'Asset data'!$CX90:$GJ90)/H90-0.5,0) -> 42.76076742 | N90: 6751607.163 | O90: =IF($A90>0,'Asset data'!G90,0) -> 68.06348434 | P90: 10746717.99 | Q90: 0.3717517133 | R90: 6.806348434 | S90: 13.61269687 | T90: 40.8380906 | U90: 54.45078747 | W90: =IF($A90>0,SUMIF('Age profile (years)'!$CT90:$GF90,"<" & R90+0.5,'Asset data'!$CX90:$GJ90),0) -> 370.9300618 | X90: =IF($A90>0,SUMIF('Age profile (years)'!$CT90:$GF90,"<" & S90+0.5,'Asset data'!$CX90:$GJ90)-W90,0) -> 247.2867078 | Y90: =IF($A90>0,SUMIF('Age profile (years)'!$CT90:$GF90,"<" & T90+0.5,'Asset data'!$CX90:$GJ90)-X90-W90,0) -> 73320.50888 | Z90: =IF($A90>0,SUMIF('Age profile (years)'!$CT90:$GF90,"<" & U90+0.5,'Asset data'!$CX90:$GJ90)-Y90-X90-W90,0) -> 24234.09737 | AA90: 59719.73994 | AB90: 0.002349256069 | AC90: 0.001566170713 | AD90: 0.4643696163 | AE90: 0.1534847298 | AF90: 0.3782302271 | AI90: =IF($A90>0,'RRR hist-forc'!K90,0) -> 68.06348434 | AJ90: 10746717.99
A91: ='Asset data'!A91 -> 5 | B91: ='Asset data'!B91 -> 0 | C91: ='Asset data'!C91 -> 0 | D91: ='Asset data'!E91 -> Ground Outdoor / Indoor Chamber Mounted; ˂ 22 kV ; > 600 kVA ; Multiple Phase | E91: TRANSFORMERS | F91: =IF(A91>0,SUM('Asset data'!J91:CV91),0) -> 2180 | G91: =IF(A91>0,'Asset data'!F91,0) -> 151.4138653 | H91: =IF(A91>0,SUM('Asset data'!CX91:GJ91),0) -> 330082.2264 | I91: 0.08253900751 | J91: 3 | K91: 0.4247824447 | L91: 151.4138653 | M91: =IF($A91>0,SUMPRODUCT('Age profile (years)'!$CT91:$GF91,'Asset data'!$CX91:$GJ91)/H91-0.5,0) -> 40.10642202 | N91: 13238417.07 | O91: =IF($A91>0,'Asset data'!G91,0) -> 64.63180611 | P91: 21333810.46 | Q91: 0.3794630782 | R91: 6.463180611 | S91: 12.92636122 | T91: 38.77908367 | U91: 51.70544489 | W91: =IF($A91>0,SUMIF('Age profile (years)'!$CT91:$GF91,"<" & R91+0.5,'Asset data'!$CX91:$GJ91),0) -> 454.2415959 | X91: =IF($A91>0,SUMIF('Age profile (years)'!$CT91:$GF91,"<" & S91+0.5,'Asset data'!$CX91:$GJ91)-W91,0) -> 1362.724788 | Y91: =IF($A91>0,SUMIF('Age profile (years)'!$CT91:$GF91,"<" & T91+0.5,'Asset data'!$CX91:$GJ91)-X91-W91,0) -> 152928.004 | Z91: =IF($A91>0,SUMIF('Age profile (years)'!$CT91:$GF91,"<" & U91+0.5,'Asset data'!$CX91:$GJ91)-Y91-X91-W91,0) -> 54357.57764 | AA91: 120979.6784 | AB91: 0.001376146789 | AC91: 0.004128440367 | AD91: 0.4633027523 | AE91: 0.1646788991 | AF91: 0.3665137615 | AI91: =IF($A91>0,'RRR hist-forc'!K91,0) -> 64.63180611 | AJ91: 21333810.46
A92: ='Asset data'!A92 -> 5 | B92: ='Asset data'!B92 -> 0 | C92: ='Asset data'!C92 -> 0 | D92: ='Asset data'!E92 -> Ground Outdoor / Indoor Chamber Mounted; > = 22 kV & < = 33 kV ; < = 15 MVA | E92: TRANSFORMERS | F92: =IF(A92>0,SUM('Asset data'!J92:CV92),0) -> 33 | G92: =IF(A92>0,'Asset data'!F92,0) -> 373.0151742 | H92: =IF(A92>0,SUM('Asset data'!CX92:GJ92),0) -> 12309.50075 | I92: 0.003078063263 | J92: 24 | K92: 0.01584108263 | L92: 373.0151742 | M92: =IF($A92>0,SUMPRODUCT('Age profile (years)'!$CT92:$GF92,'Asset data'!$CX92:$GJ92)/H92-0.5,0) -> 9.651515152 | N92: 118805.333 | O92: =IF($A92>0,'Asset data'!G92,0) -> 63.44049468 | P92: 780920.8168 | Q92: 0.847865071 | R92: 6.344049468 | S92: 12.68809894 | T92: 38.06429681 | U92: 50.75239574 | W92: =IF($A92>0,SUMIF('Age profile (years)'!$CT92:$GF92,"<" & R92+0.5,'Asset data'!$CX92:$GJ92),0) -> 5968.242787 | X92: =IF($A92>0,SUMIF('Age profile (years)'!$CT92:$GF92,"<" & S92+0.5,'Asset data'!$CX92:$GJ92)-W92,0) -> 2984.121394 | Y92: =IF($A92>0,SUMIF('Age profile (years)'!$CT92:$GF92,"<" & T92+0.5,'Asset data'!$CX92:$GJ92)-X92-W92,0) -> 2238.091045 | Z92: =IF($A92>0,SUMIF('Age profile (years)'!$CT92:$GF92,"<" & U92+0.5,'Asset data'!$CX92:$GJ92)-Y92-X92-W92,0) -> 0 | AA92: 1119.045523 | AB92: 0.4848484848 | AC92: 0.2424242424 | AD92: 0.1818181818 | AE92: 0 | AF92: 0.09090909091 | AI92: =IF($A92>0,'RRR hist-forc'!K92,0) -> 63.44049468 | AJ92: 780920.8168
A93: ='Asset data'!A93 -> 0 | B93: ='Asset data'!B93 -> 0 | C93: ='Asset data'!C93 -> 0 | D93: ='Asset data'!E93 -> Ground Outdoor / Indoor Chamber Mounted; > = 22 kV & < = 33 kV ; > 15 MVA and < = 40 MVA | E93: 0 | F93: =IF(A93>0,SUM('Asset data'!J93:CV93),0) -> 0 | G93: =IF(A93>0,'Asset data'!F93,0) -> 0 | H93: =IF(A93>0,SUM('Asset data'!CX93:GJ93),0) -> 0 | I93: 0 | J93: 0 | K93: 0 | L93: 0 | M93: =IF($A93>0,SUMPRODUCT('Age profile (years)'!$CT93:$GF93,'Asset data'!$CX93:$GJ93)/H93-0.5,0) -> 0 | N93: 0 | O93: =IF($A93>0,'Asset data'!G93,0) -> 0 | P93: 0 | Q93: 0 | R93: 0 | S93: 0 | T93: 0 | U93: 0 | W93: =IF($A93>0,SUMIF('Age profile (years)'!$CT93:$GF93,"<" & R93+0.5,'Asset data'!$CX93:$GJ93),0) -> 0 | X93: =IF($A93>0,SUMIF('Age profile (years)'!$CT93:$GF93,"<" & S93+0.5,'Asset data'!$CX93:$GJ93)-W93,0) -> 0 | Y93: =IF($A93>0,SUMIF('Age profile (years)'!$CT93:$GF93,"<" & T93+0.5,'Asset data'!$CX93:$GJ93)-X93-W93,0) -> 0 | Z93: =IF($A93>0,SUMIF('Age profile (years)'!$CT93:$GF93,"<" & U93+0.5,'Asset data'!$CX93:$GJ93)-Y93-X93-W93,0) -> 0 | AA93: 0 | AB93: 0 | AC93: 0 | AD93: 0 | AE93: 0 | AF93: 0 | AI93: =IF($A93>0,'RRR hist-forc'!K93,0) -> 0 | AJ93: 0
A94: ='Asset data'!A94 -> 0 | B94: ='Asset data'!B94 -> 0 | C94: ='Asset data'!C94 -> 0 | D94: ='Asset data'!E94 -> Ground Outdoor / Indoor Chamber Mounted; > = 22 kV & < = 33 kV ; > 40 MVA | E94: 0 | F94: =IF(A94>0,SUM('Asset data'!J94:CV94),0) -> 0 | G94: =IF(A94>0,'Asset data'!F94,0) -> 0 | H94: =IF(A94>0,SUM('Asset data'!CX94:GJ94),0) -> 0 | I94: 0 | J94: 0 | K94: 0 | L94: 0 | M94: =IF($A94>0,SUMPRODUCT('Age profile (years)'!$CT94:$GF94,'Asset data'!$CX94:$GJ94)/H94-0.5,0) -> 0 | N94: 0 | O94: =IF($A94>0,'Asset data'!G94,0) -> 0 | P94: 0 | Q94: 0 | R94: 0 | S94: 0 | T94: 0 | U94: 0 | W94: =IF($A94>0,SUMIF('Age profile (years)'!$CT94:$GF94,"<" & R94+0.5,'Asset data'!$CX94:$GJ94),0) -> 0 | X94: =IF($A94>0,SUMIF('Age profile (years)'!$CT94:$GF94,"<" & S94+0.5,'Asset data'!$CX94:$GJ94)-W94,0) -> 0 | Y94: =IF($A94>0,SUMIF('Age profile (years)'!$CT94:$GF94,"<" & T94+0.5,'Asset data'!$CX94:$GJ94)-X94-W94,0) -> 0 | Z94: =IF($A94>0,SUMIF('Age profile (years)'!$CT94:$GF94,"<" & U94+0.5,'Asset data'!$CX94:$GJ94)-Y94-X94-W94,0) -> 0 | AA94: 0 | AB94: 0 | AC94: 0 | AD94: 0 | AE94: 0 | AF94: 0 | AI94: =IF($A94>0,'RRR hist-forc'!K94,0) -> 0 | AJ94: 0
A95: ='Asset data'!A95 -> 5 | B95: ='Asset data'!B95 -> 0 | C95: ='Asset data'!C95 -> 0 | D95: ='Asset data'!E95 -> Ground Outdoor / Indoor Chamber Mounted; > 33 kV & < = 66 kV ; < = 15 MVA | E95: TRANSFORMERS | F95: =IF(A95>0,SUM('Asset data'!J95:CV95),0) -> 5 | G95: =IF(A95>0,'Asset data'!F95,0) -> 1424.416289 | H95: =IF(A95>0,SUM('Asset data'!CX95:GJ95),0) -> 7122.081444 | I95: 0.001780918471 | J95: 29 | K95: 0.009165398576 | L95: 1424.416289 | M95: =IF($A95>0,SUMPRODUCT('Age profile (years)'!$CT95:$GF95,'Asset data'!$CX95:$GJ95)/H95-0.5,0) -> 8.3 | N95: 59113.27599 | O95: =IF($A95>0,'Asset data'!G95,0) -> 66.62781251 | P95: 474528.7071 | Q95: 0.8754273975 | R95: 6.662781251 | S95: 13.3255625 | T95: 39.9766875 | U95: 53.30225001 | W95: =IF($A95>0,SUMIF('Age profile (years)'!$CT95:$GF95,"<" & R95+0.5,'Asset data'!$CX95:$GJ95),0) -> 1424.416289 | X95: =IF($A95>0,SUMIF('Age profile (years)'!$CT95:$GF95,"<" & S95+0.5,'Asset data'!$CX95:$GJ95)-W95,0) -> 2848.832578 | Y95: =IF($A95>0,SUMIF('Age profile (years)'!$CT95:$GF95,"<" & T95+0.5,'Asset data'!$CX95:$GJ95)-X95-W95,0) -> 2848.832578 | Z95: =IF($A95>0,SUMIF('Age profile (years)'!$CT95:$GF95,"<" & U95+0.5,'Asset data'!$CX95:$GJ95)-Y95-X95-W95,0) -> 0 | AA95: 0 | AB95: 0.2 | AC95: 0.4 | AD95: 0.4 | AE95: 0 | AF95: 0 | AI95: =IF($A95>0,'RRR hist-forc'!K95,0) -> 66.62781251 | AJ95: 474528.7071
A96: ='Asset data'!A96 -> 5 | B96: ='Asset data'!B96 -> 0 | C96: ='Asset data'!C96 -> 0 | D96: ='Asset data'!E96 -> Ground Outdoor / Indoor Chamber Mounted; > 33 kV & < = 66 kV ; > 15 MVA and < = 40 MVA | E96: TRANSFORMERS | F96: =IF(A96>0,SUM('Asset data'!J96:CV96),0) -> 55 | G96: =IF(A96>0,'Asset data'!F96,0) -> 1742.501519 | H96: =IF(A96>0,SUM('Asset data'!CX96:GJ96),0) -> 95837.58357 | I96: 0.02396475302 | J96: 12 | K96: 0.1233332782 | L96: 1742.501519 | M96: =IF($A96>0,SUMPRODUCT('Age profile (years)'!$CT96:$GF96,'Asset data'!$CX96:$GJ96)/H96-0.5,0) -> 21.17272727 | N96: 2029143.019 | O96: =IF($A96>0,'Asset data'!G96,0) -> 63.44049468 | P96: 6079983.711 | Q96: 0.6662584777 | R96: 6.344049468 | S96: 12.68809894 | T96: 38.06429681 | U96: 50.75239574 | W96: =IF($A96>0,SUMIF('Age profile (years)'!$CT96:$GF96,"<" & R96+0.5,'Asset data'!$CX96:$GJ96),0) -> 0 | X96: =IF($A96>0,SUMIF('Age profile (years)'!$CT96:$GF96,"<" & S96+0.5,'Asset data'!$CX96:$GJ96)-W96,0) -> 20910.01823 | Y96: =IF($A96>0,SUMIF('Age profile (years)'!$CT96:$GF96,"<" & T96+0.5,'Asset data'!$CX96:$GJ96)-X96-W96,0) -> 60987.55318 | Z96: =IF($A96>0,SUMIF('Age profile (years)'!$CT96:$GF96,"<" & U96+0.5,'Asset data'!$CX96:$GJ96)-Y96-X96-W96,0) -> 3485.003039 | AA96: 10455.00912 | AB96: 0 | AC96: 0.2181818182 | AD96: 0.6363636364 | AE96: 0.03636363636 | AF96: 0.1090909091 | AI96: =IF($A96>0,'RRR hist-forc'!K96,0) -> 63.44049468 | AJ96: 6079983.711
A97: ='Asset data'!A97 -> 5 | B97: ='Asset data'!B97 -> 0 | C97: ='Asset data'!C97 -> 0 | D97: ='Asset data'!E97 -> Ground Outdoor / Indoor Chamber Mounted; > 33 kV & < = 66 kV ; > 40 MVA | E97: TRANSFORMERS | F97: =IF(A97>0,SUM('Asset data'!J97:CV97),0) -> 13 | G97: =IF(A97>0,'Asset data'!F97,0) -> 351.1457261 | H97: =IF(A97>0,SUM('Asset data'!CX97:GJ97),0) -> 4564.894439 | I97: 0.001141478778 | J97: 31 | K97: 0.005874557504 | L97: 351.1457261 | M97: =IF($A97>0,SUMPRODUCT('Age profile (years)'!$CT97:$GF97,'Asset data'!$CX97:$GJ97)/H97-0.5,0) -> 40.11538462 | N97: 183122.4961 | O97: =IF($A97>0,'Asset data'!G97,0) -> 63.44049468 | P97: 289599.1614 | Q97: 0.3676691076 | R97: 6.344049468 | S97: 12.68809894 | T97: 38.06429681 | U97: 50.75239574 | W97: =IF($A97>0,SUMIF('Age profile (years)'!$CT97:$GF97,"<" & R97+0.5,'Asset data'!$CX97:$GJ97),0) -> 0 | X97: =IF($A97>0,SUMIF('Age profile (years)'!$CT97:$GF97,"<" & S97+0.5,'Asset data'!$CX97:$GJ97)-W97,0) -> 0 | Y97: =IF($A97>0,SUMIF('Age profile (years)'!$CT97:$GF97,"<" & T97+0.5,'Asset data'!$CX97:$GJ97)-X97-W97,0) -> 2458.020082 | Z97: =IF($A97>0,SUMIF('Age profile (years)'!$CT97:$GF97,"<" & U97+0.5,'Asset data'!$CX97:$GJ97)-Y97-X97-W97,0) -> 351.1457261 | AA97: 1755.72863 | AB97: 0 | AC97: 0 | AD97: 0.5384615385 | AE97: 0.07692307692 | AF97: 0.3846153846 | AI97: =IF($A97>0,'RRR hist-forc'!K97,0) -> 63.44049468 | AJ97: 289599.1614
A98: ='Asset data'!A98 -> 0 | B98: ='Asset data'!B98 -> 0 | C98: ='Asset data'!C98 -> 0 | D98: ='Asset data'!E98 -> Ground Outdoor / Indoor Chamber Mounted; > 66 kV & < = 132 kV ; < = 100 MVA | E98: 0 | F98: =IF(A98>0,SUM('Asset data'!J98:CV98),0) -> 0 | G98: =IF(A98>0,'Asset data'!F98,0) -> 0 | H98: =IF(A98>0,SUM('Asset data'!CX98:GJ98),0) -> 0 | I98: 0 | J98: 0 | K98: 0 | L98: 0 | M98: =IF($A98>0,SUMPRODUCT('Age profile (years)'!$CT98:$GF98,'Asset data'!$CX98:$GJ98)/H98-0.5,0) -> 0 | N98: 0 | O98: =IF($A98>0,'Asset data'!G98,0) -> 0 | P98: 0 | Q98: 0 | R98: 0 | S98: 0 | T98: 0 | U98: 0 | W98: =IF($A98>0,SUMIF('Age profile (years)'!$CT98:$GF98,"<" & R98+0.5,'Asset data'!$CX98:$GJ98),0) -> 0 | X98: =IF($A98>0,SUMIF('Age profile (years)'!$CT98:$GF98,"<" & S98+0.5,'Asset data'!$CX98:$GJ98)-W98,0) -> 0 | Y98: =IF($A98>0,SUMIF('Age profile (years)'!$CT98:$GF98,"<" & T98+0.5,'Asset data'!$CX98:$GJ98)-X98-W98,0) -> 0 | Z98: =IF($A98>0,SUMIF('Age profile (years)'!$CT98:$GF98,"<" & U98+0.5,'Asset data'!$CX98:$GJ98)-Y98-X98-W98,0) -> 0 | AA98: 0 | AB98: 0 | AC98: 0 | AD98: 0 | AE98: 0 | AF98: 0 | AI98: =IF($A98>0,'RRR hist-forc'!K98,0) -> 0 | AJ98: 0
A99: ='Asset data'!A99 -> 0 | B99: ='Asset data'!B99 -> 0 | C99: ='Asset data'!C99 -> 0 | D99: ='Asset data'!E99 -> Ground Outdoor / Indoor Chamber Mounted; > 66 kV & < = 132 kV ; > 100 MVA | E99: 0 | F99: =IF(A99>0,SUM('Asset data'!J99:CV99),0) -> 0 | G99: =IF(A99>0,'Asset data'!F99,0) -> 0 | H99: =IF(A99>0,SUM('Asset data'!CX99:GJ99),0) -> 0 | I99: 0 | J99: 0 | K99: 0 | L99: 0 | M99: =IF($A99>0,SUMPRODUCT('Age profile (years)'!$CT99:$GF99,'Asset data'!$CX99:$GJ99)/H99-0.5,0) -> 0 | N99: 0 | O99: =IF($A99>0,'Asset data'!G99,0) -> 0 | P99: 0 | Q99: 0 | R99: 0 | S99: 0 | T99: 0 | U99: 0 | W99: =IF($A99>0,SUMIF('Age profile (years)'!$CT99:$GF99,"<" & R99+0.5,'Asset data'!$CX99:$GJ99),0) -> 0 | X99: =IF($A99>0,SUMIF('Age profile (years)'!$CT99:$GF99,"<" & S99+0.5,'Asset data'!$CX99:$GJ99)-W99,0) -> 0 | Y99: =IF($A99>0,SUMIF('Age profile (years)'!$CT99:$GF99,"<" & T99+0.5,'Asset data'!$CX99:$GJ99)-X99-W99,0) -> 0 | Z99: =IF($A99>0,SUMIF('Age profile (years)'!$CT99:$GF99,"<" & U99+0.5,'Asset data'!$CX99:$GJ99)-Y99-X99-W99,0) -> 0 | AA99: 0 | AB99: 0 | AC99: 0 | AD99: 0 | AE99: 0 | AF99: 0 | AI99: =IF($A99>0,'RRR hist-forc'!K99,0) -> 0 | AJ99: 0
A100: ='Asset data'!A100 -> 0 | B100: ='Asset data'!B100 -> 0 | C100: ='Asset data'!C100 -> 0 | D100: ='Asset data'!E100 -> Ground Outdoor / Indoor Chamber Mounted; > 132 kV ; < = 100 MVA | E100: 0 | F100: =IF(A100>0,SUM('Asset data'!J100:CV100),0) -> 0 | G100: =IF(A100>0,'Asset data'!F100,0) -> 0 | H100: =IF(A100>0,SUM('Asset data'!CX100:GJ100),0) -> 0 | I100: 0 | J100: 0 | K100: 0 | L100: 0 | M100: =IF($A100>0,SUMPRODUCT('Age profile (years)'!$CT100:$GF100,'Asset data'!$CX100:$GJ100)/H100-0.5,0) -> 0 | N100: 0 | O100: =IF($A100>0,'Asset data'!G100,0) -> 0 | P100: 0 | Q100: 0 | R100: 0 | S100: 0 | T100: 0 | U100: =IF($A100>0,$O100-U$4*$O100,0) -> 0 | W100: =IF($A100>0,SUMIF('Age profile (years)'!$CT100:$GF100,"<" & R100+0.5,'Asset data'!$CX100:$GJ100),0) -> 0 | X100: =IF($A100>0,SUMIF('Age profile (years)'!$CT100:$GF100,"<" & S100+0.5,'Asset data'!$CX100:$GJ100)-W100,0) -> 0 | Y100: =IF($A100>0,SUMIF('Age profile (years)'!$CT100:$GF100,"<" & T100+0.5,'Asset data'!$CX100:$GJ100)-X100-W100,0) -> 0 | Z100: =IF($A100>0,SUMIF('Age profile (years)'!$CT100:$GF100,"<" & U100+0.5,'Asset data'!$CX100:$GJ100)-Y100-X100-W100,0) -> 0 | AA100: 0 | AB100: 0 | AC100: 0 | AD100: 0 | AE100: 0 | AF100: 0 | AI100: =IF($A100>0,'RRR hist-forc'!K100,0) -> 0 | AJ100: 0
A101: ='Asset data'!A101 -> 0 | B101: ='Asset data'!B101 -> 0 | C101: ='Asset data'!C101 -> 0 | D101: ='Asset data'!E101 -> Ground Outdoor / Indoor Chamber Mounted; > 132 kV ; > 100 MVA | E101: 0 | F101: =IF(A101>0,SUM('Asset data'!J101:CV101),0) -> 0 | G101: =IF(A101>0,'Asset data'!F101,0) -> 0 | H101: =IF(A101>0,SUM('Asset data'!CX101:GJ101),0) -> 0 | I101: 0 | J101: 0 | K101: 0 | L101: 0 | M101: =IF($A101>0,SUMPRODUCT('Age profile (years)'!$CT101:$GF101,'Asset data'!$CX101:$GJ101)/H101-0.5,0) -> 0 | N101: 0 | O101: =IF($A101>0,'Asset data'!G101,0) -> 0 | P101: 0 | Q101: 0 | R101: 0 | S101: 0 | T101: 0 | U101: 0 | W101: =IF($A101>0,SUMIF('Age profile (years)'!$CT101:$GF101,"<" & R101+0.5,'Asset data'!$CX101:$GJ101),0) -> 0 | X101: =IF($A101>0,SUMIF('Age profile (years)'!$CT101:$GF101,"<" & S101+0.5,'Asset data'!$CX101:$GJ101)-W101,0) -> 0 | Y101: =IF($A101>0,SUMIF('Age profile (years)'!$CT101:$GF101,"<" & T101+0.5,'Asset data'!$CX101:$GJ101)-X101-W101,0) -> 0 | Z101: =IF($A101>0,SUMIF('Age profile (years)'!$CT101:$GF101,"<" & U101+0.5,'Asset data'!$CX101:$GJ101)-Y101-X101-W101,0) -> 0 | AA101: 0 | AB101: 0 | AC101: 0 | AD101: 0 | AE101: 0 | AF101: 0 | AI101: =IF($A101>0,'RRR hist-forc'!K101,0) -> 0 | AJ101: 0
A102: ='Asset data'!A102 -> 0 | B102: ='Asset data'!B102 -> 0 | C102: ='Asset data'!C102 -> 0 | D102: ='Asset data'!E102 -> Other | E102: 0 | F102: =IF(A102>0,SUM('Asset data'!J102:CV102),0) -> 0 | G102: =IF(A102>0,'Asset data'!F102,0) -> 0 | H102: =IF(A102>0,SUM('Asset data'!CX102:GJ102),0) -> 0 | I102: 0 | J102: 0 | K102: 0 | L102: 0 | M102: =IF($A102>0,SUMPRODUCT('Age profile (years)'!$CT102:$GF102,'Asset data'!$CX102:$GJ102)/H102-0.5,0) -> 0 | N102: 0 | O102: =IF($A102>0,'Asset data'!G102,0) -> 0 | P102: 0 | Q102: 0 | R102: 0 | S102: 0 | T102: 0 | U102: 0 | W102: =IF($A102>0,SUMIF('Age profile (years)'!$CT102:$GF102,"<" & R102+0.5,'Asset data'!$CX102:$GJ102),0) -> 0 | X102: =IF($A102>0,SUMIF('Age profile (years)'!$CT102:$GF102,"<" & S102+0.5,'Asset data'!$CX102:$GJ102)-W102,0) -> 0 | Y102: =IF($A102>0,SUMIF('Age profile (years)'!$CT102:$GF102,"<" & T102+0.5,'Asset data'!$CX102:$GJ102)-X102-W102,0) -> 0 | Z102: =IF($A102>0,SUMIF('Age profile (years)'!$CT102:$GF102,"<" & U102+0.5,'Asset data'!$CX102:$GJ102)-Y102-X102-W102,0) -> 0 | AA102: 0 | AB102: 0 | AC102: 0 | AD102: 0 | AE102: 0 | AF102: 0 | AI102: =IF($A102>0,'RRR hist-forc'!K102,0) -> 0 | AJ102: 0
A103: ='Asset data'!A103 -> 0 | B103: ='Asset data'!B103 -> 0 | C103: ='Asset data'!C103 -> 0 | D103: ='Asset data'!E103 -> ˂ = 11 kV ; Fuse | E103: 0 | F103: =IF(A103>0,SUM('Asset data'!J103:CV103),0) -> 0 | G103: =IF(A103>0,'Asset data'!F103,0) -> 0 | H103: =IF(A103>0,SUM('Asset data'!CX103:GJ103),0) -> 0 | I103: 0 | J103: 0 | K103: 0 | L103: 0 | M103: =IF($A103>0,SUMPRODUCT('Age profile (years)'!$CT103:$GF103,'Asset data'!$CX103:$GJ103)/H103-0.5,0) -> 0 | N103: 0 | O103: =IF($A103>0,'Asset data'!G103,0) -> 0 | P103: 0 | Q103: 0 | R103: 0 | S103: 0 | T103: 0 | U103: 0 | W103: =IF($A103>0,SUMIF('Age profile (years)'!$CT103:$GF103,"<" & R103+0.5,'Asset data'!$CX103:$GJ103),0) -> 0 | X103: =IF($A103>0,SUMIF('Age profile (years)'!$CT103:$GF103,"<" & S103+0.5,'Asset data'!$CX103:$GJ103)-W103,0) -> 0 | Y103: =IF($A103>0,SUMIF('Age profile (years)'!$CT103:$GF103,"<" & T103+0.5,'Asset data'!$CX103:$GJ103)-X103-W103,0) -> 0 | Z103: =IF($A103>0,SUMIF('Age profile (years)'!$CT103:$GF103,"<" & U103+0.5,'Asset data'!$CX103:$GJ103)-Y103-X103-W103,0) -> 0 | AA103: 0 | AB103: 0 | AC103: 0 | AD103: 0 | AE103: 0 | AF103: 0 | AI103: =IF($A103>0,'RRR hist-forc'!K103,0) -> 0 | AJ103: 0
A104: ='Asset data'!A104 -> 6 | B104: ='Asset data'!B104 -> 0 | C104: ='Asset data'!C104 -> 0 | D104: ='Asset data'!E104 -> ˂ = 11 kV ; Switch | E104: SWITCHGEAR | F104: =IF(A104>0,SUM('Asset data'!J104:CV104),0) -> 12332 | G104: =IF(A104>0,'Asset data'!F104,0) -> 48.29234369 | H104: =IF(A104>0,SUM('Asset data'!CX104:GJ104),0) -> 595541.1824 | I104: 0.1489185851 | J104: 2 | K104: 0.780040589 | L104: 48.29234369 | M104: =IF($A104>0,SUMPRODUCT('Age profile (years)'!$CT104:$GF104,'Asset data'!$CX104:$GJ104)/H104-0.5,0) -> 52.76370418 | N104: 31422958.78 | O104: =IF($A104>0,'Asset data'!G104,0) -> 90.45668295 | P104: 53870679.93 | Q104: 0.4166964511 | R104: 9.045668295 | S104: 18.09133659 | T104: 54.27400977 | U104: 72.36534636 | W104: =IF($A104>0,SUMIF('Age profile (years)'!$CT104:$GF104,"<" & R104+0.5,'Asset data'!$CX104:$GJ104),0) -> 11107.23905 | X104: =IF($A104>0,SUMIF('Age profile (years)'!$CT104:$GF104,"<" & S104+0.5,'Asset data'!$CX104:$GJ104)-W104,0) -> 17336.95139 | Y104: =IF($A104>0,SUMIF('Age profile (years)'!$CT104:$GF104,"<" & T104+0.5,'Asset data'!$CX104:$GJ104)-X104-W104,0) -> 353403.3712 | Z104: =IF($A104>0,SUMIF('Age profile (years)'!$CT104:$GF104,"<" & U104+0.5,'Asset data'!$CX104:$GJ104)-Y104-X104-W104,0) -> 56357.16509 | AA104: 157336.4558 | AB104: 0.01865066494 | AC104: 0.02911125527 | AD104: 0.5934155044 | AE104: 0.09463185209 | AF104: 0.2641907233 | AI104: =IF($A104>0,'RRR hist-forc'!K104,0) -> 90.45668295 | AJ104: 53870679.93
A105: ='Asset data'!A105 -> 6 | B105: ='Asset data'!B105 -> 0 | C105: ='Asset data'!C105 -> 0 | D105: ='Asset data'!E105 -> ˂ = 11 kV ; Circuit Breaker | E105: SWITCHGEAR | F105: =IF(A105>0,SUM('Asset data'!J105:CV105),0) -> 1130 | G105: =IF(A105>0,'Asset data'!F105,0) -> 36.04982261 | H105: =IF(A105>0,SUM('Asset data'!CX105:GJ105),0) -> 40736.29955 | I105: 0.01018635196 | J105: 17 | K105: 0.05335645633 | L105: 36.04982261 | M105: =IF($A105>0,SUMPRODUCT('Age profile (years)'!$CT105:$GF105,'Asset data'!$CX105:$GJ105)/H105-0.5,0) -> 27.21681416 | N105: 1108712.294 | O105: =IF($A105>0,'Asset data'!G105,0) -> 69.24059801 | P105: 2820605.741 | Q105: 0.6069240454 | R105: 6.924059801 | S105: 13.8481196 | T105: 41.54435881 | U105: 55.39247841 | W105: =IF($A105>0,SUMIF('Age profile (years)'!$CT105:$GF105,"<" & R105+0.5,'Asset data'!$CX105:$GJ105),0) -> 1946.690421 | X105: =IF($A105>0,SUMIF('Age profile (years)'!$CT105:$GF105,"<" & S105+0.5,'Asset data'!$CX105:$GJ105)-W105,0) -> 2018.790066 | Y105: =IF($A105>0,SUMIF('Age profile (years)'!$CT105:$GF105,"<" & T105+0.5,'Asset data'!$CX105:$GJ105)-X105-W105,0) -> 29128.25667 | Z105: =IF($A105>0,SUMIF('Age profile (years)'!$CT105:$GF105,"<" & U105+0.5,'Asset data'!$CX105:$GJ105)-Y105-X105-W105,0) -> 1982.740243 | AA105: 5659.82215 | AB105: 0.04778761062 | AC105: 0.04955752212 | AD105: 0.7150442478 | AE105: 0.04867256637 | AF105: 0.1389380531 | AI105: =IF($A105>0,'RRR hist-forc'!K105,0) -> 69.24059801 | AJ105: 2820605.741
A106: ='Asset data'!A106 -> 6 | B106: ='Asset data'!B106 -> 0 | C106: ='Asset data'!C106 -> 0 | D106: ='Asset data'!E106 -> > 11 kV & < = 22 kV ; Switch | E106: SWITCHGEAR | F106: =IF(A106>0,SUM('Asset data'!J106:CV106),0) -> 67 | G106: =IF(A106>0,'Asset data'!F106,0) -> 9.836411827 | H106: =IF(A106>0,SUM('Asset data'!CX106:GJ106),0) -> 659.0395924 | I106: 0.0001647967371 | J106: 37 | K106: 0.0008632108862 | L106: 9.836411827 | M106: =IF($A106>0,SUMPRODUCT('Age profile (years)'!$CT106:$GF106,'Asset data'!$CX106:$GJ106)/H106-0.5,0) -> 72.76865672 | N106: 47957.42586 | O106: =IF($A106>0,'Asset data'!G106,0) -> 84.48391026 | P106: 55678.24178 | Q106: 0.1386684578 | R106: 8.448391026 | S106: 16.89678205 | T106: 50.69034616 | U106: 67.58712821 | W106: =IF($A106>0,SUMIF('Age profile (years)'!$CT106:$GF106,"<" & R106+0.5,'Asset data'!$CX106:$GJ106),0) -> 0 | X106: =IF($A106>0,SUMIF('Age profile (years)'!$CT106:$GF106,"<" & S106+0.5,'Asset data'!$CX106:$GJ106)-W106,0) -> 0 | Y106: =IF($A106>0,SUMIF('Age profile (years)'!$CT106:$GF106,"<" & T106+0.5,'Asset data'!$CX106:$GJ106)-X106-W106,0) -> 68.85488279 | Z106: =IF($A106>0,SUMIF('Age profile (years)'!$CT106:$GF106,"<" & U106+0.5,'Asset data'!$CX106:$GJ106)-Y106-X106-W106,0) -> 9.836411827 | AA106: 580.3482978 | AB106: 0 | AC106: 0 | AD106: 0.1044776119 | AE106: 0.01492537313 | AF106: 0.8805970149 | AI106: =IF($A106>0,'RRR hist-forc'!K106,0) -> 84.48391026 | AJ106: 55678.24178
A107: ='Asset data'!A107 -> 6 | B107: ='Asset data'!B107 -> 0 | C107: ='Asset data'!C107 -> 0 | D107: ='Asset data'!E107 -> > 11 kV & < = 22 kV ; Circuit Breaker | E107: SWITCHGEAR | F107: =IF(A107>0,SUM('Asset data'!J107:CV107),0) -> 42 | G107: =IF(A107>0,'Asset data'!F107,0) -> 238.8902043 | H107: =IF(A107>0,SUM('Asset data'!CX107:GJ107),0) -> 10033.38858 | I107: 0.002508907991 | J107: 26 | K107: 0.01314174497 | L107: 238.8902043 | M107: =IF($A107>0,SUMPRODUCT('Age profile (years)'!$CT107:$GF107,'Asset data'!$CX107:$GJ107)/H107-0.5,0) -> 21.64285714 | N107: 217151.1957 | O107: =IF($A107>0,'Asset data'!G107,0) -> 77.38501028 | P107: 776433.8785 | Q107: 0.7203223587 | R107: 7.738501028 | S107: 15.47700206 | T107: 46.43100617 | U107: 61.90800822 | W107: =IF($A107>0,SUMIF('Age profile (years)'!$CT107:$GF107,"<" & R107+0.5,'Asset data'!$CX107:$GJ107),0) -> 477.7804086 | X107: =IF($A107>0,SUMIF('Age profile (years)'!$CT107:$GF107,"<" & S107+0.5,'Asset data'!$CX107:$GJ107)-W107,0) -> 0 | Y107: =IF($A107>0,SUMIF('Age profile (years)'!$CT107:$GF107,"<" & T107+0.5,'Asset data'!$CX107:$GJ107)-X107-W107,0) -> 9077.827764 | Z107: =IF($A107>0,SUMIF('Age profile (years)'!$CT107:$GF107,"<" & U107+0.5,'Asset data'!$CX107:$GJ107)-Y107-X107-W107,0) -> 238.8902043 | AA107: 238.8902043 | AB107: 0.04761904762 | AC107: 0 | AD107: 0.9047619048 | AE107: 0.02380952381 | AF107: 0.02380952381 | AI107: =IF($A107>0,'RRR hist-forc'!K107,0) -> 77.38501028 | AJ107: 776433.8785
A108: ='Asset data'!A108 -> 0 | B108: ='Asset data'!B108 -> 0 | C108: ='Asset data'!C108 -> 0 | D108: ='Asset data'!E108 -> > 22 kV & < = 33 kV ; Switch | E108: 0 | F108: =IF(A108>0,SUM('Asset data'!J108:CV108),0) -> 0 | G108: =IF(A108>0,'Asset data'!F108,0) -> 0 | H108: =IF(A108>0,SUM('Asset data'!CX108:GJ108),0) -> 0 | I108: 0 | J108: 0 | K108: 0 | L108: 0 | M108: =IF($A108>0,SUMPRODUCT('Age profile (years)'!$CT108:$GF108,'Asset data'!$CX108:$GJ108)/H108-0.5,0) -> 0 | N108: 0 | O108: =IF($A108>0,'Asset data'!G108,0) -> 0 | P108: 0 | Q108: 0 | R108: 0 | S108: 0 | T108: 0 | U108: 0 | W108: =IF($A108>0,SUMIF('Age profile (years)'!$CT108:$GF108,"<" & R108+0.5,'Asset data'!$CX108:$GJ108),0) -> 0 | X108: =IF($A108>0,SUMIF('Age profile (years)'!$CT108:$GF108,"<" & S108+0.5,'Asset data'!$CX108:$GJ108)-W108,0) -> 0 | Y108: =IF($A108>0,SUMIF('Age profile (years)'!$CT108:$GF108,"<" & T108+0.5,'Asset data'!$CX108:$GJ108)-X108-W108,0) -> 0 | Z108: =IF($A108>0,SUMIF('Age profile (years)'!$CT108:$GF108,"<" & U108+0.5,'Asset data'!$CX108:$GJ108)-Y108-X108-W108,0) -> 0 | AA108: 0 | AB108: 0 | AC108: 0 | AD108: 0 | AE108: 0 | AF108: 0 | AI108: =IF($A108>0,'RRR hist-forc'!K108,0) -> 0 | AJ108: 0
A109: ='Asset data'!A109 -> 0 | B109: ='Asset data'!B109 -> 0 | C109: ='Asset data'!C109 -> 0 | D109: ='Asset data'!E109 -> > 22 kV & < = 33 kV ; Circuit Breaker | E109: 0 | F109: =IF(A109>0,SUM('Asset data'!J109:CV109),0) -> 0 | G109: =IF(A109>0,'Asset data'!F109,0) -> 0 | H109: =IF(A109>0,SUM('Asset data'!CX109:GJ109),0) -> 0 | I109: 0 | J109: 0 | K109: 0 | L109: 0 | M109: =IF($A109>0,SUMPRODUCT('Age profile (years)'!$CT109:$GF109,'Asset data'!$CX109:$GJ109)/H109-0.5,0) -> 0 | N109: 0 | O109: =IF($A109>0,'Asset data'!G109,0) -> 0 | P109: 0 | Q109: 0 | R109: 0 | S109: 0 | T109: 0 | U109: 0 | W109: =IF($A109>0,SUMIF('Age profile (years)'!$CT109:$GF109,"<" & R109+0.5,'Asset data'!$CX109:$GJ109),0) -> 0 | X109: =IF($A109>0,SUMIF('Age profile (years)'!$CT109:$GF109,"<" & S109+0.5,'Asset data'!$CX109:$GJ109)-W109,0) -> 0 | Y109: =IF($A109>0,SUMIF('Age profile (years)'!$CT109:$GF109,"<" & T109+0.5,'Asset data'!$CX109:$GJ109)-X109-W109,0) -> 0 | Z109: =IF($A109>0,SUMIF('Age profile (years)'!$CT109:$GF109,"<" & U109+0.5,'Asset data'!$CX109:$GJ109)-Y109-X109-W109,0) -> 0 | AA109: 0 | AB109: 0 | AC109: 0 | AD109: 0 | AE109: 0 | AF109: 0 | AI109: =IF($A109>0,'RRR hist-forc'!K109,0) -> 0 | AJ109: 0
A110: ='Asset data'!A110 -> 6 | B110: ='Asset data'!B110 -> 0 | C110: ='Asset data'!C110 -> 0 | D110: ='Asset data'!E110 -> > 33 kV & < = 66 kV ; Switch | E110: SWITCHGEAR | F110: =IF(A110>0,SUM('Asset data'!J110:CV110),0) -> 19 | G110: =IF(A110>0,'Asset data'!F110,0) -> 71.66604134 | H110: =IF(A110>0,SUM('Asset data'!CX110:GJ110),0) -> 1361.654786 | I110: 0.0003404898101 | J110: 35 | K110: 0.001783497149 | L110: 71.66604134 | M110: =IF($A110>0,SUMPRODUCT('Age profile (years)'!$CT110:$GF110,'Asset data'!$CX110:$GJ110)/H110-0.5,0) -> 40.18421053 | N110: 54717.02257 | O110: =IF($A110>0,'Asset data'!G110,0) -> 84.48391026 | P110: 115037.9207 | Q110: 0.5243566449 | R110: 8.448391026 | S110: 16.89678205 | T110: 50.69034616 | U110: 67.58712821 | W110: =IF($A110>0,SUMIF('Age profile (years)'!$CT110:$GF110,"<" & R110+0.5,'Asset data'!$CX110:$GJ110),0) -> 0 | X110: =IF($A110>0,SUMIF('Age profile (years)'!$CT110:$GF110,"<" & S110+0.5,'Asset data'!$CX110:$GJ110)-W110,0) -> 0 | Y110: =IF($A110>0,SUMIF('Age profile (years)'!$CT110:$GF110,"<" & T110+0.5,'Asset data'!$CX110:$GJ110)-X110-W110,0) -> 1218.322703 | Z110: =IF($A110>0,SUMIF('Age profile (years)'!$CT110:$GF110,"<" & U110+0.5,'Asset data'!$CX110:$GJ110)-Y110-X110-W110,0) -> 71.66604134 | AA110: 71.66604134 | AB110: 0 | AC110: 0 | AD110: 0.8947368421 | AE110: 0.05263157895 | AF110: 0.05263157895 | AI110: =IF($A110>0,'RRR hist-forc'!K110,0) -> 84.48391026 | AJ110: 115037.9207
A111: ='Asset data'!A111 -> 6 | B111: ='Asset data'!B111 -> 0 | C111: ='Asset data'!C111 -> 0 | D111: ='Asset data'!E111 -> > 33 kV & < = 66 kV ; Circuit Breaker | E111: SWITCHGEAR | F111: =IF(A111>0,SUM('Asset data'!J111:CV111),0) -> 72 | G111: =IF(A111>0,'Asset data'!F111,0) -> 125.2237331 | H111: =IF(A111>0,SUM('Asset data'!CX111:GJ111),0) -> 9016.108782 | I111: 0.002254531177 | J111: 28 | K111: 0.01180931061 | L111: 125.2237331 | M111: =IF($A111>0,SUMPRODUCT('Age profile (years)'!$CT111:$GF111,'Asset data'!$CX111:$GJ111)/H111-0.5,0) -> 30.58333333 | N111: 275742.6602 | O111: =IF($A111>0,'Asset data'!G111,0) -> 50.10620912 | P111: 451763.0321 | Q111: 0.3896298708 | R111: 5.010620912 | S111: 10.02124182 | T111: 30.06372547 | U111: 40.0849673 | W111: =IF($A111>0,SUMIF('Age profile (years)'!$CT111:$GF111,"<" & R111+0.5,'Asset data'!$CX111:$GJ111),0) -> 2504.474662 | X111: =IF($A111>0,SUMIF('Age profile (years)'!$CT111:$GF111,"<" & S111+0.5,'Asset data'!$CX111:$GJ111)-W111,0) -> 0 | Y111: =IF($A111>0,SUMIF('Age profile (years)'!$CT111:$GF111,"<" & T111+0.5,'Asset data'!$CX111:$GJ111)-X111-W111,0) -> 751.3423985 | Z111: =IF($A111>0,SUMIF('Age profile (years)'!$CT111:$GF111,"<" & U111+0.5,'Asset data'!$CX111:$GJ111)-Y111-X111-W111,0) -> 626.1186654 | AA111: 5134.173056 | AB111: 0.2777777778 | AC111: 0 | AD111: 0.08333333333 | AE111: 0.06944444444 | AF111: 0.5694444444 | AI111: =IF($A111>0,'RRR hist-forc'!K111,0) -> 50.10620912 | AJ111: 451763.0321
A112: ='Asset data'!A112 -> 0 | B112: ='Asset data'!B112 -> 0 | C112: ='Asset data'!C112 -> 0 | D112: ='Asset data'!E112 -> > 66 kV & < = 132 kV ; Switch | E112: 0 | F112: =IF(A112>0,SUM('Asset data'!J112:CV112),0) -> 0 | G112: =IF(A112>0,'Asset data'!F112,0) -> 0 | H112: =IF(A112>0,SUM('Asset data'!CX112:GJ112),0) -> 0 | I112: 0 | J112: 0 | K112: 0 | L112: 0 | M112: =IF($A112>0,SUMPRODUCT('Age profile (years)'!$CT112:$GF112,'Asset data'!$CX112:$GJ112)/H112-0.5,0) -> 0 | N112: 0 | O112: =IF($A112>0,'Asset data'!G112,0) -> 0 | P112: 0 | Q112: 0 | R112: 0 | S112: 0 | T112: 0 | U112: 0 | W112: =IF($A112>0,SUMIF('Age profile (years)'!$CT112:$GF112,"<" & R112+0.5,'Asset data'!$CX112:$GJ112),0) -> 0 | X112: =IF($A112>0,SUMIF('Age profile (years)'!$CT112:$GF112,"<" & S112+0.5,'Asset data'!$CX112:$GJ112)-W112,0) -> 0 | Y112: =IF($A112>0,SUMIF('Age profile (years)'!$CT112:$GF112,"<" & T112+0.5,'Asset data'!$CX112:$GJ112)-X112-W112,0) -> 0 | Z112: =IF($A112>0,SUMIF('Age profile (years)'!$CT112:$GF112,"<" & U112+0.5,'Asset data'!$CX112:$GJ112)-Y112-X112-W112,0) -> 0 | AA112: 0 | AB112: 0 | AC112: 0 | AD112: 0 | AE112: 0 | AF112: 0 | AI112: =IF($A112>0,'RRR hist-forc'!K112,0) -> 0 | AJ112: 0
A113: ='Asset data'!A113 -> 0 | B113: ='Asset data'!B113 -> 0 | C113: ='Asset data'!C113 -> 0 | D113: ='Asset data'!E113 -> > 66 kV & < = 132 kV ; Circuit Breaker | E113: 0 | F113: =IF(A113>0,SUM('Asset data'!J113:CV113),0) -> 0 | G113: =IF(A113>0,'Asset data'!F113,0) -> 0 | H113: =IF(A113>0,SUM('Asset data'!CX113:GJ113),0) -> 0 | I113: 0 | J113: 0 | K113: 0 | L113: 0 | M113: =IF($A113>0,SUMPRODUCT('Age profile (years)'!$CT113:$GF113,'Asset data'!$CX113:$GJ113)/H113-0.5,0) -> 0 | N113: 0 | O113: =IF($A113>0,'Asset data'!G113,0) -> 0 | P113: 0 | Q113: 0 | R113: 0 | S113: 0 | T113: 0 | U113: 0 | W113: =IF($A113>0,SUMIF('Age profile (years)'!$CT113:$GF113,"<" & R113+0.5,'Asset data'!$CX113:$GJ113),0) -> 0 | X113: =IF($A113>0,SUMIF('Age profile (years)'!$CT113:$GF113,"<" & S113+0.5,'Asset data'!$CX113:$GJ113)-W113,0) -> 0 | Y113: =IF($A113>0,SUMIF('Age profile (years)'!$CT113:$GF113,"<" & T113+0.5,'Asset data'!$CX113:$GJ113)-X113-W113,0) -> 0 | Z113: =IF($A113>0,SUMIF('Age profile (years)'!$CT113:$GF113,"<" & U113+0.5,'Asset data'!$CX113:$GJ113)-Y113-X113-W113,0) -> 0 | AA113: 0 | AB113: 0 | AC113: 0 | AD113: 0 | AE113: 0 | AF113: 0 | AI113: =IF($A113>0,'RRR hist-forc'!K113,0) -> 0 | AJ113: 0
A114: ='Asset data'!A114 -> 0 | B114: ='Asset data'!B114 -> 0 | C114: ='Asset data'!C114 -> 0 | D114: ='Asset data'!E114 -> > 132 kV ; Switch | E114: 0 | F114: =IF(A114>0,SUM('Asset data'!J114:CV114),0) -> 0 | G114: =IF(A114>0,'Asset data'!F114,0) -> 0 | H114: =IF(A114>0,SUM('Asset data'!CX114:GJ114),0) -> 0 | I114: 0 | J114: 0 | K114: 0 | L114: 0 | M114: =IF($A114>0,SUMPRODUCT('Age profile (years)'!$CT114:$GF114,'Asset data'!$CX114:$GJ114)/H114-0.5,0) -> 0 | N114: 0 | O114: =IF($A114>0,'Asset data'!G114,0) -> 0 | P114: 0 | Q114: 0 | R114: 0 | S114: 0 | T114: 0 | U114: 0 | W114: =IF($A114>0,SUMIF('Age profile (years)'!$CT114:$GF114,"<" & R114+0.5,'Asset data'!$CX114:$GJ114),0) -> 0 | X114: =IF($A114>0,SUMIF('Age profile (years)'!$CT114:$GF114,"<" & S114+0.5,'Asset data'!$CX114:$GJ114)-W114,0) -> 0 | Y114: =IF($A114>0,SUMIF('Age profile (years)'!$CT114:$GF114,"<" & T114+0.5,'Asset data'!$CX114:$GJ114)-X114-W114,0) -> 0 | Z114: =IF($A114>0,SUMIF('Age profile (years)'!$CT114:$GF114,"<" & U114+0.5,'Asset data'!$CX114:$GJ114)-Y114-X114-W114,0) -> 0 | AA114: 0 | AB114: 0 | AC114: 0 | AD114: 0 | AE114: 0 | AF114: 0 | AI114: =IF($A114>0,'RRR hist-forc'!K114,0) -> 0 | AJ114: 0
A115: ='Asset data'!A115 -> 0 | B115: ='Asset data'!B115 -> 0 | C115: ='Asset data'!C115 -> 0 | D115: ='Asset data'!E115 -> > 132 kV ; Circuit Breaker | E115: 0 | F115: =IF(A115>0,SUM('Asset data'!J115:CV115),0) -> 0 | G115: =IF(A115>0,'Asset data'!F115,0) -> 0 | H115: =IF(A115>0,SUM('Asset data'!CX115:GJ115),0) -> 0 | I115: 0 | J115: 0 | K115: 0 | L115: 0 | M115: =IF($A115>0,SUMPRODUCT('Age profile (years)'!$CT115:$GF115,'Asset data'!$CX115:$GJ115)/H115-0.5,0) -> 0 | N115: 0 | O115: =IF($A115>0,'Asset data'!G115,0) -> 0 | P115: 0 | Q115: 0 | R115: 0 | S115: 0 | T115: 0 | U115: 0 | W115: =IF($A115>0,SUMIF('Age profile (years)'!$CT115:$GF115,"<" & R115+0.5,'Asset data'!$CX115:$GJ115),0) -> 0 | X115: =IF($A115>0,SUMIF('Age profile (years)'!$CT115:$GF115,"<" & S115+0.5,'Asset data'!$CX115:$GJ115)-W115,0) -> 0 | Y115: =IF($A115>0,SUMIF('Age profile (years)'!$CT115:$GF115,"<" & T115+0.5,'Asset data'!$CX115:$GJ115)-X115-W115,0) -> 0 | Z115: =IF($A115>0,SUMIF('Age profile (years)'!$CT115:$GF115,"<" & U115+0.5,'Asset data'!$CX115:$GJ115)-Y115-X115-W115,0) -> 0 | AA115: 0 | AB115: 0 | AC115: 0 | AD115: 0 | AE115: 0 | AF115: 0 | AI115: =IF($A115>0,'RRR hist-forc'!K115,0) -> 0 | AJ115: 0
A116: ='Asset data'!A116 -> 6 | B116: ='Asset data'!B116 -> 0 | C116: ='Asset data'!C116 -> 0 | D116: ='Asset data'!E116 -> Other | E116: SWITCHGEAR | F116: =IF(A116>0,SUM('Asset data'!J116:CV116),0) -> 13685 | G116: =IF(A116>0,'Asset data'!F116,0) -> 7.754982367 | H116: =IF(A116>0,SUM('Asset data'!CX116:GJ116),0) -> 106126.9337 | I116: 0.0265376657 | J116: 10 | K116: 0.1390051911 | L116: 7.754982367 | M116: =IF($A116>0,SUMPRODUCT('Age profile (years)'!$CT116:$GF116,'Asset data'!$CX116:$GJ116)/H116-0.5,0) -> 29.31505298 | N116: 3111116.684 | O116: =IF($A116>0,'Asset data'!G116,0) -> 60.40993795 | P116: 6411121.479 | Q116: 0.5147312847 | R116: 6.040993795 | S116: 12.08198759 | T116: 36.24596277 | U116: 48.32795036 | W116: =IF($A116>0,SUMIF('Age profile (years)'!$CT116:$GF116,"<" & R116+0.5,'Asset data'!$CX116:$GJ116),0) -> 6692.549783 | X116: =IF($A116>0,SUMIF('Age profile (years)'!$CT116:$GF116,"<" & S116+0.5,'Asset data'!$CX116:$GJ116)-W116,0) -> 10469.2262 | Y116: =IF($A116>0,SUMIF('Age profile (years)'!$CT116:$GF116,"<" & T116+0.5,'Asset data'!$CX116:$GJ116)-X116-W116,0) -> 49918.8215 | Z116: =IF($A116>0,SUMIF('Age profile (years)'!$CT116:$GF116,"<" & U116+0.5,'Asset data'!$CX116:$GJ116)-Y116-X116-W116,0) -> 19938.05967 | AA116: 19108.27655 | AB116: 0.06306174644 | AC116: 0.09864815491 | AD116: 0.4703690172 | AE116: 0.1878699306 | AF116: 0.1800511509 | AI116: =IF($A116>0,'RRR hist-forc'!K116,0) -> 60.40993795 | AJ116: 6411121.479
A117: ='Asset data'!A117 -> 0 | B117: ='Asset data'!B117 -> 0 | C117: ='Asset data'!C117 -> 0 | D117: ='Asset data'!E117 -> 0 | E117: 0 | F117: =IF(A117>0,SUM('Asset data'!J117:CV117),0) -> 0 | G117: =IF(A117>0,'Asset data'!F117,0) -> 0 | H117: =IF(A117>0,SUM('Asset data'!CX117:GJ117),0) -> 0 | I117: 0 | J117: 0 | K117: 0 | L117: 0 | M117: =IF($A117>0,SUMPRODUCT('Age profile (years)'!$CT117:$GF117,'Asset data'!$CX117:$GJ117)/H117-0.5,0) -> 0 | N117: 0 | O117: =IF($A117>0,'Asset data'!G117,0) -> 0 | P117: 0 | Q117: 0 | R117: 0 | S117: 0 | T117: 0 | U117: 0 | W117: =IF($A117>0,SUMIF('Age profile (years)'!$CT117:$GF117,"<" & R117+0.5,'Asset data'!$CX117:$GJ117),0) -> 0 | X117: =IF($A117>0,SUMIF('Age profile (years)'!$CT117:$GF117,"<" & S117+0.5,'Asset data'!$CX117:$GJ117)-W117,0) -> 0 | Y117: =IF($A117>0,SUMIF('Age profile (years)'!$CT117:$GF117,"<" & T117+0.5,'Asset data'!$CX117:$GJ117)-X117-W117,0) -> 0 | Z117: =IF($A117>0,SUMIF('Age profile (years)'!$CT117:$GF117,"<" & U117+0.5,'Asset data'!$CX117:$GJ117)-Y117-X117-W117,0) -> 0 | AA117: 0 | AB117: 0 | AC117: 0 | AD117: 0 | AE117: 0 | AF117: 0 | AI117: =IF($A117>0,'RRR hist-forc'!K117,0) -> 0 | AJ117: 0
A118: ='Asset data'!A118 -> 0 | B118: ='Asset data'!B118 -> 0 | C118: ='Asset data'!C118 -> 0 | D118: ='Asset data'!E118 -> 0 | E118: 0 | F118: =IF(A118>0,SUM('Asset data'!J118:CV118),0) -> 0 | G118: =IF(A118>0,'Asset data'!F118,0) -> 0 | H118: =IF(A118>0,SUM('Asset data'!CX118:GJ118),0) -> 0 | I118: 0 | J118: 0 | K118: 0 | L118: 0 | M118: =IF($A118>0,SUMPRODUCT('Age profile (years)'!$CT118:$GF118,'Asset data'!$CX118:$GJ118)/H118-0.5,0) -> 0 | N118: 0 | O118: =IF($A118>0,'Asset data'!G118,0) -> 0 | P118: 0 | Q118: 0 | R118: 0 | S118: 0 | T118: 0 | U118: 0 | W118: =IF($A118>0,SUMIF('Age profile (years)'!$CT118:$GF118,"<" & R118+0.5,'Asset data'!$CX118:$GJ118),0) -> 0 | X118: =IF($A118>0,SUMIF('Age profile (years)'!$CT118:$GF118,"<" & S118+0.5,'Asset data'!$CX118:$GJ118)-W118,0) -> 0 | Y118: =IF($A118>0,SUMIF('Age profile (years)'!$CT118:$GF118,"<" & T118+0.5,'Asset data'!$CX118:$GJ118)-X118-W118,0) -> 0 | Z118: =IF($A118>0,SUMIF('Age profile (years)'!$CT118:$GF118,"<" & U118+0.5,'Asset data'!$CX118:$GJ118)-Y118-X118-W118,0) -> 0 | AA118: 0 | AB118: 0 | AC118: 0 | AD118: 0 | AE118: 0 | AF118: 0 | AI118: =IF($A118>0,'RRR hist-forc'!K118,0) -> 0 | AJ118: 0
A119: ='Asset data'!A119 -> 0 | B119: ='Asset data'!B119 -> 0 | C119: ='Asset data'!C119 -> 0 | D119: ='Asset data'!E119 -> 0 | E119: 0 | F119: =IF(A119>0,SUM('Asset data'!J119:CV119),0) -> 0 | G119: =IF(A119>0,'Asset data'!F119,0) -> 0 | H119: =IF(A119>0,SUM('Asset data'!CX119:GJ119),0) -> 0 | I119: 0 | J119: 0 | K119: 0 | L119: 0 | M119: =IF($A119>0,SUMPRODUCT('Age profile (years)'!$CT119:$GF119,'Asset data'!$CX119:$GJ119)/H119-0.5,0) -> 0 | N119: 0 | O119: =IF($A119>0,'Asset data'!G119,0) -> 0 | P119: 0 | Q119: 0 | R119: 0 | S119: 0 | T119: 0 | U119: 0 | W119: =IF($A119>0,SUMIF('Age profile (years)'!$CT119:$GF119,"<" & R119+0.5,'Asset data'!$CX119:$GJ119),0) -> 0 | X119: =IF($A119>0,SUMIF('Age profile (years)'!$CT119:$GF119,"<" & S119+0.5,'Asset data'!$CX119:$GJ119)-W119,0) -> 0 | Y119: =IF($A119>0,SUMIF('Age profile (years)'!$CT119:$GF119,"<" & T119+0.5,'Asset data'!$CX119:$GJ119)-X119-W119,0) -> 0 | Z119: =IF($A119>0,SUMIF('Age profile (years)'!$CT119:$GF119,"<" & U119+0.5,'Asset data'!$CX119:$GJ119)-Y119-X119-W119,0) -> 0 | AA119: 0 | AB119: 0 | AC119: 0 | AD119: 0 | AE119: 0 | AF119: 0 | AI119: =IF($A119>0,'RRR hist-forc'!K119,0) -> 0 | AJ119: 0
A120: ='Asset data'!A120 -> 0 | B120: ='Asset data'!B120 -> 0 | C120: ='Asset data'!C120 -> 0 | D120: ='Asset data'!E120 -> 0 | E120: 0 | F120: =IF(A120>0,SUM('Asset data'!J120:CV120),0) -> 0 | G120: =IF(A120>0,'Asset data'!F120,0) -> 0 | H120: =IF(A120>0,SUM('Asset data'!CX120:GJ120),0) -> 0 | I120: 0 | J120: 0 | K120: 0 | L120: 0 | M120: =IF($A120>0,SUMPRODUCT('Age profile (years)'!$CT120:$GF120,'Asset data'!$CX120:$GJ120)/H120-0.5,0) -> 0 | N120: 0 | O120: =IF($A120>0,'Asset data'!G120,0) -> 0 | P120: 0 | Q120: 0 | R120: 0 | S120: 0 | T120: 0 | U120: 0 | W120: =IF($A120>0,SUMIF('Age profile (years)'!$CT120:$GF120,"<" & R120+0.5,'Asset data'!$CX120:$GJ120),0) -> 0 | X120: =IF($A120>0,SUMIF('Age profile (years)'!$CT120:$GF120,"<" & S120+0.5,'Asset data'!$CX120:$GJ120)-W120,0) -> 0 | Y120: =IF($A120>0,SUMIF('Age profile (years)'!$CT120:$GF120,"<" & T120+0.5,'Asset data'!$CX120:$GJ120)-X120-W120,0) -> 0 | Z120: =IF($A120>0,SUMIF('Age profile (years)'!$CT120:$GF120,"<" & U120+0.5,'Asset data'!$CX120:$GJ120)-Y120-X120-W120,0) -> 0 | AA120: 0 | AB120: 0 | AC120: 0 | AD120: 0 | AE120: 0 | AF120: 0 | AI120: =IF($A120>0,'RRR hist-forc'!K120,0) -> 0 | AJ120: 0
A121: ='Asset data'!A121 -> 0 | B121: ='Asset data'!B121 -> 0 | C121: ='Asset data'!C121 -> 0 | D121: ='Asset data'!E121 -> 0 | E121: 0 | F121: =IF(A121>0,SUM('Asset data'!J121:CV121),0) -> 0 | G121: =IF(A121>0,'Asset data'!F121,0) -> 0 | H121: =IF(A121>0,SUM('Asset data'!CX121:GJ121),0) -> 0 | I121: 0 | J121: 0 | K121: 0 | L121: 0 | M121: =IF($A121>0,SUMPRODUCT('Age profile (years)'!$CT121:$GF121,'Asset data'!$CX121:$GJ121)/H121-0.5,0) -> 0 | N121: 0 | O121: =IF($A121>0,'Asset data'!G121,0) -> 0 | P121: 0 | Q121: 0 | R121: 0 | S121: 0 | T121: 0 | U121: 0 | W121: =IF($A121>0,SUMIF('Age profile (years)'!$CT121:$GF121,"<" & R121+0.5,'Asset data'!$CX121:$GJ121),0) -> 0 | X121: =IF($A121>0,SUMIF('Age profile (years)'!$CT121:$GF121,"<" & S121+0.5,'Asset data'!$CX121:$GJ121)-W121,0) -> 0 | Y121: =IF($A121>0,SUMIF('Age profile (years)'!$CT121:$GF121,"<" & T121+0.5,'Asset data'!$CX121:$GJ121)-X121-W121,0) -> 0 | Z121: =IF($A121>0,SUMIF('Age profile (years)'!$CT121:$GF121,"<" & U121+0.5,'Asset data'!$CX121:$GJ121)-Y121-X121-W121,0) -> 0 | AA121: 0 | AB121: 0 | AC121: 0 | AD121: 0 | AE121: 0 | AF121: 0 | AI121: =IF($A121>0,'RRR hist-forc'!K121,0) -> 0 | AJ121: 0
A122: ='Asset data'!A122 -> 0 | B122: ='Asset data'!B122 -> 0 | C122: ='Asset data'!C122 -> 0 | D122: ='Asset data'!E122 -> 0 | E122: 0 | F122: =IF(A122>0,SUM('Asset data'!J122:CV122),0) -> 0 | G122: =IF(A122>0,'Asset data'!F122,0) -> 0 | H122: =IF(A122>0,SUM('Asset data'!CX122:GJ122),0) -> 0 | I122: 0 | J122: 0 | K122: 0 | L122: 0 | M122: =IF($A122>0,SUMPRODUCT('Age profile (years)'!$CT122:$GF122,'Asset data'!$CX122:$GJ122)/H122-0.5,0) -> 0 | N122: 0 | O122: =IF($A122>0,'Asset data'!G122,0) -> 0 | P122: 0 | Q122: 0 | R122: 0 | S122: 0 | T122: 0 | U122: 0 | W122: =IF($A122>0,SUMIF('Age profile (years)'!$CT122:$GF122,"<" & R122+0.5,'Asset data'!$CX122:$GJ122),0) -> 0 | X122: =IF($A122>0,SUMIF('Age profile (years)'!$CT122:$GF122,"<" & S122+0.5,'Asset data'!$CX122:$GJ122)-W122,0) -> 0 | Y122: =IF($A122>0,SUMIF('Age profile (years)'!$CT122:$GF122,"<" & T122+0.5,'Asset data'!$CX122:$GJ122)-X122-W122,0) -> 0 | Z122: =IF($A122>0,SUMIF('Age profile (years)'!$CT122:$GF122,"<" & U122+0.5,'Asset data'!$CX122:$GJ122)-Y122-X122-W122,0) -> 0 | AA122: 0 | AB122: 0 | AC122: 0 | AD122: 0 | AE122: 0 | AF122: 0 | AI122: =IF($A122>0,'RRR hist-forc'!K122,0) -> 0 | AJ122: 0
A123: ='Asset data'!A123 -> 0 | B123: ='Asset data'!B123 -> 0 | C123: ='Asset data'!C123 -> 0 | D123: ='Asset data'!E123 -> 0 | E123: 0 | F123: =IF(A123>0,SUM('Asset data'!J123:CV123),0) -> 0 | G123: =IF(A123>0,'Asset data'!F123,0) -> 0 | H123: =IF(A123>0,SUM('Asset data'!CX123:GJ123),0) -> 0 | I123: 0 | J123: 0 | K123: 0 | L123: 0 | M123: =IF($A123>0,SUMPRODUCT('Age profile (years)'!$CT123:$GF123,'Asset data'!$CX123:$GJ123)/H123-0.5,0) -> 0 | N123: 0 | O123: =IF($A123>0,'Asset data'!G123,0) -> 0 | P123: 0 | Q123: 0 | R123: 0 | S123: 0 | T123: 0 | U123: 0 | W123: =IF($A123>0,SUMIF('Age profile (years)'!$CT123:$GF123,"<" & R123+0.5,'Asset data'!$CX123:$GJ123),0) -> 0 | X123: =IF($A123>0,SUMIF('Age profile (years)'!$CT123:$GF123,"<" & S123+0.5,'Asset data'!$CX123:$GJ123)-W123,0) -> 0 | Y123: =IF($A123>0,SUMIF('Age profile (years)'!$CT123:$GF123,"<" & T123+0.5,'Asset data'!$CX123:$GJ123)-X123-W123,0) -> 0 | Z123: =IF($A123>0,SUMIF('Age profile (years)'!$CT123:$GF123,"<" & U123+0.5,'Asset data'!$CX123:$GJ123)-Y123-X123-W123,0) -> 0 | AA123: 0 | AB123: 0 | AC123: 0 | AD123: 0 | AE123: 0 | AF123: 0 | AI123: =IF($A123>0,'RRR hist-forc'!K123,0) -> 0 | AJ123: 0
A124: ='Asset data'!A124 -> 0 | B124: ='Asset data'!B124 -> 0 | C124: ='Asset data'!C124 -> 0 | D124: ='Asset data'!E124 -> 0 | E124: 0 | F124: =IF(A124>0,SUM('Asset data'!J124:CV124),0) -> 0 | G124: =IF(A124>0,'Asset data'!F124,0) -> 0 | H124: =IF(A124>0,SUM('Asset data'!CX124:GJ124),0) -> 0 | I124: 0 | J124: 0 | K124: 0 | L124: 0 | M124: =IF($A124>0,SUMPRODUCT('Age profile (years)'!$CT124:$GF124,'Asset data'!$CX124:$GJ124)/H124-0.5,0) -> 0 | N124: 0 | O124: =IF($A124>0,'Asset data'!G124,0) -> 0 | P124: 0 | Q124: 0 | R124: 0 | S124: 0 | T124: 0 | U124: 0 | W124: =IF($A124>0,SUMIF('Age profile (years)'!$CT124:$GF124,"<" & R124+0.5,'Asset data'!$CX124:$GJ124),0) -> 0 | X124: =IF($A124>0,SUMIF('Age profile (years)'!$CT124:$GF124,"<" & S124+0.5,'Asset data'!$CX124:$GJ124)-W124,0) -> 0 | Y124: =IF($A124>0,SUMIF('Age profile (years)'!$CT124:$GF124,"<" & T124+0.5,'Asset data'!$CX124:$GJ124)-X124-W124,0) -> 0 | Z124: =IF($A124>0,SUMIF('Age profile (years)'!$CT124:$GF124,"<" & U124+0.5,'Asset data'!$CX124:$GJ124)-Y124-X124-W124,0) -> 0 | AA124: 0 | AB124: 0 | AC124: 0 | AD124: 0 | AE124: 0 | AF124: 0 | AI124: =IF($A124>0,'RRR hist-forc'!K124,0) -> 0 | AJ124: 0
A125: ='Asset data'!A125 -> 0 | B125: ='Asset data'!B125 -> 0 | C125: ='Asset data'!C125 -> 0 | D125: ='Asset data'!E125 -> 0 | E125: 0 | F125: =IF(A125>0,SUM('Asset data'!J125:CV125),0) -> 0 | G125: =IF(A125>0,'Asset data'!F125,0) -> 0 | H125: =IF(A125>0,SUM('Asset data'!CX125:GJ125),0) -> 0 | I125: 0 | J125: 0 | K125: 0 | L125: 0 | M125: =IF($A125>0,SUMPRODUCT('Age profile (years)'!$CT125:$GF125,'Asset data'!$CX125:$GJ125)/H125-0.5,0) -> 0 | N125: 0 | O125: =IF($A125>0,'Asset data'!G125,0) -> 0 | P125: 0 | Q125: 0 | R125: 0 | S125: 0 | T125: 0 | U125: 0 | W125: =IF($A125>0,SUMIF('Age profile (years)'!$CT125:$GF125,"<" & R125+0.5,'Asset data'!$CX125:$GJ125),0) -> 0 | X125: =IF($A125>0,SUMIF('Age profile (years)'!$CT125:$GF125,"<" & S125+0.5,'Asset data'!$CX125:$GJ125)-W125,0) -> 0 | Y125: =IF($A125>0,SUMIF('Age profile (years)'!$CT125:$GF125,"<" & T125+0.5,'Asset data'!$CX125:$GJ125)-X125-W125,0) -> 0 | Z125: =IF($A125>0,SUMIF('Age profile (years)'!$CT125:$GF125,"<" & U125+0.5,'Asset data'!$CX125:$GJ125)-Y125-X125-W125,0) -> 0 | AA125: 0 | AB125: 0 | AC125: 0 | AD125: 0 | AE125: 0 | AF125: 0 | AI125: =IF($A125>0,'RRR hist-forc'!K125,0) -> 0 | AJ125: 0
A126: ='Asset data'!A126 -> 0 | B126: ='Asset data'!B126 -> 0 | C126: ='Asset data'!C126 -> 0 | D126: ='Asset data'!E126 -> 0 | E126: 0 | F126: =IF(A126>0,SUM('Asset data'!J126:CV126),0) -> 0 | G126: =IF(A126>0,'Asset data'!F126,0) -> 0 | H126: =IF(A126>0,SUM('Asset data'!CX126:GJ126),0) -> 0 | I126: 0 | J126: 0 | K126: 0 | L126: 0 | M126: =IF($A126>0,SUMPRODUCT('Age profile (years)'!$CT126:$GF126,'Asset data'!$CX126:$GJ126)/H126-0.5,0) -> 0 | N126: 0 | O126: =IF($A126>0,'Asset data'!G126,0) -> 0 | P126: 0 | Q126: 0 | R126: 0 | S126: 0 | T126: 0 | U126: 0 | W126: =IF($A126>0,SUMIF('Age profile (years)'!$CT126:$GF126,"<" & R126+0.5,'Asset data'!$CX126:$GJ126),0) -> 0 | X126: =IF($A126>0,SUMIF('Age profile (years)'!$CT126:$GF126,"<" & S126+0.5,'Asset data'!$CX126:$GJ126)-W126,0) -> 0 | Y126: =IF($A126>0,SUMIF('Age profile (years)'!$CT126:$GF126,"<" & T126+0.5,'Asset data'!$CX126:$GJ126)-X126-W126,0) -> 0 | Z126: =IF($A126>0,SUMIF('Age profile (years)'!$CT126:$GF126,"<" & U126+0.5,'Asset data'!$CX126:$GJ126)-Y126-X126-W126,0) -> 0 | AA126: 0 | AB126: 0 | AC126: 0 | AD126: 0 | AE126: 0 | AF126: 0 | AI126: =IF($A126>0,'RRR hist-forc'!K126,0) -> 0 | AJ126: 0
A127: ='Asset data'!A127 -> 0 | B127: ='Asset data'!B127 -> 0 | C127: ='Asset data'!C127 -> 0 | D127: ='Asset data'!E127 -> 0 | E127: 0 | F127: =IF(A127>0,SUM('Asset data'!J127:CV127),0) -> 0 | G127: =IF(A127>0,'Asset data'!F127,0) -> 0 | H127: =IF(A127>0,SUM('Asset data'!CX127:GJ127),0) -> 0 | I127: 0 | J127: 0 | K127: 0 | L127: 0 | M127: =IF($A127>0,SUMPRODUCT('Age profile (years)'!$CT127:$GF127,'Asset data'!$CX127:$GJ127)/H127-0.5,0) -> 0 | N127: 0 | O127: =IF($A127>0,'Asset data'!G127,0) -> 0 | P127: 0 | Q127: 0 | R127: 0 | S127: 0 | T127: 0 | U127: 0 | W127: =IF($A127>0,SUMIF('Age profile (years)'!$CT127:$GF127,"<" & R127+0.5,'Asset data'!$CX127:$GJ127),0) -> 0 | X127: =IF($A127>0,SUMIF('Age profile (years)'!$CT127:$GF127,"<" & S127+0.5,'Asset data'!$CX127:$GJ127)-W127,0) -> 0 | Y127: =IF($A127>0,SUMIF('Age profile (years)'!$CT127:$GF127,"<" & T127+0.5,'Asset data'!$CX127:$GJ127)-X127-W127,0) -> 0 | Z127: =IF($A127>0,SUMIF('Age profile (years)'!$CT127:$GF127,"<" & U127+0.5,'Asset data'!$CX127:$GJ127)-Y127-X127-W127,0) -> 0 | AA127: 0 | AB127: 0 | AC127: 0 | AD127: 0 | AE127: 0 | AF127: 0 | AI127: =IF($A127>0,'RRR hist-forc'!K127,0) -> 0 | AJ127: 0
A128: ='Asset data'!A128 -> 0 | B128: ='Asset data'!B128 -> 0 | C128: ='Asset data'!C128 -> 0 | D128: ='Asset data'!E128 -> 0 | E128: 0 | F128: =IF(A128>0,SUM('Asset data'!J128:CV128),0) -> 0 | G128: =IF(A128>0,'Asset data'!F128,0) -> 0 | H128: =IF(A128>0,SUM('Asset data'!CX128:GJ128),0) -> 0 | I128: 0 | J128: 0 | K128: 0 | L128: 0 | M128: =IF($A128>0,SUMPRODUCT('Age profile (years)'!$CT128:$GF128,'Asset data'!$CX128:$GJ128)/H128-0.5,0) -> 0 | N128: 0 | O128: =IF($A128>0,'Asset data'!G128,0) -> 0 | P128: 0 | Q128: 0 | R128: 0 | S128: 0 | T128: 0 | U128: 0 | W128: =IF($A128>0,SUMIF('Age profile (years)'!$CT128:$GF128,"<" & R128+0.5,'Asset data'!$CX128:$GJ128),0) -> 0 | X128: =IF($A128>0,SUMIF('Age profile (years)'!$CT128:$GF128,"<" & S128+0.5,'Asset data'!$CX128:$GJ128)-W128,0) -> 0 | Y128: =IF($A128>0,SUMIF('Age profile (years)'!$CT128:$GF128,"<" & T128+0.5,'Asset data'!$CX128:$GJ128)-X128-W128,0) -> 0 | Z128: =IF($A128>0,SUMIF('Age profile (years)'!$CT128:$GF128,"<" & U128+0.5,'Asset data'!$CX128:$GJ128)-Y128-X128-W128,0) -> 0 | AA128: 0 | AB128: 0 | AC128: 0 | AD128: 0 | AE128: 0 | AF128: 0 | AI128: =IF($A128>0,'RRR hist-forc'!K128,0) -> 0 | AJ128: 0
A129: ='Asset data'!A129 -> 0 | B129: ='Asset data'!B129 -> 0 | C129: ='Asset data'!C129 -> 0 | D129: ='Asset data'!E129 -> 0 | E129: 0 | F129: =IF(A129>0,SUM('Asset data'!J129:CV129),0) -> 0 | G129: =IF(A129>0,'Asset data'!F129,0) -> 0 | H129: =IF(A129>0,SUM('Asset data'!CX129:GJ129),0) -> 0 | I129: 0 | J129: 0 | K129: 0 | L129: 0 | M129: =IF($A129>0,SUMPRODUCT('Age profile (years)'!$CT129:$GF129,'Asset data'!$CX129:$GJ129)/H129-0.5,0) -> 0 | N129: 0 | O129: =IF($A129>0,'Asset data'!G129,0) -> 0 | P129: 0 | Q129: 0 | R129: 0 | S129: 0 | T129: 0 | U129: 0 | W129: =IF($A129>0,SUMIF('Age profile (years)'!$CT129:$GF129,"<" & R129+0.5,'Asset data'!$CX129:$GJ129),0) -> 0 | X129: =IF($A129>0,SUMIF('Age profile (years)'!$CT129:$GF129,"<" & S129+0.5,'Asset data'!$CX129:$GJ129)-W129,0) -> 0 | Y129: =IF($A129>0,SUMIF('Age profile (years)'!$CT129:$GF129,"<" & T129+0.5,'Asset data'!$CX129:$GJ129)-X129-W129,0) -> 0 | Z129: =IF($A129>0,SUMIF('Age profile (years)'!$CT129:$GF129,"<" & U129+0.5,'Asset data'!$CX129:$GJ129)-Y129-X129-W129,0) -> 0 | AA129: 0 | AB129: 0 | AC129: 0 | AD129: 0 | AE129: 0 | AF129: 0 | AI129: =IF($A129>0,'RRR hist-forc'!K129,0) -> 0 | AJ129: 0
A130: ='Asset data'!A130 -> 0 | B130: ='Asset data'!B130 -> 0 | C130: ='Asset data'!C130 -> 0 | D130: ='Asset data'!E130 -> 0 | E130: 0 | F130: =IF(A130>0,SUM('Asset data'!J130:CV130),0) -> 0 | G130: =IF(A130>0,'Asset data'!F130,0) -> 0 | H130: =IF(A130>0,SUM('Asset data'!CX130:GJ130),0) -> 0 | I130: 0 | J130: 0 | K130: 0 | L130: 0 | M130: =IF($A130>0,SUMPRODUCT('Age profile (years)'!$CT130:$GF130,'Asset data'!$CX130:$GJ130)/H130-0.5,0) -> 0 | N130: 0 | O130: =IF($A130>0,'Asset data'!G130,0) -> 0 | P130: 0 | Q130: 0 | R130: 0 | S130: 0 | T130: 0 | U130: 0 | W130: =IF($A130>0,SUMIF('Age profile (years)'!$CT130:$GF130,"<" & R130+0.5,'Asset data'!$CX130:$GJ130),0) -> 0 | X130: =IF($A130>0,SUMIF('Age profile (years)'!$CT130:$GF130,"<" & S130+0.5,'Asset data'!$CX130:$GJ130)-W130,0) -> 0 | Y130: =IF($A130>0,SUMIF('Age profile (years)'!$CT130:$GF130,"<" & T130+0.5,'Asset data'!$CX130:$GJ130)-X130-W130,0) -> 0 | Z130: =IF($A130>0,SUMIF('Age profile (years)'!$CT130:$GF130,"<" & U130+0.5,'Asset data'!$CX130:$GJ130)-Y130-X130-W130,0) -> 0 | AA130: 0 | AB130: 0 | AC130: 0 | AD130: 0 | AE130: 0 | AF130: 0 | AI130: =IF($A130>0,'RRR hist-forc'!K130,0) -> 0 | AJ130: 0
A131: ='Asset data'!A131 -> 0 | B131: ='Asset data'!B131 -> 0 | C131: ='Asset data'!C131 -> 0 | D131: ='Asset data'!E131 -> 0 | E131: 0 | F131: =IF(A131>0,SUM('Asset data'!J131:CV131),0) -> 0 | G131: =IF(A131>0,'Asset data'!F131,0) -> 0 | H131: =IF(A131>0,SUM('Asset data'!CX131:GJ131),0) -> 0 | I131: 0 | J131: 0 | K131: 0 | L131: 0 | M131: =IF($A131>0,SUMPRODUCT('Age profile (years)'!$CT131:$GF131,'Asset data'!$CX131:$GJ131)/H131-0.5,0) -> 0 | N131: 0 | O131: =IF($A131>0,'Asset data'!G131,0) -> 0 | P131: 0 | Q131: 0 | R131: 0 | S131: 0 | T131: 0 | U131: 0 | W131: =IF($A131>0,SUMIF('Age profile (years)'!$CT131:$GF131,"<" & R131+0.5,'Asset data'!$CX131:$GJ131),0) -> 0 | X131: =IF($A131>0,SUMIF('Age profile (years)'!$CT131:$GF131,"<" & S131+0.5,'Asset data'!$CX131:$GJ131)-W131,0) -> 0 | Y131: =IF($A131>0,SUMIF('Age profile (years)'!$CT131:$GF131,"<" & T131+0.5,'Asset data'!$CX131:$GJ131)-X131-W131,0) -> 0 | Z131: =IF($A131>0,SUMIF('Age profile (years)'!$CT131:$GF131,"<" & U131+0.5,'Asset data'!$CX131:$GJ131)-Y131-X131-W131,0) -> 0 | AA131: 0 | AB131: 0 | AC131: 0 | AD131: 0 | AE131: 0 | AF131: 0 | AI131: =IF($A131>0,'RRR hist-forc'!K131,0) -> 0 | AJ131: 0
A132: ='Asset data'!A132 -> 0 | B132: ='Asset data'!B132 -> 0 | C132: ='Asset data'!C132 -> 0 | D132: ='Asset data'!E132 -> 0 | E132: 0 | F132: =IF(A132>0,SUM('Asset data'!J132:CV132),0) -> 0 | G132: =IF(A132>0,'Asset data'!F132,0) -> 0 | H132: =IF(A132>0,SUM('Asset data'!CX132:GJ132),0) -> 0 | I132: 0 | J132: 0 | K132: 0 | L132: 0 | M132: =IF($A132>0,SUMPRODUCT('Age profile (years)'!$CT132:$GF132,'Asset data'!$CX132:$GJ132)/H132-0.5,0) -> 0 | N132: 0 | O132: =IF($A132>0,'Asset data'!G132,0) -> 0 | P132: 0 | Q132: 0 | R132: 0 | S132: 0 | T132: 0 | U132: 0 | W132: =IF($A132>0,SUMIF('Age profile (years)'!$CT132:$GF132,"<" & R132+0.5,'Asset data'!$CX132:$GJ132),0) -> 0 | X132: =IF($A132>0,SUMIF('Age profile (years)'!$CT132:$GF132,"<" & S132+0.5,'Asset data'!$CX132:$GJ132)-W132,0) -> 0 | Y132: =IF($A132>0,SUMIF('Age profile (years)'!$CT132:$GF132,"<" & T132+0.5,'Asset data'!$CX132:$GJ132)-X132-W132,0) -> 0 | Z132: =IF($A132>0,SUMIF('Age profile (years)'!$CT132:$GF132,"<" & U132+0.5,'Asset data'!$CX132:$GJ132)-Y132-X132-W132,0) -> 0 | AA132: 0 | AB132: 0 | AC132: 0 | AD132: 0 | AE132: 0 | AF132: 0 | AI132: =IF($A132>0,'RRR hist-forc'!K132,0) -> 0 | AJ132: 0
A133: ='Asset data'!A133 -> 0 | B133: ='Asset data'!B133 -> 0 | C133: ='Asset data'!C133 -> 0 | D133: ='Asset data'!E133 -> 0 | E133: 0 | F133: =IF(A133>0,SUM('Asset data'!J133:CV133),0) -> 0 | G133: =IF(A133>0,'Asset data'!F133,0) -> 0 | H133: =IF(A133>0,SUM('Asset data'!CX133:GJ133),0) -> 0 | I133: 0 | J133: 0 | K133: 0 | L133: 0 | M133: =IF($A133>0,SUMPRODUCT('Age profile (years)'!$CT133:$GF133,'Asset data'!$CX133:$GJ133)/H133-0.5,0) -> 0 | N133: 0 | O133: =IF($A133>0,'Asset data'!G133,0) -> 0 | P133: 0 | Q133: 0 | R133: 0 | S133: 0 | T133: 0 | U133: 0 | W133: =IF($A133>0,SUMIF('Age profile (years)'!$CT133:$GF133,"<" & R133+0.5,'Asset data'!$CX133:$GJ133),0) -> 0 | X133: =IF($A133>0,SUMIF('Age profile (years)'!$CT133:$GF133,"<" & S133+0.5,'Asset data'!$CX133:$GJ133)-W133,0) -> 0 | Y133: =IF($A133>0,SUMIF('Age profile (years)'!$CT133:$GF133,"<" & T133+0.5,'Asset data'!$CX133:$GJ133)-X133-W133,0) -> 0 | Z133: =IF($A133>0,SUMIF('Age profile (years)'!$CT133:$GF133,"<" & U133+0.5,'Asset data'!$CX133:$GJ133)-Y133-X133-W133,0) -> 0 | AA133: 0 | AB133: 0 | AC133: 0 | AD133: 0 | AE133: 0 | AF133: 0 | AI133: =IF($A133>0,'RRR hist-forc'!K133,0) -> 0 | AJ133: 0
A134: ='Asset data'!A134 -> 0 | B134: ='Asset data'!B134 -> 0 | C134: ='Asset data'!C134 -> 0 | D134: ='Asset data'!E134 -> 0 | E134: 0 | F134: =IF(A134>0,SUM('Asset data'!J134:CV134),0) -> 0 | G134: =IF(A134>0,'Asset data'!F134,0) -> 0 | H134: =IF(A134>0,SUM('Asset data'!CX134:GJ134),0) -> 0 | I134: 0 | J134: 0 | K134: 0 | L134: 0 | M134: =IF($A134>0,SUMPRODUCT('Age profile (years)'!$CT134:$GF134,'Asset data'!$CX134:$GJ134)/H134-0.5,0) -> 0 | N134: 0 | O134: =IF($A134>0,'Asset data'!G134,0) -> 0 | P134: 0 | Q134: 0 | R134: 0 | S134: 0 | T134: 0 | U134: 0 | W134: =IF($A134>0,SUMIF('Age profile (years)'!$CT134:$GF134,"<" & R134+0.5,'Asset data'!$CX134:$GJ134),0) -> 0 | X134: =IF($A134>0,SUMIF('Age profile (years)'!$CT134:$GF134,"<" & S134+0.5,'Asset data'!$CX134:$GJ134)-W134,0) -> 0 | Y134: =IF($A134>0,SUMIF('Age profile (years)'!$CT134:$GF134,"<" & T134+0.5,'Asset data'!$CX134:$GJ134)-X134-W134,0) -> 0 | Z134: =IF($A134>0,SUMIF('Age profile (years)'!$CT134:$GF134,"<" & U134+0.5,'Asset data'!$CX134:$GJ134)-Y134-X134-W134,0) -> 0 | AA134: 0 | AB134: 0 | AC134: 0 | AD134: 0 | AE134: 0 | AF134: 0 | AI134: =IF($A134>0,'RRR hist-forc'!K134,0) -> 0 | AJ134: 0
A135: ='Asset data'!A135 -> 0 | B135: ='Asset data'!B135 -> 0 | C135: ='Asset data'!C135 -> 0 | D135: ='Asset data'!E135 -> 0 | E135: 0 | F135: =IF(A135>0,SUM('Asset data'!J135:CV135),0) -> 0 | G135: =IF(A135>0,'Asset data'!F135,0) -> 0 | H135: =IF(A135>0,SUM('Asset data'!CX135:GJ135),0) -> 0 | I135: 0 | J135: 0 | K135: 0 | L135: 0 | M135: =IF($A135>0,SUMPRODUCT('Age profile (years)'!$CT135:$GF135,'Asset data'!$CX135:$GJ135)/H135-0.5,0) -> 0 | N135: 0 | O135: =IF($A135>0,'Asset data'!G135,0) -> 0 | P135: 0 | Q135: 0 | R135: 0 | S135: 0 | T135: 0 | U135: 0 | W135: =IF($A135>0,SUMIF('Age profile (years)'!$CT135:$GF135,"<" & R135+0.5,'Asset data'!$CX135:$GJ135),0) -> 0 | X135: =IF($A135>0,SUMIF('Age profile (years)'!$CT135:$GF135,"<" & S135+0.5,'Asset data'!$CX135:$GJ135)-W135,0) -> 0 | Y135: =IF($A135>0,SUMIF('Age profile (years)'!$CT135:$GF135,"<" & T135+0.5,'Asset data'!$CX135:$GJ135)-X135-W135,0) -> 0 | Z135: =IF($A135>0,SUMIF('Age profile (years)'!$CT135:$GF135,"<" & U135+0.5,'Asset data'!$CX135:$GJ135)-Y135-X135-W135,0) -> 0 | AA135: 0 | AB135: 0 | AC135: 0 | AD135: 0 | AE135: 0 | AF135: 0 | AI135: =IF($A135>0,'RRR hist-forc'!K135,0) -> 0 | AJ135: 0
A136: ='Asset data'!A136 -> 0 | B136: ='Asset data'!B136 -> 0 | C136: ='Asset data'!C136 -> 0 | D136: ='Asset data'!E136 -> 0 | E136: 0 | F136: =IF(A136>0,SUM('Asset data'!J136:CV136),0) -> 0 | G136: =IF(A136>0,'Asset data'!F136,0) -> 0 | H136: =IF(A136>0,SUM('Asset data'!CX136:GJ136),0) -> 0 | I136: 0 | J136: 0 | K136: 0 | L136: 0 | M136: =IF($A136>0,SUMPRODUCT('Age profile (years)'!$CT136:$GF136,'Asset data'!$CX136:$GJ136)/H136-0.5,0) -> 0 | N136: 0 | O136: =IF($A136>0,'Asset data'!G136,0) -> 0 | P136: 0 | Q136: 0 | R136: 0 | S136: 0 | T136: 0 | U136: 0 | W136: =IF($A136>0,SUMIF('Age profile (years)'!$CT136:$GF136,"<" & R136+0.5,'Asset data'!$CX136:$GJ136),0) -> 0 | X136: =IF($A136>0,SUMIF('Age profile (years)'!$CT136:$GF136,"<" & S136+0.5,'Asset data'!$CX136:$GJ136)-W136,0) -> 0 | Y136: =IF($A136>0,SUMIF('Age profile (years)'!$CT136:$GF136,"<" & T136+0.5,'Asset data'!$CX136:$GJ136)-X136-W136,0) -> 0 | Z136: =IF($A136>0,SUMIF('Age profile (years)'!$CT136:$GF136,"<" & U136+0.5,'Asset data'!$CX136:$GJ136)-Y136-X136-W136,0) -> 0 | AA136: 0 | AB136: 0 | AC136: 0 | AD136: 0 | AE136: 0 | AF136: 0 | AI136: =IF($A136>0,'RRR hist-forc'!K136,0) -> 0 | AJ136: 0
A137: ='Asset data'!A137 -> 0 | B137: ='Asset data'!B137 -> 0 | C137: ='Asset data'!C137 -> 0 | D137: ='Asset data'!E137 -> 0 | E137: 0 | F137: =IF(A137>0,SUM('Asset data'!J137:CV137),0) -> 0 | G137: =IF(A137>0,'Asset data'!F137,0) -> 0 | H137: =IF(A137>0,SUM('Asset data'!CX137:GJ137),0) -> 0 | I137: 0 | J137: 0 | K137: 0 | L137: 0 | M137: =IF($A137>0,SUMPRODUCT('Age profile (years)'!$CT137:$GF137,'Asset data'!$CX137:$GJ137)/H137-0.5,0) -> 0 | N137: 0 | O137: =IF($A137>0,'Asset data'!G137,0) -> 0 | P137: 0 | Q137: 0 | R137: 0 | S137: 0 | T137: 0 | U137: 0 | W137: =IF($A137>0,SUMIF('Age profile (years)'!$CT137:$GF137,"<" & R137+0.5,'Asset data'!$CX137:$GJ137),0) -> 0 | X137: =IF($A137>0,SUMIF('Age profile (years)'!$CT137:$GF137,"<" & S137+0.5,'Asset data'!$CX137:$GJ137)-W137,0) -> 0 | Y137: =IF($A137>0,SUMIF('Age profile (years)'!$CT137:$GF137,"<" & T137+0.5,'Asset data'!$CX137:$GJ137)-X137-W137,0) -> 0 | Z137: =IF($A137>0,SUMIF('Age profile (years)'!$CT137:$GF137,"<" & U137+0.5,'Asset data'!$CX137:$GJ137)-Y137-X137-W137,0) -> 0 | AA137: 0 | AB137: 0 | AC137: 0 | AD137: 0 | AE137: 0 | AF137: 0 | AI137: =IF($A137>0,'RRR hist-forc'!K137,0) -> 0 | AJ137: 0
A138: ='Asset data'!A138 -> 0 | B138: ='Asset data'!B138 -> 0 | C138: ='Asset data'!C138 -> 0 | D138: ='Asset data'!E138 -> 0 | E138: 0 | F138: =IF(A138>0,SUM('Asset data'!J138:CV138),0) -> 0 | G138: =IF(A138>0,'Asset data'!F138,0) -> 0 | H138: =IF(A138>0,SUM('Asset data'!CX138:GJ138),0) -> 0 | I138: 0 | J138: 0 | K138: 0 | L138: 0 | M138: =IF($A138>0,SUMPRODUCT('Age profile (years)'!$CT138:$GF138,'Asset data'!$CX138:$GJ138)/H138-0.5,0) -> 0 | N138: 0 | O138: =IF($A138>0,'Asset data'!G138,0) -> 0 | P138: 0 | Q138: 0 | R138: 0 | S138: 0 | T138: 0 | U138: 0 | W138: =IF($A138>0,SUMIF('Age profile (years)'!$CT138:$GF138,"<" & R138+0.5,'Asset data'!$CX138:$GJ138),0) -> 0 | X138: =IF($A138>0,SUMIF('Age profile (years)'!$CT138:$GF138,"<" & S138+0.5,'Asset data'!$CX138:$GJ138)-W138,0) -> 0 | Y138: =IF($A138>0,SUMIF('Age profile (years)'!$CT138:$GF138,"<" & T138+0.5,'Asset data'!$CX138:$GJ138)-X138-W138,0) -> 0 | Z138: =IF($A138>0,SUMIF('Age profile (years)'!$CT138:$GF138,"<" & U138+0.5,'Asset data'!$CX138:$GJ138)-Y138-X138-W138,0) -> 0 | AA138: 0 | AB138: 0 | AC138: 0 | AD138: 0 | AE138: 0 | AF138: 0 | AI138: =IF($A138>0,'RRR hist-forc'!K138,0) -> 0 | AJ138: 0
A139: ='Asset data'!A139 -> 0 | B139: ='Asset data'!B139 -> 0 | C139: ='Asset data'!C139 -> 0 | D139: ='Asset data'!E139 -> 0 | E139: 0 | F139: =IF(A139>0,SUM('Asset data'!J139:CV139),0) -> 0 | G139: =IF(A139>0,'Asset data'!F139,0) -> 0 | H139: =IF(A139>0,SUM('Asset data'!CX139:GJ139),0) -> 0 | I139: 0 | J139: 0 | K139: 0 | L139: 0 | M139: =IF($A139>0,SUMPRODUCT('Age profile (years)'!$CT139:$GF139,'Asset data'!$CX139:$GJ139)/H139-0.5,0) -> 0 | N139: 0 | O139: =IF($A139>0,'Asset data'!G139,0) -> 0 | P139: 0 | Q139: 0 | R139: 0 | S139: 0 | T139: 0 | U139: 0 | W139: =IF($A139>0,SUMIF('Age profile (years)'!$CT139:$GF139,"<" & R139+0.5,'Asset data'!$CX139:$GJ139),0) -> 0 | X139: =IF($A139>0,SUMIF('Age profile (years)'!$CT139:$GF139,"<" & S139+0.5,'Asset data'!$CX139:$GJ139)-W139,0) -> 0 | Y139: =IF($A139>0,SUMIF('Age profile (years)'!$CT139:$GF139,"<" & T139+0.5,'Asset data'!$CX139:$GJ139)-X139-W139,0) -> 0 | Z139: =IF($A139>0,SUMIF('Age profile (years)'!$CT139:$GF139,"<" & U139+0.5,'Asset data'!$CX139:$GJ139)-Y139-X139-W139,0) -> 0 | AA139: 0 | AB139: 0 | AC139: 0 | AD139: 0 | AE139: 0 | AF139: 0 | AI139: =IF($A139>0,'RRR hist-forc'!K139,0) -> 0 | AJ139: 0
A140: ='Asset data'!A140 -> 0 | B140: ='Asset data'!B140 -> 0 | C140: ='Asset data'!C140 -> 0 | D140: ='Asset data'!E140 -> 0 | E140: 0 | F140: =IF(A140>0,SUM('Asset data'!J140:CV140),0) -> 0 | G140: =IF(A140>0,'Asset data'!F140,0) -> 0 | H140: =IF(A140>0,SUM('Asset data'!CX140:GJ140),0) -> 0 | I140: 0 | J140: 0 | K140: 0 | L140: 0 | M140: =IF($A140>0,SUMPRODUCT('Age profile (years)'!$CT140:$GF140,'Asset data'!$CX140:$GJ140)/H140-0.5,0) -> 0 | N140: 0 | O140: =IF($A140>0,'Asset data'!G140,0) -> 0 | P140: 0 | Q140: 0 | R140: 0 | S140: 0 | T140: 0 | U140: 0 | W140: =IF($A140>0,SUMIF('Age profile (years)'!$CT140:$GF140,"<" & R140+0.5,'Asset data'!$CX140:$GJ140),0) -> 0 | X140: =IF($A140>0,SUMIF('Age profile (years)'!$CT140:$GF140,"<" & S140+0.5,'Asset data'!$CX140:$GJ140)-W140,0) -> 0 | Y140: =IF($A140>0,SUMIF('Age profile (years)'!$CT140:$GF140,"<" & T140+0.5,'Asset data'!$CX140:$GJ140)-X140-W140,0) -> 0 | Z140: =IF($A140>0,SUMIF('Age profile (years)'!$CT140:$GF140,"<" & U140+0.5,'Asset data'!$CX140:$GJ140)-Y140-X140-W140,0) -> 0 | AA140: 0 | AB140: 0 | AC140: 0 | AD140: 0 | AE140: 0 | AF140: 0 | AI140: =IF($A140>0,'RRR hist-forc'!K140,0) -> 0 | AJ140: 0
A141: ='Asset data'!A141 -> 0 | B141: ='Asset data'!B141 -> 0 | C141: ='Asset data'!C141 -> 0 | D141: ='Asset data'!E141 -> 0 | E141: 0 | F141: =IF(A141>0,SUM('Asset data'!J141:CV141),0) -> 0 | G141: =IF(A141>0,'Asset data'!F141,0) -> 0 | H141: =IF(A141>0,SUM('Asset data'!CX141:GJ141),0) -> 0 | I141: 0 | J141: 0 | K141: 0 | L141: 0 | M141: =IF($A141>0,SUMPRODUCT('Age profile (years)'!$CT141:$GF141,'Asset data'!$CX141:$GJ141)/H141-0.5,0) -> 0 | N141: 0 | O141: =IF($A141>0,'Asset data'!G141,0) -> 0 | P141: 0 | Q141: 0 | R141: 0 | S141: 0 | T141: 0 | U141: 0 | W141: =IF($A141>0,SUMIF('Age profile (years)'!$CT141:$GF141,"<" & R141+0.5,'Asset data'!$CX141:$GJ141),0) -> 0 | X141: =IF($A141>0,SUMIF('Age profile (years)'!$CT141:$GF141,"<" & S141+0.5,'Asset data'!$CX141:$GJ141)-W141,0) -> 0 | Y141: =IF($A141>0,SUMIF('Age profile (years)'!$CT141:$GF141,"<" & T141+0.5,'Asset data'!$CX141:$GJ141)-X141-W141,0) -> 0 | Z141: =IF($A141>0,SUMIF('Age profile (years)'!$CT141:$GF141,"<" & U141+0.5,'Asset data'!$CX141:$GJ141)-Y141-X141-W141,0) -> 0 | AA141: 0 | AB141: 0 | AC141: 0 | AD141: 0 | AE141: 0 | AF141: 0 | AI141: =IF($A141>0,'RRR hist-forc'!K141,0) -> 0 | AJ141: 0
A142: ='Asset data'!A142 -> 0 | B142: ='Asset data'!B142 -> 0 | C142: ='Asset data'!C142 -> 0 | D142: ='Asset data'!E142 -> 0 | E142: 0 | F142: =IF(A142>0,SUM('Asset data'!J142:CV142),0) -> 0 | G142: =IF(A142>0,'Asset data'!F142,0) -> 0 | H142: =IF(A142>0,SUM('Asset data'!CX142:GJ142),0) -> 0 | I142: 0 | J142: 0 | K142: 0 | L142: 0 | M142: =IF($A142>0,SUMPRODUCT('Age profile (years)'!$CT142:$GF142,'Asset data'!$CX142:$GJ142)/H142-0.5,0) -> 0 | N142: 0 | O142: =IF($A142>0,'Asset data'!G142,0) -> 0 | P142: 0 | Q142: 0 | R142: 0 | S142: 0 | T142: 0 | U142: 0 | W142: =IF($A142>0,SUMIF('Age profile (years)'!$CT142:$GF142,"<" & R142+0.5,'Asset data'!$CX142:$GJ142),0) -> 0 | X142: =IF($A142>0,SUMIF('Age profile (years)'!$CT142:$GF142,"<" & S142+0.5,'Asset data'!$CX142:$GJ142)-W142,0) -> 0 | Y142: =IF($A142>0,SUMIF('Age profile (years)'!$CT142:$GF142,"<" & T142+0.5,'Asset data'!$CX142:$GJ142)-X142-W142,0) -> 0 | Z142: =IF($A142>0,SUMIF('Age profile (years)'!$CT142:$GF142,"<" & U142+0.5,'Asset data'!$CX142:$GJ142)-Y142-X142-W142,0) -> 0 | AA142: 0 | AB142: 0 | AC142: 0 | AD142: 0 | AE142: 0 | AF142: 0 | AI142: =IF($A142>0,'RRR hist-forc'!K142,0) -> 0 | AJ142: 0
AI206: =IF($A206>0,'RRR hist-forc'!K206,0) -> 0 | AJ206: =IF($A206>0,AI206*H206,0) -> 0

Sheet Asset data
A1: Meth all | D1: 3 | E1: =IF(D1=2,"all normal",IF(D1=1,"all deterministic","individual")) -> individual | L1: Profile type: | M1: 3 | N1: =VLOOKUP(APtype,IDtable,4) -> Installation date
F3: Unit | J3: Quantities | CX3: Replacement Cost (NOT depreciated)
F4: Cost | G4: Replacement life | I4: Rep | J4: =VLOOKUP(APtype,IDtable,4) -> Installation date | CX4: =VLOOKUP(APtype,IDtable,4) -> Installation date
A5: ID | B5: ID | C5: ID | D5: Asset category | E5: Asset ID | F5: $ ('000) | G5: mean | H5: SD | I5: Meth | J5: =IF(OR(APtype=1,APtype=2),0,IF(APtype=3,Now,9999)) -> 2014 | K5: =IF(OR(APtype=1,APtype=2),J5+1,IF(APtype=3,J5-1,9999)) -> 2013 | L5: 2012 | M5: 2011 | N5: 2010 | O5: 2009 | P5: 2008 | Q5: 2007 | R5: 2006 | S5: 2005 | T5: 2004 | U5: 2003 | V5: 2002 | W5: 2001 | X5: 2000 | Y5: 1999 | Z5: 1998 | AA5: 1997 | AB5: 1996 | AC5: 1995 | AD5: 1994 | AE5: 1993 | AF5: 1992 | AG5: 1991 | AH5: 1990 | AI5: 1989 | AJ5: 1988 | AK5: 1987 | AL5: 1986 | AM5: 1985 | AN5: 1984 | AO5: 1983 | AP5: 1982 | AQ5: =IF(OR(APtype=1,APtype=2),AP5+1,IF(APtype=3,AP5-1,9999)) -> 1981 | AR5: 1980 | AS5: 1979 | AT5: 1978 | AU5: 1977 | AV5: 1976 | AW5: 1975 | AX5: 1974 | AY5: 1973 | AZ5: 1972 | BA5: 1971 | BB5: 1970 | BC5: 1969 | BD5: 1968 | BE5: 1967 | BF5: 1966 | BG5: 1965 | BH5: 1964 | BI5: 1963 | BJ5: 1962 | BK5: 1961 | BL5: 1960 | BM5: 1959 | BN5: 1958 | BO5: 1957 | BP5: 1956 | BQ5: 1955 | BR5: 1954 | BS5: 1953 | BT5: 1952 | BU5: 1951 | BV5: 1950 | BW5: =IF(OR(APtype=1,APtype=2),BV5+1,IF(APtype=3,BV5-1,9999)) -> 1949 | BX5: 1948 | BY5: 1947 | BZ5: 1946 | CA5: 1945 | CB5: 1944 | CC5: 1943 | CD5: 1942 | CE5: 1941 | CF5: 1940 | CG5: 1939 | CH5: 1938 | CI5: 1937 | CJ5: 1936 | CK5: 1935 | CL5: 1934 | CM5: 1933 | CN5: 1932 | CO5: 1931 | CP5: 1930 | CQ5: 1929 | CR5: 1928 | CS5: 1927 | CT5: 1926 | CU5: 1925 | CV5: 1924 | CX5: =J5 -> 2014 | CY5: =K5 -> 2013 | CZ5: 2012 | DA5: 2011 | DB5: 2010 | DC5: 2009 | DD5: 2008 | DE5: 2007 | DF5: 2006 | DG5: 2005 | DH5: 2004 | DI5: 2003 | DJ5: 2002 | DK5: 2001 | DL5: 2000 | DM5: 1999 | DN5: 1998 | DO5: 1997 | DP5: 1996 | DQ5: 1995 | DR5: 1994 | DS5: 1993 | DT5: 1992 | DU5: 1991 | DV5: 1990 | DW5: 1989 | DX5: 1988 | DY5: 1987 | DZ5: 1986 | EA5: 1985 | EB5: 1984 | EC5: 1983 | ED5: 1982 | EE5: 1981 | EF5: 1980 | EG5: 1979 | EH5: 1978 | EI5: 1977 | EJ5: 1976 | EK5: 1975 | EL5: 1974 | EM5: 1973 | EN5: 1972 | EO5: 1971 | EP5: 1970 | EQ5: 1969 | ER5: 1968 | ES5: 1967 | ET5: 1966 | EU5: 1965 | EV5: 1964 | EW5: 1963 | EX5: 1962 | EY5: 1961 | EZ5: 1960 | FA5: 1959 | FB5: 1958 | FC5: 1957 | FD5: 1956 | FE5: 1955 | FF5: 1954 | FG5: 1953 | FH5: 1952 | FI5: 1951 | FJ5: 1950 | FK5: =BW5 -> 1949 | FL5: 1948 | FM5: 1947 | FN5: 1946 | FO5: 1945 | FP5: 1944 | FQ5: 1943 | FR5: 1942 | FS5: 1941 | FT5: 1940 | FU5: 1939 | FV5: 1938 | FW5: 1937 | FX5: 1936 | FY5: 1935 | FZ5: 1934 | GA5: 1933 | GB5: 1932 | GC5: 1931 | GD5: 1930 | GE5: 1929 | GF5: 1928 | GG5: 1927 | GH5: 1926 | GI5: 1925 | GJ5: 1924
A21: 1 | D21: POLES | E21: Staking of a wooden pole | F21: 20.92657696 | G21: 33.1697284 | H21: 5.759316661 | I21: 2 | J21: 574 | K21: 499 | L21: 392 | M21: 279 | N21: 298 | O21: 313 | P21: 269 | Q21: 141 | R21: 96 | S21: 246 | T21: 170 | U21: 189 | V21: 255 | W21: 109 | X21: 125 | Y21: 152 | Z21: 119 | AA21: 141 | AB21: 261 | AC21: 85 | AD21: 18 | AE21: 22 | AF21: 13 | AG21: 101 | AH21: 68 | AI21: 104 | AJ21: 64 | AK21: 14 | AL21: 125 | AM21: 7 | AN21: 5 | AO21: 11 | AP21: 9 | AQ21: 8 | AR21: 10 | AS21: 0 | AT21: 0 | AU21: 0 | AV21: 0 | AW21: 0 | AX21: 0 | AY21: 0 | AZ21: 0 | BA21: 0 | BB21: 0 | BC21: 0 | BD21: 0 | BE21: 0 | BF21: 0 | BG21: 0 | BH21: 0 | BI21: 0 | BJ21: 0 | BK21: 0 | BL21: 0 | BM21: 0 | BN21: 0 | BO21: 0 | BP21: 0 | BQ21: 0 | BR21: 0 | BS21: 0 | BT21: 0 | BU21: 0 | BV21: 0 | BW21: 0 | BX21: 0 | BY21: 0 | BZ21: 0 | CA21: 0 | CB21: 0 | CC21: 0 | CD21: 0 | CE21: 0 | CF21: 0 | CG21: 0 | CH21: 0 | CI21: 0 | CJ21: 0 | CK21: 0 | CL21: 0 | CM21: 0 | CN21: 0 | CO21: 0 | CP21: 0 | CQ21: 0 | CR21: 0 | CS21: 0 | CT21: 0 | CU21: 0 | CV21: 0 | CX21: =$F21*J21 -> 12011.85518 | CY21: =$F21*K21 -> 10442.3619 | CZ21: 8203.21817 | DA21: 5838.514973 | DB21: 6236.119935 | DC21: 6550.01859 | DD21: 5629.249203 | DE21: 2950.647352 | DF21: 2008.951389 | DG21: 5147.937933 | DH21: 3557.518084 | DI21: 3955.123046 | DJ21: 5336.277126 | DK21: 2280.996889 | DL21: 2615.82212 | DM21: 3180.839699 | DN21: 2490.262659 | DO21: 2950.647352 | DP21: 5461.836588 | DQ21: 1778.759042 | DR21: 376.6783854 | DS21: 460.3846932 | DT21: 272.0455005 | DU21: 2113.584273 | DV21: 1423.007234 | DW21: 2176.364004 | DX21: 1339.300926 | DY21: 292.9720775 | DZ21: 2615.82212 | EA21: 146.4860387 | EB21: 104.6328848 | EC21: 230.1923466 | ED21: 188.3391927 | EE21: 167.4126157 | EF21: 209.2657696 | EG21: 0 | EH21: 0 | EI21: 0 | EJ21: 0 | EK21: 0 | EL21: 0 | EM21: 0 | EN21: 0 | EO21: 0 | EP21: 0 | EQ21: 0 | ER21: 0 | ES21: 0 | ET21: 0 | EU21: 0 | EV21: 0 | EW21: 0 | EX21: 0 | EY21: 0 | EZ21: 0 | FA21: 0 | FB21: 0 | FC21: 0 | FD21: 0 | FE21: 0 | FF21: 0 | FG21: 0 | FH21: 0 | FI21: 0 | FJ21: 0 | FK21: =$F21*BW21 -> 0 | FL21: 0 | FM21: 0 | FN21: 0 | FO21: 0 | FP21: 0 | FQ21: 0 | FR21: 0 | FS21: 0 | FT21: 0 | FU21: 0 | FV21: 0 | FW21: 0 | FX21: 0 | FY21: 0 | FZ21: 0 | GA21: 0 | GB21: 0 | GC21: 0 | GD21: 0 | GE21: 0 | GF21: 0 | GG21: 0 | GH21: 0 | GI21: 0 | GJ21: 0
A22: 1 | D22: POLES | E22: ˂ = 1 kV; Wood | F22: 4.472066254 | G22: 74.53391 | H22: 8.633302381 | I22: 2 | J22: 99 | K22: 162 | L22: 168 | M22: 154 | N22: 99 | O22: 140 | P22: 130 | Q22: 79 | R22: 85 | S22: 129 | T22: 43 | U22: 100 | V22: 123 | W22: 48 | X22: 22 | Y22: 175 | Z22: 8 | AA22: 8 | AB22: 13 | AC22: 54 | AD22: 6 | AE22: 14 | AF22: 72 | AG22: 67 | AH22: 149 | AI22: 245 | AJ22: 337 | AK22: 213 | AL22: 570 | AM22: 369 | AN22: 396 | AO22: 265 | AP22: 640 | AQ22: 511 | AR22: 399 | AS22: 579 | AT22: 489 | AU22: 323 | AV22: 325 | AW22: 226 | AX22: 191 | AY22: 212 | AZ22: 926 | BA22: 968 | BB22: 657 | BC22: 783 | BD22: 1049 | BE22: 1022 | BF22: 701 | BG22: 625 | BH22: 683 | BI22: 526 | BJ22: 601 | BK22: 630 | BL22: 447 | BM22: 339 | BN22: 326 | BO22: 100 | BP22: 165 | BQ22: 84 | BR22: 81 | BS22: 115 | BT22: 44 | BU22: 24 | BV22: 83 | BW22: 14 | BX22: 27 | BY22: 40 | BZ22: 40 | CA22: 25 | CB22: 22 | CC22: 53 | CD22: 117 | CE22: 177 | CF22: 381 | CG22: 314 | CH22: 252 | CI22: 216 | CJ22: 284 | CK22: 332 | CL22: 335 | CM22: 204 | CN22: 98 | CO22: 15 | CP22: 17 | CQ22: 0 | CR22: 0 | CS22: 0 | CT22: 0 | CU22: 0 | CV22: 0 | CX22: =$F22*J22 -> 442.7345591 | CY22: =$F22*K22 -> 724.4747331 | CZ22: =$F22*L22 -> 751.3071306 | DA22: =$F22*M22 -> 688.6982031 | DB22: =$F22*N22 -> 442.7345591 | DC22: =$F22*O22 -> 626.0892755 | DD22: =$F22*P22 -> 581.368613 | DE22: =$F22*Q22 -> 353.293234 | DF22: =$F22*R22 -> 380.1256316 | DG22: =$F22*S22 -> 576.8965467 | DH22: =$F22*T22 -> 192.2988489 | DI22: =$F22*U22 -> 447.2066254 | DJ22: =$F22*V22 -> 550.0641492 | DK22: =$F22*W22 -> 214.6591802 | DL22: =$F22*X22 -> 98.38545758 | DM22: =$F22*Y22 -> 782.6115944 | DN22: =$F22*Z22 -> 35.77653003 | DO22: =$F22*AA22 -> 35.77653003 | DP22: =$F22*AB22 -> 58.1368613 | DQ22: =$F22*AC22 -> 241.4915777 | DR22: =$F22*AD22 -> 26.83239752 | DS22: =$F22*AE22 -> 62.60892755 | DT22: =$F22*AF22 -> 321.9887703 | DU22: =$F22*AG22 -> 299.628439 | DV22: =$F22*AH22 -> 666.3378718 | DW22: =$F22*AI22 -> 1095.656232 | DX22: =$F22*AJ22 -> 1507.086327 | DY22: =$F22*AK22 -> 952.550112 | DZ22: =$F22*AL22 -> 2549.077765 | EA22: =$F22*AM22 -> 1650.192448 | EB22: =$F22*AN22 -> 1770.938236 | EC22: =$F22*AO22 -> 1185.097557 | ED22: =$F22*AP22 -> 2862.122402 | EE22: =$F22*AQ22 -> 2285.225856 | EF22: =$F22*AR22 -> 1784.354435 | EG22: =$F22*AS22 -> 2589.326361 | EH22: =$F22*AT22 -> 2186.840398 | EI22: =$F22*AU22 -> 1444.4774 | EJ22: =$F22*AV22 -> 1453.421532 | EK22: =$F22*AW22 -> 1010.686973 | EL22: =$F22*AX22 -> 854.1646544 | EM22: =$F22*AY22 -> 948.0780458 | EN22: =$F22*AZ22 -> 4141.133351 | EO22: =$F22*BA22 -> 4328.960133 | EP22: =$F22*BB22 -> 2938.147529 | EQ22: =$F22*BC22 -> 3501.627877 | ER22: =$F22*BD22 -> 4691.1975 | ES22: =$F22*BE22 -> 4570.451711 | ET22: =$F22*BF22 -> 3134.918444 | EU22: =$F22*BG22 -> 2795.041409 | EV22: =$F22*BH22 -> 3054.421251 | EW22: =$F22*BI22 -> 2352.306849 | EX22: =$F22*BJ22 -> 2687.711818 | EY22: =$F22*BK22 -> 2817.40174 | EZ22: =$F22*BL22 -> 1999.013615 | FA22: =$F22*BM22 -> 1516.03046 | FB22: =$F22*BN22 -> 1457.893599 | FC22: =$F22*BO22 -> 447.2066254 | FD22: =$F22*BP22 -> 737.8909318 | FE22: =$F22*BQ22 -> 375.6535653 | FF22: =$F22*BR22 -> 362.2373665 | FG22: =$F22*BS22 -> 514.2876192 | FH22: =$F22*BT22 -> 196.7709152 | FI22: =$F22*BU22 -> 107.3295901 | FJ22: =$F22*BV22 -> 371.181499 | FK22: =$F22*BW22 -> 62.60892755 | FL22: =$F22*BX22 -> 120.7457888 | FM22: =$F22*BY22 -> 178.8826501 | FN22: =$F22*BZ22 -> 178.8826501 | FO22: =$F22*CA22 -> 111.8016563 | FP22: =$F22*CB22 -> 98.38545758 | FQ22: =$F22*CC22 -> 237.0195114 | FR22: =$F22*CD22 -> 523.2317517 | FS22: =$F22*CE22 -> 791.5557269 | FT22: =$F22*CF22 -> 1703.857243 | FU22: =$F22*CG22 -> 1404.228804 | FV22: =$F22*CH22 -> 1126.960696 | FW22: =$F22*CI22 -> 965.9663108 | FX22: =$F22*CJ22 -> 1270.066816 | FY22: =$F22*CK22 -> 1484.725996 | FZ22: =$F22*CL22 -> 1498.142195 | GA22: =$F22*CM22 -> 912.3015157 | GB22: =$F22*CN22 -> 438.2624929 | GC22: =$F22*CO22 -> 67.0809938 | GD22: =$F22*CP22 -> 76.02512631 | GE22: =$F22*CQ22 -> 0 | GF22: =$F22*CR22 -> 0 | GG22: =$F22*CS22 -> 0 | GH22: =$F22*CT22 -> 0 | GI22: =$F22*CU22 -> 0 | GJ22: =$F22*CV22 -> 0
A23: 1 | D23: POLES | E23: > 1 kV & < = 11 kV; Wood | F23: 4.624291721 | G23: 72.91031157 | H23: 8.538753514 | I23: 2 | J23: 60 | K23: 136 | L23: 71 | M23: 100 | N23: 62 | O23: 52 | P23: 80 | Q23: 41 | R23: 70 | S23: 72 | T23: 35 | U23: 58 | V23: 72 | W23: 102 | X23: 36 | Y23: 111 | Z23: 46 | AA23: 35 | AB23: 54 | AC23: 19 | AD23: 39 | AE23: 60 | AF23: 11 | AG23: 79 | AH23: 128 | AI23: 161 | AJ23: 172 | AK23: 181 | AL23: 357 | AM23: 281 | AN23: 265 | AO23: 230 | AP23: 304 | AQ23: 169 | AR23: 291 | AS23: 364 | AT23: 308 | AU23: 101 | AV23: 135 | AW23: 88 | AX23: 104 | AY23: 137 | AZ23: 297 | BA23: 115 | BB23: 162 | BC23: 255 | BD23: 328 | BE23: 547 | BF23: 322 | BG23: 482 | BH23: 202 | BI23: 241 | BJ23: 225 | BK23: 187 | BL23: 141 | BM23: 111 | BN23: 87 | BO23: 47 | BP23: 32 | BQ23: 27 | BR23: 42 | BS23: 29 | BT23: 28 | BU23: 5 | BV23: 21 | BW23: 17 | BX23: 5 | BY23: 8 | BZ23: 8 | CA23: 4 | CB23: 7 | CC23: 9 | CD23: 28 | CE23: 60 | CF23: 103 | CG23: 89 | CH23: 52 | CI23: 35 | CJ23: 83 | CK23: 73 | CL23: 80 | CM23: 101 | CN23: 43 | CO23: 6 | CP23: 18 | CQ23: 0 | CR23: 0 | CS23: 0 | CT23: 0 | CU23: 0 | CV23: 0 | CX23: 277.4575032 | CY23: 628.903674 | CZ23: 328.3247122 | DA23: 462.4291721 | DB23: 286.7060867 | DC23: 240.4631695 | DD23: 369.9433377 | DE23: 189.5959606 | DF23: 323.7004205 | DG23: 332.9490039 | DH23: 161.8502102 | DI23: 268.2089198 | DJ23: 332.9490039 | DK23: 471.6777555 | DL23: 166.4745019 | DM23: 513.296381 | DN23: 212.7174192 | DO23: 161.8502102 | DP23: 249.7117529 | DQ23: 87.86154269 | DR23: 180.3473771 | DS23: 277.4575032 | DT23: 50.86720893 | DU23: 365.3190459 | DV23: 591.9093403 | DW23: 744.510967 | DX23: 795.378176 | DY23: 836.9968015 | DZ23: 1650.872144 | EA23: 1299.425974 | EB23: 1225.437306 | EC23: 1063.587096 | ED23: 1405.784683 | EE23: 781.5053008 | EF23: 1345.668891 | EG23: 1683.242186 | EH23: 1424.28185 | EI23: 467.0534638 | EJ23: 624.2793823 | EK23: 406.9376714 | EL23: 480.926339 | EM23: 633.5279657 | EN23: 1373.414641 | EO23: 531.7935479 | EP23: 749.1352588 | EQ23: 1179.194389 | ER23: 1516.767684 | ES23: 2529.487571 | ET23: 1489.021934 | EU23: 2228.908609 | EV23: 934.1069276 | EW23: 1114.454305 | EX23: 1040.465637 | EY23: 864.7425518 | EZ23: 652.0251326 | FA23: 513.296381 | FB23: 402.3133797 | FC23: 217.3417109 | FD23: 147.9773351 | FE23: 124.8558765 | FF23: 194.2202523 | FG23: 134.1044599 | FH23: 129.4801682 | FI23: 23.1214586 | FJ23: 97.11012614 | FK23: 78.61295925 | FL23: 23.1214586 | FM23: 36.99433377 | FN23: 36.99433377 | FO23: 18.49716688 | FP23: 32.37004205 | FQ23: 41.61862549 | FR23: 129.4801682 | FS23: 277.4575032 | FT23: 476.3020472 | FU23: 411.5619631 | FV23: 240.4631695 | FW23: 161.8502102 | FX23: 383.8162128 | FY23: 337.5732956 | FZ23: 369.9433377 | GA23: 467.0534638 | GB23: 198.844544 | GC23: 27.74575032 | GD23: 83.23725097 | GE23: 0 | GF23: 0 | GG23: 0 | GH23: 0 | GI23: 0 | GJ23: 0
A24: 1 | D24: POLES | E24: ˃ 11 kV & < = 22 kV; Wood | F24: 4.805719192 | G24: 81.47446463 | H24: 9.026320659 | I24: 2 | J24: 6 | K24: 18 | L24: 23 | M24: 9 | N24: 3 | O24: 3 | P24: 9 | Q24: 4 | R24: 4 | S24: 11 | T24: 6 | U24: 13 | V24: 8 | W24: 12 | X24: 2 | Y24: 1 | Z24: 5 | AA24: 19 | AB24: 13 | AC24: 24 | AD24: 1 | AE24: 8 | AF24: 2 | AG24: 10 | AH24: 19 | AI24: 48 | AJ24: 10 | AK24: 10 | AL24: 14 | AM24: 18 | AN24: 25 | AO24: 11 | AP24: 36 | AQ24: 12 | AR24: 12 | AS24: 14 | AT24: 11 | AU24: 10 | AV24: 15 | AW24: 5 | AX24: 5 | AY24: 4 | AZ24: 10 | BA24: 7 | BB24: 9 | BC24: 20 | BD24: 9 | BE24: 18 | BF24: 20 | BG24: 23 | BH24: 40 | BI24: 19 | BJ24: 68 | BK24: 11 | BL24: 10 | BM24: 6 | BN24: 11 | BO24: 13 | BP24: 5 | BQ24: 5 | BR24: 2 | BS24: 2 | BT24: 12 | BU24: 8 | BV24: 4 | BW24: 2 | BX24: 3 | BY24: 3 | BZ24: 2 | CA24: 2 | CB24: 0 | CC24: 4 | CD24: 12 | CE24: 6 | CF24: 12 | CG24: 5 | CH24: 6 | CI24: 3 | CJ24: 6 | CK24: 6 | CL24: 11 | CM24: 2 | CN24: 3 | CO24: 0 | CP24: 0 | CQ24: 0 | CR24: 0 | CS24: 0 | CT24: 0 | CU24: 0 | CV24: 0 | CX24: 28.83431515 | CY24: 86.50294546 | CZ24: 110.5315414 | DA24: 43.25147273 | DB24: 14.41715758 | DC24: 14.41715758 | DD24: 43.25147273 | DE24: 19.22287677 | DF24: 19.22287677 | DG24: 52.86291111 | DH24: 28.83431515 | DI24: 62.4743495 | DJ24: 38.44575354 | DK24: 57.6686303 | DL24: 9.611438384 | DM24: 4.805719192 | DN24: 24.02859596 | DO24: 91.30866465 | DP24: 62.4743495 | DQ24: 115.3372606 | DR24: 4.805719192 | DS24: 38.44575354 | DT24: 9.611438384 | DU24: 48.05719192 | DV24: 91.30866465 | DW24: 230.6745212 | DX24: 48.05719192 | DY24: 48.05719192 | DZ24: 67.28006869 | EA24: 86.50294546 | EB24: 120.1429798 | EC24: 52.86291111 | ED24: 173.0058909 | EE24: 57.6686303 | EF24: 57.6686303 | EG24: 67.28006869 | EH24: 52.86291111 | EI24: 48.05719192 | EJ24: 72.08578788 | EK24: 24.02859596 | EL24: 24.02859596 | EM24: 19.22287677 | EN24: 48.05719192 | EO24: 33.64003434 | EP24: 43.25147273 | EQ24: 96.11438384 | ER24: 43.25147273 | ES24: 86.50294546 | ET24: 96.11438384 | EU24: 110.5315414 | EV24: 192.2287677 | EW24: 91.30866465 | EX24: 326.7889051 | EY24: 52.86291111 | EZ24: 48.05719192 | FA24: 28.83431515 | FB24: 52.86291111 | FC24: 62.4743495 | FD24: 24.02859596 | FE24: 24.02859596 | FF24: 9.611438384 | FG24: 9.611438384 | FH24: 57.6686303 | FI24: 38.44575354 | FJ24: 19.22287677 | FK24: 9.611438384 | FL24: 14.41715758 | FM24: 14.41715758 | FN24: 9.611438384 | FO24: 9.611438384 | FP24: 0 | FQ24: 19.22287677 | FR24: 57.6686303 | FS24: 28.83431515 | FT24: 57.6686303 | FU24: 24.02859596 | FV24: 28.83431515 | FW24: 14.41715758 | FX24: 28.83431515 | FY24: 28.83431515 | FZ24: 52.86291111 | GA24: 9.611438384 | GB24: 14.41715758 | GC24: 0 | GD24: 0 | GE24: 0 | GF24: 0 | GG24: 0 | GH24: 0 | GI24: 0 | GJ24: 0
A25: 1 | D25: POLES | E25: > 22 kV & < = 66 kV; Wood | F25: 5.172638813 | G25: 64.33954154 | H25: 8.021193274 | I25: 2 | J25: 26 | K25: 18 | L25: 11 | M25: 7 | N25: 9 | O25: 12 | P25: 17 | Q25: 18 | R25: 24 | S25: 6 | T25: 11 | U25: 21 | V25: 7 | W25: 10 | X25: 4 | Y25: 17 | Z25: 4 | AA25: 18 | AB25: 34 | AC25: 16 | AD25: 27 | AE25: 41 | AF25: 6 | AG25: 45 | AH25: 146 | AI25: 32 | AJ25: 28 | AK25: 10 | AL25: 61 | AM25: 72 | AN25: 74 | AO25: 21 | AP25: 31 | AQ25: 27 | AR25: 28 | AS25: 54 | AT25: 15 | AU25: 12 | AV25: 8 | AW25: 5 | AX25: 11 | AY25: 10 | AZ25: 13 | BA25: 59 | BB25: 49 | BC25: 37 | BD25: 87 | BE25: 213 | BF25: 156 | BG25: 268 | BH25: 92 | BI25: 53 | BJ25: 29 | BK25: 21 | BL25: 5 | BM25: 3 | BN25: 9 | BO25: 12 | BP25: 13 | BQ25: 4 | BR25: 6 | BS25: 3 | BT25: 7 | BU25: 4 | BV25: 10 | BW25: 0 | BX25: 0 | BY25: 0 | BZ25: 0 | CA25: 0 | CB25: 0 | CC25: 0 | CD25: 8 | CE25: 7 | CF25: 0 | CG25: 5 | CH25: 22 | CI25: 2 | CJ25: 0 | CK25: 8 | CL25: 0 | CM25: 4 | CN25: 0 | CO25: 0 | CP25: 0 | CQ25: 0 | CR25: 0 | CS25: 0 | CT25: 0 | CU25: 0 | CV25: 0 | CX25: 134.4886091 | CY25: 93.10749863 | CZ25: 56.89902694 | DA25: 36.20847169 | DB25: 46.55374931 | DC25: 62.07166575 | DD25: 87.93485982 | DE25: 93.10749863 | DF25: 124.1433315 | DG25: 31.03583288 | DH25: 56.89902694 | DI25: 108.6254151 | DJ25: 36.20847169 | DK25: 51.72638813 | DL25: 20.69055525 | DM25: 87.93485982 | DN25: 20.69055525 | DO25: 93.10749863 | DP25: 175.8697196 | DQ25: 82.762221 | DR25: 139.6612479 | DS25: 212.0781913 | DT25: 31.03583288 | DU25: 232.7687466 | DV25: 755.2052667 | DW25: 165.524442 | DX25: 144.8338868 | DY25: 51.72638813 | DZ25: 315.5309676 | EA25: 372.4299945 | EB25: 382.7752721 | EC25: 108.6254151 | ED25: 160.3518032 | EE25: 139.6612479 | EF25: 144.8338868 | EG25: 279.3224959 | EH25: 77.58958219 | EI25: 62.07166575 | EJ25: 41.3811105 | EK25: 25.86319406 | EL25: 56.89902694 | EM25: 51.72638813 | EN25: 67.24430457 | EO25: 305.18569 | EP25: 253.4593018 | EQ25: 191.3876361 | ER25: 450.0195767 | ES25: 1101.772067 | ET25: 806.9316548 | EU25: 1386.267202 | EV25: 475.8827708 | EW25: 274.1498571 | EX25: 150.0065256 | EY25: 108.6254151 | EZ25: 25.86319406 | FA25: 15.51791644 | FB25: 46.55374931 | FC25: 62.07166575 | FD25: 67.24430457 | FE25: 20.69055525 | FF25: 31.03583288 | FG25: 15.51791644 | FH25: 36.20847169 | FI25: 20.69055525 | FJ25: 51.72638813 | FK25: 0 | FL25: 0 | FM25: 0 | FN25: 0 | FO25: 0 | FP25: 0 | FQ25: 0 | FR25: 41.3811105 | FS25: 36.20847169 | FT25: 0 | FU25: 25.86319406 | FV25: 113.7980539 | FW25: 10.34527763 | FX25: 0 | FY25: 41.3811105 | FZ25: 0 | GA25: 20.69055525 | GB25: 0 | GC25: 0 | GD25: 0 | GE25: 0 | GF25: 0 | GG25: 0 | GH25: 0 | GI25: 0 | GJ25: 0
E26: > 66 kV & < = 132 kV; Wood | F26: 20.01666628 | G26: 0 | H26: 0 | I26: 2
E27: > 132 kV; Wood | F27: 0.0001 | G27: 0 | H27: 0 | I27: 2
A28: 1 | D28: POLES | E28: ˂ = 1 kV; Concrete | F28: 27.79051231 | G28: 54.78642483 | H28: 7.401785246 | I28: 2 | J28: 4 | K28: 8 | L28: 9 | M28: 6 | N28: 5 | O28: 2 | P28: 14 | Q28: 7 | R28: 4 | S28: 17 | T28: 40 | U28: 47 | V28: 99 | W28: 77 | X28: 51 | Y28: 81 | Z28: 79 | AA28: 59 | AB28: 100 | AC28: 136 | AD28: 122 | AE28: 248 | AF28: 174 | AG28: 62 | AH28: 110 | AI28: 312 | AJ28: 462 | AK28: 126 | AL28: 108 | AM28: 137 | AN28: 36 | AO28: 31 | AP28: 16 | AQ28: 23 | AR28: 19 | AS28: 0 | AT28: 22 | AU28: 12 | AV28: 6 | AW28: 2 | AX28: 5 | AY28: 270 | AZ28: 80 | BA28: 3 | BB28: 0 | BC28: 0 | BD28: 0 | BE28: 0 | BF28: 0 | BG28: 0 | BH28: 0 | BI28: 0 | BJ28: 0 | BK28: 0 | BL28: 0 | BM28: 0 | BN28: 0 | BO28: 0 | BP28: 0 | BQ28: 0 | BR28: 0 | BS28: 0 | BT28: 0 | BU28: 0 | BV28: 0 | BW28: 0 | BX28: 0 | BY28: 0 | BZ28: 0 | CA28: 0 | CB28: 0 | CC28: 0 | CD28: 0 | CE28: 0 | CF28: 0 | CG28: 0 | CH28: 0 | CI28: 0 | CJ28: 0 | CK28: 0 | CL28: 0 | CM28: 0 | CN28: 0 | CO28: 0 | CP28: 0 | CQ28: 0 | CR28: 0 | CS28: 0 | CT28: 0 | CU28: 0 | CV28: 0 | CX28: 111.1620492 | CY28: 222.3240985 | CZ28: 250.1146108 | DA28: 166.7430738 | DB28: 138.9525615 | DC28: 55.58102462 | DD28: 389.0671723 | DE28: 194.5335862 | DF28: 111.1620492 | DG28: 472.4387092 | DH28: 1111.620492 | DI28: 1306.154078 | DJ28: 2751.260718 | DK28: 2139.869448 | DL28: 1417.316128 | DM28: 2251.031497 | DN28: 2195.450472 | DO28: 1639.640226 | DP28: 2779.051231 | DQ28: 3779.509674 | DR28: 3390.442502 | DS28: 6892.047052 | DT28: 4835.549142 | DU28: 1723.011763 | DV28: 3056.956354 | DW28: 8670.63984 | DX28: 12839.21669 | DY28: 3501.604551 | DZ28: 3001.375329 | EA28: 3807.300186 | EB28: 1000.458443 | EC28: 861.5058815 | ED28: 444.6481969 | EE28: 639.1817831 | EF28: 528.0197338 | EG28: 0 | EH28: 611.3912708 | EI28: 333.4861477 | EJ28: 166.7430738 | EK28: 55.58102462 | EL28: 138.9525615 | EM28: 7503.438323 | EN28: 2223.240985 | EO28: 83.37153692 | EP28: 0 | EQ28: 0 | ER28: 0 | ES28: 0 | ET28: 0 | EU28: 0 | EV28: 0 | EW28: 0 | EX28: 0 | EY28: 0 | EZ28: 0 | FA28: 0 | FB28: 0 | FC28: 0 | FD28: 0 | FE28: 0 | FF28: 0 | FG28: 0 | FH28: 0 | FI28: 0 | FJ28: 0 | FK28: 0 | FL28: 0 | FM28: 0 | FN28: 0 | FO28: 0 | FP28: 0 | FQ28: 0 | FR28: 0 | FS28: 0 | FT28: 0 | FU28: 0 | FV28: 0 | FW28: 0 | FX28: 0 | FY28: 0 | FZ28: 0 | GA28: 0 | GB28: 0 | GC28: 0 | GD28: 0 | GE28: 0 | GF28: 0 | GG28: 0 | GH28: 0 | GI28: 0 | GJ28: 0
A29: 1 | D29: POLES | E29: > 1 kV & < = 11 kV; Concrete | F29: 22.53453919 | G29: 49.95992166 | H29: 7.068233277 | I29: 2 | J29: 11 | K29: 23 | L29: 10 | M29: 8 | N29: 20 | O29: 10 | P29: 19 | Q29: 13 | R29: 24 | S29: 9 | T29: 7 | U29: 5 | V29: 10 | W29: 12 | X29: 21 | Y29: 9 | Z29: 10 | AA29: 5 | AB29: 7 | AC29: 8 | AD29: 23 | AE29: 31 | AF29: 8 | AG29: 35 | AH29: 66 | AI29: 16 | AJ29: 97 | AK29: 23 | AL29: 17 | AM29: 40 | AN29: 87 | AO29: 35 | AP29: 12 | AQ29: 18 | AR29: 16 | AS29: 0 | AT29: 21 | AU29: 0 | AV29: 0 | AW29: 0 | AX29: 0 | AY29: 2 | AZ29: 3 | BA29: 0 | BB29: 0 | BC29: 2 | BD29: 2 | BE29: 0 | BF29: 0 | BG29: 0 | BH29: 0 | BI29: 0 | BJ29: 0 | BK29: 0 | BL29: 0 | BM29: 0 | BN29: 0 | BO29: 0 | BP29: 0 | BQ29: 0 | BR29: 0 | BS29: 0 | BT29: 0 | BU29: 0 | BV29: 0 | BW29: 0 | BX29: 0 | BY29: 0 | BZ29: 0 | CA29: 0 | CB29: 0 | CC29: 0 | CD29: 0 | CE29: 0 | CF29: 0 | CG29: 0 | CH29: 0 | CI29: 0 | CJ29: 0 | CK29: 0 | CL29: 0 | CM29: 0 | CN29: 0 | CO29: 0 | CP29: 0 | CQ29: 0 | CR29: 0 | CS29: 0 | CT29: 0 | CU29: 0 | CV29: 0 | CX29: 247.8799311 | CY29: 518.2944015 | CZ29: 225.3453919 | DA29: 180.2763136 | DB29: 450.6907839 | DC29: 225.3453919 | DD29: 428.1562447 | DE29: 292.9490095 | DF29: 540.8289407 | DG29: 202.8108528 | DH29: 157.7417744 | DI29: 112.672696 | DJ29: 225.3453919 | DK29: 270.4144703 | DL29: 473.2253231 | DM29: 202.8108528 | DN29: 225.3453919 | DO29: 112.672696 | DP29: 157.7417744 | DQ29: 180.2763136 | DR29: 518.2944015 | DS29: 698.570715 | DT29: 180.2763136 | DU29: 788.7088718 | DV29: 1487.279587 | DW29: 360.5526271 | DX29: 2185.850302 | DY29: 518.2944015 | DZ29: 383.0871663 | EA29: 901.3815678 | EB29: 1960.50491 | EC29: 788.7088718 | ED29: 270.4144703 | EE29: 405.6217055 | EF29: 360.5526271 | EG29: 0 | EH29: 473.2253231 | EI29: 0 | EJ29: 0 | EK29: 0 | EL29: 0 | EM29: 45.06907839 | EN29: 67.60361758 | EO29: 0 | EP29: 0 | EQ29: 45.06907839 | ER29: 45.06907839 | ES29: 0 | ET29: 0 | EU29: 0 | EV29: 0 | EW29: 0 | EX29: 0 | EY29: 0 | EZ29: 0 | FA29: 0 | FB29: 0 | FC29: 0 | FD29: 0 | FE29: 0 | FF29: 0 | FG29: 0 | FH29: 0 | FI29: 0 | FJ29: 0 | FK29: 0 | FL29: 0 | FM29: 0 | FN29: 0 | FO29: 0 | FP29: 0 | FQ29: 0 | FR29: 0 | FS29: 0 | FT29: 0 | FU29: 0 | FV29: 0 | FW29: 0 | FX29: 0 | FY29: 0 | FZ29: 0 | GA29: 0 | GB29: 0 | GC29: 0 | GD29: 0 | GE29: 0 | GF29: 0 | GG29: 0 | GH29: 0 | GI29: 0 | GJ29: 0
A30: 1 | D30: POLES | E30: ˃ 11 kV & < = 22 kV; Concrete | F30: 15.36887348 | G30: 65.82597029 | H30: 8.113320547 | I30: 2 | J30: 0 | K30: 0 | L30: 0 | M30: 0 | N30: 0 | O30: 0 | P30: 0 | Q30: 0 | R30: 0 | S30: 0 | T30: 0 | U30: 0 | V30: 0 | W30: 0 | X30: 0 | Y30: 0 | Z30: 3 | AA30: 0 | AB30: 2 | AC30: 0 | AD30: 0 | AE30: 1 | AF30: 0 | AG30: 2 | AH30: 0 | AI30: 0 | AJ30: 0 | AK30: 0 | AL30: 1 | AM30: 0 | AN30: 2 | AO30: 0 | AP30: 0 | AQ30: 0 | AR30: 0 | AS30: 0 | AT30: 0 | AU30: 0 | AV30: 0 | AW30: 0 | AX30: 0 | AY30: 0 | AZ30: 0 | BA30: 0 | BB30: 0 | BC30: 0 | BD30: 0 | BE30: 0 | BF30: 0 | BG30: 0 | BH30: 0 | BI30: 0 | BJ30: 0 | BK30: 0 | BL30: 0 | BM30: 0 | BN30: 0 | BO30: 0 | BP30: 0 | BQ30: 0 | BR30: 0 | BS30: 0 | BT30: 0 | BU30: 0 | BV30: 0 | BW30: 0 | BX30: 0 | BY30: 0 | BZ30: 0 | CA30: 0 | CB30: 0 | CC30: 0 | CD30: 0 | CE30: 0 | CF30: 0 | CG30: 0 | CH30: 0 | CI30: 0 | CJ30: 0 | CK30: 0 | CL30: 0 | CM30: 0 | CN30: 0 | CO30: 0 | CP30: 0 | CQ30: 0 | CR30: 0 | CS30: 0 | CT30: 0 | CU30: 0 | CV30: 0 | CX30: 0 | CY30: 0 | CZ30: 0 | DA30: 0 | DB30: 0 | DC30: 0 | DD30: 0 | DE30: 0 | DF30: 0 | DG30: 0 | DH30: 0 | DI30: 0 | DJ30: 0 | DK30: 0 | DL30: 0 | DM30: 0 | DN30: 46.10662045 | DO30: 0 | DP30: 30.73774697 | DQ30: 0 | DR30: 0 | DS30: 15.36887348 | DT30: 0 | DU30: 30.73774697 | DV30: 0 | DW30: 0 | DX30: 0 | DY30: 0 | DZ30: 15.36887348 | EA30: 0 | EB30: 30.73774697 | EC30: 0 | ED30: 0 | EE30: 0 | EF30: 0 | EG30: 0 | EH30: 0 | EI30: 0 | EJ30: 0 | EK30: 0 | EL30: 0 | EM30: 0 | EN30: 0 | EO30: 0 | EP30: 0 | EQ30: 0 | ER30: 0 | ES30: 0 | ET30: 0 | EU30: 0 | EV30: 0 | EW30: 0 | EX30: 0 | EY30: 0 | EZ30: 0 | FA30: 0 | FB30: 0 | FC30: 0 | FD30: 0 | FE30: 0 | FF30: 0 | FG30: 0 | FH30: 0 | FI30: 0 | FJ30: 0 | FK30: 0 | FL30: 0 | FM30: 0 | FN30: 0 | FO30: 0 | FP30: 0 | FQ30: 0 | FR30: 0 | FS30: 0 | FT30: 0 | FU30: 0 | FV30: 0 | FW30: 0 | FX30: 0 | FY30: 0 | FZ30: 0 | GA30: 0 | GB30: 0 | GC30: 0 | GD30: 0 | GE30: 0 | GF30: 0 | GG30: 0 | GH30: 0 | GI30: 0 | GJ30: 0
A31: 1 | D31: POLES | E31: > 22 kV & < = 66 kV; Concrete | F31: 18.49680874 | G31: 65.82597029 | H31: 8.113320547 | I31: 2 | J31: 0 | K31: 2 | L31: 0 | M31: 0 | N31: 5 | O31: 0 | P31: 0 | Q31: 2 | R31: 5 | S31: 1 | T31: 2 | U31: 2 | V31: 0 | W31: 1 | X31: 1 | Y31: 0 | Z31: 0 | AA31: 2 | AB31: 6 | AC31: 0 | AD31: 3 | AE31: 4 | AF31: 3 | AG31: 2 | AH31: 0 | AI31: 2 | AJ31: 0 | AK31: 2 | AL31: 0 | AM31: 10 | AN31: 20 | AO31: 2 | AP31: 0 | AQ31: 8 | AR31: 3 | AS31: 0 | AT31: 2 | AU31: 0 | AV31: 0 | AW31: 0 | AX31: 0 | AY31: 0 | AZ31: 0 | BA31: 0 | BB31: 2 | BC31: 0 | BD31: 0 | BE31: 0 | BF31: 0 | BG31: 0 | BH31: 0 | BI31: 0 | BJ31: 0 | BK31: 0 | BL31: 0 | BM31: 0 | BN31: 0 | BO31: 0 | BP31: 0 | BQ31: 0 | BR31: 0 | BS31: 0 | BT31: 0 | BU31: 0 | BV31: 0 | BW31: 0 | BX31: 0 | BY31: 0 | BZ31: 0 | CA31: 0 | CB31: 0 | CC31: 0 | CD31: 0 | CE31: 0 | CF31: 0 | CG31: 0 | CH31: 0 | CI31: 0 | CJ31: 0 | CK31: 0 | CL31: 0 | CM31: 0 | CN31: 0 | CO31: 0 | CP31: 0 | CQ31: 0 | CR31: 0 | CS31: 0 | CT31: 0 | CU31: 0 | CV31: 0 | CX31: 0 | CY31: 36.99361749 | CZ31: 0 | DA31: 0 | DB31: 92.48404372 | DC31: 0 | DD31: 0 | DE31: 36.99361749 | DF31: 92.48404372 | DG31: 18.49680874 | DH31: 36.99361749 | DI31: 36.99361749 | DJ31: 0 | DK31: 18.49680874 | DL31: 18.49680874 | DM31: 0 | DN31: 0 | DO31: 36.99361749 | DP31: 110.9808525 | DQ31: 0 | DR31: 55.49042623 | DS31: 73.98723498 | DT31: 55.49042623 | DU31: 36.99361749 | DV31: 0 | DW31: 36.99361749 | DX31: 0 | DY31: 36.99361749 | DZ31: 0 | EA31: 184.9680874 | EB31: 369.9361749 | EC31: 36.99361749 | ED31: 0 | EE31: 147.97447 | EF31: 55.49042623 | EG31: 0 | EH31: 36.99361749 | EI31: 0 | EJ31: 0 | EK31: 0 | EL31: 0 | EM31: 0 | EN31: 0 | EO31: 0 | EP31: 36.99361749 | EQ31: 0 | ER31: 0 | ES31: 0 | ET31: 0 | EU31: 0 | EV31: 0 | EW31: 0 | EX31: 0 | EY31: 0 | EZ31: 0 | FA31: 0 | FB31: 0 | FC31: 0 | FD31: 0 | FE31: 0 | FF31: 0 | FG31: 0 | FH31: 0 | FI31: 0 | FJ31: 0 | FK31: 0 | FL31: 0 | FM31: 0 | FN31: 0 | FO31: 0 | FP31: 0 | FQ31: 0 | FR31: 0 | FS31: 0 | FT31: 0 | FU31: 0 | FV31: 0 | FW31: 0 | FX31: 0 | FY31: 0 | FZ31: 0 | GA31: 0 | GB31: 0 | GC31: 0 | GD31: 0 | GE31: 0 | GF31: 0 | GG31: 0 | GH31: 0 | GI31: 0 | GJ31: 0
E32: > 66 kV & < = 132 kV; Concrete | F32: 21.21201926 | G32: 0 | H32: 0 | I32: 2
E33: > 132 kV; Concrete | F33: 1151.461797 | G33: 0 | H33: 0 | I33: 2
A34: 1 | D34: POLES | E34: ˂ = 1 kV; Steel | F34: 20.33643611 | G34: 65.7212115 | H34: 8.106862001 | I34: 2 | J34: 4 | K34: 15 | L34: 3 | M34: 9 | N34: 46 | O34: 34 | P34: 225 | Q34: 23 | R34: 38 | S34: 50 | T34: 40 | U34: 50 | V34: 69 | W34: 40 | X34: 88 | Y34: 217 | Z34: 55 | AA34: 32 | AB34: 32 | AC34: 46 | AD34: 42 | AE34: 59 | AF34: 80 | AG34: 44 | AH34: 80 | AI34: 50 | AJ34: 71 | AK34: 28 | AL34: 34 | AM34: 71 | AN34: 30 | AO34: 23 | AP34: 25 | AQ34: 28 | AR34: 73 | AS34: 32 | AT34: 65 | AU34: 69 | AV34: 21 | AW34: 113 | AX34: 82 | AY34: 100 | AZ34: 146 | BA34: 223 | BB34: 360 | BC34: 260 | BD34: 127 | BE34: 109 | BF34: 196 | BG34: 65 | BH34: 21 | BI34: 50 | BJ34: 28 | BK34: 11 | BL34: 44 | BM34: 13 | BN34: 0 | BO34: 0 | BP34: 5 | BQ34: 0 | BR34: 0 | BS34: 0 | BT34: 0 | BU34: 0 | BV34: 3 | BW34: 0 | BX34: 0 | BY34: 0 | BZ34: 0 | CA34: 0 | CB34: 0 | CC34: 0 | CD34: 0 | CE34: 3 | CF34: 0 | CG34: 3 | CH34: 0 | CI34: 0 | CJ34: 5 | CK34: 3 | CL34: 0 | CM34: 0 | CN34: 0 | CO34: 0 | CP34: 0 | CQ34: 0 | CR34: 0 | CS34: 0 | CT34: 0 | CU34: 0 | CV34: 0 | CX34: 81.34574444 | CY34: 305.0465416 | CZ34: 61.00930833 | DA34: 183.027925 | DB34: 935.476061 | DC34: 691.4388277 | DD34: 4575.698124 | DE34: 467.7380305 | DF34: 772.7845721 | DG34: 1016.821805 | DH34: 813.4574444 | DI34: 1016.821805 | DJ34: 1403.214092 | DK34: 813.4574444 | DL34: 1789.606378 | DM34: 4413.006636 | DN34: 1118.503986 | DO34: 650.7659555 | DP34: 650.7659555 | DQ34: 935.476061 | DR34: 854.1303166 | DS34: 1199.84973 | DT34: 1626.914889 | DU34: 894.8031888 | DV34: 1626.914889 | DW34: 1016.821805 | DX34: 1443.886964 | DY34: 569.420211 | DZ34: 691.4388277 | EA34: 1443.886964 | EB34: 610.0930833 | EC34: 467.7380305 | ED34: 508.4109027 | EE34: 569.420211 | EF34: 1484.559836 | EG34: 650.7659555 | EH34: 1321.868347 | EI34: 1403.214092 | EJ34: 427.0651583 | EK34: 2298.01728 | EL34: 1667.587761 | EM34: 2033.643611 | EN34: 2969.119672 | EO34: 4535.025252 | EP34: 7321.116999 | EQ34: 5287.473388 | ER34: 2582.727386 | ES34: 2216.671536 | ET34: 3985.941477 | EU34: 1321.868347 | EV34: 427.0651583 | EW34: 1016.821805 | EX34: 569.420211 | EY34: 223.7007972 | EZ34: 894.8031888 | FA34: 264.3736694 | FB34: 0 | FC34: 0 | FD34: 101.6821805 | FE34: 0 | FF34: 0 | FG34: 0 | FH34: 0 | FI34: 0 | FJ34: 61.00930833 | FK34: 0 | FL34: 0 | FM34: 0 | FN34: 0 | FO34: 0 | FP34: 0 | FQ34: 0 | FR34: 0 | FS34: 61.00930833 | FT34: 0 | FU34: 61.00930833 | FV34: 0 | FW34: 0 | FX34: 101.6821805 | FY34: 61.00930833 | FZ34: 0 | GA34: 0 | GB34: 0 | GC34: 0 | GD34: 0 | GE34: 0 | GF34: 0 | GG34: 0 | GH34: 0 | GI34: 0 | GJ34: 0
A35: 1 | D35: POLES | E35: > 1 kV & < = 11 kV; Steel | F35: 17.38260225 | G35: 45.59584983 | H35: 6.752469906 | I35: 2 | J35: 0 | K35: 1 | L35: 0 | M35: 0 | N35: 0 | O35: 0 | P35: 0 | Q35: 0 | R35: 2 | S35: 0 | T35: 0 | U35: 0 | V35: 0 | W35: 0 | X35: 7 | Y35: 0 | Z35: 0 | AA35: 0 | AB35: 0 | AC35: 0 | AD35: 5 | AE35: 0 | AF35: 0 | AG35: 0 | AH35: 0 | AI35: 0 | AJ35: 0 | AK35: 0 | AL35: 0 | AM35: 0 | AN35: 0 | AO35: 0 | AP35: 0 | AQ35: 0 | AR35: 0 | AS35: 0 | AT35: 0 | AU35: 0 | AV35: 0 | AW35: 0 | AX35: 0 | AY35: 0 | AZ35: 0 | BA35: 1 | BB35: 2 | BC35: 0 | BD35: 0 | BE35: 0 | BF35: 0 | BG35: 0 | BH35: 0 | BI35: 0 | BJ35: 0 | BK35: 0 | BL35: 0 | BM35: 0 | BN35: 0 | BO35: 0 | BP35: 0 | BQ35: 0 | BR35: 0 | BS35: 0 | BT35: 0 | BU35: 0 | BV35: 0 | BW35: 0 | BX35: 0 | BY35: 0 | BZ35: 0 | CA35: 0 | CB35: 0 | CC35: 0 | CD35: 0 | CE35: 0 | CF35: 0 | CG35: 0 | CH35: 0 | CI35: 0 | CJ35: 0 | CK35: 0 | CL35: 0 | CM35: 0 | CN35: 0 | CO35: 0 | CP35: 0 | CQ35: 0 | CR35: 0 | CS35: 0 | CT35: 0 | CU35: 0 | CV35: 0 | CX35: 0 | CY35: 17.38260225 | CZ35: 0 | DA35: 0 | DB35: 0 | DC35: 0 | DD35: 0 | DE35: 0 | DF35: 34.76520451 | DG35: 0 | DH35: 0 | DI35: 0 | DJ35: 0 | DK35: 0 | DL35: 121.6782158 | DM35: 0 | DN35: 0 | DO35: 0 | DP35: 0 | DQ35: 0 | DR35: 86.91301127 | DS35: 0 | DT35: 0 | DU35: 0 | DV35: 0 | DW35: 0 | DX35: 0 | DY35: 0 | DZ35: 0 | EA35: 0 | EB35: 0 | EC35: 0 | ED35: 0 | EE35: 0 | EF35: 0 | EG35: 0 | EH35: 0 | EI35: 0 | EJ35: 0 | EK35: 0 | EL35: 0 | EM35: 0 | EN35: 0 | EO35: 17.38260225 | EP35: 34.76520451 | EQ35: 0 | ER35: 0 | ES35: 0 | ET35: 0 | EU35: 0 | EV35: 0 | EW35: 0 | EX35: 0 | EY35: 0 | EZ35: 0 | FA35: 0 | FB35: 0 | FC35: 0 | FD35: 0 | FE35: 0 | FF35: 0 | FG35: 0 | FH35: 0 | FI35: 0 | FJ35: 0 | FK35: 0 | FL35: 0 | FM35: 0 | FN35: 0 | FO35: 0 | FP35: 0 | FQ35: 0 | FR35: 0 | FS35: 0 | FT35: 0 | FU35: 0 | FV35: 0 | FW35: 0 | FX35: 0 | FY35: 0 | FZ35: 0 | GA35: 0 | GB35: 0 | GC35: 0 | GD35: 0 | GE35: 0 | GF35: 0 | GG35: 0 | GH35: 0 | GI35: 0 | GJ35: 0
A36: 1 | D36: POLES | E36: ˃ 11 kV & < = 22 kV; Steel | F36: 10.15017952 | G36: 65.82597029 | H36: 8.113320547 | I36: 2 | J36: 0 | K36: 0 | L36: 0 | M36: 0 | N36: 0 | O36: 0 | P36: 0 | Q36: 0 | R36: 0 | S36: 0 | T36: 0 | U36: 0 | V36: 0 | W36: 0 | X36: 0 | Y36: 0 | Z36: 6 | AA36: 0 | AB36: 0 | AC36: 0 | AD36: 0 | AE36: 0 | AF36: 0 | AG36: 0 | AH36: 0 | AI36: 0 | AJ36: 0 | AK36: 0 | AL36: 0 | AM36: 0 | AN36: 0 | AO36: 0 | AP36: 0 | AQ36: 0 | AR36: 0 | AS36: 0 | AT36: 0 | AU36: 0 | AV36: 0 | AW36: 0 | AX36: 0 | AY36: 0 | AZ36: 0 | BA36: 0 | BB36: 0 | BC36: 0 | BD36: 0 | BE36: 0 | BF36: 0 | BG36: 0 | BH36: 0 | BI36: 0 | BJ36: 0 | BK36: 0 | BL36: 0 | BM36: 0 | BN36: 0 | BO36: 0 | BP36: 0 | BQ36: 0 | BR36: 0 | BS36: 0 | BT36: 0 | BU36: 0 | BV36: 0 | BW36: 0 | BX36: 0 | BY36: 0 | BZ36: 0 | CA36: 0 | CB36: 0 | CC36: 0 | CD36: 0 | CE36: 0 | CF36: 0 | CG36: 0 | CH36: 0 | CI36: 0 | CJ36: 0 | CK36: 0 | CL36: 0 | CM36: 0 | CN36: 0 | CO36: 0 | CP36: 0 | CQ36: 0 | CR36: 0 | CS36: 0 | CT36: 0 | CU36: 0 | CV36: 0 | CX36: 0 | CY36: 0 | CZ36: 0 | DA36: 0 | DB36: 0 | DC36: 0 | DD36: 0 | DE36: 0 | DF36: 0 | DG36: 0 | DH36: 0 | DI36: 0 | DJ36: 0 | DK36: 0 | DL36: 0 | DM36: 0 | DN36: 60.90107713 | DO36: 0 | DP36: 0 | DQ36: 0 | DR36: 0 | DS36: 0 | DT36: 0 | DU36: 0 | DV36: 0 | DW36: 0 | DX36: 0 | DY36: 0 | DZ36: 0 | EA36: 0 | EB36: 0 | EC36: 0 | ED36: 0 | EE36: 0 | EF36: 0 | EG36: 0 | EH36: 0 | EI36: 0 | EJ36: 0 | EK36: 0 | EL36: 0 | EM36: 0 | EN36: 0 | EO36: 0 | EP36: 0 | EQ36: 0 | ER36: 0 | ES36: 0 | ET36: 0 | EU36: 0 | EV36: 0 | EW36: 0 | EX36: 0 | EY36: 0 | EZ36: 0 | FA36: 0 | FB36: 0 | FC36: 0 | FD36: 0 | FE36: 0 | FF36: 0 | FG36: 0 | FH36: 0 | FI36: 0 | FJ36: 0 | FK36: 0 | FL36: 0 | FM36: 0 | FN36: 0 | FO36: 0 | FP36: 0 | FQ36: 0 | FR36: 0 | FS36: 0 | FT36: 0 | FU36: 0 | FV36: 0 | FW36: 0 | FX36: 0 | FY36: 0 | FZ36: 0 | GA36: 0 | GB36: 0 | GC36: 0 | GD36: 0 | GE36: 0 | GF36: 0 | GG36: 0 | GH36: 0 | GI36: 0 | GJ36: 0
A37: 1 | D37: POLES | E37: > 22 kV & < = 66 kV; Steel | F37: 20.83372953 | G37: 65.82597029 | H37: 8.113320547 | I37: 2 | J37: 0 | K37: 0 | L37: 0 | M37: 0 | N37: 0 | O37: 0 | P37: 0 | Q37: 0 | R37: 0 | S37: 0 | T37: 0 | U37: 0 | V37: 3 | W37: 0 | X37: 0 | Y37: 41 | Z37: 0 | AA37: 0 | AB37: 0 | AC37: 0 | AD37: 0 | AE37: 6 | AF37: 2 | AG37: 0 | AH37: 6 | AI37: 0 | AJ37: 0 | AK37: 0 | AL37: 0 | AM37: 0 | AN37: 0 | AO37: 0 | AP37: 0 | AQ37: 0 | AR37: 0 | AS37: 0 | AT37: 0 | AU37: 0 | AV37: 0 | AW37: 0 | AX37: 0 | AY37: 0 | AZ37: 0 | BA37: 0 | BB37: 0 | BC37: 0 | BD37: 0 | BE37: 0 | BF37: 0 | BG37: 0 | BH37: 0 | BI37: 0 | BJ37: 0 | BK37: 0 | BL37: 0 | BM37: 0 | BN37: 0 | BO37: 0 | BP37: 0 | BQ37: 0 | BR37: 0 | BS37: 0 | BT37: 0 | BU37: 0 | BV37: 0 | BW37: 0 | BX37: 0 | BY37: 0 | BZ37: 0 | CA37: 0 | CB37: 0 | CC37: 0 | CD37: 0 | CE37: 0 | CF37: 0 | CG37: 0 | CH37: 0 | CI37: 0 | CJ37: 0 | CK37: 0 | CL37: 0 | CM37: 0 | CN37: 0 | CO37: 0 | CP37: 0 | CQ37: 0 | CR37: 0 | CS37: 0 | CT37: 0 | CU37: 0 | CV37: 0 | CX37: 0 | CY37: 0 | CZ37: 0 | DA37: 0 | DB37: 0 | DC37: 0 | DD37: 0 | DE37: 0 | DF37: 0 | DG37: 0 | DH37: 0 | DI37: 0 | DJ37: 62.5011886 | DK37: 0 | DL37: 0 | DM37: 854.1829109 | DN37: 0 | DO37: 0 | DP37: 0 | DQ37: 0 | DR37: 0 | DS37: 125.0023772 | DT37: 41.66745907 | DU37: 0 | DV37: 125.0023772 | DW37: 0 | DX37: 0 | DY37: 0 | DZ37: 0 | EA37: 0 | EB37: 0 | EC37: 0 | ED37: 0 | EE37: 0 | EF37: 0 | EG37: 0 | EH37: 0 | EI37: 0 | EJ37: 0 | EK37: 0 | EL37: 0 | EM37: 0 | EN37: 0 | EO37: 0 | EP37: 0 | EQ37: 0 | ER37: 0 | ES37: 0 | ET37: 0 | EU37: 0 | EV37: 0 | EW37: 0 | EX37: 0 | EY37: 0 | EZ37: 0 | FA37: 0 | FB37: 0 | FC37: 0 | FD37: 0 | FE37: 0 | FF37: 0 | FG37: 0 | FH37: 0 | FI37: 0 | FJ37: 0 | FK37: 0 | FL37: 0 | FM37: 0 | FN37: 0 | FO37: 0 | FP37: 0 | FQ37: 0 | FR37: 0 | FS37: 0 | FT37: 0 | FU37: 0 | FV37: 0 | FW37: 0 | FX37: 0 | FY37: 0 | FZ37: 0 | GA37: 0 | GB37: 0 | GC37: 0 | GD37: 0 | GE37: 0 | GF37: 0 | GG37: 0 | GH37: 0 | GI37: 0 | GJ37: 0
E38: > 66 kV & < = 132 kV; Steel | F38: 17.14329826 | G38: 0 | H38: 0 | I38: 2
E39: > 132 kV; Steel | F39: 0.0001 | G39: 0 | H39: 0 | I39: 2
A40: 1 | D40: POLES | E40: Other | F40: 16.84703631 | G40: 90.02875702 | H40: 9.488348488 | I40: 2 | J40: 2 | K40: 3 | L40: 2 | M40: 3 | N40: 2 | O40: 3 | P40: 5 | Q40: 1 | R40: 4 | S40: 3 | T40: 0 | U40: 0 | V40: 0 | W40: 1 | X40: 1 | Y40: 0 | Z40: 0 | AA40: 0 | AB40: 3 | AC40: 0 | AD40: 2 | AE40: 3 | AF40: 0 | AG40: 1 | AH40: 1 | AI40: 4 | AJ40: 1 | AK40: 1 | AL40: 1 | AM40: 2 | AN40: 0 | AO40: 0 | AP40: 1 | AQ40: 2 | AR40: 0 | AS40: 1 | AT40: 0 | AU40: 0 | AV40: 0 | AW40: 1 | AX40: 0 | AY40: 2 | AZ40: 2 | BA40: 0 | BB40: 1 | BC40: 1 | BD40: 1 | BE40: 0 | BF40: 2 | BG40: 2 | BH40: 2 | BI40: 1 | BJ40: 1 | BK40: 0 | BL40: 1 | BM40: 0 | BN40: 0 | BO40: 1 | BP40: 1 | BQ40: 0 | BR40: 0 | BS40: 0 | BT40: 0 | BU40: 0 | BV40: 1 | BW40: 0 | BX40: 0 | BY40: 0 | BZ40: 1 | CA40: 0 | CB40: 0 | CC40: 0 | CD40: 1 | CE40: 2 | CF40: 3 | CG40: 4 | CH40: 0 | CI40: 0 | CJ40: 2 | CK40: 6 | CL40: 3 | CM40: 0 | CN40: 0 | CO40: 0 | CP40: 0 | CQ40: 0 | CR40: 0 | CS40: 0 | CT40: 0 | CU40: 0 | CV40: 0 | CX40: 33.69407261 | CY40: 50.54110892 | CZ40: 33.69407261 | DA40: 50.54110892 | DB40: 33.69407261 | DC40: 50.54110892 | DD40: 84.23518154 | DE40: 16.84703631 | DF40: 67.38814523 | DG40: 50.54110892 | DH40: 0 | DI40: 0 | DJ40: 0 | DK40: 16.84703631 | DL40: 16.84703631 | DM40: 0 | DN40: 0 | DO40: 0 | DP40: 50.54110892 | DQ40: 0 | DR40: 33.69407261 | DS40: 50.54110892 | DT40: 0 | DU40: 16.84703631 | DV40: 16.84703631 | DW40: 67.38814523 | DX40: 16.84703631 | DY40: 16.84703631 | DZ40: 16.84703631 | EA40: 33.69407261 | EB40: 0 | EC40: 0 | ED40: 16.84703631 | EE40: 33.69407261 | EF40: 0 | EG40: 16.84703631 | EH40: 0 | EI40: 0 | EJ40: 0 | EK40: 16.84703631 | EL40: 0 | EM40: 33.69407261 | EN40: 33.69407261 | EO40: 0 | EP40: 16.84703631 | EQ40: 16.84703631 | ER40: 16.84703631 | ES40: 0 | ET40: 33.69407261 | EU40: 33.69407261 | EV40: 33.69407261 | EW40: 16.84703631 | EX40: 16.84703631 | EY40: 0 | EZ40: 16.84703631 | FA40: 0 | FB40: 0 | FC40: 16.84703631 | FD40: 16.84703631 | FE40: 0 | FF40: 0 | FG40: 0 | FH40: 0 | FI40: 0 | FJ40: 16.84703631 | FK40: 0 | FL40: 0 | FM40: 0 | FN40: 16.84703631 | FO40: 0 | FP40: 0 | FQ40: 0 | FR40: 16.84703631 | FS40: 33.69407261 | FT40: 50.54110892 | FU40: 67.38814523 | FV40: 0 | FW40: 0 | FX40: 33.69407261 | FY40: 101.0822178 | FZ40: 50.54110892 | GA40: 0 | GB40: 0 | GC40: 0 | GD40: 0 | GE40: 0 | GF40: 0 | GG40: 0 | GH40: 0 | GI40: 0 | GJ40: 0
A41: 2 | D41: OVERHEAD CONDUCTORS | E41: ˂ = 1 kV | F41: 72.21688977 | G41: 83.56043196 | H41: 9.141139533 | I41: 2 | J41: 13.3 | K41: 18.7 | L41: 6.2 | M41: 10.6 | N41: 12.1 | O41: 14.9 | P41: 13.2 | Q41: 6.6 | R41: 8.3 | S41: 13 | T41: 7.3 | U41: 12.7 | V41: 15.4 | W41: 9 | X41: 10.7 | Y41: 11 | Z41: 8.4 | AA41: 4.5 | AB41: 7.9 | AC41: 15 | AD41: 10.5 | AE41: 18.1 | AF41: 16.2 | AG41: 8.7 | AH41: 18.3 | AI41: 30.6 | AJ41: 48 | AK41: 22 | AL41: 40.1 | AM41: 33.1 | AN41: 24.8 | AO41: 17.4 | AP41: 39.4 | AQ41: 32.9 | AR41: 28.3 | AS41: 36.1 | AT41: 31.6 | AU41: 20.4 | AV41: 20.7 | AW41: 18.5 | AX41: 16.4 | AY41: 33.7 | AZ41: 61.8 | BA41: 64.1 | BB41: 44.8 | BC41: 53.2 | BD41: 70.1 | BE41: 62.9 | BF41: 48.8 | BG41: 36.5 | BH41: 39.7 | BI41: 31.5 | BJ41: 33.7 | BK41: 36.3 | BL41: 27.6 | BM41: 19.7 | BN41: 18.7 | BO41: 5.7 | BP41: 8.9 | BQ41: 5 | BR41: 4.4 | BS41: 6.4 | BT41: 2.3 | BU41: 1.1 | BV41: 4.7 | BW41: 0.8 | BX41: 1.7 | BY41: 2.4 | BZ41: 1.9 | CA41: 1 | CB41: 1 | CC41: 2.5 | CD41: 6.7 | CE41: 9.9 | CF41: 20.4 | CG41: 16.8 | CH41: 14.1 | CI41: 11.8 | CJ41: 14.9 | CK41: 18.5 | CL41: 17.6 | CM41: 11.1 | CN41: 5.9 | CO41: 0.8 | CP41: 0.7 | CQ41: 0 | CR41: 0 | CS41: 0 | CT41: 0 | CU41: 0 | CV41: 0 | CX41: 960.4846339 | CY41: 1350.455839 | CZ41: 447.7447166 | DA41: 765.4990315 | DB41: 873.8243662 | DC41: 1076.031658 | DD41: 953.2629449 | DE41: 476.6314725 | DF41: 599.4001851 | DG41: 938.819567 | DH41: 527.1832953 | DI41: 917.1545 | DJ41: 1112.140102 | DK41: 649.9520079 | DL41: 772.7207205 | DM41: 794.3857874 | DN41: 606.621874 | DO41: 324.976004 | DP41: 570.5134292 | DQ41: 1083.253347 | DR41: 758.2773426 | DS41: 1307.125705 | DT41: 1169.913614 | DU41: 628.286941 | DV41: 1321.569083 | DW41: 2209.836827 | DX41: 3466.410709 | DY41: 1588.771575 | DZ41: 2895.89728 | EA41: 2390.379051 | EB41: 1790.978866 | EC41: 1256.573882 | ED41: 2845.345457 | EE41: 2375.935673 | EF41: 2043.73798 | EG41: 2607.029721 | EH41: 2282.053717 | EI41: 1473.224551 | EJ41: 1494.889618 | EK41: 1336.012461 | EL41: 1184.356992 | EM41: 2433.709185 | EN41: 4463.003788 | EO41: 4629.102634 | EP41: 3235.316662 | EQ41: 3841.938536 | ER41: 5062.403973 | ES41: 4542.442366 | ET41: 3524.184221 | EU41: 2635.916477 | EV41: 2867.010524 | EW41: 2274.832028 | EX41: 2433.709185 | EY41: 2621.473099 | EZ41: 1993.186158 | FA41: 1422.672728 | FB41: 1350.455839 | FC41: 411.6362717 | FD41: 642.7303189 | FE41: 361.0844488 | FF41: 317.754315 | FG41: 462.1880945 | FH41: 166.0988465 | FI41: 79.43857874 | FJ41: 339.4193819 | FK41: 57.77351181 | FL41: 122.7687126 | FM41: 173.3205354 | FN41: 137.2120906 | FO41: 72.21688977 | FP41: 72.21688977 | FQ41: 180.5422244 | FR41: 483.8531614 | FS41: 714.9472087 | FT41: 1473.224551 | FU41: 1213.243748 | FV41: 1018.258146 | FW41: 852.1592993 | FX41: 1076.031658 | FY41: 1336.012461 | FZ41: 1271.01726 | GA41: 801.6074764 | GB41: 426.0796496 | GC41: 57.77351181 | GD41: 50.55182284 | GE41: 0 | GF41: 0 | GG41: 0 | GH41: 0 | GI41: 0 | GJ41: 0
A42: 2 | D42: OVERHEAD CONDUCTORS | E42: > 1 kV & < = 11 kV | F42: 57.49025806 | G42: 81.10976639 | H42: 9.006096068 | I42: 2 | J42: 0.8 | K42: 2.4 | L42: 3.1 | M42: 4.9 | N42: 4.2 | O42: 5.5 | P42: 4.5 | Q42: 2.7 | R42: 5.8 | S42: 4.1 | T42: 4.1 | U42: 4.2 | V42: 4.5 | W42: 7.5 | X42: 9.8 | Y42: 6.6 | Z42: 3.6 | AA42: 1.8 | AB42: 3.7 | AC42: 2.1 | AD42: 4.4 | AE42: 3.6 | AF42: 1 | AG42: 5.5 | AH42: 8 | AI42: 7.5 | AJ42: 10.3 | AK42: 7.9 | AL42: 15.5 | AM42: 12.8 | AN42: 13.7 | AO42: 9.8 | AP42: 12.5 | AQ42: 8 | AR42: 11.7 | AS42: 14.6 | AT42: 12.5 | AU42: 3.7 | AV42: 6.3 | AW42: 4.7 | AX42: 4.3 | AY42: 6.2 | AZ42: 10.5 | BA42: 5.9 | BB42: 6.8 | BC42: 12 | BD42: 14.3 | BE42: 21.6 | BF42: 13.8 | BG42: 20.4 | BH42: 9.7 | BI42: 10.7 | BJ42: 10.7 | BK42: 8.2 | BL42: 6.1 | BM42: 5 | BN42: 3.8 | BO42: 2.3 | BP42: 1 | BQ42: 1.2 | BR42: 1.7 | BS42: 1.1 | BT42: 1.1 | BU42: 0.2 | BV42: 1 | BW42: 0.7 | BX42: 0.2 | BY42: 0.4 | BZ42: 0.2 | CA42: 0.2 | CB42: 0.2 | CC42: 0.4 | CD42: 1.3 | CE42: 2.5 | CF42: 4.4 | CG42: 3.7 | CH42: 2 | CI42: 1.6 | CJ42: 3.2 | CK42: 2.3 | CL42: 3.2 | CM42: 3.8 | CN42: 1.1 | CO42: 0.3 | CP42: 0.8 | CQ42: 0 | CR42: 0 | CS42: 0 | CT42: 0 | CU42: 0 | CV42: 0 | CX42: 45.99220645 | CY42: 137.9766194 | CZ42: 178.2198 | DA42: 281.7022645 | DB42: 241.4590839 | DC42: 316.1964194 | DD42: 258.7061613 | DE42: 155.2236968 | DF42: 333.4434968 | DG42: 235.7100581 | DH42: 235.7100581 | DI42: 241.4590839 | DJ42: 258.7061613 | DK42: 431.1769355 | DL42: 563.404529 | DM42: 379.4357032 | DN42: 206.964929 | DO42: 103.4824645 | DP42: 212.7139548 | DQ42: 120.7295419 | DR42: 252.9571355 | DS42: 206.964929 | DT42: 57.49025806 | DU42: 316.1964194 | DV42: 459.9220645 | DW42: 431.1769355 | DX42: 592.1496581 | DY42: 454.1730387 | DZ42: 891.099 | EA42: 735.8753032 | EB42: 787.6165355 | EC42: 563.404529 | ED42: 718.6282258 | EE42: 459.9220645 | EF42: 672.6360194 | EG42: 839.3577677 | EH42: 718.6282258 | EI42: 212.7139548 | EJ42: 362.1886258 | EK42: 270.2042129 | EL42: 247.2081097 | EM42: 356.4396 | EN42: 603.6477097 | EO42: 339.1925226 | EP42: 390.9337548 | EQ42: 689.8830968 | ER42: 822.1106903 | ES42: 1241.789574 | ET42: 793.3655613 | EU42: 1172.801265 | EV42: 557.6555032 | EW42: 615.1457613 | EX42: 615.1457613 | EY42: 471.4201161 | EZ42: 350.6905742 | FA42: 287.4512903 | FB42: 218.4629806 | FC42: 132.2275935 | FD42: 57.49025806 | FE42: 68.98830968 | FF42: 97.73343871 | FG42: 63.23928387 | FH42: 63.23928387 | FI42: 11.49805161 | FJ42: 57.49025806 | FK42: 40.24318065 | FL42: 11.49805161 | FM42: 22.99610323 | FN42: 11.49805161 | FO42: 11.49805161 | FP42: 11.49805161 | FQ42: 22.99610323 | FR42: 74.73733548 | FS42: 143.7256452 | FT42: 252.9571355 | FU42: 212.7139548 | FV42: 114.9805161 | FW42: 91.9844129 | FX42: 183.9688258 | FY42: 132.2275935 | FZ42: 183.9688258 | GA42: 218.4629806 | GB42: 63.23928387 | GC42: 17.24707742 | GD42: 45.99220645 | GE42: 0 | GF42: 0 | GG42: 0 | GH42: 0 | GI42: 0 | GJ42: 0
E43: ˃ 11 kV & < = 22 kV ; SWER | F43: 54.14117106 | G43: 0 | H43: 0 | I43: 2
E44: ˃ 11 kV & < = 22 kV ; Single-Phase | F44: 30.55047338 | G44: 0 | H44: 0 | I44: 2
A45: 2 | D45: OVERHEAD CONDUCTORS | E45: ˃ 11 kV & < = 22 kV ; Multiple-Phase | F45: 47.04820567 | G45: 53.0383789 | H45: 7.282745286 | I45: 2 | J45: 0 | K45: 0 | L45: 0 | M45: 0.1 | N45: 0.1 | O45: 0.1 | P45: 0.1 | Q45: 0 | R45: 0.1 | S45: 0.1 | T45: 0.1 | U45: 0.1 | V45: 0.1 | W45: 0.1 | X45: 0.1 | Y45: 0.1 | Z45: 0.1 | AA45: 0 | AB45: 0.1 | AC45: 0 | AD45: 0.1 | AE45: 0.1 | AF45: 0 | AG45: 0.1 | AH45: 0.1 | AI45: 0.1 | AJ45: 0.2 | AK45: 0.1 | AL45: 0.2 | AM45: 0.2 | AN45: 0.2 | AO45: 0.1 | AP45: 0.2 | AQ45: 0.1 | AR45: 0.2 | AS45: 0.2 | AT45: 0.2 | AU45: 0.1 | AV45: 0.1 | AW45: 0.1 | AX45: 0.1 | AY45: 0.1 | AZ45: 0.1 | BA45: 0.1 | BB45: 0.1 | BC45: 0.2 | BD45: 0.2 | BE45: 0.3 | BF45: 0.1 | BG45: 0.2 | BH45: 0.1 | BI45: 0.1 | BJ45: 0.1 | BK45: 0.1 | BL45: 0.1 | BM45: 0.1 | BN45: 0.1 | BO45: 0 | BP45: 0 | BQ45: 0 | BR45: 0 | BS45: 0 | BT45: 0 | BU45: 0 | BV45: 0 | BW45: 0 | BX45: 0 | BY45: 0 | BZ45: 0 | CA45: 0 | CB45: 0 | CC45: 0 | CD45: 0 | CE45: 0 | CF45: 0.1 | CG45: 0.1 | CH45: 0 | CI45: 0 | CJ45: 0.1 | CK45: 0 | CL45: 0.1 | CM45: 0.1 | CN45: 0 | CO45: 0 | CP45: 0 | CQ45: 0 | CR45: 0 | CS45: 0 | CT45: 0 | CU45: 0 | CV45: 0 | CX45: 0 | CY45: 0 | CZ45: 0 | DA45: 4.704820567 | DB45: 4.704820567 | DC45: 4.704820567 | DD45: 4.704820567 | DE45: 0 | DF45: 4.704820567 | DG45: 4.704820567 | DH45: 4.704820567 | DI45: 4.704820567 | DJ45: 4.704820567 | DK45: 4.704820567 | DL45: 4.704820567 | DM45: 4.704820567 | DN45: 4.704820567 | DO45: 0 | DP45: 4.704820567 | DQ45: 0 | DR45: 4.704820567 | DS45: 4.704820567 | DT45: 0 | DU45: 4.704820567 | DV45: 4.704820567 | DW45: 4.704820567 | DX45: 9.409641134 | DY45: 4.704820567 | DZ45: 9.409641134 | EA45: 9.409641134 | EB45: 9.409641134 | EC45: 4.704820567 | ED45: 9.409641134 | EE45: 4.704820567 | EF45: 9.409641134 | EG45: 9.409641134 | EH45: 9.409641134 | EI45: 4.704820567 | EJ45: 4.704820567 | EK45: 4.704820567 | EL45: 4.704820567 | EM45: 4.704820567 | EN45: 4.704820567 | EO45: 4.704820567 | EP45: 4.704820567 | EQ45: 9.409641134 | ER45: 9.409641134 | ES45: 14.1144617 | ET45: 4.704820567 | EU45: 9.409641134 | EV45: 4.704820567 | EW45: 4.704820567 | EX45: 4.704820567 | EY45: 4.704820567 | EZ45: 4.704820567 | FA45: 4.704820567 | FB45: 4.704820567 | FC45: 0 | FD45: 0 | FE45: 0 | FF45: 0 | FG45: 0 | FH45: 0 | FI45: 0 | FJ45: 0 | FK45: 0 | FL45: 0 | FM45: 0 | FN45: 0 | FO45: 0 | FP45: 0 | FQ45: 0 | FR45: 0 | FS45: 0 | FT45: 4.704820567 | FU45: 4.704820567 | FV45: 0 | FW45: 0 | FX45: 4.704820567 | FY45: 0 | FZ45: 4.704820567 | GA45: 4.704820567 | GB45: 0 | GC45: 0 | GD45: 0 | GE45: 0 | GF45: 0 | GG45: 0 | GH45: 0 | GI45: 0 | GJ45: 0
A46: 2 | D46: OVERHEAD CONDUCTORS | E46: > 22 kV & < = 66 kV | F46: 199.3565058 | G46: 83.03586354 | H46: 9.112401634 | I46: 2 | J46: 0 | K46: 0 | L46: 0.6 | M46: 1.2 | N46: 0.8 | O46: 0.8 | P46: 0.5 | Q46: 0.9 | R46: 1.6 | S46: 0.6 | T46: 0.8 | U46: 1.6 | V46: 0.4 | W46: 0.5 | X46: 0.3 | Y46: 2.6 | Z46: 0.3 | AA46: 2.5 | AB46: 2.9 | AC46: 1.5 | AD46: 1.7 | AE46: 3.1 | AF46: 0.4 | AG46: 2.8 | AH46: 3.7 | AI46: 3.5 | AJ46: 1.6 | AK46: 0.8 | AL46: 3.9 | AM46: 4.7 | AN46: 6.1 | AO46: 1.4 | AP46: 2.9 | AQ46: 2.2 | AR46: 2.2 | AS46: 3.5 | AT46: 1.1 | AU46: 0.8 | AV46: 1.1 | AW46: 0.3 | AX46: 0.7 | AY46: 0.6 | AZ46: 0.7 | BA46: 3.4 | BB46: 2.9 | BC46: 2.2 | BD46: 4.8 | BE46: 12.5 | BF46: 8.2 | BG46: 15.1 | BH46: 6.6 | BI46: 3.5 | BJ46: 3.6 | BK46: 1.3 | BL46: 0.4 | BM46: 0.1 | BN46: 0.9 | BO46: 1.4 | BP46: 0.5 | BQ46: 0.3 | BR46: 0.3 | BS46: 0.1 | BT46: 0.6 | BU46: 0.2 | BV46: 0.4 | BW46: 0 | BX46: 0 | BY46: 0 | BZ46: 0 | CA46: 0 | CB46: 0 | CC46: 0.1 | CD46: 0.8 | CE46: 0.6 | CF46: 0.1 | CG46: 0.4 | CH46: 1.9 | CI46: 0 | CJ46: 0 | CK46: 0.4 | CL46: 0 | CM46: 0.2 | CN46: 0 | CO46: 0 | CP46: 0 | CQ46: 0 | CR46: 0 | CS46: 0 | CT46: 0 | CU46: 0 | CV46: 0 | CX46: 0 | CY46: 0 | CZ46: 119.6139035 | DA46: 239.2278069 | DB46: 159.4852046 | DC46: 159.4852046 | DD46: 99.67825289 | DE46: 179.4208552 | DF46: 318.9704092 | DG46: 119.6139035 | DH46: 159.4852046 | DI46: 318.9704092 | DJ46: 79.74260231 | DK46: 99.67825289 | DL46: 59.80695173 | DM46: 518.326915 | DN46: 59.80695173 | DO46: 498.3912644 | DP46: 578.1338668 | DQ46: 299.0347587 | DR46: 338.9060598 | DS46: 618.0051679 | DT46: 79.74260231 | DU46: 558.1982162 | DV46: 737.6190714 | DW46: 697.7477702 | DX46: 318.9704092 | DY46: 159.4852046 | DZ46: 777.4903725 | EA46: 936.9755772 | EB46: 1216.074685 | EC46: 279.0991081 | ED46: 578.1338668 | EE46: 438.5843127 | EF46: 438.5843127 | EG46: 697.7477702 | EH46: 219.2921564 | EI46: 159.4852046 | EJ46: 219.2921564 | EK46: 59.80695173 | EL46: 139.549554 | EM46: 119.6139035 | EN46: 139.549554 | EO46: 677.8121197 | EP46: 578.1338668 | EQ46: 438.5843127 | ER46: 956.9112277 | ES46: 2491.956322 | ET46: 1634.723347 | EU46: 3010.283237 | EV46: 1315.752938 | EW46: 697.7477702 | EX46: 717.6834208 | EY46: 259.1634575 | EZ46: 79.74260231 | FA46: 19.93565058 | FB46: 179.4208552 | FC46: 279.0991081 | FD46: 99.67825289 | FE46: 59.80695173 | FF46: 59.80695173 | FG46: 19.93565058 | FH46: 119.6139035 | FI46: 39.87130116 | FJ46: 79.74260231 | FK46: 0 | FL46: 0 | FM46: 0 | FN46: 0 | FO46: 0 | FP46: 0 | FQ46: 19.93565058 | FR46: 159.4852046 | FS46: 119.6139035 | FT46: 19.93565058 | FU46: 79.74260231 | FV46: 378.777361 | FW46: 0 | FX46: 0 | FY46: 79.74260231 | FZ46: 0 | GA46: 39.87130116 | GB46: 0 | GC46: 0 | GD46: 0 | GE46: 0 | GF46: 0 | GG46: 0 | GH46: 0 | GI46: 0 | GJ46: 0
E47: > 66 kV & < = 132 kV | F47: 292.3861714 | G47: 0 | H47: 0 | I47: 2
E48: > 132 kV | F48: 911.106186 | G48: 0 | H48: 0 | I48: 2
A49: 2 | D49: OVERHEAD CONDUCTORS | E49: Other | F49: 22.09441919 | G49: 83.03586354 | H49: 9.112401634 | I49: 2 | J49: 5.4 | K49: 3.4 | L49: 1.1 | M49: 1.9 | N49: 2.2 | O49: 2.7 | P49: 2.4 | Q49: 1.2 | R49: 1.5 | S49: 2.4 | T49: 1.3 | U49: 2.3 | V49: 2.8 | W49: 1.7 | X49: 2 | Y49: 2 | Z49: 1.5 | AA49: 0.8 | AB49: 1.5 | AC49: 2.8 | AD49: 1.9 | AE49: 3.3 | AF49: 3 | AG49: 1.6 | AH49: 3.3 | AI49: 5.5 | AJ49: 8.7 | AK49: 4 | AL49: 7.3 | AM49: 6 | AN49: 4.5 | AO49: 3.1 | AP49: 7.1 | AQ49: 6 | AR49: 5.1 | AS49: 6.5 | AT49: 5.7 | AU49: 3.7 | AV49: 3.7 | AW49: 3.3 | AX49: 2.9 | AY49: 6.1 | AZ49: 11.3 | BA49: 11.7 | BB49: 8.1 | BC49: 9.7 | BD49: 12.8 | BE49: 11.5 | BF49: 8.9 | BG49: 6.6 | BH49: 7.2 | BI49: 5.7 | BJ49: 6.1 | BK49: 6.6 | BL49: 5 | BM49: 3.5 | BN49: 3.3 | BO49: 0.9 | BP49: 1.5 | BQ49: 0.8 | BR49: 0.7 | BS49: 1.1 | BT49: 0.3 | BU49: 0.1 | BV49: 0.8 | BW49: 0.1 | BX49: 0.3 | BY49: 0.4 | BZ49: 0.2 | CA49: 0.1 | CB49: 0.1 | CC49: 0.3 | CD49: 1.1 | CE49: 1.7 | CF49: 3.6 | CG49: 3.1 | CH49: 2.4 | CI49: 2.1 | CJ49: 2.7 | CK49: 3.3 | CL49: 3.3 | CM49: 1.9 | CN49: 0.8 | CO49: 0.1 | CP49: 0.1 | CQ49: 0 | CR49: 0 | CS49: 0 | CT49: 0 | CU49: 0 | CV49: 0 | CX49: 119.3098636 | CY49: 75.12102524 | CZ49: 24.30386111 | DA49: 41.97939646 | DB49: 48.60772221 | DC49: 59.65493181 | DD49: 53.02660605 | DE49: 26.51330303 | DF49: 33.14162878 | DG49: 53.02660605 | DH49: 28.72274494 | DI49: 50.81716413 | DJ49: 61.86437373 | DK49: 37.56051262 | DL49: 44.18883838 | DM49: 44.18883838 | DN49: 33.14162878 | DO49: 17.67553535 | DP49: 33.14162878 | DQ49: 61.86437373 | DR49: 41.97939646 | DS49: 72.91158332 | DT49: 66.28325756 | DU49: 35.3510707 | DV49: 72.91158332 | DW49: 121.5193055 | DX49: 192.2214469 | DY49: 88.37767675 | DZ49: 161.2892601 | EA49: 132.5665151 | EB49: 99.42488635 | EC49: 68.49269948 | ED49: 156.8703762 | EE49: 132.5665151 | EF49: 112.6815379 | EG49: 143.6137247 | EH49: 125.9381894 | EI49: 81.749351 | EJ49: 81.749351 | EK49: 72.91158332 | EL49: 64.07381564 | EM49: 134.775957 | EN49: 249.6669368 | EO49: 258.5047045 | EP49: 178.9647954 | EQ49: 214.3158661 | ER49: 282.8085656 | ES49: 254.0858207 | ET49: 196.6403308 | EU49: 145.8231666 | EV49: 159.0798182 | EW49: 125.9381894 | EX49: 134.775957 | EY49: 145.8231666 | EZ49: 110.4720959 | FA49: 77.33046716 | FB49: 72.91158332 | FC49: 19.88497727 | FD49: 33.14162878 | FE49: 17.67553535 | FF49: 15.46609343 | FG49: 24.30386111 | FH49: 6.628325756 | FI49: 2.209441919 | FJ49: 17.67553535 | FK49: 2.209441919 | FL49: 6.628325756 | FM49: 8.837767675 | FN49: 4.418883838 | FO49: 2.209441919 | FP49: 2.209441919 | FQ49: 6.628325756 | FR49: 24.30386111 | FS49: 37.56051262 | FT49: 79.53990908 | FU49: 68.49269948 | FV49: 53.02660605 | FW49: 46.39828029 | FX49: 59.65493181 | FY49: 72.91158332 | FZ49: 72.91158332 | GA49: 41.97939646 | GB49: 17.67553535 | GC49: 2.209441919 | GD49: 2.209441919 | GE49: 0 | GF49: 0 | GG49: 0 | GH49: 0 | GI49: 0 | GJ49: 0
A50: 3 | D50: UNDERGROUND CABLES | E50: ˂ = 1 kV | F50: 245.6298985 | G50: 78.29632993 | H50: 8.848521342 | I50: 2 | J50: 7.395 | K50: 11.418 | L50: 4.251 | M50: 7.288 | N50: 8.401 | O50: 2.834 | P50: 0.911 | Q50: 1.012 | R50: 0.81 | S50: 1.822 | T50: 2.935 | U50: 1.923 | V50: 3.34 | W50: 3.846 | X50: 5.466 | Y50: 2.024 | Z50: 2.126 | AA50: 2.227 | AB50: 1.923 | AC50: 2.935 | AD50: 1.215 | AE50: 2.227 | AF50: 3.138 | AG50: 0.709 | AH50: 5.061 | AI50: 6.984 | AJ50: 10.223 | AK50: 10.426 | AL50: 10.426 | AM50: 21.56 | AN50: 16.398 | AO50: 15.791 | AP50: 13.159 | AQ50: 18.422 | AR50: 11.236 | AS50: 18.422 | AT50: 22.066 | AU50: 18.119 | AV50: 7.288 | AW50: 10.426 | AX50: 6.478 | AY50: 6.883 | AZ50: 9.211 | BA50: 19.536 | BB50: 7.693 | BC50: 9.92 | BD50: 16.499 | BE50: 19.738 | BF50: 34.011 | BG50: 20.042 | BH50: 30.772 | BI50: 13.26 | BJ50: 14.677 | BK50: 14.778 | BL50: 12.653 | BM50: 9.414 | BN50: 7.389 | BO50: 5.668 | BP50: 3.34 | BQ50: 2.328 | BR50: 2.024 | BS50: 3.037 | BT50: 1.822 | BU50: 2.227 | BV50: 0.405 | BW50: 1.316 | BX50: 1.113 | BY50: 0.304 | BZ50: 0.709 | CA50: 0.607 | CB50: 0.607 | CC50: 0.304 | CD50: 0.506 | CE50: 2.024 | CF50: 4.15 | CG50: 7.389 | CH50: 6.073 | CI50: 4.049 | CJ50: 3.442 | CK50: 6.579 | CL50: 5.77 | CM50: 6.073 | CN50: 7.389 | CO50: 3.138 | CP50: 0.405 | CQ50: 1.215 | CR50: 1.012 | CS50: 2.227 | CT50: 0.304 | CU50: 0.202 | CV50: 0.404 | CX50: 1816.433099 | CY50: 2804.602181 | CZ50: 1044.172699 | DA50: 1790.1507 | DB50: 2063.536777 | DC50: 696.1151324 | DD50: 223.7688375 | DE50: 248.5774573 | DF50: 198.9602178 | DG50: 447.5376751 | DH50: 720.9237521 | DI50: 472.3462948 | DJ50: 820.403861 | DK50: 944.6925896 | DL50: 1342.613025 | DM50: 497.1549146 | DN50: 522.2091642 | DO50: 547.017784 | DP50: 472.3462948 | DQ50: 720.9237521 | DR50: 298.4403267 | DS50: 547.017784 | DT50: 770.7866215 | DU50: 174.151598 | DV50: 1243.132916 | DW50: 1715.479211 | DX50: 2511.074452 | DY50: 2560.937322 | DZ50: 2560.937322 | EA50: 5295.780612 | EB50: 4027.839076 | EC50: 3878.741727 | ED50: 3232.243834 | EE50: 4524.99399 | EF50: 2759.89754 | EG50: 4524.99399 | EH50: 5420.06934 | EI50: 4450.568131 | EJ50: 1790.1507 | EK50: 2560.937322 | EL50: 1591.190482 | EM50: 1690.670591 | EN50: 2262.496995 | EO50: 4798.625697 | EP50: 1889.630809 | EQ50: 2436.648593 | ER50: 4052.647695 | ES50: 4848.242937 | ET50: 8354.118478 | EU50: 4922.914426 | EV50: 7558.523237 | EW50: 3257.052454 | EX50: 3605.11002 | EY50: 3629.91864 | EZ50: 3107.955106 | FA50: 2312.359865 | FB50: 1814.95932 | FC50: 1392.230265 | FD50: 820.403861 | FE50: 571.8264037 | FF50: 497.1549146 | FG50: 745.9780018 | FH50: 447.5376751 | FI50: 547.017784 | FJ50: 99.48010889 | FK50: 323.2489464 | FL50: 273.386077 | FM50: 74.67148914 | FN50: 174.151598 | FO50: 149.0973484 | FP50: 149.0973484 | FQ50: 74.67148914 | FR50: 124.2887286 | FS50: 497.1549146 | FT50: 1019.364079 | FU50: 1814.95932 | FV50: 1491.710374 | FW50: 994.555459 | FX50: 845.4581106 | FY50: 1615.999102 | FZ50: 1417.284514 | GA50: 1491.710374 | GB50: 1814.95932 | GC50: 770.7866215 | GD50: 99.48010889 | GE50: 298.4403267 | GF50: 248.5774573 | GG50: 547.017784 | GH50: 74.67148914 | GI50: 49.6172395 | GJ50: 99.234479
A51: 3 | D51: UNDERGROUND CABLES | E51: > 1 kV & < = 11 kV | F51: 1044.765515 | G51: 90.97116707 | H51: 9.537880638 | I51: 2 | J51: 25.178 | K51: 28.995 | L51: 4.04 | M51: 6.733 | N51: 5.594 | O51: 6.422 | P51: 1.865 | Q51: 2.175 | R51: 1.761 | S51: 3.936 | T51: 6.319 | U51: 4.247 | V51: 7.044 | W51: 8.183 | X51: 11.602 | Y51: 4.351 | Z51: 4.558 | AA51: 4.661 | AB51: 4.144 | AC51: 6.215 | AD51: 2.693 | AE51: 4.765 | AF51: 6.63 | AG51: 1.45 | AH51: 10.877 | AI51: 14.813 | AJ51: 21.754 | AK51: 22.271 | AL51: 22.271 | AM51: 45.89 | AN51: 35.116 | AO51: 33.666 | AP51: 28.072 | AQ51: 39.26 | AR51: 24.033 | AS51: 39.26 | AT51: 47.029 | AU51: 38.638 | AV51: 15.538 | AW51: 22.375 | AX51: 13.881 | AY51: 14.606 | AZ51: 19.682 | BA51: 41.643 | BB51: 16.367 | BC51: 21.236 | BD51: 35.22 | BE51: 42.16 | BF51: 72.615 | BG51: 42.678 | BH51: 65.675 | BI51: 28.28 | BJ51: 31.284 | BK51: 31.491 | BL51: 27.14 | BM51: 19.993 | BN51: 15.849 | BO51: 12.12 | BP51: 7.044 | BQ51: 4.869 | BR51: 4.454 | BS51: 6.526 | BT51: 3.936 | BU51: 4.765 | BV51: 0.932 | BW51: 2.9 | BX51: 2.383 | BY51: 0.622 | BZ51: 1.45 | CA51: 1.347 | CB51: 1.347 | CC51: 0.622 | CD51: 1.036 | CE51: 4.351 | CF51: 9.012 | CG51: 15.745 | CH51: 12.949 | CI51: 8.701 | CJ51: 7.251 | CK51: 13.984 | CL51: 12.431 | CM51: 13.052 | CN51: 15.745 | CO51: 6.63 | CP51: 0.932 | CQ51: 2.59 | CR51: 2.175 | CS51: 4.558 | CT51: 0.518 | CU51: 0.311 | CV51: 0.622 | CX51: 26305.10614 | CY51: 30292.97611 | CZ51: 4220.852681 | DA51: 7034.406212 | DB51: 5844.418291 | DC51: 6709.484137 | DD51: 1948.487685 | DE51: 2272.364995 | DF51: 1839.832072 | DG51: 4112.197067 | DH51: 6601.873289 | DI51: 4437.119142 | DJ51: 7359.328288 | DK51: 8549.316209 | DL51: 12121.3695 | DM51: 4545.774756 | DN51: 4762.041217 | DO51: 4869.652065 | DP51: 4329.508294 | DQ51: 6493.217676 | DR51: 2813.553532 | DS51: 4978.307679 | DT51: 6926.795364 | DU51: 1514.909997 | DV51: 11363.91451 | DW51: 15476.11157 | DX51: 22727.82901 | DY51: 23267.97278 | DZ51: 23267.97278 | EA51: 47944.28948 | EB51: 36687.98582 | EC51: 35173.07583 | ED51: 29328.65754 | EE51: 41017.49412 | EF51: 25108.84962 | EG51: 41017.49412 | EH51: 49134.2774 | EI51: 40367.64997 | EJ51: 16233.56657 | EK51: 23376.6284 | EL51: 14502.39011 | EM51: 15259.84511 | EN51: 20563.07487 | EO51: 43507.17034 | EP51: 17099.67718 | EQ51: 22186.64048 | ER51: 36796.64144 | ES51: 44047.31411 | ET51: 75865.64787 | EU51: 44588.50265 | EV51: 68614.9752 | EW51: 29545.96876 | EX51: 32684.44437 | EY51: 32900.71083 | EZ51: 28354.93608 | FA51: 20887.99694 | FB51: 16558.48865 | FC51: 12662.55804 | FD51: 7359.328288 | FE51: 5086.963293 | FF51: 4653.385604 | FG51: 6818.139751 | FH51: 4112.197067 | FI51: 4978.307679 | FJ51: 973.72146 | FK51: 3029.819993 | FL51: 2489.676222 | FM51: 649.8441503 | FN51: 1514.909997 | FO51: 1407.299149 | FP51: 1407.299149 | FQ51: 649.8441503 | FR51: 1082.377074 | FS51: 4545.774756 | FT51: 9415.426821 | FU51: 16449.83303 | FV51: 13528.66865 | FW51: 9090.504746 | FX51: 7575.594749 | FY51: 14610.00096 | FZ51: 12987.48012 | GA51: 13636.2795 | GB51: 16449.83303 | GC51: 6926.795364 | GD51: 973.72146 | GE51: 2705.942684 | GF51: 2272.364995 | GG51: 4762.041217 | GH51: 541.1885368 | GI51: 324.9220752 | GJ51: 649.8441503
A52: 3 | D52: UNDERGROUND CABLES | E52: > 11 kV & < = 22 kV | F52: 192.1517264 | G52: 82.6218896 | H52: 9.089658387 | I52: 2 | J52: 0.08 | K52: 0.96 | L52: 5.815 | M52: 11.113 | N52: 8.012 | O52: 13.568 | P52: 14.602 | Q52: 0 | R52: 0 | S52: 0 | T52: 0 | U52: 0 | V52: 0 | W52: 0 | X52: 7.753 | Y52: 0 | Z52: 0 | AA52: 6.978 | AB52: 0 | AC52: 0 | AD52: 0 | AE52: 0 | AF52: 0 | AG52: 0 | AH52: 0 | AI52: 0 | AJ52: 0 | AK52: 0 | AL52: 0 | AM52: 0 | AN52: 0 | AO52: 0 | AP52: 0 | AQ52: 0 | AR52: 0 | AS52: 0 | AT52: 0 | AU52: 0 | AV52: 0 | AW52: 0 | AX52: 2.455 | AY52: 0 | AZ52: 0 | BA52: 0 | BB52: 0 | BC52: 0 | BD52: 10.725 | BE52: 0 | BF52: 0 | BG52: 0 | BH52: 0 | BI52: 0 | BJ52: 0 | BK52: 0 | BL52: 0 | BM52: 0 | BN52: 0 | BO52: 0 | BP52: 0 | BQ52: 0 | BR52: 0 | BS52: 0 | BT52: 0 | BU52: 0 | BV52: 0 | BW52: 0 | BX52: 7.624 | BY52: 0 | BZ52: 0 | CA52: 16.411 | CB52: 0 | CC52: 0 | CD52: 0 | CE52: 0 | CF52: 19.254 | CG52: 0 | CH52: 4.135 | CI52: 0 | CJ52: 0 | CK52: 24.164 | CL52: 0 | CM52: 0 | CN52: 0 | CO52: 0 | CP52: 0 | CQ52: 0 | CR52: 0 | CS52: 3.747 | CT52: 0 | CU52: 0 | CV52: 0 | CX52: 15.37213811 | CY52: 184.4656573 | CZ52: 1117.362289 | DA52: 2135.382135 | DB52: 1539.519632 | DC52: 2607.114624 | DD52: 2805.799509 | DE52: 0 | DF52: 0 | DG52: 0 | DH52: 0 | DI52: 0 | DJ52: 0 | DK52: 0 | DL52: 1489.752335 | DM52: 0 | DN52: 0 | DO52: 1340.834747 | DP52: 0 | DQ52: 0 | DR52: 0 | DS52: 0 | DT52: 0 | DU52: 0 | DV52: 0 | DW52: 0 | DX52: 0 | DY52: 0 | DZ52: 0 | EA52: 0 | EB52: 0 | EC52: 0 | ED52: 0 | EE52: 0 | EF52: 0 | EG52: 0 | EH52: 0 | EI52: 0 | EJ52: 0 | EK52: 0 | EL52: 471.7324883 | EM52: 0 | EN52: 0 | EO52: 0 | EP52: 0 | EQ52: 0 | ER52: 2060.827265 | ES52: 0 | ET52: 0 | EU52: 0 | EV52: 0 | EW52: 0 | EX52: 0 | EY52: 0 | EZ52: 0 | FA52: 0 | FB52: 0 | FC52: 0 | FD52: 0 | FE52: 0 | FF52: 0 | FG52: 0 | FH52: 0 | FI52: 0 | FJ52: 0 | FK52: 0 | FL52: 1464.964762 | FM52: 0 | FN52: 0 | FO52: 3153.401982 | FP52: 0 | FQ52: 0 | FR52: 0 | FS52: 0 | FT52: 3699.68934 | FU52: 0 | FV52: 794.5473886 | FW52: 0 | FX52: 0 | FY52: 4643.154316 | FZ52: 0 | GA52: 0 | GB52: 0 | GC52: 0 | GD52: 0 | GE52: 0 | GF52: 0 | GG52: 719.9925188 | GH52: 0 | GI52: 0 | GJ52: 0
E53: > 22 kV & < = 33 kV | F53: 1082.58162 | G53: 0 | H53: 0 | I53: 2
A54: 3 | D54: UNDERGROUND CABLES | E54: > 33 kV & < = 66 kV | F54: 156.9692204 | G54: 89.68163873 | H54: 9.470039004 | I54: 2 | J54: 2.579 | K54: 1.34 | L54: 2.767 | M54: 5.535 | N54: 3.895 | O54: 0 | P54: 0 | Q54: 0 | R54: 0 | S54: 2.972 | T54: 0 | U54: 0 | V54: 0 | W54: 0.307 | X54: 0 | Y54: 0 | Z54: 0 | AA54: 0 | AB54: 0 | AC54: 0.922 | AD54: 0 | AE54: 0.307 | AF54: 0 | AG54: 0 | AH54: 3.382 | AI54: 0 | AJ54: 0 | AK54: 0 | AL54: 0 | AM54: 1.025 | AN54: 0 | AO54: 0 | AP54: 0 | AQ54: 0 | AR54: 0 | AS54: 0 | AT54: 0 | AU54: 0 | AV54: 0 | AW54: 22.446 | AX54: 0 | AY54: 0 | AZ54: 0 | BA54: 0 | BB54: 14.862 | BC54: 0 | BD54: 0 | BE54: 0 | BF54: 0 | BG54: 0 | BH54: 0 | BI54: 0 | BJ54: 0 | BK54: 0 | BL54: 0 | BM54: 0 | BN54: 0 | BO54: 0 | BP54: 0 | BQ54: 0 | BR54: 0 | BS54: 0 | BT54: 0 | BU54: 0 | BV54: 0 | BW54: 0 | BX54: 0 | BY54: 0 | BZ54: 0 | CA54: 0 | CB54: 0 | CC54: 0 | CD54: 0 | CE54: 0 | CF54: 0 | CG54: 0 | CH54: 0 | CI54: 0 | CJ54: 0 | CK54: 0 | CL54: 0 | CM54: 0 | CN54: 0 | CO54: 0 | CP54: 0 | CQ54: 0 | CR54: 0 | CS54: 0 | CT54: 0 | CU54: 0 | CV54: 0 | CX54: 404.8236193 | CY54: 210.3387553 | CZ54: 434.3338327 | DA54: 868.8246347 | DB54: 611.3951133 | DC54: 0 | DD54: 0 | DE54: 0 | DF54: 0 | DG54: 466.5125229 | DH54: 0 | DI54: 0 | DJ54: 0 | DK54: 48.18955065 | DL54: 0 | DM54: 0 | DN54: 0 | DO54: 0 | DP54: 0 | DQ54: 144.7256212 | DR54: 0 | DS54: 48.18955065 | DT54: 0 | DU54: 0 | DV54: 530.8699033 | DW54: 0 | DX54: 0 | DY54: 0 | DZ54: 0 | EA54: 160.8934509 | EB54: 0 | EC54: 0 | ED54: 0 | EE54: 0 | EF54: 0 | EG54: 0 | EH54: 0 | EI54: 0 | EJ54: 0 | EK54: 3523.33112 | EL54: 0 | EM54: 0 | EN54: 0 | EO54: 0 | EP54: 2332.876553 | EQ54: 0 | ER54: 0 | ES54: 0 | ET54: 0 | EU54: 0 | EV54: 0 | EW54: 0 | EX54: 0 | EY54: 0 | EZ54: 0 | FA54: 0 | FB54: 0 | FC54: 0 | FD54: 0 | FE54: 0 | FF54: 0 | FG54: 0 | FH54: 0 | FI54: 0 | FJ54: 0 | FK54: 0 | FL54: 0 | FM54: 0 | FN54: 0 | FO54: 0 | FP54: 0 | FQ54: 0 | FR54: 0 | FS54: 0 | FT54: 0 | FU54: 0 | FV54: 0 | FW54: 0 | FX54: 0 | FY54: 0 | FZ54: 0 | GA54: 0 | GB54: 0 | GC54: 0 | GD54: 0 | GE54: 0 | GF54: 0 | GG54: 0 | GH54: 0 | GI54: 0 | GJ54: 0
E55: > 66 kV & < = 132 kV | F55: 3019.570588 | G55: 0 | H55: 0 | I55: 2
E56: > 132 kV | F56: 0.0001 | G56: 0 | H56: 0 | I56: 2
A57: 3 | D57: UNDERGROUND CABLES | E57: Other | F57: 32.99934407 | G57: 103.5161731 | H57: 10.17428981 | I57: 2 | J57: 1.757 | K57: 1.734 | L57: 1.801 | M57: 3.101 | N57: 4.501 | O57: 1.5 | P57: 0.6 | Q57: 0.7 | R57: 0.5 | S57: 1.2 | T57: 1.901 | U57: 1.3 | V57: 2.101 | W57: 2.401 | X57: 3.501 | Y57: 1.3 | Z57: 1.4 | AA57: 1.4 | AB57: 1.2 | AC57: 1.801 | AD57: 0.8 | AE57: 1.4 | AF57: 2.001 | AG57: 0.4 | AH57: 3.201 | AI57: 4.401 | AJ57: 6.502 | AK57: 6.602 | AL57: 6.602 | AM57: 13.704 | AN57: 10.403 | AO57: 10.003 | AP57: 8.403 | AQ57: 11.704 | AR57: 7.102 | AS57: 11.704 | AT57: 14.004 | AU57: 11.503 | AV57: 4.601 | AW57: 6.702 | AX57: 4.101 | AY57: 4.301 | AZ57: 5.902 | BA57: 12.404 | BB57: 4.901 | BC57: 6.302 | BD57: 10.503 | BE57: 12.604 | BF57: 20.606 | BG57: 12.704 | BH57: 19.606 | BI57: 8.403 | BJ57: 9.303 | BK57: 9.403 | BL57: 8.102 | BM57: 6.002 | BN57: 4.701 | BO57: 3.601 | BP57: 2.101 | BQ57: 1.4 | BR57: 1.3 | BS57: 1.901 | BT57: 1.2 | BU57: 1.4 | BV57: 0.3 | BW57: 0.9 | BX57: 0.7 | BY57: 0.2 | BZ57: 0.4 | CA57: 0.4 | CB57: 0.4 | CC57: 0.2 | CD57: 0.3 | CE57: 1.3 | CF57: 2.701 | CG57: 4.701 | CH57: 3.901 | CI57: 2.601 | CJ57: 2.201 | CK57: 4.201 | CL57: 3.701 | CM57: 3.901 | CN57: 4.701 | CO57: 2.001 | CP57: 0.3 | CQ57: 0.8 | CR57: 0.7 | CS57: 1.4 | CT57: 0.2 | CU57: 0.1 | CV57: 0.2 | CX57: 57.97984753 | CY57: 57.22086261 | CZ57: 59.43181866 | DA57: 102.330966 | DB57: 148.5300476 | DC57: 49.4990161 | DD57: 19.79960644 | DE57: 23.09954085 | DF57: 16.49967203 | DG57: 39.59921288 | DH57: 62.73175307 | DI57: 42.89914729 | DJ57: 69.33162188 | DK57: 79.2314251 | DL57: 115.5307036 | DM57: 42.89914729 | DN57: 46.19908169 | DO57: 46.19908169 | DP57: 39.59921288 | DQ57: 59.43181866 | DR57: 26.39947525 | DS57: 46.19908169 | DT57: 66.03168748 | DU57: 13.19973763 | DV57: 105.6309004 | DW57: 145.2301132 | DX57: 214.5617351 | DY57: 217.8616695 | DZ57: 217.8616695 | EA57: 452.2230111 | EB57: 343.2921763 | EC57: 330.0924387 | ED57: 277.2934882 | EE57: 386.224323 | EF57: 234.3613416 | EG57: 386.224323 | EH57: 462.1228143 | EI57: 379.5914548 | EJ57: 151.8299821 | EK57: 221.1616039 | EL57: 135.33031 | EM57: 141.9301788 | EN57: 194.7621287 | EO57: 409.3238638 | EP57: 161.7297853 | EQ57: 207.9618663 | ER57: 346.5921107 | ES57: 415.9237326 | ET57: 679.9844838 | EU57: 419.223667 | EV57: 646.9851398 | EW57: 277.2934882 | EX57: 306.9928979 | EY57: 310.2928323 | EZ57: 267.3606856 | FA57: 198.0620631 | FB57: 155.1299165 | FC57: 118.830638 | FD57: 69.33162188 | FE57: 46.19908169 | FF57: 42.89914729 | FG57: 62.73175307 | FH57: 39.59921288 | FI57: 46.19908169 | FJ57: 9.89980322 | FK57: 29.69940966 | FL57: 23.09954085 | FM57: 6.599868813 | FN57: 13.19973763 | FO57: 13.19973763 | FP57: 13.19973763 | FQ57: 6.599868813 | FR57: 9.89980322 | FS57: 42.89914729 | FT57: 89.13122832 | FU57: 155.1299165 | FV57: 128.7304412 | FW57: 85.83129392 | FX57: 72.63155629 | FY57: 138.6302444 | FZ57: 122.1305724 | GA57: 128.7304412 | GB57: 155.1299165 | GC57: 66.03168748 | GD57: 9.89980322 | GE57: 26.39947525 | GF57: 23.09954085 | GG57: 46.19908169 | GH57: 6.599868813 | GI57: 3.299934407 | GJ57: 6.599868813
A58: 4 | D58: SERVICE LINES | E58: ˂ = 11 kV ; Residential ; Simple Type | F58: 80.61216866 | G58: 58.62924546 | H58: 7.656973649 | I58: 2 | J58: 62.1942 | K58: 49.29 | L58: 19.0934 | M58: 32.7174 | N58: 37.4904 | O58: 18.779 | P58: 15.0948 | Q58: 7.8939 | R58: 9.5948 | S58: 15.5886 | T58: 10.0817 | U58: 15.2878 | V58: 19.279 | W58: 12.5764 | X58: 15.5659 | Y58: 13.3878 | Z58: 10.6869 | AA58: 6.486 | AB58: 10.0878 | AC58: 18.5817 | AD58: 12.2921 | AE58: 21.386 | AF58: 19.9808 | AG58: 9.9956 | AH58: 23.7686 | AI58: 38.6563 | AJ58: 59.8362 | AK58: 31.5354 | AL58: 51.2354 | AM58: 51.6655 | AN58: 38.8978 | AO58: 30.4013 | AP58: 52.7179 | AQ58: 49.1856 | AR58: 39.0301 | AS58: 52.7856 | AT58: 50.3629 | AU58: 35.2873 | AV58: 27.9546 | AW58: 27.8345 | AX58: 22.5598 | AY58: 41.9572 | AZ58: 74.4423 | BA58: 84.1786 | BB58: 54.652 | BC58: 65.538 | BD58: 89.0969 | BE58: 83.0768 | BF58: 77.6877 | BG58: 54.3751 | BH58: 65.5078 | BI58: 44.017 | BJ58: 47.5083 | BK58: 50.5074 | BL58: 39.3205 | BM58: 27.9415 | BN58: 25.5537 | BO58: 10.1642 | BP58: 11.979 | BQ58: 6.986 | BR58: 6.1869 | BS58: 9.0808 | BT58: 3.6886 | BU58: 2.886 | BV58: 5.3974 | BW58: 1.7913 | BX58: 2.493 | BY58: 2.6983 | BZ58: 2.9956 | CA58: 1.8965 | CB58: 1.8965 | CC58: 3.3983 | CD58: 5.1974 | CE58: 10.4878 | CF58: 21.7738 | CG58: 21.0537 | CH58: 17.9624 | CI58: 14.0747 | CJ58: 17.379 | CK58: 21.3589 | CL58: 19.6642 | CM58: 14.7616 | CN58: 8.7537 | CO58: 3.0808 | CP58: 1.0974 | CQ58: 0.8921 | CR58: 0.6939 | CS58: 1.586 | CT58: 0.1983 | CU58: 0.0991 | CV58: 0.1982 | CX58: 5013.60934 | CY58: 3973.373793 | CZ58: 1539.160381 | DA58: 2637.420567 | DB58: 3022.182448 | DC58: 1513.815915 | DD58: 1216.824563 | DE58: 636.3443982 | DF58: 773.4576358 | DG58: 1256.630852 | DH58: 812.7077008 | DI58: 1232.382712 | DJ58: 1554.122 | DK58: 1013.810878 | DL58: 1254.800956 | DM58: 1079.219592 | DN58: 861.4941852 | DO58: 522.8505259 | DP58: 813.199435 | DQ58: 1497.911134 | DR58: 990.8928384 | DS58: 1723.971839 | DT58: 1610.69562 | DU58: 805.766993 | DV58: 1916.038392 | DW58: 3116.168175 | DX58: 4823.525846 | DY58: 2542.136983 | DZ58: 4130.196706 | EA58: 4164.868 | EB58: 3135.636014 | EC58: 2450.714723 | ED58: 4249.704246 | EE58: 3964.957883 | EF58: 3146.301004 | EG58: 4255.16169 | EH58: 4059.862589 | EI58: 2844.585779 | EJ58: 2253.48093 | EK58: 2243.799409 | EL58: 1818.594402 | EM58: 3382.260883 | EN58: 6000.955243 | EO58: 6785.819501 | EP58: 4405.616241 | EQ58: 5283.160309 | ER58: 7182.29433 | ES58: 6697.001013 | ET58: 6262.573975 | EU58: 4383.294732 | EV58: 5280.725822 | EW58: 3548.305828 | EX58: 3829.747092 | EY58: 4071.511047 | EZ58: 3169.710778 | FA58: 2252.424911 | FB58: 2059.939174 | FC58: 819.3582047 | FD58: 965.6531684 | FE58: 563.1566102 | FF58: 498.7394263 | FG58: 732.0229811 | FH58: 297.3460453 | FI58: 232.6467187 | FJ58: 435.0961191 | FK58: 144.4005777 | FL58: 200.9661365 | FM58: 217.5158147 | FN58: 241.4818124 | FO58: 152.8809779 | FP58: 152.8809779 | FQ58: 273.9443328 | FR58: 418.9736854 | FS58: 845.4443024 | FT58: 1755.233238 | FU58: 1697.184415 | FV58: 1447.988018 | FW58: 1134.59209 | FX58: 1400.958879 | FY58: 1721.787249 | FZ58: 1585.173807 | GA58: 1189.964589 | GB58: 705.6547408 | GC58: 248.3499692 | GD58: 88.46379389 | GE58: 71.91411566 | GF58: 55.93678383 | GG58: 127.8508995 | GH58: 15.98539304 | GI58: 7.988665914 | GJ58: 15.97733183
E59: ˂ = 11 kV ; Commercial & Industrial ; Simple Type | F59: 0.792017314 | G59: 0 | H59: 0 | I59: 2
E60: ˂ = 11 kV ; Residential ; Complex Type | F60: 0.4708645922 | G60: 0 | H60: 0 | I60: 2
E61: ˂ = 11 kV ; Commercial & Industrial ; Complex Type | F61: 0.5117431138 | G61: 0 | H61: 0 | I61: 2
E62: ˂ = 11 kV ; Subdivision ; Complex Type | F62: 0.0001 | G62: 0 | H62: 0 | I62: 2
E63: > 11 kV & < = 22 kV ; Commercial & Industrial | F63: 0.0001 | G63: 0 | H63: 0 | I63: 2
E64: > 11 kV & < = 22 kV ; Subdivision | F64: 0.0001 | G64: 0 | H64: 0 | I64: 2
E65: > 22 kV & < = 33 kV ; Commercial & Industrial | F65: 0.0001 | G65: 0 | H65: 0 | I65: 2
E66: > 22 kV & < = 33 kV ; Subdivision | F66: 0.0001 | G66: 0 | H66: 0 | I66: 2
E67: > 33 kV & < = 66 kV ; Commercial & Industrial | F67: 0.0001 | G67: 0 | H67: 0 | I67: 2
E68: > 33 kV & < = 66 kV ; Subdivision | F68: 0.0001 | G68: 0 | H68: 0 | I68: 2
E69: > 66 kV & < = 132 kV ; Commercial & Industrial | F69: 0.0001 | G69: 0 | H69: 0 | I69: 2
E70: > 66 kV & < = 132 kV ; Subdivision | F70: 0.0001 | G70: 0 | H70: 0 | I70: 2
E71: > 132 kV ; Commercial & Industrial | F71: 0.0001 | G71: 0 | H71: 0 | I71: 2
E72: > 132 kV ; Subdivision | F72: 0.0001 | G72: 0 | H72: 0 | I72: 2
E73: Other | F73: 0.0001 | G73: 0 | H73: 0 | I73: 2
E74: Pole Mounted ; < = 22kV ; < = 60 kVA ; Single Phase | F74: 14.92636095 | G74: 0 | H74: 0 | I74: 2
E75: Pole Mounted ; < = 22kV ; > 60 kVA and < = 600 kVA ; Single Phase | F75: 19.86916228 | G75: 0 | H75: 0 | I75: 2
E76: Pole Mounted ; < = 22kV ; > 600 kVA ; Single Phase | F76: 0.0001 | G76: 0 | H76: 0 | I76: 2
A77: 5 | D77: TRANSFORMERS | E77: Pole Mounted ; < = 22kV ; < = 60 kVA ; Multiple Phase | F77: 11.42646683 | G77: 63.44049468 | H77: 7.964954154 | I77: 2 | J77: 0 | K77: 0 | L77: 0 | M77: 0 | N77: 0 | O77: 0 | P77: 0 | Q77: 0 | R77: 0 | S77: 0 | T77: 0 | U77: 0 | V77: 0 | W77: 0 | X77: 0 | Y77: 0 | Z77: 0 | AA77: 0 | AB77: 0 | AC77: 0 | AD77: 0 | AE77: 0 | AF77: 0 | AG77: 0 | AH77: 0 | AI77: 0 | AJ77: 0 | AK77: 0 | AL77: 0 | AM77: 0 | AN77: 0 | AO77: 0 | AP77: 0 | AQ77: 0 | AR77: 1 | AS77: 0 | AT77: 0 | AU77: 0 | AV77: 0 | AW77: 0 | AX77: 0 | AY77: 0 | AZ77: 0 | BA77: 0 | BB77: 1 | BC77: 0 | BD77: 0 | BE77: 0 | BF77: 0 | BG77: 0 | BH77: 0 | BI77: 0 | BJ77: 0 | BK77: 0 | BL77: 0 | BM77: 0 | BN77: 0 | BO77: 0 | BP77: 0 | BQ77: 0 | BR77: 0 | BS77: 0 | BT77: 0 | BU77: 0 | BV77: 0 | BW77: 0 | BX77: 0 | BY77: 0 | BZ77: 0 | CA77: 0 | CB77: 0 | CC77: 0 | CD77: 0 | CE77: 0 | CF77: 0 | CG77: 0 | CH77: 0 | CI77: 0 | CJ77: 0 | CK77: 0 | CL77: 0 | CM77: 0 | CN77: 0 | CO77: 0 | CP77: 0 | CQ77: 0 | CR77: 0 | CS77: 0 | CT77: 0 | CU77: 0 | CV77: 0 | CX77: 0 | CY77: 0 | CZ77: 0 | DA77: 0 | DB77: 0 | DC77: 0 | DD77: 0 | DE77: 0 | DF77: 0 | DG77: 0 | DH77: 0 | DI77: 0 | DJ77: 0 | DK77: 0 | DL77: 0 | DM77: 0 | DN77: 0 | DO77: 0 | DP77: 0 | DQ77: 0 | DR77: 0 | DS77: 0 | DT77: 0 | DU77: 0 | DV77: 0 | DW77: 0 | DX77: 0 | DY77: 0 | DZ77: 0 | EA77: 0 | EB77: 0 | EC77: 0 | ED77: 0 | EE77: 0 | EF77: 11.42646683 | EG77: 0 | EH77: 0 | EI77: 0 | EJ77: 0 | EK77: 0 | EL77: 0 | EM77: 0 | EN77: 0 | EO77: 0 | EP77: 11.42646683 | EQ77: 0 | ER77: 0 | ES77: 0 | ET77: 0 | EU77: 0 | EV77: 0 | EW77: 0 | EX77: 0 | EY77: 0 | EZ77: 0 | FA77: 0 | FB77: 0 | FC77: 0 | FD77: 0 | FE77: 0 | FF77: 0 | FG77: 0 | FH77: 0 | FI77: 0 | FJ77: 0 | FK77: 0 | FL77: 0 | FM77: 0 | FN77: 0 | FO77: 0 | FP77: 0 | FQ77: 0 | FR77: 0 | FS77: 0 | FT77: 0 | FU77: 0 | FV77: 0 | FW77: 0 | FX77: 0 | FY77: 0 | FZ77: 0 | GA77: 0 | GB77: 0 | GC77: 0 | GD77: 0 | GE77: 0 | GF77: 0 | GG77: 0 | GH77: 0 | GI77: 0 | GJ77: 0
A78: 5 | D78: TRANSFORMERS | E78: Pole Mounted ; < = 22kV ; > 60 kVA and < = 600 kVA ; Multiple Phase | F78: 137.8714655 | G78: 54.04368058 | H78: 7.351440714 | I78: 2 | J78: 25 | K78: 18 | L78: 16 | M78: 28 | N78: 23 | O78: 25 | P78: 27 | Q78: 26 | R78: 25 | S78: 26 | T78: 21 | U78: 20 | V78: 18 | W78: 15 | X78: 19 | Y78: 12 | Z78: 7 | AA78: 6 | AB78: 7 | AC78: 13 | AD78: 11 | AE78: 5 | AF78: 16 | AG78: 8 | AH78: 6 | AI78: 6 | AJ78: 5 | AK78: 12 | AL78: 6 | AM78: 20 | AN78: 4 | AO78: 4 | AP78: 1 | AQ78: 9 | AR78: 39 | AS78: 22 | AT78: 9 | AU78: 2 | AV78: 4 | AW78: 9 | AX78: 4 | AY78: 16 | AZ78: 18 | BA78: 4 | BB78: 33 | BC78: 14 | BD78: 24 | BE78: 29 | BF78: 31 | BG78: 29 | BH78: 16 | BI78: 3 | BJ78: 2 | BK78: 1 | BL78: 1 | BM78: 0 | BN78: 1 | BO78: 0 | BP78: 0 | BQ78: 0 | BR78: 0 | BS78: 0 | BT78: 0 | BU78: 0 | BV78: 1 | BW78: 0 | BX78: 0 | BY78: 0 | BZ78: 0 | CA78: 1 | CB78: 0 | CC78: 0 | CD78: 0 | CE78: 0 | CF78: 0 | CG78: 0 | CH78: 0 | CI78: 0 | CJ78: 0 | CK78: 1 | CL78: 0 | CM78: 0 | CN78: 0 | CO78: 0 | CP78: 0 | CQ78: 0 | CR78: 0 | CS78: 0 | CT78: 0 | CU78: 0 | CV78: 0 | CX78: 3446.786636 | CY78: 2481.686378 | CZ78: 2205.943447 | DA78: 3860.401033 | DB78: 3171.043705 | DC78: 3446.786636 | DD78: 3722.529567 | DE78: 3584.658102 | DF78: 3446.786636 | DG78: 3584.658102 | DH78: 2895.300775 | DI78: 2757.429309 | DJ78: 2481.686378 | DK78: 2068.071982 | DL78: 2619.557844 | DM78: 1654.457585 | DN78: 965.1002582 | DO78: 827.2287927 | DP78: 965.1002582 | DQ78: 1792.329051 | DR78: 1516.58612 | DS78: 689.3573273 | DT78: 2205.943447 | DU78: 1102.971724 | DV78: 827.2287927 | DW78: 827.2287927 | DX78: 689.3573273 | DY78: 1654.457585 | DZ78: 827.2287927 | EA78: 2757.429309 | EB78: 551.4858618 | EC78: 551.4858618 | ED78: 137.8714655 | EE78: 1240.843189 | EF78: 5376.987153 | EG78: 3033.17224 | EH78: 1240.843189 | EI78: 275.7429309 | EJ78: 551.4858618 | EK78: 1240.843189 | EL78: 551.4858618 | EM78: 2205.943447 | EN78: 2481.686378 | EO78: 551.4858618 | EP78: 4549.75836 | EQ78: 1930.200516 | ER78: 3308.915171 | ES78: 3998.272498 | ET78: 4274.015429 | EU78: 3998.272498 | EV78: 2205.943447 | EW78: 413.6143964 | EX78: 275.7429309 | EY78: 137.8714655 | EZ78: 137.8714655 | FA78: 0 | FB78: 137.8714655 | FC78: 0 | FD78: 0 | FE78: 0 | FF78: 0 | FG78: 0 | FH78: 0 | FI78: 0 | FJ78: 137.8714655 | FK78: 0 | FL78: 0 | FM78: 0 | FN78: 0 | FO78: 137.8714655 | FP78: 0 | FQ78: 0 | FR78: 0 | FS78: 0 | FT78: 0 | FU78: 0 | FV78: 0 | FW78: 0 | FX78: 0 | FY78: 137.8714655 | FZ78: 0 | GA78: 0 | GB78: 0 | GC78: 0 | GD78: 0 | GE78: 0 | GF78: 0 | GG78: 0 | GH78: 0 | GI78: 0 | GJ78: 0
E79: Pole Mounted ; < = 22kV ; > 600 kVA ; Multiple Phase | F79: 46.04419824 | G79: 0 | H79: 0 | I79: 2
E80: Kiosk Mounted ; < = 22kV ; < = 60 kVA ; Single Phase | F80: 30.08150727 | G80: 0 | H80: 0 | I80: 2
E81: Kiosk Mounted ; < = 22kV ; > 60 kVA and < = 600 kVA ; Single Phase | F81: 65.99544495 | G81: 0 | H81: 0 | I81: 2
E82: Kiosk Mounted ; < = 22kV ; > 600 kVA ; Single Phase | F82: 0.0001 | G82: 0 | H82: 0 | I82: 2
E83: Kiosk Mounted ; < = 22kV ; < = 60 kVA ; Multiple Phase | F83: 61.27796189 | G83: 0 | H83: 0 | I83: 2
A84: 5 | D84: TRANSFORMERS | E84: Kiosk Mounted ; < = 22kV ; > 60 kVA and < = 600 kVA ; Multiple Phase | F84: 61.5220472 | G84: 57.54505499 | H84: 7.5858457 | I84: 2 | J84: 5 | K84: 5 | L84: 4 | M84: 7 | N84: 6 | O84: 7 | P84: 7 | Q84: 7 | R84: 7 | S84: 7 | T84: 6 | U84: 5 | V84: 5 | W84: 4 | X84: 5 | Y84: 3 | Z84: 2 | AA84: 2 | AB84: 2 | AC84: 3 | AD84: 3 | AE84: 1 | AF84: 4 | AG84: 2 | AH84: 2 | AI84: 2 | AJ84: 1 | AK84: 3 | AL84: 2 | AM84: 5 | AN84: 1 | AO84: 1 | AP84: 0 | AQ84: 2 | AR84: 10 | AS84: 6 | AT84: 3 | AU84: 1 | AV84: 1 | AW84: 3 | AX84: 1 | AY84: 4 | AZ84: 5 | BA84: 1 | BB84: 9 | BC84: 4 | BD84: 6 | BE84: 8 | BF84: 8 | BG84: 8 | BH84: 4 | BI84: 1 | BJ84: 0 | BK84: 0 | BL84: 0 | BM84: 0 | BN84: 0 | BO84: 0 | BP84: 0 | BQ84: 0 | BR84: 0 | BS84: 0 | BT84: 0 | BU84: 0 | BV84: 0 | BW84: 0 | BX84: 0 | BY84: 0 | BZ84: 0 | CA84: 0 | CB84: 0 | CC84: 0 | CD84: 0 | CE84: 0 | CF84: 0 | CG84: 0 | CH84: 0 | CI84: 0 | CJ84: 0 | CK84: 0 | CL84: 0 | CM84: 0 | CN84: 0 | CO84: 0 | CP84: 0 | CQ84: 0 | CR84: 0 | CS84: 0 | CT84: 0 | CU84: 0 | CV84: 0 | CX84: 307.610236 | CY84: 307.610236 | CZ84: 246.0881888 | DA84: 430.6543304 | DB84: 369.1322832 | DC84: 430.6543304 | DD84: 430.6543304 | DE84: 430.6543304 | DF84: 430.6543304 | DG84: 430.6543304 | DH84: 369.1322832 | DI84: 307.610236 | DJ84: 307.610236 | DK84: 246.0881888 | DL84: 307.610236 | DM84: 184.5661416 | DN84: 123.0440944 | DO84: 123.0440944 | DP84: 123.0440944 | DQ84: 184.5661416 | DR84: 184.5661416 | DS84: 61.5220472 | DT84: 246.0881888 | DU84: 123.0440944 | DV84: 123.0440944 | DW84: 123.0440944 | DX84: 61.5220472 | DY84: 184.5661416 | DZ84: 123.0440944 | EA84: 307.610236 | EB84: 61.5220472 | EC84: 61.5220472 | ED84: 0 | EE84: 123.0440944 | EF84: 615.220472 | EG84: 369.1322832 | EH84: 184.5661416 | EI84: 61.5220472 | EJ84: 61.5220472 | EK84: 184.5661416 | EL84: 61.5220472 | EM84: 246.0881888 | EN84: 307.610236 | EO84: 61.5220472 | EP84: 553.6984248 | EQ84: 246.0881888 | ER84: 369.1322832 | ES84: 492.1763776 | ET84: 492.1763776 | EU84: 492.1763776 | EV84: 246.0881888 | EW84: 61.5220472 | EX84: 0 | EY84: 0 | EZ84: 0 | FA84: 0 | FB84: 0 | FC84: 0 | FD84: 0 | FE84: 0 | FF84: 0 | FG84: 0 | FH84: 0 | FI84: 0 | FJ84: 0 | FK84: 0 | FL84: 0 | FM84: 0 | FN84: 0 | FO84: 0 | FP84: 0 | FQ84: 0 | FR84: 0 | FS84: 0 | FT84: 0 | FU84: 0 | FV84: 0 | FW84: 0 | FX84: 0 | FY84: 0 | FZ84: 0 | GA84: 0 | GB84: 0 | GC84: 0 | GD84: 0 | GE84: 0 | GF84: 0 | GG84: 0 | GH84: 0 | GI84: 0 | GJ84: 0
A85: 5 | D85: TRANSFORMERS | E85: Kiosk Mounted ; < = 22kV ; > 600 kVA ; Multiple Phase | F85: 251.806719 | G85: 62.82565495 | H85: 7.926263618 | I85: 2 | J85: 5 | K85: 4 | L85: 4 | M85: 6 | N85: 5 | O85: 6 | P85: 6 | Q85: 6 | R85: 6 | S85: 6 | T85: 5 | U85: 5 | V85: 4 | W85: 3 | X85: 4 | Y85: 3 | Z85: 1 | AA85: 1 | AB85: 2 | AC85: 3 | AD85: 2 | AE85: 1 | AF85: 4 | AG85: 2 | AH85: 1 | AI85: 1 | AJ85: 1 | AK85: 3 | AL85: 1 | AM85: 4 | AN85: 1 | AO85: 1 | AP85: 0 | AQ85: 2 | AR85: 9 | AS85: 5 | AT85: 2 | AU85: 1 | AV85: 1 | AW85: 2 | AX85: 1 | AY85: 4 | AZ85: 4 | BA85: 1 | BB85: 7 | BC85: 3 | BD85: 5 | BE85: 6 | BF85: 7 | BG85: 7 | BH85: 4 | BI85: 1 | BJ85: 0 | BK85: 0 | BL85: 0 | BM85: 0 | BN85: 0 | BO85: 0 | BP85: 0 | BQ85: 0 | BR85: 0 | BS85: 0 | BT85: 0 | BU85: 0 | BV85: 0 | BW85: 0 | BX85: 0 | BY85: 0 | BZ85: 0 | CA85: 0 | CB85: 0 | CC85: 0 | CD85: 0 | CE85: 0 | CF85: 0 | CG85: 0 | CH85: 0 | CI85: 0 | CJ85: 0 | CK85: 0 | CL85: 0 | CM85: 0 | CN85: 0 | CO85: 0 | CP85: 0 | CQ85: 0 | CR85: 0 | CS85: 0 | CT85: 0 | CU85: 0 | CV85: 0 | CX85: 1259.033595 | CY85: 1007.226876 | CZ85: 1007.226876 | DA85: 1510.840314 | DB85: 1259.033595 | DC85: 1510.840314 | DD85: 1510.840314 | DE85: 1510.840314 | DF85: 1510.840314 | DG85: 1510.840314 | DH85: 1259.033595 | DI85: 1259.033595 | DJ85: 1007.226876 | DK85: 755.4201571 | DL85: 1007.226876 | DM85: 755.4201571 | DN85: 251.806719 | DO85: 251.806719 | DP85: 503.613438 | DQ85: 755.4201571 | DR85: 503.613438 | DS85: 251.806719 | DT85: 1007.226876 | DU85: 503.613438 | DV85: 251.806719 | DW85: 251.806719 | DX85: 251.806719 | DY85: 755.4201571 | DZ85: 251.806719 | EA85: 1007.226876 | EB85: 251.806719 | EC85: 251.806719 | ED85: 0 | EE85: 503.613438 | EF85: 2266.260471 | EG85: 1259.033595 | EH85: 503.613438 | EI85: 251.806719 | EJ85: 251.806719 | EK85: 503.613438 | EL85: 251.806719 | EM85: 1007.226876 | EN85: 1007.226876 | EO85: 251.806719 | EP85: 1762.647033 | EQ85: 755.4201571 | ER85: 1259.033595 | ES85: 1510.840314 | ET85: 1762.647033 | EU85: 1762.647033 | EV85: 1007.226876 | EW85: 251.806719 | EX85: 0 | EY85: 0 | EZ85: 0 | FA85: 0 | FB85: 0 | FC85: 0 | FD85: 0 | FE85: 0 | FF85: 0 | FG85: 0 | FH85: 0 | FI85: 0 | FJ85: 0 | FK85: 0 | FL85: 0 | FM85: 0 | FN85: 0 | FO85: 0 | FP85: 0 | FQ85: 0 | FR85: 0 | FS85: 0 | FT85: 0 | FU85: 0 | FV85: 0 | FW85: 0 | FX85: 0 | FY85: 0 | FZ85: 0 | GA85: 0 | GB85: 0 | GC85: 0 | GD85: 0 | GE85: 0 | GF85: 0 | GG85: 0 | GH85: 0 | GI85: 0 | GJ85: 0
E86: Ground Outdoor / Indoor Chamber Mounted; ˂ 22 kV ; < = 60 kVA ; Single Phase | F86: 16.94501973 | G86: 0 | H86: 0 | I86: 2 | CX86: =$F86*J86 ->  | CY86: =$F86*K86 ->  | CZ86: =$F86*L86 ->  | DA86: =$F86*M86 ->  | DB86: =$F86*N86 ->  | DC86: =$F86*O86 ->  | DD86: =$F86*P86 ->  | DE86: =$F86*Q86 ->  | DF86: =$F86*R86 ->  | DG86: =$F86*S86 ->  | DH86: =$F86*T86 ->  | DI86: =$F86*U86 ->  | DJ86: =$F86*V86 ->  | DK86: =$F86*W86 ->  | DL86: =$F86*X86 ->  | DM86: =$F86*Y86 ->  | DN86: =$F86*Z86 ->  | DO86: =$F86*AA86 ->  | DP86: =$F86*AB86 ->  | DQ86: =$F86*AC86 ->  | DR86: =$F86*AD86 ->  | DS86: =$F86*AE86 ->  | DT86: =$F86*AF86 ->  | DU86: =$F86*AG86 ->  | DV86: =$F86*AH86 ->  | DW86: =$F86*AI86 ->  | DX86: =$F86*AJ86 ->  | DY86: =$F86*AK86 ->  | DZ86: =$F86*AL86 ->  | EA86: =$F86*AM86 ->  | EB86: =$F86*AN86 ->  | EC86: =$F86*AO86 ->  | ED86: =$F86*AP86 ->  | EE86: =$F86*AQ86 ->  | EF86: =$F86*AR86 ->  | EG86: =$F86*AS86 ->  | EH86: =$F86*AT86 ->  | EI86: =$F86*AU86 ->  | EJ86: =$F86*AV86 ->  | EK86: =$F86*AW86 ->  | EL86: =$F86*AX86 ->  | EM86: =$F86*AY86 ->  | EN86: =$F86*AZ86 ->  | EO86: =$F86*BA86 ->  | EP86: =$F86*BB86 ->  | EQ86: =$F86*BC86 ->  | ER86: =$F86*BD86 ->  | ES86: =$F86*BE86 ->  | ET86: =$F86*BF86 ->  | EU86: =$F86*BG86 ->  | EV86: =$F86*BH86 ->  | EW86: =$F86*BI86 ->  | EX86: =$F86*BJ86 ->  | EY86: =$F86*BK86 ->  | EZ86: =$F86*BL86 ->  | FA86: =$F86*BM86 ->  | FB86: =$F86*BN86 ->  | FC86: =$F86*BO86 ->  | FD86: =$F86*BP86 ->  | FE86: =$F86*BQ86 ->  | FF86: =$F86*BR86 ->  | FG86: =$F86*BS86 ->  | FH86: =$F86*BT86 ->  | FI86: =$F86*BU86 ->  | FJ86: =$F86*BV86 ->  | FK86: =$F86*BW86 ->  | FL86: =$F86*BX86 ->  | FM86: =$F86*BY86 ->  | FN86: =$F86*BZ86 ->  | FO86: =$F86*CA86 ->  | FP86: =$F86*CB86 ->  | FQ86: =$F86*CC86 ->  | FR86: =$F86*CD86 ->  | FS86: =$F86*CE86 ->  | FT86: =$F86*CF86 ->  | FU86: =$F86*CG86 ->  | FV86: =$F86*CH86 ->  | FW86: =$F86*CI86 ->  | FX86: =$F86*CJ86 ->  | FY86: =$F86*CK86 ->  | FZ86: =$F86*CL86 ->  | GA86: =$F86*CM86 ->  | GB86: =$F86*CN86 ->  | GC86: =$F86*CO86 ->  | GD86: =$F86*CP86 ->  | GE86: =$F86*CQ86 ->  | GF86: =$F86*CR86 ->  | GG86: =$F86*CS86 ->  | GH86: =$F86*CT86 ->  | GI86: =$F86*CU86 ->  | GJ86: =$F86*CV86 -> 
E87: Ground Outdoor / Indoor Chamber Mounted; ˂ 22 kV ; > 60 kVA and < = 600 kVA ; Single Phase | F87: 147.2963158 | G87: 0 | H87: 0 | I87: 2
E88: Ground Outdoor / Indoor Chamber Mounted; ˂ 22 kV ; > 600 kVA ; Single Phase | F88: 0.0001 | G88: 0 | H88: 0 | I88: 2
A89: 5 | D89: TRANSFORMERS | E89: Ground Outdoor / Indoor Chamber Mounted; ˂ 22 kV ; < = 60 kVA ; Multiple Phase | F89: 108.9735123 | G89: 63.44049468 | H89: 7.964954154 | I89: 2 | J89: 1 | K89: 0 | L89: 0 | M89: 0 | N89: 0 | O89: 0 | P89: 0 | Q89: 0 | R89: 0 | S89: 0 | T89: 0 | U89: 0 | V89: 0 | W89: 0 | X89: 0 | Y89: 0 | Z89: 0 | AA89: 0 | AB89: 0 | AC89: 0 | AD89: 0 | AE89: 0 | AF89: 0 | AG89: 0 | AH89: 0 | AI89: 0 | AJ89: 0 | AK89: 0 | AL89: 0 | AM89: 0 | AN89: 0 | AO89: 0 | AP89: 0 | AQ89: 0 | AR89: 1 | AS89: 0 | AT89: 0 | AU89: 0 | AV89: 0 | AW89: 0 | AX89: 0 | AY89: 0 | AZ89: 0 | BA89: 0 | BB89: 1 | BC89: 0 | BD89: 0 | BE89: 0 | BF89: 0 | BG89: 0 | BH89: 0 | BI89: 0 | BJ89: 0 | BK89: 0 | BL89: 0 | BM89: 0 | BN89: 0 | BO89: 0 | BP89: 0 | BQ89: 0 | BR89: 0 | BS89: 0 | BT89: 0 | BU89: 0 | BV89: 0 | BW89: 0 | BX89: 0 | BY89: 0 | BZ89: 0 | CA89: 0 | CB89: 0 | CC89: 0 | CD89: 0 | CE89: 0 | CF89: 0 | CG89: 0 | CH89: 0 | CI89: 0 | CJ89: 0 | CK89: 0 | CL89: 0 | CM89: 0 | CN89: 0 | CO89: 0 | CP89: 0 | CQ89: 0 | CR89: 0 | CS89: 0 | CT89: 0 | CU89: 0 | CV89: 0 | CX89: 108.9735123 | CY89: 0 | CZ89: 0 | DA89: 0 | DB89: 0 | DC89: 0 | DD89: 0 | DE89: 0 | DF89: 0 | DG89: 0 | DH89: 0 | DI89: 0 | DJ89: 0 | DK89: 0 | DL89: 0 | DM89: 0 | DN89: 0 | DO89: 0 | DP89: 0 | DQ89: 0 | DR89: 0 | DS89: 0 | DT89: 0 | DU89: 0 | DV89: 0 | DW89: 0 | DX89: 0 | DY89: 0 | DZ89: 0 | EA89: 0 | EB89: 0 | EC89: 0 | ED89: 0 | EE89: 0 | EF89: 108.9735123 | EG89: 0 | EH89: 0 | EI89: 0 | EJ89: 0 | EK89: 0 | EL89: 0 | EM89: 0 | EN89: 0 | EO89: 0 | EP89: 108.9735123 | EQ89: 0 | ER89: 0 | ES89: 0 | ET89: 0 | EU89: 0 | EV89: 0 | EW89: 0 | EX89: 0 | EY89: 0 | EZ89: 0 | FA89: 0 | FB89: 0 | FC89: 0 | FD89: 0 | FE89: 0 | FF89: 0 | FG89: 0 | FH89: 0 | FI89: 0 | FJ89: 0 | FK89: 0 | FL89: 0 | FM89: 0 | FN89: 0 | FO89: 0 | FP89: 0 | FQ89: 0 | FR89: 0 | FS89: 0 | FT89: 0 | FU89: 0 | FV89: 0 | FW89: 0 | FX89: 0 | FY89: 0 | FZ89: 0 | GA89: 0 | GB89: 0 | GC89: 0 | GD89: 0 | GE89: 0 | GF89: 0 | GG89: 0 | GH89: 0 | GI89: 0 | GJ89: 0
A90: 5 | D90: TRANSFORMERS | E90: Ground Outdoor / Indoor Chamber Mounted; ˂ 22 kV ; > 60 kVA and < = 600 kVA ; Multiple Phase | F90: 123.6433539 | G90: 68.06348434 | H90: 8.250059656 | I90: 2 | J90: 11 | K90: 30 | L90: 27 | M90: 45 | N90: 38 | O90: 40 | P90: 44 | Q90: 43 | R90: 41 | S90: 42 | T90: 34 | U90: 33 | V90: 30 | W90: 25 | X90: 31 | Y90: 19 | Z90: 11 | AA90: 9 | AB90: 11 | AC90: 21 | AD90: 18 | AE90: 7 | AF90: 26 | AG90: 14 | AH90: 10 | AI90: 10 | AJ90: 9 | AK90: 20 | AL90: 10 | AM90: 32 | AN90: 7 | AO90: 7 | AP90: 1 | AQ90: 14 | AR90: 64 | AS90: 36 | AT90: 15 | AU90: 4 | AV90: 6 | AW90: 15 | AX90: 6 | AY90: 25 | AZ90: 29 | BA90: 7 | BB90: 54 | BC90: 23 | BD90: 39 | BE90: 47 | BF90: 50 | BG90: 48 | BH90: 25 | BI90: 5 | BJ90: 3 | BK90: 1 | BL90: 1 | BM90: 0 | BN90: 1 | BO90: 0 | BP90: 0 | BQ90: 0 | BR90: 0 | BS90: 0 | BT90: 0 | BU90: 0 | BV90: 1 | BW90: 0 | BX90: 0 | BY90: 0 | BZ90: 0 | CA90: 1 | CB90: 0 | CC90: 0 | CD90: 0 | CE90: 0 | CF90: 0 | CG90: 0 | CH90: 0 | CI90: 0 | CJ90: 0 | CK90: 1 | CL90: 0 | CM90: 0 | CN90: 0 | CO90: 0 | CP90: 0 | CQ90: 0 | CR90: 0 | CS90: 0 | CT90: 0 | CU90: 0 | CV90: 0 | CX90: 1360.076893 | CY90: 3709.300618 | CZ90: 3338.370556 | DA90: 5563.950927 | DB90: 4698.447449 | DC90: 4945.734157 | DD90: 5440.307573 | DE90: 5316.664219 | DF90: 5069.377511 | DG90: 5193.020865 | DH90: 4203.874033 | DI90: 4080.230679 | DJ90: 3709.300618 | DK90: 3091.083848 | DL90: 3832.943972 | DM90: 2349.223725 | DN90: 1360.076893 | DO90: 1112.790185 | DP90: 1360.076893 | DQ90: 2596.510432 | DR90: 2225.580371 | DS90: 865.5034775 | DT90: 3214.727202 | DU90: 1731.006955 | DV90: 1236.433539 | DW90: 1236.433539 | DX90: 1112.790185 | DY90: 2472.867078 | DZ90: 1236.433539 | EA90: 3956.587326 | EB90: 865.5034775 | EC90: 865.5034775 | ED90: 123.6433539 | EE90: 1731.006955 | EF90: 7913.174651 | EG90: 4451.160741 | EH90: 1854.650309 | EI90: 494.5734157 | EJ90: 741.8601235 | EK90: 1854.650309 | EL90: 741.8601235 | EM90: 3091.083848 | EN90: 3585.657264 | EO90: 865.5034775 | EP90: 6676.741112 | EQ90: 2843.79714 | ER90: 4822.090803 | ES90: 5811.237634 | ET90: 6182.167696 | EU90: 5934.880988 | EV90: 3091.083848 | EW90: 618.2167696 | EX90: 370.9300618 | EY90: 123.6433539 | EZ90: 123.6433539 | FA90: 0 | FB90: 123.6433539 | FC90: 0 | FD90: 0 | FE90: 0 | FF90: 0 | FG90: 0 | FH90: 0 | FI90: 0 | FJ90: 123.6433539 | FK90: 0 | FL90: 0 | FM90: 0 | FN90: 0 | FO90: 123.6433539 | FP90: 0 | FQ90: 0 | FR90: 0 | FS90: 0 | FT90: 0 | FU90: 0 | FV90: 0 | FW90: 0 | FX90: 0 | FY90: 123.6433539 | FZ90: 0 | GA90: 0 | GB90: 0 | GC90: 0 | GD90: 0 | GE90: 0 | GF90: 0 | GG90: 0 | GH90: 0 | GI90: 0 | GJ90: 0
A91: 5 | D91: TRANSFORMERS | E91: Ground Outdoor / Indoor Chamber Mounted; ˂ 22 kV ; > 600 kVA ; Multiple Phase | F91: 151.4138653 | G91: 64.63180611 | H91: 8.039390904 | I91: 2 | J91: 47 | K91: 50 | L91: 45 | M91: 76 | N91: 63 | O91: 68 | P91: 74 | Q91: 72 | R91: 69 | S91: 71 | T91: 58 | U91: 56 | V91: 50 | W91: 42 | X91: 53 | Y91: 33 | Z91: 18 | AA91: 16 | AB91: 19 | AC91: 35 | AD91: 30 | AE91: 12 | AF91: 44 | AG91: 23 | AH91: 17 | AI91: 17 | AJ91: 15 | AK91: 33 | AL91: 17 | AM91: 54 | AN91: 11 | AO91: 11 | AP91: 2 | AQ91: 24 | AR91: 108 | AS91: 61 | AT91: 26 | AU91: 6 | AV91: 10 | AW91: 26 | AX91: 10 | AY91: 43 | AZ91: 50 | BA91: 11 | BB91: 91 | BC91: 39 | BD91: 66 | BE91: 79 | BF91: 85 | BG91: 81 | BH91: 43 | BI91: 8 | BJ91: 5 | BK91: 1 | BL91: 1 | BM91: 0 | BN91: 2 | BO91: 0 | BP91: 0 | BQ91: 0 | BR91: 0 | BS91: 0 | BT91: 0 | BU91: 0 | BV91: 1 | BW91: 0 | BX91: 0 | BY91: 0 | BZ91: 0 | CA91: 1 | CB91: 0 | CC91: 0 | CD91: 0 | CE91: 0 | CF91: 0 | CG91: 0 | CH91: 0 | CI91: 0 | CJ91: 0 | CK91: 1 | CL91: 0 | CM91: 0 | CN91: 0 | CO91: 0 | CP91: 0 | CQ91: 0 | CR91: 0 | CS91: 0 | CT91: 0 | CU91: 0 | CV91: 0 | CX91: 7116.451669 | CY91: 7570.693265 | CZ91: 6813.623939 | DA91: 11507.45376 | DB91: 9539.073514 | DC91: 10296.14284 | DD91: 11204.62603 | DE91: 10901.7983 | DF91: 10447.55671 | DG91: 10750.38444 | DH91: 8782.004188 | DI91: 8479.176457 | DJ91: 7570.693265 | DK91: 6359.382343 | DL91: 8024.934861 | DM91: 4996.657555 | DN91: 2725.449576 | DO91: 2422.621845 | DP91: 2876.863441 | DQ91: 5299.485286 | DR91: 4542.415959 | DS91: 1816.966384 | DT91: 6662.210073 | DU91: 3482.518902 | DV91: 2574.03571 | DW91: 2574.03571 | DX91: 2271.20798 | DY91: 4996.657555 | DZ91: 2574.03571 | EA91: 8176.348727 | EB91: 1665.552518 | EC91: 1665.552518 | ED91: 302.8277306 | EE91: 3633.932767 | EF91: 16352.69745 | EG91: 9236.245784 | EH91: 3936.760498 | EI91: 908.4831918 | EJ91: 1514.138653 | EK91: 3936.760498 | EL91: 1514.138653 | EM91: 6510.796208 | EN91: 7570.693265 | EO91: 1665.552518 | EP91: 13778.66174 | EQ91: 5905.140747 | ER91: 9993.31511 | ES91: 11961.69536 | ET91: 12870.17855 | EU91: 12264.52309 | EV91: 6510.796208 | EW91: 1211.310922 | EX91: 757.0693265 | EY91: 151.4138653 | EZ91: 151.4138653 | FA91: 0 | FB91: 302.8277306 | FC91: 0 | FD91: 0 | FE91: 0 | FF91: 0 | FG91: 0 | FH91: 0 | FI91: 0 | FJ91: 151.4138653 | FK91: 0 | FL91: 0 | FM91: 0 | FN91: 0 | FO91: 151.4138653 | FP91: 0 | FQ91: 0 | FR91: 0 | FS91: 0 | FT91: 0 | FU91: 0 | FV91: 0 | FW91: 0 | FX91: 0 | FY91: 151.4138653 | FZ91: 0 | GA91: 0 | GB91: 0 | GC91: 0 | GD91: 0 | GE91: 0 | GF91: 0 | GG91: 0 | GH91: 0 | GI91: 0 | GJ91: 0
A92: 5 | D92: TRANSFORMERS | E92: Ground Outdoor / Indoor Chamber Mounted; > = 22 kV & < = 33 kV ; < = 15 MVA | F92: 373.0151742 | G92: 63.44049468 | H92: 7.964954154 | I92: 2 | J92: 0 | K92: 0 | L92: 0 | M92: 1 | N92: 1 | O92: 0 | P92: 1 | Q92: 0 | R92: 0 | S92: 0 | T92: 0 | U92: 0 | V92: 0 | W92: 0 | X92: 0 | Y92: 0 | Z92: 0 | AA92: 0 | AB92: 0 | AC92: 0 | AD92: 0 | AE92: 0 | AF92: 0 | AG92: 0 | AH92: 0 | AI92: 0 | AJ92: 0 | AK92: 0 | AL92: 0 | AM92: 0 | AN92: 0 | AO92: 0 | AP92: 0 | AQ92: 0 | AR92: 1 | AS92: 0 | AT92: 0 | AU92: 0 | AV92: 0 | AW92: 1 | AX92: 0 | AY92: 0 | AZ92: 0 | BA92: 1 | BB92: 0 | BC92: 1 | BD92: 1 | BE92: 0 | BF92: 0 | BG92: 1 | BH92: 0 | BI92: 1 | BJ92: 2 | BK92: 2 | BL92: 3 | BM92: 0 | BN92: 0 | BO92: 2 | BP92: 0 | BQ92: 0 | BR92: 2 | BS92: 0 | BT92: 3 | BU92: 2 | BV92: 1 | BW92: 0 | BX92: 0 | BY92: 0 | BZ92: 0 | CA92: 0 | CB92: 0 | CC92: 0 | CD92: 3 | CE92: 0 | CF92: 1 | CG92: 0 | CH92: 2 | CI92: 0 | CJ92: 0 | CK92: 0 | CL92: 0 | CM92: 0 | CN92: 0 | CO92: 0 | CP92: 0 | CQ92: 0 | CR92: 0 | CS92: 0 | CT92: 0 | CU92: 0 | CV92: 0 | CX92: 0 | CY92: 0 | CZ92: 0 | DA92: 373.0151742 | DB92: 373.0151742 | DC92: 0 | DD92: 373.0151742 | DE92: 0 | DF92: 0 | DG92: 0 | DH92: 0 | DI92: 0 | DJ92: 0 | DK92: 0 | DL92: 0 | DM92: 0 | DN92: 0 | DO92: 0 | DP92: 0 | DQ92: 0 | DR92: 0 | DS92: 0 | DT92: 0 | DU92: 0 | DV92: 0 | DW92: 0 | DX92: 0 | DY92: 0 | DZ92: 0 | EA92: 0 | EB92: 0 | EC92: 0 | ED92: 0 | EE92: 0 | EF92: 373.0151742 | EG92: 0 | EH92: 0 | EI92: 0 | EJ92: 0 | EK92: 373.0151742 | EL92: 0 | EM92: 0 | EN92: 0 | EO92: 373.0151742 | EP92: 0 | EQ92: 373.0151742 | ER92: 373.0151742 | ES92: 0 | ET92: 0 | EU92: 373.0151742 | EV92: 0 | EW92: 373.0151742 | EX92: 746.0303484 | EY92: 746.0303484 | EZ92: 1119.045523 | FA92: 0 | FB92: 0 | FC92: 746.0303484 | FD92: 0 | FE92: 0 | FF92: 746.0303484 | FG92: 0 | FH92: 1119.045523 | FI92: 746.0303484 | FJ92: 373.0151742 | FK92: 0 | FL92: 0 | FM92: 0 | FN92: 0 | FO92: 0 | FP92: 0 | FQ92: 0 | FR92: 1119.045523 | FS92: 0 | FT92: 373.0151742 | FU92: 0 | FV92: 746.0303484 | FW92: 0 | FX92: 0 | FY92: 0 | FZ92: 0 | GA92: 0 | GB92: 0 | GC92: 0 | GD92: 0 | GE92: 0 | GF92: 0 | GG92: 0 | GH92: 0 | GI92: 0 | GJ92: 0
E93: Ground Outdoor / Indoor Chamber Mounted; > = 22 kV & < = 33 kV ; > 15 MVA and < = 40 MVA | F93: 1844.005796 | G93: 0 | H93: 0 | I93: 2
E94: Ground Outdoor / Indoor Chamber Mounted; > = 22 kV & < = 33 kV ; > 40 MVA | F94: 634.3753382 | G94: 0 | H94: 0 | I94: 2
A95: 5 | D95: TRANSFORMERS | E95: Ground Outdoor / Indoor Chamber Mounted; > 33 kV & < = 66 kV ; < = 15 MVA | F95: 1424.416289 | G95: 66.62781251 | H95: 8.162586141 | I95: 2 | J95: 0 | K95: 0 | L95: 0 | M95: 0 | N95: 0 | O95: 0 | P95: 0 | Q95: 0 | R95: 0 | S95: 0 | T95: 0 | U95: 0 | V95: 0 | W95: 0 | X95: 0 | Y95: 0 | Z95: 0 | AA95: 0 | AB95: 0 | AC95: 0 | AD95: 0 | AE95: 0 | AF95: 0 | AG95: 0 | AH95: 0 | AI95: 0 | AJ95: 0 | AK95: 0 | AL95: 0 | AM95: 0 | AN95: 0 | AO95: 0 | AP95: 0 | AQ95: 0 | AR95: 0 | AS95: 0 | AT95: 0 | AU95: 0 | AV95: 0 | AW95: 0 | AX95: 0 | AY95: 0 | AZ95: 0 | BA95: 0 | BB95: 0 | BC95: 0 | BD95: 0 | BE95: 0 | BF95: 0 | BG95: 0 | BH95: 0 | BI95: 0 | BJ95: 1 | BK95: 1 | BL95: 2 | BM95: 0 | BN95: 0 | BO95: 0 | BP95: 0 | BQ95: 0 | BR95: 0 | BS95: 0 | BT95: 0 | BU95: 0 | BV95: 0 | BW95: 0 | BX95: 0 | BY95: 0 | BZ95: 0 | CA95: 0 | CB95: 0 | CC95: 0 | CD95: 0 | CE95: 0 | CF95: 0 | CG95: 0 | CH95: 0 | CI95: 0 | CJ95: 1 | CK95: 0 | CL95: 0 | CM95: 0 | CN95: 0 | CO95: 0 | CP95: 0 | CQ95: 0 | CR95: 0 | CS95: 0 | CT95: 0 | CU95: 0 | CV95: 0 | CX95: 0 | CY95: 0 | CZ95: 0 | DA95: 0 | DB95: 0 | DC95: 0 | DD95: 0 | DE95: 0 | DF95: 0 | DG95: 0 | DH95: 0 | DI95: 0 | DJ95: 0 | DK95: 0 | DL95: 0 | DM95: 0 | DN95: 0 | DO95: 0 | DP95: 0 | DQ95: 0 | DR95: 0 | DS95: 0 | DT95: 0 | DU95: 0 | DV95: 0 | DW95: 0 | DX95: 0 | DY95: 0 | DZ95: 0 | EA95: 0 | EB95: 0 | EC95: 0 | ED95: 0 | EE95: 0 | EF95: 0 | EG95: 0 | EH95: 0 | EI95: 0 | EJ95: 0 | EK95: 0 | EL95: 0 | EM95: 0 | EN95: 0 | EO95: 0 | EP95: 0 | EQ95: 0 | ER95: 0 | ES95: 0 | ET95: 0 | EU95: 0 | EV95: 0 | EW95: 0 | EX95: 1424.416289 | EY95: 1424.416289 | EZ95: 2848.832578 | FA95: 0 | FB95: 0 | FC95: 0 | FD95: 0 | FE95: 0 | FF95: 0 | FG95: 0 | FH95: 0 | FI95: 0 | FJ95: 0 | FK95: 0 | FL95: 0 | FM95: 0 | FN95: 0 | FO95: 0 | FP95: 0 | FQ95: 0 | FR95: 0 | FS95: 0 | FT95: 0 | FU95: 0 | FV95: 0 | FW95: 0 | FX95: 1424.416289 | FY95: 0 | FZ95: 0 | GA95: 0 | GB95: 0 | GC95: 0 | GD95: 0 | GE95: 0 | GF95: 0 | GG95: 0 | GH95: 0 | GI95: 0 | GJ95: 0
A96: 5 | D96: TRANSFORMERS | E96: Ground Outdoor / Indoor Chamber Mounted; > 33 kV & < = 66 kV ; > 15 MVA and < = 40 MVA | F96: 1742.501519 | G96: 63.44049468 | H96: 7.964954154 | I96: 2 | J96: 0 | K96: 0 | L96: 0 | M96: 0 | N96: 0 | O96: 0 | P96: 0 | Q96: 2 | R96: 0 | S96: 0 | T96: 0 | U96: 4 | V96: 0 | W96: 0 | X96: 1 | Y96: 0 | Z96: 0 | AA96: 0 | AB96: 0 | AC96: 0 | AD96: 0 | AE96: 0 | AF96: 0 | AG96: 1 | AH96: 0 | AI96: 0 | AJ96: 1 | AK96: 0 | AL96: 0 | AM96: 0 | AN96: 0 | AO96: 0 | AP96: 0 | AQ96: 1 | AR96: 1 | AS96: 0 | AT96: 0 | AU96: 0 | AV96: 1 | AW96: 0 | AX96: 0 | AY96: 3 | AZ96: 0 | BA96: 0 | BB96: 2 | BC96: 5 | BD96: 9 | BE96: 4 | BF96: 4 | BG96: 4 | BH96: 2 | BI96: 7 | BJ96: 1 | BK96: 0 | BL96: 0 | BM96: 0 | BN96: 2 | BO96: 0 | BP96: 0 | BQ96: 0 | BR96: 0 | BS96: 0 | BT96: 0 | BU96: 0 | BV96: 0 | BW96: 0 | BX96: 0 | BY96: 0 | BZ96: 0 | CA96: 0 | CB96: 0 | CC96: 0 | CD96: 0 | CE96: 0 | CF96: 0 | CG96: 0 | CH96: 0 | CI96: 0 | CJ96: 0 | CK96: 0 | CL96: 0 | CM96: 0 | CN96: 0 | CO96: 0 | CP96: 0 | CQ96: 0 | CR96: 0 | CS96: 0 | CT96: 0 | CU96: 0 | CV96: 0 | CX96: 0 | CY96: 0 | CZ96: 0 | DA96: 0 | DB96: 0 | DC96: 0 | DD96: 0 | DE96: 3485.003039 | DF96: 0 | DG96: 0 | DH96: 0 | DI96: 6970.006078 | DJ96: 0 | DK96: 0 | DL96: 1742.501519 | DM96: 0 | DN96: 0 | DO96: 0 | DP96: 0 | DQ96: 0 | DR96: 0 | DS96: 0 | DT96: 0 | DU96: 1742.501519 | DV96: 0 | DW96: 0 | DX96: 1742.501519 | DY96: 0 | DZ96: 0 | EA96: 0 | EB96: 0 | EC96: 0 | ED96: 0 | EE96: 1742.501519 | EF96: 1742.501519 | EG96: 0 | EH96: 0 | EI96: 0 | EJ96: 1742.501519 | EK96: 0 | EL96: 0 | EM96: 5227.504558 | EN96: 0 | EO96: 0 | EP96: 3485.003039 | EQ96: 8712.507597 | ER96: 15682.51367 | ES96: 6970.006078 | ET96: 6970.006078 | EU96: 6970.006078 | EV96: 3485.003039 | EW96: 12197.51064 | EX96: 1742.501519 | EY96: 0 | EZ96: 0 | FA96: 0 | FB96: 3485.003039 | FC96: 0 | FD96: 0 | FE96: 0 | FF96: 0 | FG96: 0 | FH96: 0 | FI96: 0 | FJ96: 0 | FK96: 0 | FL96: 0 | FM96: 0 | FN96: 0 | FO96: 0 | FP96: 0 | FQ96: 0 | FR96: 0 | FS96: 0 | FT96: 0 | FU96: 0 | FV96: 0 | FW96: 0 | FX96: 0 | FY96: 0 | FZ96: 0 | GA96: 0 | GB96: 0 | GC96: 0 | GD96: 0 | GE96: 0 | GF96: 0 | GG96: 0 | GH96: 0 | GI96: 0 | GJ96: 0
A97: 5 | D97: TRANSFORMERS | E97: Ground Outdoor / Indoor Chamber Mounted; > 33 kV & < = 66 kV ; > 40 MVA | F97: 351.1457261 | G97: 63.44049468 | H97: 7.964954154 | I97: 2 | J97: 0 | K97: 0 | L97: 1 | M97: 1 | N97: 0 | O97: 2 | P97: 0 | Q97: 0 | R97: 0 | S97: 1 | T97: 0 | U97: 0 | V97: 0 | W97: 0 | X97: 0 | Y97: 0 | Z97: 0 | AA97: 0 | AB97: 0 | AC97: 0 | AD97: 1 | AE97: 0 | AF97: 0 | AG97: 0 | AH97: 0 | AI97: 0 | AJ97: 2 | AK97: 0 | AL97: 0 | AM97: 0 | AN97: 0 | AO97: 0 | AP97: 0 | AQ97: 0 | AR97: 0 | AS97: 0 | AT97: 2 | AU97: 1 | AV97: 0 | AW97: 0 | AX97: 0 | AY97: 0 | AZ97: 0 | BA97: 2 | BB97: 0 | BC97: 0 | BD97: 0 | BE97: 0 | BF97: 0 | BG97: 0 | BH97: 0 | BI97: 0 | BJ97: 0 | BK97: 0 | BL97: 0 | BM97: 0 | BN97: 0 | BO97: 0 | BP97: 0 | BQ97: 0 | BR97: 0 | BS97: 0 | BT97: 0 | BU97: 0 | BV97: 0 | BW97: 0 | BX97: 0 | BY97: 0 | BZ97: 0 | CA97: 0 | CB97: 0 | CC97: 0 | CD97: 0 | CE97: 0 | CF97: 0 | CG97: 0 | CH97: 0 | CI97: 0 | CJ97: 0 | CK97: 0 | CL97: 0 | CM97: 0 | CN97: 0 | CO97: 0 | CP97: 0 | CQ97: 0 | CR97: 0 | CS97: 0 | CT97: 0 | CU97: 0 | CV97: 0 | CX97: 0 | CY97: 0 | CZ97: 351.1457261 | DA97: 351.1457261 | DB97: 0 | DC97: 702.2914521 | DD97: 0 | DE97: 0 | DF97: 0 | DG97: 351.1457261 | DH97: 0 | DI97: 0 | DJ97: 0 | DK97: 0 | DL97: 0 | DM97: 0 | DN97: 0 | DO97: 0 | DP97: 0 | DQ97: 0 | DR97: 351.1457261 | DS97: 0 | DT97: 0 | DU97: 0 | DV97: 0 | DW97: 0 | DX97: 702.2914521 | DY97: 0 | DZ97: 0 | EA97: 0 | EB97: 0 | EC97: 0 | ED97: 0 | EE97: 0 | EF97: 0 | EG97: 0 | EH97: 702.2914521 | EI97: 351.1457261 | EJ97: 0 | EK97: 0 | EL97: 0 | EM97: 0 | EN97: 0 | EO97: 702.2914521 | EP97: 0 | EQ97: 0 | ER97: 0 | ES97: 0 | ET97: 0 | EU97: 0 | EV97: 0 | EW97: 0 | EX97: 0 | EY97: 0 | EZ97: 0 | FA97: 0 | FB97: 0 | FC97: 0 | FD97: 0 | FE97: 0 | FF97: 0 | FG97: 0 | FH97: 0 | FI97: 0 | FJ97: 0 | FK97: 0 | FL97: 0 | FM97: 0 | FN97: 0 | FO97: 0 | FP97: 0 | FQ97: 0 | FR97: 0 | FS97: 0 | FT97: 0 | FU97: 0 | FV97: 0 | FW97: 0 | FX97: 0 | FY97: 0 | FZ97: 0 | GA97: 0 | GB97: 0 | GC97: 0 | GD97: 0 | GE97: 0 | GF97: 0 | GG97: 0 | GH97: 0 | GI97: 0 | GJ97: 0
E98: Ground Outdoor / Indoor Chamber Mounted; > 66 kV & < = 132 kV ; < = 100 MVA | F98: 3122.741652 | G98: 0 | H98: 0 | I98: 2
E99: Ground Outdoor / Indoor Chamber Mounted; > 66 kV & < = 132 kV ; > 100 MVA | F99: 4267.16617 | G99: 0 | H99: 0 | I99: 2
E100: Ground Outdoor / Indoor Chamber Mounted; > 132 kV ; < = 100 MVA | F100: 0.0001 | G100: 0 | H100: 0 | I100: 2
E101: Ground Outdoor / Indoor Chamber Mounted; > 132 kV ; > 100 MVA | F101: 0.0001 | G101: 0 | H101: 0 | I101: 2
E102: Other | F102: 0.0001 | G102: 0 | H102: 0 | I102: 2
E103: ˂ = 11 kV ; Fuse | F103: 1.647177725 | G103: 0 | H103: 0 | I103: 2
A104: 6 | D104: SWITCHGEAR | E104: ˂ = 11 kV ; Switch | F104: 48.29234369 | G104: 90.45668295 | H104: 9.510871829 | I104: 2 | J104: 233 | K104: 313 | L104: 228 | M104: 250 | N104: 229 | O104: 201 | P104: 444 | Q104: 415 | R104: 442 | S104: 292 | T104: 4 | U104: 9 | V104: 45 | W104: 37 | X104: 76 | Y104: 12 | Z104: 18 | AA104: 10 | AB104: 10 | AC104: 10 | AD104: 15 | AE104: 10 | AF104: 10 | AG104: 10 | AH104: 10 | AI104: 472 | AJ104: 10 | AK104: 10 | AL104: 10 | AM104: 10 | AN104: 10 | AO104: 10 | AP104: 193 | AQ104: 347 | AR104: 10 | AS104: 10 | AT104: 10 | AU104: 10 | AV104: 539 | AW104: 10 | AX104: 10 | AY104: 10 | AZ104: 10 | BA104: 568 | BB104: 299 | BC104: 896 | BD104: 732 | BE104: 693 | BF104: 10 | BG104: 857 | BH104: 337 | BI104: 953 | BJ104: 193 | BK104: 212 | BL104: 144 | BM104: 10 | BN104: 10 | BO104: 10 | BP104: 10 | BQ104: 10 | BR104: 453 | BS104: 39 | BT104: 193 | BU104: 10 | BV104: 10 | BW104: 10 | BX104: 10 | BY104: 10 | BZ104: 10 | CA104: 10 | CB104: 10 | CC104: 10 | CD104: 10 | CE104: 10 | CF104: 154 | CG104: 10 | CH104: 135 | CI104: 10 | CJ104: 10 | CK104: 10 | CL104: 10 | CM104: 10 | CN104: 10 | CO104: 10 | CP104: 10 | CQ104: 10 | CR104: 10 | CS104: 10 | CT104: 10 | CU104: 10 | CV104: 140 | CX104: 11252.11608 | CY104: 15115.50358 | CZ104: 11010.65436 | DA104: 12073.08592 | DB104: 11058.94671 | DC104: 9706.761083 | DD104: 21441.8006 | DE104: 20041.32263 | DF104: 21345.21591 | DG104: 14101.36436 | DH104: 193.1693748 | DI104: 434.6310933 | DJ104: 2173.155466 | DK104: 1786.816717 | DL104: 3670.218121 | DM104: 579.5081243 | DN104: 869.2621865 | DO104: 482.9234369 | DP104: 482.9234369 | DQ104: 482.9234369 | DR104: 724.3851554 | DS104: 482.9234369 | DT104: 482.9234369 | DU104: 482.9234369 | DV104: 482.9234369 | DW104: 22793.98622 | DX104: 482.9234369 | DY104: 482.9234369 | DZ104: 482.9234369 | EA104: 482.9234369 | EB104: 482.9234369 | EC104: 482.9234369 | ED104: 9320.422333 | EE104: 16757.44326 | EF104: 482.9234369 | EG104: 482.9234369 | EH104: 482.9234369 | EI104: 482.9234369 | EJ104: 26029.57325 | EK104: 482.9234369 | EL104: 482.9234369 | EM104: 482.9234369 | EN104: 482.9234369 | EO104: 27430.05122 | EP104: 14439.41076 | EQ104: 43269.93995 | ER104: 35349.99558 | ES104: 33466.59418 | ET104: 482.9234369 | EU104: 41386.53855 | EV104: 16274.51983 | EW104: 46022.60354 | EX104: 9320.422333 | EY104: 10237.97686 | EZ104: 6954.097492 | FA104: 482.9234369 | FB104: 482.9234369 | FC104: 482.9234369 | FD104: 482.9234369 | FE104: 482.9234369 | FF104: 21876.43169 | FG104: 1883.401404 | FH104: 9320.422333 | FI104: 482.9234369 | FJ104: 482.9234369 | FK104: 482.9234369 | FL104: 482.9234369 | FM104: 482.9234369 | FN104: 482.9234369 | FO104: 482.9234369 | FP104: 482.9234369 | FQ104: 482.9234369 | FR104: 482.9234369 | FS104: 482.9234369 | FT104: 7437.020929 | FU104: 482.9234369 | FV104: 6519.466399 | FW104: 482.9234369 | FX104: 482.9234369 | FY104: 482.9234369 | FZ104: 482.9234369 | GA104: 482.9234369 | GB104: 482.9234369 | GC104: 482.9234369 | GD104: 482.9234369 | GE104: 482.9234369 | GF104: 482.9234369 | GG104: 482.9234369 | GH104: 482.9234369 | GI104: 482.9234369 | GJ104: 6760.928117
A105: 6 | D105: SWITCHGEAR | E105: ˂ = 11 kV ; Circuit Breaker | F105: 36.04982261 | G105: 69.24059801 | H105: 8.321093559 | I105: 2 | J105: 0 | K105: 0 | L105: 0 | M105: 24 | N105: 0 | O105: 34 | P105: 2 | Q105: 17 | R105: 26 | S105: 7 | T105: 1 | U105: 43 | V105: 2 | W105: 1 | X105: 0 | Y105: 0 | Z105: 0 | AA105: 0 | AB105: 0 | AC105: 0 | AD105: 0 | AE105: 0 | AF105: 0 | AG105: 0 | AH105: 0 | AI105: 55 | AJ105: 0 | AK105: 0 | AL105: 0 | AM105: 0 | AN105: 0 | AO105: 0 | AP105: 22 | AQ105: 40 | AR105: 0 | AS105: 0 | AT105: 0 | AU105: 0 | AV105: 63 | AW105: 0 | AX105: 0 | AY105: 0 | AZ105: 0 | BA105: 66 | BB105: 34 | BC105: 105 | BD105: 85 | BE105: 81 | BF105: 0 | BG105: 100 | BH105: 39 | BI105: 111 | BJ105: 22 | BK105: 24 | BL105: 16 | BM105: 0 | BN105: 0 | BO105: 0 | BP105: 0 | BQ105: 0 | BR105: 52 | BS105: 4 | BT105: 22 | BU105: 0 | BV105: 0 | BW105: 0 | BX105: 0 | BY105: 0 | BZ105: 0 | CA105: 0 | CB105: 0 | CC105: 0 | CD105: 0 | CE105: 0 | CF105: 17 | CG105: 0 | CH105: 15 | CI105: 0 | CJ105: 0 | CK105: 0 | CL105: 0 | CM105: 0 | CN105: 0 | CO105: 0 | CP105: 0 | CQ105: 0 | CR105: 0 | CS105: 0 | CT105: 0 | CU105: 0 | CV105: 0 | CX105: 0 | CY105: 0 | CZ105: 0 | DA105: 865.1957426 | DB105: 0 | DC105: 1225.693969 | DD105: 72.09964522 | DE105: 612.8469843 | DF105: 937.2953878 | DG105: 252.3487583 | DH105: 36.04982261 | DI105: 1550.142372 | DJ105: 72.09964522 | DK105: 36.04982261 | DL105: 0 | DM105: 0 | DN105: 0 | DO105: 0 | DP105: 0 | DQ105: 0 | DR105: 0 | DS105: 0 | DT105: 0 | DU105: 0 | DV105: 0 | DW105: 1982.740243 | DX105: 0 | DY105: 0 | DZ105: 0 | EA105: 0 | EB105: 0 | EC105: 0 | ED105: 793.0960974 | EE105: 1441.992904 | EF105: 0 | EG105: 0 | EH105: 0 | EI105: 0 | EJ105: 2271.138824 | EK105: 0 | EL105: 0 | EM105: 0 | EN105: 0 | EO105: 2379.288292 | EP105: 1225.693969 | EQ105: 3785.231374 | ER105: 3064.234922 | ES105: 2920.035631 | ET105: 0 | EU105: 3604.982261 | EV105: 1405.943082 | EW105: 4001.53031 | EX105: 793.0960974 | EY105: 865.1957426 | EZ105: 576.7971617 | FA105: 0 | FB105: 0 | FC105: 0 | FD105: 0 | FE105: 0 | FF105: 1874.590776 | FG105: 144.1992904 | FH105: 793.0960974 | FI105: 0 | FJ105: 0 | FK105: 0 | FL105: 0 | FM105: 0 | FN105: 0 | FO105: 0 | FP105: 0 | FQ105: 0 | FR105: 0 | FS105: 0 | FT105: 612.8469843 | FU105: 0 | FV105: 540.7473391 | FW105: 0 | FX105: 0 | FY105: 0 | FZ105: 0 | GA105: 0 | GB105: 0 | GC105: 0 | GD105: 0 | GE105: 0 | GF105: 0 | GG105: 0 | GH105: 0 | GI105: 0 | GJ105: 0
A106: 6 | D106: SWITCHGEAR | E106: > 11 kV & < = 22 kV ; Switch | F106: 9.836411827 | G106: 84.48391026 | H106: 9.191512947 | I106: 2 | J106: 0 | K106: 2 | L106: 2 | M106: 0 | N106: 0 | O106: 0 | P106: 33 | Q106: 18 | R106: 0 | S106: 0 | T106: 0 | U106: 3 | V106: 1 | W106: 0 | X106: 0 | Y106: 0 | Z106: 0 | AA106: 0 | AB106: 0 | AC106: 0 | AD106: 0 | AE106: 0 | AF106: 0 | AG106: 0 | AH106: 0 | AI106: 1 | AJ106: 0 | AK106: 0 | AL106: 0 | AM106: 0 | AN106: 0 | AO106: 0 | AP106: 0 | AQ106: 0 | AR106: 0 | AS106: 0 | AT106: 0 | AU106: 0 | AV106: 1 | AW106: 0 | AX106: 0 | AY106: 0 | AZ106: 0 | BA106: 1 | BB106: 0 | BC106: 1 | BD106: 1 | BE106: 1 | BF106: 0 | BG106: 1 | BH106: 0 | BI106: 1 | BJ106: 0 | BK106: 0 | BL106: 0 | BM106: 0 | BN106: 0 | BO106: 0 | BP106: 0 | BQ106: 0 | BR106: 0 | BS106: 0 | BT106: 0 | BU106: 0 | BV106: 0 | BW106: 0 | BX106: 0 | BY106: 0 | BZ106: 0 | CA106: 0 | CB106: 0 | CC106: 0 | CD106: 0 | CE106: 0 | CF106: 0 | CG106: 0 | CH106: 0 | CI106: 0 | CJ106: 0 | CK106: 0 | CL106: 0 | CM106: 0 | CN106: 0 | CO106: 0 | CP106: 0 | CQ106: 0 | CR106: 0 | CS106: 0 | CT106: 0 | CU106: 0 | CV106: 0 | CX106: 0 | CY106: 19.67282365 | CZ106: 19.67282365 | DA106: 0 | DB106: 0 | DC106: 0 | DD106: 324.6015903 | DE106: 177.0554129 | DF106: 0 | DG106: 0 | DH106: 0 | DI106: 29.50923548 | DJ106: 9.836411827 | DK106: 0 | DL106: 0 | DM106: 0 | DN106: 0 | DO106: 0 | DP106: 0 | DQ106: 0 | DR106: 0 | DS106: 0 | DT106: 0 | DU106: 0 | DV106: 0 | DW106: 9.836411827 | DX106: 0 | DY106: 0 | DZ106: 0 | EA106: 0 | EB106: 0 | EC106: 0 | ED106: 0 | EE106: 0 | EF106: 0 | EG106: 0 | EH106: 0 | EI106: 0 | EJ106: 9.836411827 | EK106: 0 | EL106: 0 | EM106: 0 | EN106: 0 | EO106: 9.836411827 | EP106: 0 | EQ106: 9.836411827 | ER106: 9.836411827 | ES106: 9.836411827 | ET106: 0 | EU106: 9.836411827 | EV106: 0 | EW106: 9.836411827 | EX106: 0 | EY106: 0 | EZ106: 0 | FA106: 0 | FB106: 0 | FC106: 0 | FD106: 0 | FE106: 0 | FF106: 0 | FG106: 0 | FH106: 0 | FI106: 0 | FJ106: 0 | FK106: 0 | FL106: 0 | FM106: 0 | FN106: 0 | FO106: 0 | FP106: 0 | FQ106: 0 | FR106: 0 | FS106: 0 | FT106: 0 | FU106: 0 | FV106: 0 | FW106: 0 | FX106: 0 | FY106: 0 | FZ106: 0 | GA106: 0 | GB106: 0 | GC106: 0 | GD106: 0 | GE106: 0 | GF106: 0 | GG106: 0 | GH106: 0 | GI106: 0 | GJ106: 0
A107: 6 | D107: SWITCHGEAR | E107: > 11 kV & < = 22 kV ; Circuit Breaker | F107: 238.8902043 | G107: 77.38501028 | H107: 8.796875029 | I107: 2 | J107: 0 | K107: 0 | L107: 0 | M107: 1 | N107: 0 | O107: 0 | P107: 0 | Q107: 0 | R107: 0 | S107: 0 | T107: 0 | U107: 0 | V107: 0 | W107: 0 | X107: 0 | Y107: 0 | Z107: 0 | AA107: 0 | AB107: 0 | AC107: 0 | AD107: 0 | AE107: 0 | AF107: 0 | AG107: 0 | AH107: 0 | AI107: 1 | AJ107: 0 | AK107: 0 | AL107: 0 | AM107: 0 | AN107: 0 | AO107: 0 | AP107: 0 | AQ107: 0 | AR107: 0 | AS107: 0 | AT107: 0 | AU107: 0 | AV107: 1 | AW107: 0 | AX107: 0 | AY107: 0 | AZ107: 0 | BA107: 3 | BB107: 0 | BC107: 1 | BD107: 1 | BE107: 1 | BF107: 0 | BG107: 1 | BH107: 0 | BI107: 4 | BJ107: 0 | BK107: 0 | BL107: 0 | BM107: 0 | BN107: 0 | BO107: 0 | BP107: 0 | BQ107: 0 | BR107: 10 | BS107: 16 | BT107: 0 | BU107: 0 | BV107: 0 | BW107: 0 | BX107: 0 | BY107: 0 | BZ107: 0 | CA107: 0 | CB107: 0 | CC107: 2 | CD107: 0 | CE107: 0 | CF107: 0 | CG107: 0 | CH107: 0 | CI107: 0 | CJ107: 0 | CK107: 0 | CL107: 0 | CM107: 0 | CN107: 0 | CO107: 0 | CP107: 0 | CQ107: 0 | CR107: 0 | CS107: 0 | CT107: 0 | CU107: 0 | CV107: 0 | CX107: 0 | CY107: 0 | CZ107: 0 | DA107: 238.8902043 | DB107: 0 | DC107: 0 | DD107: 0 | DE107: 0 | DF107: 0 | DG107: 0 | DH107: 0 | DI107: 0 | DJ107: 0 | DK107: 0 | DL107: 0 | DM107: 0 | DN107: 0 | DO107: 0 | DP107: 0 | DQ107: 0 | DR107: 0 | DS107: 0 | DT107: 0 | DU107: 0 | DV107: 0 | DW107: 238.8902043 | DX107: 0 | DY107: 0 | DZ107: 0 | EA107: 0 | EB107: 0 | EC107: 0 | ED107: 0 | EE107: 0 | EF107: 0 | EG107: 0 | EH107: 0 | EI107: 0 | EJ107: 238.8902043 | EK107: 0 | EL107: 0 | EM107: 0 | EN107: 0 | EO107: 716.670613 | EP107: 0 | EQ107: 238.8902043 | ER107: 238.8902043 | ES107: 238.8902043 | ET107: 0 | EU107: 238.8902043 | EV107: 0 | EW107: 955.5608173 | EX107: 0 | EY107: 0 | EZ107: 0 | FA107: 0 | FB107: 0 | FC107: 0 | FD107: 0 | FE107: 0 | FF107: 2388.902043 | FG107: 3822.243269 | FH107: 0 | FI107: 0 | FJ107: 0 | FK107: 0 | FL107: 0 | FM107: 0 | FN107: 0 | FO107: 0 | FP107: 0 | FQ107: 477.7804086 | FR107: 0 | FS107: 0 | FT107: 0 | FU107: 0 | FV107: 0 | FW107: 0 | FX107: 0 | FY107: 0 | FZ107: 0 | GA107: 0 | GB107: 0 | GC107: 0 | GD107: 0 | GE107: 0 | GF107: 0 | GG107: 0 | GH107: 0 | GI107: 0 | GJ107: 0
E108: > 22 kV & < = 33 kV ; Switch | F108: 58.72116244 | G108: 0 | H108: 0 | I108: 2
E109: > 22 kV & < = 33 kV ; Circuit Breaker | F109: 211.5176893 | G109: 0 | H109: 0 | I109: 2
A110: 6 | D110: SWITCHGEAR | E110: > 33 kV & < = 66 kV ; Switch | F110: 71.66604134 | G110: 84.48391026 | H110: 9.191512947 | I110: 2 | J110: 0 | K110: 1 | L110: 0 | M110: 0 | N110: 0 | O110: 0 | P110: 0 | Q110: 0 | R110: 0 | S110: 0 | T110: 0 | U110: 0 | V110: 0 | W110: 0 | X110: 0 | Y110: 0 | Z110: 0 | AA110: 0 | AB110: 0 | AC110: 0 | AD110: 0 | AE110: 0 | AF110: 0 | AG110: 0 | AH110: 0 | AI110: 1 | AJ110: 0 | AK110: 0 | AL110: 0 | AM110: 0 | AN110: 0 | AO110: 0 | AP110: 0 | AQ110: 1 | AR110: 0 | AS110: 0 | AT110: 0 | AU110: 0 | AV110: 1 | AW110: 0 | AX110: 0 | AY110: 0 | AZ110: 0 | BA110: 1 | BB110: 1 | BC110: 2 | BD110: 2 | BE110: 2 | BF110: 0 | BG110: 2 | BH110: 1 | BI110: 2 | BJ110: 0 | BK110: 1 | BL110: 0 | BM110: 0 | BN110: 0 | BO110: 0 | BP110: 0 | BQ110: 0 | BR110: 1 | BS110: 0 | BT110: 0 | BU110: 0 | BV110: 0 | BW110: 0 | BX110: 0 | BY110: 0 | BZ110: 0 | CA110: 0 | CB110: 0 | CC110: 0 | CD110: 0 | CE110: 0 | CF110: 0 | CG110: 0 | CH110: 0 | CI110: 0 | CJ110: 0 | CK110: 0 | CL110: 0 | CM110: 0 | CN110: 0 | CO110: 0 | CP110: 0 | CQ110: 0 | CR110: 0 | CS110: 0 | CT110: 0 | CU110: 0 | CV110: 0 | CX110: 0 | CY110: 71.66604134 | CZ110: 0 | DA110: 0 | DB110: 0 | DC110: 0 | DD110: 0 | DE110: 0 | DF110: 0 | DG110: 0 | DH110: 0 | DI110: 0 | DJ110: 0 | DK110: 0 | DL110: 0 | DM110: 0 | DN110: 0 | DO110: 0 | DP110: 0 | DQ110: 0 | DR110: 0 | DS110: 0 | DT110: 0 | DU110: 0 | DV110: 0 | DW110: 71.66604134 | DX110: 0 | DY110: 0 | DZ110: 0 | EA110: 0 | EB110: 0 | EC110: 0 | ED110: 0 | EE110: 71.66604134 | EF110: 0 | EG110: 0 | EH110: 0 | EI110: 0 | EJ110: 71.66604134 | EK110: 0 | EL110: 0 | EM110: 0 | EN110: 0 | EO110: 71.66604134 | EP110: 71.66604134 | EQ110: 143.3320827 | ER110: 143.3320827 | ES110: 143.3320827 | ET110: 0 | EU110: 143.3320827 | EV110: 71.66604134 | EW110: 143.3320827 | EX110: 0 | EY110: 71.66604134 | EZ110: 0 | FA110: 0 | FB110: 0 | FC110: 0 | FD110: 0 | FE110: 0 | FF110: 71.66604134 | FG110: 0 | FH110: 0 | FI110: 0 | FJ110: 0 | FK110: 0 | FL110: 0 | FM110: 0 | FN110: 0 | FO110: 0 | FP110: 0 | FQ110: 0 | FR110: 0 | FS110: 0 | FT110: 0 | FU110: 0 | FV110: 0 | FW110: 0 | FX110: 0 | FY110: 0 | FZ110: 0 | GA110: 0 | GB110: 0 | GC110: 0 | GD110: 0 | GE110: 0 | GF110: 0 | GG110: 0 | GH110: 0 | GI110: 0 | GJ110: 0
A111: 6 | D111: SWITCHGEAR | E111: > 33 kV & < = 66 kV ; Circuit Breaker | F111: 125.2237331 | G111: 50.10620912 | H111: 7.078573947 | I111: 2 | J111: 0 | K111: 1 | L111: 0 | M111: 0 | N111: 32 | O111: 7 | P111: 0 | Q111: 1 | R111: 0 | S111: 0 | T111: 0 | U111: 4 | V111: 0 | W111: 1 | X111: 0 | Y111: 0 | Z111: 0 | AA111: 0 | AB111: 0 | AC111: 0 | AD111: 0 | AE111: 0 | AF111: 0 | AG111: 0 | AH111: 0 | AI111: 3 | AJ111: 0 | AK111: 1 | AL111: 0 | AM111: 0 | AN111: 0 | AO111: 0 | AP111: 0 | AQ111: 0 | AR111: 2 | AS111: 0 | AT111: 0 | AU111: 0 | AV111: 0 | AW111: 0 | AX111: 0 | AY111: 0 | AZ111: 0 | BA111: 0 | BB111: 0 | BC111: 4 | BD111: 4 | BE111: 2 | BF111: 0 | BG111: 2 | BH111: 0 | BI111: 8 | BJ111: 0 | BK111: 0 | BL111: 0 | BM111: 0 | BN111: 0 | BO111: 0 | BP111: 0 | BQ111: 0 | BR111: 0 | BS111: 0 | BT111: 0 | BU111: 0 | BV111: 0 | BW111: 0 | BX111: 0 | BY111: 0 | BZ111: 0 | CA111: 0 | CB111: 0 | CC111: 0 | CD111: 0 | CE111: 0 | CF111: 0 | CG111: 0 | CH111: 0 | CI111: 0 | CJ111: 0 | CK111: 0 | CL111: 0 | CM111: 0 | CN111: 0 | CO111: 0 | CP111: 0 | CQ111: 0 | CR111: 0 | CS111: 0 | CT111: 0 | CU111: 0 | CV111: 0 | CX111: 0 | CY111: 125.2237331 | CZ111: 0 | DA111: 0 | DB111: 4007.159459 | DC111: 876.5661316 | DD111: 0 | DE111: 125.2237331 | DF111: 0 | DG111: 0 | DH111: 0 | DI111: 500.8949323 | DJ111: 0 | DK111: 125.2237331 | DL111: 0 | DM111: 0 | DN111: 0 | DO111: 0 | DP111: 0 | DQ111: 0 | DR111: 0 | DS111: 0 | DT111: 0 | DU111: 0 | DV111: 0 | DW111: 375.6711992 | DX111: 0 | DY111: 125.2237331 | DZ111: 0 | EA111: 0 | EB111: 0 | EC111: 0 | ED111: 0 | EE111: 0 | EF111: 250.4474662 | EG111: 0 | EH111: 0 | EI111: 0 | EJ111: 0 | EK111: 0 | EL111: 0 | EM111: 0 | EN111: 0 | EO111: 0 | EP111: 0 | EQ111: 500.8949323 | ER111: 500.8949323 | ES111: 250.4474662 | ET111: 0 | EU111: 250.4474662 | EV111: 0 | EW111: 1001.789865 | EX111: 0 | EY111: 0 | EZ111: 0 | FA111: 0 | FB111: 0 | FC111: 0 | FD111: 0 | FE111: 0 | FF111: 0 | FG111: 0 | FH111: 0 | FI111: 0 | FJ111: 0 | FK111: 0 | FL111: 0 | FM111: 0 | FN111: 0 | FO111: 0 | FP111: 0 | FQ111: 0 | FR111: 0 | FS111: 0 | FT111: 0 | FU111: 0 | FV111: 0 | FW111: 0 | FX111: 0 | FY111: 0 | FZ111: 0 | GA111: 0 | GB111: 0 | GC111: 0 | GD111: 0 | GE111: 0 | GF111: 0 | GG111: 0 | GH111: 0 | GI111: 0 | GJ111: 0
E112: > 66 kV & < = 132 kV ; Switch | F112: 152.263602 | G112: 0 | H112: 0 | I112: 2
E113: > 66 kV & < = 132 kV ; Circuit Breaker | F113: 183.0976595 | G113: 0 | H113: 0 | I113: 2
E114: > 132 kV ; Switch | F114: 0.0001 | G114: 0 | H114: 0 | I114: 2
E115: > 132 kV ; Circuit Breaker | F115: 0.0001 | G115: 0 | H115: 0 | I115: 2
A116: 6 | D116: SWITCHGEAR | E116: Other | F116: 7.754982367 | G116: 60.40993795 | H116: 7.772383029 | I116: 2 | J116: 220 | K116: 207 | L116: 182 | M116: 230 | N116: 225 | O116: 216 | P116: 213 | Q116: 195 | R116: 199 | S116: 192 | T116: 191 | U116: 194 | V116: 210 | W116: 204 | X116: 198 | Y116: 198 | Z116: 422 | AA116: 197 | AB116: 211 | AC116: 207 | AD116: 177 | AE116: 177 | AF116: 185 | AG116: 185 | AH116: 218 | AI116: 474 | AJ116: 236 | AK116: 236 | AL116: 243 | AM116: 210 | AN116: 209 | AO116: 236 | AP116: 332 | AQ116: 416 | AR116: 246 | AS116: 178 | AT116: 179 | AU116: 177 | AV116: 448 | AW116: 176 | AX116: 179 | AY116: 185 | AZ116: 189 | BA116: 299 | BB116: 161 | BC116: 466 | BD116: 382 | BE116: 362 | BF116: 12 | BG116: 446 | BH116: 179 | BI116: 493 | BJ116: 105 | BK116: 115 | BL116: 80 | BM116: 10 | BN116: 10 | BO116: 10 | BP116: 10 | BQ116: 10 | BR116: 237 | BS116: 26 | BT116: 105 | BU116: 10 | BV116: 10 | BW116: 10 | BX116: 10 | BY116: 10 | BZ116: 10 | CA116: 10 | CB116: 10 | CC116: 10 | CD116: 10 | CE116: 4 | CF116: 79 | CG116: 4 | CH116: 70 | CI116: 4 | CJ116: 4 | CK116: 4 | CL116: 4 | CM116: 4 | CN116: 4 | CO116: 4 | CP116: 4 | CQ116: 4 | CR116: 4 | CS116: 4 | CT116: 4 | CU116: 4 | CV116: 56 | CX116: 1706.096121 | CY116: 1605.28135 | CZ116: 1411.406791 | DA116: 1783.645944 | DB116: 1744.871033 | DC116: 1675.076191 | DD116: 1651.811244 | DE116: 1512.221562 | DF116: 1543.241491 | DG116: 1488.956614 | DH116: 1481.201632 | DI116: 1504.466579 | DJ116: 1628.546297 | DK116: 1582.016403 | DL116: 1535.486509 | DM116: 1535.486509 | DN116: 3272.602559 | DO116: 1527.731526 | DP116: 1636.301279 | DQ116: 1605.28135 | DR116: 1372.631879 | DS116: 1372.631879 | DT116: 1434.671738 | DU116: 1434.671738 | DV116: 1690.586156 | DW116: 3675.861642 | DX116: 1830.175839 | DY116: 1830.175839 | DZ116: 1884.460715 | EA116: 1628.546297 | EB116: 1620.791315 | EC116: 1830.175839 | ED116: 2574.654146 | EE116: 3226.072665 | EF116: 1907.725662 | EG116: 1380.386861 | EH116: 1388.141844 | EI116: 1372.631879 | EJ116: 3474.2321 | EK116: 1364.876897 | EL116: 1388.141844 | EM116: 1434.671738 | EN116: 1465.691667 | EO116: 2318.739728 | EP116: 1248.552161 | EQ116: 3613.821783 | ER116: 2962.403264 | ES116: 2807.303617 | ET116: 93.0597884 | EU116: 3458.722136 | EV116: 1388.141844 | EW116: 3823.206307 | EX116: 814.2731485 | EY116: 891.8229722 | EZ116: 620.3985894 | FA116: 77.54982367 | FB116: 77.54982367 | FC116: 77.54982367 | FD116: 77.54982367 | FE116: 77.54982367 | FF116: 1837.930821 | FG116: 201.6295415 | FH116: 814.2731485 | FI116: 77.54982367 | FJ116: 77.54982367 | FK116: 77.54982367 | FL116: 77.54982367 | FM116: 77.54982367 | FN116: 77.54982367 | FO116: 77.54982367 | FP116: 77.54982367 | FQ116: 77.54982367 | FR116: 77.54982367 | FS116: 31.01992947 | FT116: 612.643607 | FU116: 31.01992947 | FV116: 542.8487657 | FW116: 31.01992947 | FX116: 31.01992947 | FY116: 31.01992947 | FZ116: 31.01992947 | GA116: 31.01992947 | GB116: 31.01992947 | GC116: 31.01992947 | GD116: 31.01992947 | GE116: 31.01992947 | GF116: 31.01992947 | GG116: 31.01992947 | GH116: 31.01992947 | GI116: 31.01992947 | GJ116: 434.2790126
CX117: 0 | CY117: 0 | CZ117: 0 | DA117: 0 | DB117: 0 | DC117: 0 | DD117: 0 | DE117: 0 | DF117: 0 | DG117: 0 | DH117: 0 | DI117: 0 | DJ117: 0 | DK117: 0 | DL117: 0 | DM117: 0 | DN117: 0 | DO117: 0 | DP117: 0 | DQ117: 0 | DR117: 0 | DS117: 0 | DT117: 0 | DU117: 0 | DV117: 0 | DW117: 0 | DX117: 0 | DY117: 0 | DZ117: 0 | EA117: 0 | EB117: 0 | EC117: 0 | ED117: 0 | EE117: 0 | EF117: 0 | EG117: 0 | EH117: 0 | EI117: 0 | EJ117: 0 | EK117: 0 | EL117: 0 | EM117: 0 | EN117: 0 | EO117: 0 | EP117: 0 | EQ117: 0 | ER117: 0 | ES117: 0 | ET117: 0 | EU117: 0 | EV117: 0 | EW117: 0 | EX117: 0 | EY117: 0 | EZ117: 0 | FA117: 0 | FB117: 0 | FC117: 0 | FD117: 0 | FE117: 0 | FF117: 0 | FG117: 0 | FH117: 0 | FI117: 0 | FJ117: 0 | FK117: 0 | FL117: 0 | FM117: 0 | FN117: 0 | FO117: 0 | FP117: 0 | FQ117: 0 | FR117: 0 | FS117: 0 | FT117: 0 | FU117: 0 | FV117: 0 | FW117: 0 | FX117: 0 | FY117: 0 | FZ117: 0 | GA117: 0 | GB117: 0 | GC117: 0 | GD117: 0 | GE117: 0 | GF117: 0 | GG117: 0 | GH117: 0 | GI117: 0 | GJ117: 0
CX118: 0 | CY118: 0 | CZ118: 0 | DA118: 0 | DB118: 0 | DC118: 0 | DD118: 0 | DE118: 0 | DF118: 0 | DG118: 0 | DH118: 0 | DI118: 0 | DJ118: 0 | DK118: 0 | DL118: 0 | DM118: 0 | DN118: 0 | DO118: 0 | DP118: 0 | DQ118: 0 | DR118: 0 | DS118: 0 | DT118: 0 | DU118: 0 | DV118: 0 | DW118: 0 | DX118: 0 | DY118: 0 | DZ118: 0 | EA118: 0 | EB118: 0 | EC118: 0 | ED118: 0 | EE118: 0 | EF118: 0 | EG118: 0 | EH118: 0 | EI118: 0 | EJ118: 0 | EK118: 0 | EL118: 0 | EM118: 0 | EN118: 0 | EO118: 0 | EP118: 0 | EQ118: 0 | ER118: 0 | ES118: 0 | ET118: 0 | EU118: 0 | EV118: 0 | EW118: 0 | EX118: 0 | EY118: 0 | EZ118: 0 | FA118: 0 | FB118: 0 | FC118: 0 | FD118: 0 | FE118: 0 | FF118: 0 | FG118: 0 | FH118: 0 | FI118: 0 | FJ118: 0 | FK118: 0 | FL118: 0 | FM118: 0 | FN118: 0 | FO118: 0 | FP118: 0 | FQ118: 0 | FR118: 0 | FS118: 0 | FT118: 0 | FU118: 0 | FV118: 0 | FW118: 0 | FX118: 0 | FY118: 0 | FZ118: 0 | GA118: 0 | GB118: 0 | GC118: 0 | GD118: 0 | GE118: 0 | GF118: 0 | GG118: 0 | GH118: 0 | GI118: 0 | GJ118: 0
CX119: 0 | CY119: 0 | CZ119: 0 | DA119: 0 | DB119: 0 | DC119: 0 | DD119: 0 | DE119: 0 | DF119: 0 | DG119: 0 | DH119: 0 | DI119: 0 | DJ119: 0 | DK119: 0 | DL119: 0 | DM119: 0 | DN119: 0 | DO119: 0 | DP119: 0 | DQ119: 0 | DR119: 0 | DS119: 0 | DT119: 0 | DU119: 0 | DV119: 0 | DW119: 0 | DX119: 0 | DY119: 0 | DZ119: 0 | EA119: 0 | EB119: 0 | EC119: 0 | ED119: 0 | EE119: 0 | EF119: 0 | EG119: 0 | EH119: 0 | EI119: 0 | EJ119: 0 | EK119: 0 | EL119: 0 | EM119: 0 | EN119: 0 | EO119: 0 | EP119: 0 | EQ119: 0 | ER119: 0 | ES119: 0 | ET119: 0 | EU119: 0 | EV119: 0 | EW119: 0 | EX119: 0 | EY119: 0 | EZ119: 0 | FA119: 0 | FB119: 0 | FC119: 0 | FD119: 0 | FE119: 0 | FF119: 0 | FG119: 0 | FH119: 0 | FI119: 0 | FJ119: 0 | FK119: 0 | FL119: 0 | FM119: 0 | FN119: 0 | FO119: 0 | FP119: 0 | FQ119: 0 | FR119: 0 | FS119: 0 | FT119: 0 | FU119: 0 | FV119: 0 | FW119: 0 | FX119: 0 | FY119: 0 | FZ119: 0 | GA119: 0 | GB119: 0 | GC119: 0 | GD119: 0 | GE119: 0 | GF119: 0 | GG119: 0 | GH119: 0 | GI119: 0 | GJ119: 0
CX120: 0 | CY120: 0 | CZ120: 0 | DA120: 0 | DB120: 0 | DC120: 0 | DD120: 0 | DE120: 0 | DF120: 0 | DG120: 0 | DH120: 0 | DI120: 0 | DJ120: 0 | DK120: 0 | DL120: 0 | DM120: 0 | DN120: 0 | DO120: 0 | DP120: 0 | DQ120: 0 | DR120: 0 | DS120: 0 | DT120: 0 | DU120: 0 | DV120: 0 | DW120: 0 | DX120: 0 | DY120: 0 | DZ120: 0 | EA120: 0 | EB120: 0 | EC120: 0 | ED120: 0 | EE120: 0 | EF120: 0 | EG120: 0 | EH120: 0 | EI120: 0 | EJ120: 0 | EK120: 0 | EL120: 0 | EM120: 0 | EN120: 0 | EO120: 0 | EP120: 0 | EQ120: 0 | ER120: 0 | ES120: 0 | ET120: 0 | EU120: 0 | EV120: 0 | EW120: 0 | EX120: 0 | EY120: 0 | EZ120: 0 | FA120: 0 | FB120: 0 | FC120: 0 | FD120: 0 | FE120: 0 | FF120: 0 | FG120: 0 | FH120: 0 | FI120: 0 | FJ120: 0 | FK120: 0 | FL120: 0 | FM120: 0 | FN120: 0 | FO120: 0 | FP120: 0 | FQ120: 0 | FR120: 0 | FS120: 0 | FT120: 0 | FU120: 0 | FV120: 0 | FW120: 0 | FX120: 0 | FY120: 0 | FZ120: 0 | GA120: 0 | GB120: 0 | GC120: 0 | GD120: 0 | GE120: 0 | GF120: 0 | GG120: 0 | GH120: 0 | GI120: 0 | GJ120: 0
CX121: 0 | CY121: 0 | CZ121: 0 | DA121: 0 | DB121: 0 | DC121: 0 | DD121: 0 | DE121: 0 | DF121: 0 | DG121: 0 | DH121: 0 | DI121: 0 | DJ121: 0 | DK121: 0 | DL121: 0 | DM121: 0 | DN121: 0 | DO121: 0 | DP121: 0 | DQ121: 0 | DR121: 0 | DS121: 0 | DT121: 0 | DU121: 0 | DV121: 0 | DW121: 0 | DX121: 0 | DY121: 0 | DZ121: 0 | EA121: 0 | EB121: 0 | EC121: 0 | ED121: 0 | EE121: 0 | EF121: 0 | EG121: 0 | EH121: 0 | EI121: 0 | EJ121: 0 | EK121: 0 | EL121: 0 | EM121: 0 | EN121: 0 | EO121: 0 | EP121: 0 | EQ121: 0 | ER121: 0 | ES121: 0 | ET121: 0 | EU121: 0 | EV121: 0 | EW121: 0 | EX121: 0 | EY121: 0 | EZ121: 0 | FA121: 0 | FB121: 0 | FC121: 0 | FD121: 0 | FE121: 0 | FF121: 0 | FG121: 0 | FH121: 0 | FI121: 0 | FJ121: 0 | FK121: 0 | FL121: 0 | FM121: 0 | FN121: 0 | FO121: 0 | FP121: 0 | FQ121: 0 | FR121: 0 | FS121: 0 | FT121: 0 | FU121: 0 | FV121: 0 | FW121: 0 | FX121: 0 | FY121: 0 | FZ121: 0 | GA121: 0 | GB121: 0 | GC121: 0 | GD121: 0 | GE121: 0 | GF121: 0 | GG121: 0 | GH121: 0 | GI121: 0 | GJ121: 0
CX122: 0 | CY122: 0 | CZ122: 0 | DA122: 0 | DB122: 0 | DC122: 0 | DD122: 0 | DE122: 0 | DF122: 0 | DG122: 0 | DH122: 0 | DI122: 0 | DJ122: 0 | DK122: 0 | DL122: 0 | DM122: 0 | DN122: 0 | DO122: 0 | DP122: 0 | DQ122: 0 | DR122: 0 | DS122: 0 | DT122: 0 | DU122: 0 | DV122: 0 | DW122: 0 | DX122: 0 | DY122: 0 | DZ122: 0 | EA122: 0 | EB122: 0 | EC122: 0 | ED122: 0 | EE122: 0 | EF122: 0 | EG122: 0 | EH122: 0 | EI122: 0 | EJ122: 0 | EK122: 0 | EL122: 0 | EM122: 0 | EN122: 0 | EO122: 0 | EP122: 0 | EQ122: 0 | ER122: 0 | ES122: 0 | ET122: 0 | EU122: 0 | EV122: 0 | EW122: 0 | EX122: 0 | EY122: 0 | EZ122: 0 | FA122: 0 | FB122: 0 | FC122: 0 | FD122: 0 | FE122: 0 | FF122: 0 | FG122: 0 | FH122: 0 | FI122: 0 | FJ122: 0 | FK122: 0 | FL122: 0 | FM122: 0 | FN122: 0 | FO122: 0 | FP122: 0 | FQ122: 0 | FR122: 0 | FS122: 0 | FT122: 0 | FU122: 0 | FV122: 0 | FW122: 0 | FX122: 0 | FY122: 0 | FZ122: 0 | GA122: 0 | GB122: 0 | GC122: 0 | GD122: 0 | GE122: 0 | GF122: 0 | GG122: 0 | GH122: 0 | GI122: 0 | GJ122: 0
CX123: 0 | CY123: 0 | CZ123: 0 | DA123: 0 | DB123: 0 | DC123: 0 | DD123: 0 | DE123: 0 | DF123: 0 | DG123: 0 | DH123: 0 | DI123: 0 | DJ123: 0 | DK123: 0 | DL123: 0 | DM123: 0 | DN123: 0 | DO123: 0 | DP123: 0 | DQ123: 0 | DR123: 0 | DS123: 0 | DT123: 0 | DU123: 0 | DV123: 0 | DW123: 0 | DX123: 0 | DY123: 0 | DZ123: 0 | EA123: 0 | EB123: 0 | EC123: 0 | ED123: 0 | EE123: 0 | EF123: 0 | EG123: 0 | EH123: 0 | EI123: 0 | EJ123: 0 | EK123: 0 | EL123: 0 | EM123: 0 | EN123: 0 | EO123: 0 | EP123: 0 | EQ123: 0 | ER123: 0 | ES123: 0 | ET123: 0 | EU123: 0 | EV123: 0 | EW123: 0 | EX123: 0 | EY123: 0 | EZ123: 0 | FA123: 0 | FB123: 0 | FC123: 0 | FD123: 0 | FE123: 0 | FF123: 0 | FG123: 0 | FH123: 0 | FI123: 0 | FJ123: 0 | FK123: 0 | FL123: 0 | FM123: 0 | FN123: 0 | FO123: 0 | FP123: 0 | FQ123: 0 | FR123: 0 | FS123: 0 | FT123: 0 | FU123: 0 | FV123: 0 | FW123: 0 | FX123: 0 | FY123: 0 | FZ123: 0 | GA123: 0 | GB123: 0 | GC123: 0 | GD123: 0 | GE123: 0 | GF123: 0 | GG123: 0 | GH123: 0 | GI123: 0 | GJ123: 0
CX124: 0 | CY124: 0 | CZ124: 0 | DA124: 0 | DB124: 0 | DC124: 0 | DD124: 0 | DE124: 0 | DF124: 0 | DG124: 0 | DH124: 0 | DI124: 0 | DJ124: 0 | DK124: 0 | DL124: 0 | DM124: 0 | DN124: 0 | DO124: 0 | DP124: 0 | DQ124: 0 | DR124: 0 | DS124: 0 | DT124: 0 | DU124: 0 | DV124: 0 | DW124: 0 | DX124: 0 | DY124: 0 | DZ124: 0 | EA124: 0 | EB124: 0 | EC124: 0 | ED124: 0 | EE124: 0 | EF124: 0 | EG124: 0 | EH124: 0 | EI124: 0 | EJ124: 0 | EK124: 0 | EL124: 0 | EM124: 0 | EN124: 0 | EO124: 0 | EP124: 0 | EQ124: 0 | ER124: 0 | ES124: 0 | ET124: 0 | EU124: 0 | EV124: 0 | EW124: 0 | EX124: 0 | EY124: 0 | EZ124: 0 | FA124: 0 | FB124: 0 | FC124: 0 | FD124: 0 | FE124: 0 | FF124: 0 | FG124: 0 | FH124: 0 | FI124: 0 | FJ124: 0 | FK124: 0 | FL124: 0 | FM124: 0 | FN124: 0 | FO124: 0 | FP124: 0 | FQ124: 0 | FR124: 0 | FS124: 0 | FT124: 0 | FU124: 0 | FV124: 0 | FW124: 0 | FX124: 0 | FY124: 0 | FZ124: 0 | GA124: 0 | GB124: 0 | GC124: 0 | GD124: 0 | GE124: 0 | GF124: 0 | GG124: 0 | GH124: 0 | GI124: 0 | GJ124: 0
CX125: 0 | CY125: 0 | CZ125: 0 | DA125: 0 | DB125: 0 | DC125: 0 | DD125: 0 | DE125: 0 | DF125: 0 | DG125: 0 | DH125: 0 | DI125: 0 | DJ125: 0 | DK125: 0 | DL125: 0 | DM125: 0 | DN125: 0 | DO125: 0 | DP125: 0 | DQ125: 0 | DR125: 0 | DS125: 0 | DT125: 0 | DU125: 0 | DV125: 0 | DW125: 0 | DX125: 0 | DY125: 0 | DZ125: 0 | EA125: 0 | EB125: 0 | EC125: 0 | ED125: 0 | EE125: 0 | EF125: 0 | EG125: 0 | EH125: 0 | EI125: 0 | EJ125: 0 | EK125: 0 | EL125: 0 | EM125: 0 | EN125: 0 | EO125: 0 | EP125: 0 | EQ125: 0 | ER125: 0 | ES125: 0 | ET125: 0 | EU125: 0 | EV125: 0 | EW125: 0 | EX125: 0 | EY125: 0 | EZ125: 0 | FA125: 0 | FB125: 0 | FC125: 0 | FD125: 0 | FE125: 0 | FF125: 0 | FG125: 0 | FH125: 0 | FI125: 0 | FJ125: 0 | FK125: 0 | FL125: 0 | FM125: 0 | FN125: 0 | FO125: 0 | FP125: 0 | FQ125: 0 | FR125: 0 | FS125: 0 | FT125: 0 | FU125: 0 | FV125: 0 | FW125: 0 | FX125: 0 | FY125: 0 | FZ125: 0 | GA125: 0 | GB125: 0 | GC125: 0 | GD125: 0 | GE125: 0 | GF125: 0 | GG125: 0 | GH125: 0 | GI125: 0 | GJ125: 0
CX126: 0 | CY126: 0 | CZ126: 0 | DA126: 0 | DB126: 0 | DC126: 0 | DD126: 0 | DE126: 0 | DF126: 0 | DG126: 0 | DH126: 0 | DI126: 0 | DJ126: 0 | DK126: 0 | DL126: 0 | DM126: 0 | DN126: 0 | DO126: 0 | DP126: 0 | DQ126: 0 | DR126: 0 | DS126: 0 | DT126: 0 | DU126: 0 | DV126: 0 | DW126: 0 | DX126: 0 | DY126: 0 | DZ126: 0 | EA126: 0 | EB126: 0 | EC126: 0 | ED126: 0 | EE126: 0 | EF126: 0 | EG126: 0 | EH126: 0 | EI126: 0 | EJ126: 0 | EK126: 0 | EL126: 0 | EM126: 0 | EN126: 0 | EO126: 0 | EP126: 0 | EQ126: 0 | ER126: 0 | ES126: 0 | ET126: 0 | EU126: 0 | EV126: 0 | EW126: 0 | EX126: 0 | EY126: 0 | EZ126: 0 | FA126: 0 | FB126: 0 | FC126: 0 | FD126: 0 | FE126: 0 | FF126: 0 | FG126: 0 | FH126: 0 | FI126: 0 | FJ126: 0 | FK126: 0 | FL126: 0 | FM126: 0 | FN126: 0 | FO126: 0 | FP126: 0 | FQ126: 0 | FR126: 0 | FS126: 0 | FT126: 0 | FU126: 0 | FV126: 0 | FW126: 0 | FX126: 0 | FY126: 0 | FZ126: 0 | GA126: 0 | GB126: 0 | GC126: 0 | GD126: 0 | GE126: 0 | GF126: 0 | GG126: 0 | GH126: 0 | GI126: 0 | GJ126: 0
CX127: 0 | CY127: 0 | CZ127: 0 | DA127: 0 | DB127: 0 | DC127: 0 | DD127: 0 | DE127: 0 | DF127: 0 | DG127: 0 | DH127: 0 | DI127: 0 | DJ127: 0 | DK127: 0 | DL127: 0 | DM127: 0 | DN127: 0 | DO127: 0 | DP127: 0 | DQ127: 0 | DR127: 0 | DS127: 0 | DT127: 0 | DU127: 0 | DV127: 0 | DW127: 0 | DX127: 0 | DY127: 0 | DZ127: 0 | EA127: 0 | EB127: 0 | EC127: 0 | ED127: 0 | EE127: 0 | EF127: 0 | EG127: 0 | EH127: 0 | EI127: 0 | EJ127: 0 | EK127: 0 | EL127: 0 | EM127: 0 | EN127: 0 | EO127: 0 | EP127: 0 | EQ127: 0 | ER127: 0 | ES127: 0 | ET127: 0 | EU127: 0 | EV127: 0 | EW127: 0 | EX127: 0 | EY127: 0 | EZ127: 0 | FA127: 0 | FB127: 0 | FC127: 0 | FD127: 0 | FE127: 0 | FF127: 0 | FG127: 0 | FH127: 0 | FI127: 0 | FJ127: 0 | FK127: 0 | FL127: 0 | FM127: 0 | FN127: 0 | FO127: 0 | FP127: 0 | FQ127: 0 | FR127: 0 | FS127: 0 | FT127: 0 | FU127: 0 | FV127: 0 | FW127: 0 | FX127: 0 | FY127: 0 | FZ127: 0 | GA127: 0 | GB127: 0 | GC127: 0 | GD127: 0 | GE127: 0 | GF127: 0 | GG127: 0 | GH127: 0 | GI127: 0 | GJ127: 0
CX128: 0 | CY128: 0 | CZ128: 0 | DA128: 0 | DB128: 0 | DC128: 0 | DD128: 0 | DE128: 0 | DF128: 0 | DG128: 0 | DH128: 0 | DI128: 0 | DJ128: 0 | DK128: 0 | DL128: 0 | DM128: 0 | DN128: 0 | DO128: 0 | DP128: 0 | DQ128: 0 | DR128: 0 | DS128: 0 | DT128: 0 | DU128: 0 | DV128: 0 | DW128: 0 | DX128: 0 | DY128: 0 | DZ128: 0 | EA128: 0 | EB128: 0 | EC128: 0 | ED128: 0 | EE128: 0 | EF128: 0 | EG128: 0 | EH128: 0 | EI128: 0 | EJ128: 0 | EK128: 0 | EL128: 0 | EM128: 0 | EN128: 0 | EO128: 0 | EP128: 0 | EQ128: 0 | ER128: 0 | ES128: 0 | ET128: 0 | EU128: 0 | EV128: 0 | EW128: 0 | EX128: 0 | EY128: 0 | EZ128: 0 | FA128: 0 | FB128: 0 | FC128: 0 | FD128: 0 | FE128: 0 | FF128: 0 | FG128: 0 | FH128: 0 | FI128: 0 | FJ128: 0 | FK128: 0 | FL128: 0 | FM128: 0 | FN128: 0 | FO128: 0 | FP128: 0 | FQ128: 0 | FR128: 0 | FS128: 0 | FT128: 0 | FU128: 0 | FV128: 0 | FW128: 0 | FX128: 0 | FY128: 0 | FZ128: 0 | GA128: 0 | GB128: 0 | GC128: 0 | GD128: 0 | GE128: 0 | GF128: 0 | GG128: 0 | GH128: 0 | GI128: 0 | GJ128: 0
CX129: 0 | CY129: 0 | CZ129: 0 | DA129: 0 | DB129: 0 | DC129: 0 | DD129: 0 | DE129: 0 | DF129: 0 | DG129: 0 | DH129: 0 | DI129: 0 | DJ129: 0 | DK129: 0 | DL129: 0 | DM129: 0 | DN129: 0 | DO129: 0 | DP129: 0 | DQ129: 0 | DR129: 0 | DS129: 0 | DT129: 0 | DU129: 0 | DV129: 0 | DW129: 0 | DX129: 0 | DY129: 0 | DZ129: 0 | EA129: 0 | EB129: 0 | EC129: 0 | ED129: 0 | EE129: 0 | EF129: 0 | EG129: 0 | EH129: 0 | EI129: 0 | EJ129: 0 | EK129: 0 | EL129: 0 | EM129: 0 | EN129: 0 | EO129: 0 | EP129: 0 | EQ129: 0 | ER129: 0 | ES129: 0 | ET129: 0 | EU129: 0 | EV129: 0 | EW129: 0 | EX129: 0 | EY129: 0 | EZ129: 0 | FA129: 0 | FB129: 0 | FC129: 0 | FD129: 0 | FE129: 0 | FF129: 0 | FG129: 0 | FH129: 0 | FI129: 0 | FJ129: 0 | FK129: 0 | FL129: 0 | FM129: 0 | FN129: 0 | FO129: 0 | FP129: 0 | FQ129: 0 | FR129: 0 | FS129: 0 | FT129: 0 | FU129: 0 | FV129: 0 | FW129: 0 | FX129: 0 | FY129: 0 | FZ129: 0 | GA129: 0 | GB129: 0 | GC129: 0 | GD129: 0 | GE129: 0 | GF129: 0 | GG129: 0 | GH129: 0 | GI129: 0 | GJ129: 0
CX130: 0 | CY130: 0 | CZ130: 0 | DA130: 0 | DB130: 0 | DC130: 0 | DD130: 0 | DE130: 0 | DF130: 0 | DG130: 0 | DH130: 0 | DI130: 0 | DJ130: 0 | DK130: 0 | DL130: 0 | DM130: 0 | DN130: 0 | DO130: 0 | DP130: 0 | DQ130: 0 | DR130: 0 | DS130: 0 | DT130: 0 | DU130: 0 | DV130: 0 | DW130: 0 | DX130: 0 | DY130: 0 | DZ130: 0 | EA130: 0 | EB130: 0 | EC130: 0 | ED130: 0 | EE130: 0 | EF130: 0 | EG130: 0 | EH130: 0 | EI130: 0 | EJ130: 0 | EK130: 0 | EL130: 0 | EM130: 0 | EN130: 0 | EO130: 0 | EP130: 0 | EQ130: 0 | ER130: 0 | ES130: 0 | ET130: 0 | EU130: 0 | EV130: 0 | EW130: 0 | EX130: 0 | EY130: 0 | EZ130: 0 | FA130: 0 | FB130: 0 | FC130: 0 | FD130: 0 | FE130: 0 | FF130: 0 | FG130: 0 | FH130: 0 | FI130: 0 | FJ130: 0 | FK130: 0 | FL130: 0 | FM130: 0 | FN130: 0 | FO130: 0 | FP130: 0 | FQ130: 0 | FR130: 0 | FS130: 0 | FT130: 0 | FU130: 0 | FV130: 0 | FW130: 0 | FX130: 0 | FY130: 0 | FZ130: 0 | GA130: 0 | GB130: 0 | GC130: 0 | GD130: 0 | GE130: 0 | GF130: 0 | GG130: 0 | GH130: 0 | GI130: 0 | GJ130: 0
CX131: 0 | CY131: 0 | CZ131: 0 | DA131: 0 | DB131: 0 | DC131: 0 | DD131: 0 | DE131: 0 | DF131: 0 | DG131: 0 | DH131: 0 | DI131: 0 | DJ131: 0 | DK131: 0 | DL131: 0 | DM131: 0 | DN131: 0 | DO131: 0 | DP131: 0 | DQ131: 0 | DR131: 0 | DS131: 0 | DT131: 0 | DU131: 0 | DV131: 0 | DW131: 0 | DX131: 0 | DY131: 0 | DZ131: 0 | EA131: 0 | EB131: 0 | EC131: 0 | ED131: 0 | EE131: 0 | EF131: 0 | EG131: 0 | EH131: 0 | EI131: 0 | EJ131: 0 | EK131: 0 | EL131: 0 | EM131: 0 | EN131: 0 | EO131: 0 | EP131: 0 | EQ131: 0 | ER131: 0 | ES131: 0 | ET131: 0 | EU131: 0 | EV131: 0 | EW131: 0 | EX131: 0 | EY131: 0 | EZ131: 0 | FA131: 0 | FB131: 0 | FC131: 0 | FD131: 0 | FE131: 0 | FF131: 0 | FG131: 0 | FH131: 0 | FI131: 0 | FJ131: 0 | FK131: 0 | FL131: 0 | FM131: 0 | FN131: 0 | FO131: 0 | FP131: 0 | FQ131: 0 | FR131: 0 | FS131: 0 | FT131: 0 | FU131: 0 | FV131: 0 | FW131: 0 | FX131: 0 | FY131: 0 | FZ131: 0 | GA131: 0 | GB131: 0 | GC131: 0 | GD131: 0 | GE131: 0 | GF131: 0 | GG131: 0 | GH131: 0 | GI131: 0 | GJ131: 0
CX132: 0 | CY132: 0 | CZ132: 0 | DA132: 0 | DB132: 0 | DC132: 0 | DD132: 0 | DE132: 0 | DF132: 0 | DG132: 0 | DH132: 0 | DI132: 0 | DJ132: 0 | DK132: 0 | DL132: 0 | DM132: 0 | DN132: 0 | DO132: 0 | DP132: 0 | DQ132: 0 | DR132: 0 | DS132: 0 | DT132: 0 | DU132: 0 | DV132: 0 | DW132: 0 | DX132: 0 | DY132: 0 | DZ132: 0 | EA132: 0 | EB132: 0 | EC132: 0 | ED132: 0 | EE132: 0 | EF132: 0 | EG132: 0 | EH132: 0 | EI132: 0 | EJ132: 0 | EK132: 0 | EL132: 0 | EM132: 0 | EN132: 0 | EO132: 0 | EP132: 0 | EQ132: 0 | ER132: 0 | ES132: 0 | ET132: 0 | EU132: 0 | EV132: 0 | EW132: 0 | EX132: 0 | EY132: 0 | EZ132: 0 | FA132: 0 | FB132: 0 | FC132: 0 | FD132: 0 | FE132: 0 | FF132: 0 | FG132: 0 | FH132: 0 | FI132: 0 | FJ132: 0 | FK132: 0 | FL132: 0 | FM132: 0 | FN132: 0 | FO132: 0 | FP132: 0 | FQ132: 0 | FR132: 0 | FS132: 0 | FT132: 0 | FU132: 0 | FV132: 0 | FW132: 0 | FX132: 0 | FY132: 0 | FZ132: 0 | GA132: 0 | GB132: 0 | GC132: 0 | GD132: 0 | GE132: 0 | GF132: 0 | GG132: 0 | GH132: 0 | GI132: 0 | GJ132: 0
CX133: 0 | CY133: 0 | CZ133: 0 | DA133: 0 | DB133: 0 | DC133: 0 | DD133: 0 | DE133: 0 | DF133: 0 | DG133: 0 | DH133: 0 | DI133: 0 | DJ133: 0 | DK133: 0 | DL133: 0 | DM133: 0 | DN133: 0 | DO133: 0 | DP133: 0 | DQ133: 0 | DR133: 0 | DS133: 0 | DT133: 0 | DU133: 0 | DV133: 0 | DW133: 0 | DX133: 0 | DY133: 0 | DZ133: 0 | EA133: 0 | EB133: 0 | EC133: 0 | ED133: 0 | EE133: 0 | EF133: 0 | EG133: 0 | EH133: 0 | EI133: 0 | EJ133: 0 | EK133: 0 | EL133: 0 | EM133: 0 | EN133: 0 | EO133: 0 | EP133: 0 | EQ133: 0 | ER133: 0 | ES133: 0 | ET133: 0 | EU133: 0 | EV133: 0 | EW133: 0 | EX133: 0 | EY133: 0 | EZ133: 0 | FA133: 0 | FB133: 0 | FC133: 0 | FD133: 0 | FE133: 0 | FF133: 0 | FG133: 0 | FH133: 0 | FI133: 0 | FJ133: 0 | FK133: 0 | FL133: 0 | FM133: 0 | FN133: 0 | FO133: 0 | FP133: 0 | FQ133: 0 | FR133: 0 | FS133: 0 | FT133: 0 | FU133: 0 | FV133: 0 | FW133: 0 | FX133: 0 | FY133: 0 | FZ133: 0 | GA133: 0 | GB133: 0 | GC133: 0 | GD133: 0 | GE133: 0 | GF133: 0 | GG133: 0 | GH133: 0 | GI133: 0 | GJ133: 0
CX134: 0 | CY134: 0 | CZ134: 0 | DA134: 0 | DB134: 0 | DC134: 0 | DD134: 0 | DE134: 0 | DF134: 0 | DG134: 0 | DH134: 0 | DI134: 0 | DJ134: 0 | DK134: 0 | DL134: 0 | DM134: 0 | DN134: 0 | DO134: 0 | DP134: 0 | DQ134: 0 | DR134: 0 | DS134: 0 | DT134: 0 | DU134: 0 | DV134: 0 | DW134: 0 | DX134: 0 | DY134: 0 | DZ134: 0 | EA134: 0 | EB134: 0 | EC134: 0 | ED134: 0 | EE134: 0 | EF134: 0 | EG134: 0 | EH134: 0 | EI134: 0 | EJ134: 0 | EK134: 0 | EL134: 0 | EM134: 0 | EN134: 0 | EO134: 0 | EP134: 0 | EQ134: 0 | ER134: 0 | ES134: 0 | ET134: 0 | EU134: 0 | EV134: 0 | EW134: 0 | EX134: 0 | EY134: 0 | EZ134: 0 | FA134: 0 | FB134: 0 | FC134: 0 | FD134: 0 | FE134: 0 | FF134: 0 | FG134: 0 | FH134: 0 | FI134: 0 | FJ134: 0 | FK134: 0 | FL134: 0 | FM134: 0 | FN134: 0 | FO134: 0 | FP134: 0 | FQ134: 0 | FR134: 0 | FS134: 0 | FT134: 0 | FU134: 0 | FV134: 0 | FW134: 0 | FX134: 0 | FY134: 0 | FZ134: 0 | GA134: 0 | GB134: 0 | GC134: 0 | GD134: 0 | GE134: 0 | GF134: 0 | GG134: 0 | GH134: 0 | GI134: 0 | GJ134: 0
CX135: 0 | CY135: 0 | CZ135: 0 | DA135: 0 | DB135: 0 | DC135: 0 | DD135: 0 | DE135: 0 | DF135: 0 | DG135: 0 | DH135: 0 | DI135: 0 | DJ135: 0 | DK135: 0 | DL135: 0 | DM135: 0 | DN135: 0 | DO135: 0 | DP135: 0 | DQ135: 0 | DR135: 0 | DS135: 0 | DT135: 0 | DU135: 0 | DV135: 0 | DW135: 0 | DX135: 0 | DY135: 0 | DZ135: 0 | EA135: 0 | EB135: 0 | EC135: 0 | ED135: 0 | EE135: 0 | EF135: 0 | EG135: 0 | EH135: 0 | EI135: 0 | EJ135: 0 | EK135: 0 | EL135: 0 | EM135: 0 | EN135: 0 | EO135: 0 | EP135: 0 | EQ135: 0 | ER135: 0 | ES135: 0 | ET135: 0 | EU135: 0 | EV135: 0 | EW135: 0 | EX135: 0 | EY135: 0 | EZ135: 0 | FA135: 0 | FB135: 0 | FC135: 0 | FD135: 0 | FE135: 0 | FF135: 0 | FG135: 0 | FH135: 0 | FI135: 0 | FJ135: 0 | FK135: 0 | FL135: 0 | FM135: 0 | FN135: 0 | FO135: 0 | FP135: 0 | FQ135: 0 | FR135: 0 | FS135: 0 | FT135: 0 | FU135: 0 | FV135: 0 | FW135: 0 | FX135: 0 | FY135: 0 | FZ135: 0 | GA135: 0 | GB135: 0 | GC135: 0 | GD135: 0 | GE135: 0 | GF135: 0 | GG135: 0 | GH135: 0 | GI135: 0 | GJ135: 0
